Workbook

Sheet Июнь2007
B2: Клиенты Участников торгов Фондовой биржи ММВБ
B3: ИЮНЬ '07
B6: Динамика количества клиентов за июнь 2007 г.
B10: Количество зарегистрированных клиентов в Системе торгов: | H10: Таблица 1
B11: Группы клиентов | E11: 2007-06-01 | F11: 2007-07-01 | G11: Изменение (ед.) | H11: Изменение (%)
B12: Физические лица | E12: 418229 | F12: 425560 | G12: =F12-E12 -> 7331 | H12: =F12/E12-1 -> 0.01752867448
B13: Юридические лица | E13: 26466 | F13: 26544 | G13: =F13-E13 -> 78 | H13: =F13/E13-1 -> 0.002947177511
B14: Нерезиденты | E14: 2265 | F14: 2591 | G14: =F14-E14 -> 326 | H14: =F14/E14-1 -> 0.1439293598
B15: Клиенты, передавшие свои средства в ДУ | E15: 9189 | F15: 9337 | G15: =F15-E15 -> 148 | H15: =F15/E15-1 -> 0.01610621395
B16: Всего | E16: 456149 | F16: 464032 | G16: =F16-E16 -> 7883 | H16: =F16/E16-1 -> 0.01728163385
B19: Количество уникальных клиентов в Системе торгов: | H19: Таблица 2
B20: Группы клиентов | E20: 2007-06-01 | F20: 2007-07-01 | G20: Изменение (ед.) | H20: Изменение (%)
B21: Физические лица | E21: 362873 | F21: 368644 | G21: =F21-E21 -> 5771 | H21: =F21/E21-1 -> 0.01590363571
B22: Юридические лица | E22: 11646 | F22: 11825 | G22: =F22-E22 -> 179 | H22: =F22/E22-1 -> 0.01537008415
B23: Нерезиденты | E23: 1448 | F23: 1760 | G23: =F23-E23 -> 312 | H23: =F23/E23-1 -> 0.2154696133
B24: Клиенты, передавшие свои средства в ДУ | E24: 3551 | F24: 3585 | G24: =F24-E24 -> 34 | H24: =F24/E24-1 -> 0.009574767671
B25: Всего | E25: =SUM(E21:E24) -> 379518 | F25: =SUM(F21:F24) -> 385814 | G25: =F25-E25 -> 6296 | H25: =F25/E25-1 -> 0.01658946348
B28: Количество активных клиентов в Системе торгов (совершивших в течение месяца хотя бы одну сделку): | H28: Таблица 3
B29: Группы клиентов | E29: за май 2007 г. | F29: за июнь 2007 г. | G29: Изменение (ед.) | H29: Изменение (%)
B30: Физические лица | E30: 53344 | F30: 54014 | G30: =F30-E30 -> 670 | H30: =F30/E30-1 -> 0.012559988
B31: Юридические лица | E31: 2141 | F31: 2220 | G31: =F31-E31 -> 79 | H31: =F31/E31-1 -> 0.03689864549
B32: Нерезиденты | E32: 363 | F32: 392 | G32: =F32-E32 -> 29 | H32: =F32/E32-1 -> 0.07988980716
B33: Клиенты, передавшие свои средства в ДУ | E33: 3211 | F33: 3159 | G33: =F33-E33 -> -52 | H33: =F33/E33-1 -> -0.01619433198
B34: Всего | E34: =SUM(E30:E33) -> 59059 | F34: =SUM(F30:F33) -> 59785 | G34: =F34-E34 -> 726 | H34: =F34/E34-1 -> 0.01229279195
B38: Изменение количества уникальных клиентов - ретроспективные данные
B42: Количество уникальных клиентов в Системе торгов (ежегодная статистика): | H42: Таблица 1
B43: Группы клиентов | F43: 2005-01-01 | G43: 2006-01-01 | H43: 2007-01-01
B44: Физические лица | F44: 63183 | G44: 95675 | H44: 198973
B45: Юридические лица | F45: 5002 | G45: 8601 | H45: 10665
B46: Нерезиденты | F46: 234 | G46: 630 | H46: 1140
B47: Клиенты, передавшие свои средства в ДУ | F47: 741 | G47: 1671 | H47: 2839
B48: Всего | F48: 69160 | G48: 106577 | H48: 213617
B76: Количество уникальных клиентов в Системе торгов (за последние 6 месяцев): | H76: Таблица 2
B77: Группы клиентов | C77: 2007-02-01 | D77: 2007-03-01 | E77: 2007-04-01 | F77: 2007-05-01 | G77: 2007-06-01 | H77: 2007-07-01
B78: Физические лица | C78: 208764 | D78: 230712 | E78: 239508 | F78: 253143 | G78: 362873 | H78: 368644
B79: Юридические лица | C79: 10799 | D79: 11049 | E79: 11286 | F79: 11488 | G79: 11646 | H79: 11825
B80: Нерезиденты | C80: 1183 | D80: 1215 | E80: 1255 | F80: 1319 | G80: 1448 | H80: 1760
B81: Клиенты, передавшие свои средства в ДУ | C81: 2960 | D81: 3276 | E81: 3367 | F81: 3491 | G81: 3551 | H81: 3585
B82: Всего | C82: 223706 | D82: 246252 | E82: 255416 | F82: 269441 | G82: 379518 | H82: 385814
B118: Дополнительные показатели по клиентам
B121: на 01.07.2007 г. | H121: Таблица 1
B122: Категории Участников торгов/клиентов | F122: Абсолютные показатели | G122: Доля от общего количества | H122: Количество организаций, допущенных к торгам
B123: Количество Участников торгов, имеющих зарегистрированных клиентов | F123: 447 | G123: 0.8887 | H123: 503
B124: Количество стран мира, представленных клиентами-нерезидентами | F124: 76
B125: Количество Участников торгов, зарегистрировавших клиентов-нерезидентов | F125: 191 | G125: 0.37972166 | H125: 503
B126: Количество клиентов, подписавших Декларацию о рисках с целью совершения сделок с ценными бумагами, включёнными в Котировальный список "И" | F126: 432 (уникальных - 376)
B127: Количество Участников торгов, зарегистрировавших клиентов, имеющих намерение совершать сделки с ценными бумагами, включёнными в Котировальный список "И" | F127: 58 | G127: 0.11530815 | H127: 503
B131: Списки ведущих операторов фондового рынка - клиенты Участников торгов (за июнь 2007 г.)
B134: Ведущие операторы рынка – число зарегистрированных уникальных клиентов | H134: Таблица 1
B135: Наименование Участника торгов | G135: Количество клиентов
B136: 1. ВТБ 24 (ЗАО) | G136: 132580
B137: 2. «Компания Брокеркредитсервис» (ООО) | G137: 26457
B138: 3. «ФИНАМ» (ЗАО) | G138: 22552
B139: 4. «АТОН» (ООО) | G139: 10847
B140: 5. «АЛЬФА-БАHK» (ОАО) | G140: 9472
B141: 6. ГК «АЛОР» | G141: 7701
B142: 7. «НЭТТРЭЙДЕР» (ООО) | G142: 6170
B143: 8. «Брокерский дом Открытие» (ОАО) | G143: 4673
B144: 9. «АВК-Ценные бумаги» (ООО) | G144: 3935
B145: 10. ИФК «Солид» (ЗАО) | G145: 3812
B148: Ведущие операторы рынка – число активных клиентов | H148: Таблица 2
B149: Наименование Участника торгов | G149: Количество клиентов
B150: 1. «Компания Брокеркредитсервис» (ООО) | G150: 9118
B151: 2. «ФИНАМ» (ЗАО) | G151: 8374
B152: 3. ВТБ 24 (ЗАО) | G152: 3471
B153: 4. «АЛЬФА-БАHK» (ОАО) | G153: 2839
B154: 5. «АТОН» (ООО) | G154: 2800
B155: 6. «НЭТТРЭЙДЕР» (ООО) | G155: 1979
B156: 7. ГК «АЛОР» | G156: 1935
B157: 8. «Брокерский дом Открытие» (ОАО) | G157: 1342
B158: 9. КИТ Финанс (ООО) | G158: 1067
B159: 10. ИК «Церих Кэпитал Менеджмент» (ОАО) | G159: 781
B162: Ведущие операторы рынка – объем клиентских операций | H162: Таблица 3
B163: Наименование Участника торгов | G163: Торговый оборот, руб.
B164: 1. «Тройка Диалог» (ЗАО) | G164: 771694379761
B165: 2. КИТ Финанс (ООО) | G165: 480226368412
B166: 3. «Компания Брокеркредитсервис» (ООО) | G166: 393333817264
B167: 4. «ФИНАМ» (ЗАО) | G167: 363715438653
B168: 5. «АТОН» (ООО) | G168: 151834594297
B169: 6. «Брокерский дом Открытие» (ОАО) | G169: 148382912264
B170: 7. ГК «АЛОР» | G170: 145446893480
B171: 8. «ИК «Ди Си Кэпитал» (ООО) | G171: 135891769774
B172: 9. «ИК Ист Кэпитал» (ООО) | G172: 100627900976
B173: 10. «АЛЬФА-БАHK» (ОАО) | G173: 79056883397

Sheet Июль2007
B2: Клиенты Участников торгов Фондовой биржи ММВБ
B3: ИЮЛЬ '07
B6: Динамика количества клиентов за июль 2007 г.
B10: Количество зарегистрированных клиентов в Системе торгов: | H10: Таблица 1
B11: Группы клиентов | E11: 2007-07-01 | F11: 2007-08-01 | G11: Изменение (ед.) | H11: Изменение (%)
B12: Физические лица | E12: 425560 | F12: 434889 | G12: =F12-E12 -> 9329 | H12: =F12/E12-1 -> 0.02192170317
B13: Юридические лица | E13: 26544 | F13: 26877 | G13: =F13-E13 -> 333 | H13: =F13/E13-1 -> 0.01254520796
B14: Нерезиденты | E14: 2591 | F14: 2617 | G14: =F14-E14 -> 26 | H14: =F14/E14-1 -> 0.01003473562
B15: Клиенты, передавшие свои средства в ДУ | E15: 9337 | F15: 9538 | G15: =F15-E15 -> 201 | H15: =F15/E15-1 -> 0.02152725715
B16: Всего | E16: 464032 | F16: 473921 | G16: =F16-E16 -> 9889 | H16: =F16/E16-1 -> 0.02131103027
B19: Количество уникальных клиентов в Системе торгов: | H19: Таблица 2
B20: Группы клиентов | E20: 2007-07-01 | F20: 2007-08-01 | G20: Изменение (ед.) | H20: Изменение (%)
B21: Физические лица | E21: 368644 | F21: 376029 | G21: =F21-E21 -> 7385 | H21: =F21/E21-1 -> 0.02003287725
B22: Юридические лица | E22: 11825 | F22: 11995 | G22: =F22-E22 -> 170 | H22: =F22/E22-1 -> 0.01437632135
B23: Нерезиденты | E23: 1760 | F23: 1806 | G23: =F23-E23 -> 46 | H23: =F23/E23-1 -> 0.02613636364
B24: Клиенты, передавшие свои средства в ДУ | E24: 3585 | F24: 3658 | G24: =F24-E24 -> 73 | H24: =F24/E24-1 -> 0.02036262204
B25: Всего | E25: =SUM(E21:E24) -> 385814 | F25: 393488 | G25: =F25-E25 -> 7674 | H25: =F25/E25-1 -> 0.01989041352
B28: Количество активных клиентов в Системе торгов (совершивших в течение месяца хотя бы одну сделку): | H28: Таблица 3
B29: Группы клиентов | E29: за июнь 2007 г. | F29: за июль 2007 г. | G29: Изменение (ед.) | H29: Изменение (%)
B30: Физические лица | E30: 54014 | F30: 63556 | G30: =F30-E30 -> 9542 | H30: =F30/E30-1 -> 0.1766579035
B31: Юридические лица | E31: 2220 | F31: 2308 | G31: =F31-E31 -> 88 | H31: =F31/E31-1 -> 0.03963963964
B32: Нерезиденты | E32: 392 | F32: 448 | G32: =F32-E32 -> 56 | H32: =F32/E32-1 -> 0.1428571429
B33: Клиенты, передавшие свои средства в ДУ | E33: 3159 | F33: 3391 | G33: =F33-E33 -> 232 | H33: =F33/E33-1 -> 0.07344096233
B34: Всего | E34: =SUM(E30:E33) -> 59785 | F34: =SUM(F30:F33) -> 69703 | G34: =F34-E34 -> 9918 | H34: =F34/E34-1 -> 0.1658944551
B38: Изменение количества уникальных клиентов - ретроспективные данные
B42: Количество уникальных клиентов в Системе торгов (ежегодная статистика): | H42: Таблица 1
B43: Группы клиентов | F43: 2005-01-01 | G43: 2006-01-01 | H43: 2007-01-01
B44: Физические лица | F44: 63183 | G44: 95675 | H44: 198973
B45: Юридические лица | F45: 5002 | G45: 8601 | H45: 10665
B46: Нерезиденты | F46: 234 | G46: 630 | H46: 1140
B47: Клиенты, передавшие свои средства в ДУ | F47: 741 | G47: 1671 | H47: 2839
B48: Всего | F48: 69160 | G48: 106577 | H48: 213617
B76: Количество уникальных клиентов в Системе торгов (за последние 6 месяцев): | H76: Таблица 2
B77: Группы клиентов | C77: 2007-03-01 | D77: 2007-04-01 | E77: 2007-05-01 | F77: 2007-06-01 | G77: 2007-07-01 | H77: 2007-08-01
B78: Физические лица | C78: 230712 | D78: 239508 | E78: 253143 | F78: 362873 | G78: 368644 | H78: 376029
B79: Юридические лица | C79: 11049 | D79: 11286 | E79: 11488 | F79: 11646 | G79: 11825 | H79: 11995
B80: Нерезиденты | C80: 1215 | D80: 1255 | E80: 1319 | F80: 1448 | G80: 1760 | H80: 1806
B81: Клиенты, передавшие свои средства в ДУ | C81: 3276 | D81: 3367 | E81: 3491 | F81: 3551 | G81: 3585 | H81: 3658
B82: Всего | C82: 246252 | D82: 255416 | E82: 269441 | F82: 379518 | G82: 385814 | H82: 393488
B118: Дополнительные показатели по клиентам
B121: на 01.08.2007 г. | H121: Таблица 1
B122: Категории Участников торгов/клиентов | F122: Абсолютные показатели | G122: Доля от общего количества | H122: Количество организаций, допущенных к торгам
B123: Количество Участников торгов, имеющих зарегистрированных клиентов | F123: 454 | G123: 0.8867 | H123: 512
B124: Количество стран мира, представленных клиентами-нерезидентами | F124: 77
B125: Количество Участников торгов, зарегистрировавших клиентов-нерезидентов | F125: 193 | G125: 0.376953125 | H125: 512
B126: Количество клиентов, подписавших Декларацию о рисках с целью совершения сделок с ценными бумагами, включёнными в Котировальный список "И" | F126: 1 591 (уникальных - 1 354)
B127: Количество Участников торгов, зарегистрировавших клиентов, имеющих намерение совершать сделки с ценными бумагами, включёнными в Котировальный список "И" | F127: 114 | G127: 0.22265625 | H127: 512
B131: Списки ведущих операторов фондового рынка - клиенты Участников торгов (за июль 2007 г.)
B134: Ведущие операторы рынка – число зарегистрированных уникальных клиентов | H134: Таблица 1
B135: Наименование Участника торгов | G135: Количество клиентов
B136: 1. ВТБ 24 (ЗАО) | G136: 132887
B137: 2. «Компания Брокеркредитсервис» (ООО) | G137: 27204
B138: 3. «ФИНАМ» (ЗАО) | G138: 23742
B139: 4. «АТОН» (ООО) | G139: 11464
B140: 5. «АЛЬФА-БАHK» (ОАО) | G140: 9621
B141: 6. ГК «АЛОР» | G141: 8010
B142: 7. «НЭТТРЭЙДЕР» (ООО) | G142: 6278
B143: 8. «Брокерский дом Открытие» (ОАО) | G143: 4788
B144: 9. «АВК-Ценные бумаги» (ООО) | G144: 3973
B145: 10. ИФК «Солид» (ЗАО) | G145: 3845
B148: Ведущие операторы рынка – число активных клиентов | H148: Таблица 2
B149: Наименование Участника торгов | G149: Количество клиентов
B150: 1. «Компания Брокеркредитсервис» (ООО) | G150: 10222
B151: 2. «ФИНАМ» (ЗАО) | G151: 9815
B152: 3. ВТБ 24 (ЗАО) | G152: 4650
B153: 4. «АТОН» (ООО) | G153: 3319
B154: 5. «АЛЬФА-БАHK» (ОАО) | G154: 3149
B155: 6. «НЭТТРЭЙДЕР» (ООО) | G155: 2232
B156: 7. ГК «АЛОР» | G156: 2195
B157: 8. «Брокерский дом Открытие» (ОАО) | G157: 1524
B158: 9. КИТ Финанс (ООО) | G158: 1187
B159: 10. ИК «Церих Кэпитал Менеджмент» (ОАО) | G159: 865
B162: Ведущие операторы рынка – объем клиентских операций | H162: Таблица 3
B163: Наименование Участника торгов | G163: Торговый оборот, руб.
B164: 1. «Тройка Диалог» (ЗАО) | G164: 8.184040836e+11
B165: 2. КИТ Финанс (ООО) | G165: 5.86727456e+11
B166: 3. «Компания Брокеркредитсервис» (ООО) | G166: 4.439974566e+11
B167: 4. «ФИНАМ» (ЗАО) | G167: 3.869384279e+11
B168: 5. «ИК «Ди Си Кэпитал» (ООО) | G168: 1.980323736e+11
B169: 6. «АТОН» (ООО) | G169: 1.85658256e+11
B170: 7. «Брокерский дом Открытие» (ОАО) | G170: 1.56621541e+11
B171: 8. ГК «АЛОР» | G171: 1.504762351e+11
B172: 9. ВТБ 24 (ЗАО) | G172: 1.080940103e+11
B173: 10. «ИК Ист Кэпитал» (ООО) | G173: 9.637867722e+10

Sheet Август2007
B2: Клиенты Участников торгов Фондовой биржи ММВБ
B3: АВГУСТ '07
B6: Динамика количества клиентов за август 2007 г.
B10: Количество зарегистрированных клиентов в Системе торгов: | H10: Таблица 1
B11: Группы клиентов | E11: 2007-08-01 | F11: 2007-09-01 | G11: Изменение (ед.) | H11: Изменение (%)
B12: Физические лица | E12: 434889 | F12: 443354 | G12: =F12-E12 -> 8465 | H12: =F12/E12-1 -> 0.01946473698
B13: Юридические лица | E13: 26877 | F13: 26945 | G13: =F13-E13 -> 68 | H13: =F13/E13-1 -> 0.002530044276
B14: Нерезиденты | E14: 2617 | F14: 2755 | G14: =F14-E14 -> 138 | H14: =F14/E14-1 -> 0.05273213603
B15: Клиенты, передавшие свои средства в ДУ | E15: 9538 | F15: 9790 | G15: =F15-E15 -> 252 | H15: =F15/E15-1 -> 0.02642063326
B16: Всего | E16: 473921 | F16: 482844 | G16: =F16-E16 -> 8923 | H16: =F16/E16-1 -> 0.01882803252
B19: Количество уникальных клиентов в Системе торгов: | H19: Таблица 2
B20: Группы клиентов | E20: 2007-08-01 | F20: 2007-09-01 | G20: Изменение (ед.) | H20: Изменение (%)
B21: Физические лица | E21: 376029 | F21: 382802 | G21: =F21-E21 -> 6773 | H21: =F21/E21-1 -> 0.01801190866
B22: Юридические лица | E22: 11995 | F22: 12069 | G22: =F22-E22 -> 74 | H22: =F22/E22-1 -> 0.006169237182
B23: Нерезиденты | E23: 1806 | F23: 1850 | G23: =F23-E23 -> 44 | H23: =F23/E23-1 -> 0.02436323367
B24: Клиенты, передавшие свои средства в ДУ | E24: 3658 | F24: 3738 | G24: =F24-E24 -> 80 | H24: =F24/E24-1 -> 0.02186987425
B25: Всего | E25: 393488 | F25: 400459 | G25: =F25-E25 -> 6971 | H25: =F25/E25-1 -> 0.0177159151
B28: Количество активных клиентов в Системе торгов (совершивших в течение месяца хотя бы одну сделку): | H28: Таблица 3
B29: Группы клиентов | E29: за июль 2007 г. | F29: за август 2007 г. | G29: Изменение (ед.) | H29: Изменение (%)
B30: Физические лица | E30: 63556 | F30: 59164 | G30: =F30-E30 -> -4392 | H30: =F30/E30-1 -> -0.06910441186
B31: Юридические лица | E31: 2308 | F31: 2159 | G31: =F31-E31 -> -149 | H31: =F31/E31-1 -> -0.06455805893
B32: Нерезиденты | E32: 448 | F32: 440 | G32: =F32-E32 -> -8 | H32: =F32/E32-1 -> -0.01785714286
B33: Клиенты, передавшие свои средства в ДУ | E33: 3391 | F33: 3299 | G33: =F33-E33 -> -92 | H33: =F33/E33-1 -> -0.02713063993
B34: Всего | E34: =SUM(E30:E33) -> 69703 | F34: =SUM(F30:F33) -> 65062 | G34: =F34-E34 -> -4641 | H34: =F34/E34-1 -> -0.06658250004
B38: Изменение количества уникальных клиентов - ретроспективные данные
B42: Количество уникальных клиентов в Системе торгов (ежегодная статистика): | H42: Таблица 1
B43: Группы клиентов | F43: 2005-01-01 | G43: 2006-01-01 | H43: 2007-01-01
B44: Физические лица | F44: 63183 | G44: 95675 | H44: 198973
B45: Юридические лица | F45: 5002 | G45: 8601 | H45: 10665
B46: Нерезиденты | F46: 234 | G46: 630 | H46: 1140
B47: Клиенты, передавшие свои средства в ДУ | F47: 741 | G47: 1671 | H47: 2839
B48: Всего | F48: 69160 | G48: 106577 | H48: 213617
B76: Количество уникальных клиентов в Системе торгов (за последние 6 месяцев): | H76: Таблица 2
B77: Группы клиентов | C77: 2007-04-01 | D77: 2007-05-01 | E77: 2007-06-01 | F77: 2007-07-01 | G77: 2007-08-01 | H77: 2007-09-01
B78: Физические лица | C78: 239508 | D78: 253143 | E78: 362873 | F78: 368644 | G78: 376029 | H78: 382802
B79: Юридические лица | C79: 11286 | D79: 11488 | E79: 11646 | F79: 11825 | G79: 11995 | H79: 12069
B80: Нерезиденты | C80: 1255 | D80: 1319 | E80: 1448 | F80: 1760 | G80: 1806 | H80: 1850
B81: Клиенты, передавшие свои средства в ДУ | C81: 3367 | D81: 3491 | E81: 3551 | F81: 3585 | G81: 3658 | H81: 3738
B82: Всего | C82: 255416 | D82: 269441 | E82: 379518 | F82: 385814 | G82: 393488 | H82: 400459
B118: Дополнительные показатели по клиентам
B121: на 01.09.2007 г. | H121: Таблица 1
B122: Категории Участников торгов/клиентов | F122: Абсолютные показатели | G122: Доля от общего количества | H122: Количество организаций, допущенных к торгам
B123: Количество Участников торгов, имеющих зарегистрированных клиентов | F123: 458 | G123: 0.89453125 | H123: 514
B124: Количество стран мира, представленных клиентами-нерезидентами | F124: 77
B125: Количество Участников торгов, зарегистрировавших клиентов-нерезидентов | F125: 195 | G125: 0.3793774319 | H125: 514
B126: Количество клиентов, подписавших Декларацию о рисках с целью совершения сделок с ценными бумагами, включёнными в Котировальный список "И" | F126: 3 399 (уникальных - 2 934)
B127: Количество Участников торгов, зарегистрировавших клиентов, имеющих намерение совершать сделки с ценными бумагами, включёнными в Котировальный список "И" | F127: 145 | G127: 0.2821011673 | H127: 514
B131: Списки ведущих операторов фондового рынка - клиенты Участников торгов (за август 2007 г.)
B134: Ведущие операторы рынка – число зарегистрированных уникальных клиентов | H134: Таблица 1
B135: Наименование Участника торгов | G135: Количество клиентов
B136: 1. ВТБ 24 (ЗАО) | G136: 133202
B137: 2. «Компания Брокеркредитсервис» (ООО) | G137: 28005
B138: 3. «ФИНАМ» (ЗАО) | G138: 24959
B139: 4. «АТОН» (ООО) | G139: 12060
B140: 5. «АЛЬФА-БАHK» (ОАО) | G140: 9801
B141: 6. ГК «АЛОР» | G141: 8313
B142: 7. «НЭТТРЭЙДЕР» (ООО) | G142: 6443
B143: 8. «Брокерский дом Открытие» (ОАО) | G143: 4864
B144: 9. «АВК-Ценные бумаги» (ООО) | G144: 4017
B145: 10. КИТ Финанс (ООО) | G145: 3979
B148: Ведущие операторы рынка – число активных клиентов | H148: Таблица 2
B149: Наименование Участника торгов | G149: Количество клиентов
B150: 1. «Компания Брокеркредитсервис» (ООО) | G150: 9690
B151: 2. «ФИНАМ» (ЗАО) | G151: 9284
B152: 3. ВТБ 24 (ЗАО) | G152: 4665
B153: 4. «АТОН» (ООО) | G153: 3188
B154: 5. «АЛЬФА-БАHK» (ОАО) | G154: 2970
B155: 6. «НЭТТРЭЙДЕР» (ООО) | G155: 2103
B156: 7. ГК «АЛОР» | G156: 2102
B157: 8. «Брокерский дом Открытие» (ОАО) | G157: 1403
B158: 9. «ЮТРЭЙД.РУ» (ОАО) | G158: 1278
B159: 10. КИТ Финанс (ООО) | G159: 1136
B162: Ведущие операторы рынка – объем клиентских операций | H162: Таблица 3
B163: Наименование Участника торгов | G163: Торговый оборот, руб.
B164: 1. ИК «Тройка Диалог» (ЗАО) | G164: 8.400110345e+11
B165: 2. КИТ Финанс (ООО) | G165: 7.153673812e+11
B166: 3. «Компания Брокеркредитсервис» (ООО) | G166: 4.296360472e+11
B167: 4. «ФИНАМ» (ЗАО) | G167: 3.340641124e+11
B168: 5. «ИК «Ди Си Кэпитал» (ООО) | G168: 2.307588288e+11
B169: 6. «АТОН» (ООО) | G169: 1.608505801e+11
B170: 7. «Брокерский дом Открытие» (ОАО) | G170: 1.469537255e+11
B171: 8. ГК «АЛОР» | G171: 1.28728029e+11
B172: 9. «ИК Ист Кэпитал» (ООО) | G172: 1.128303754e+11
B173: 10. ВТБ 24 (ЗАО) | G173: 9.571533081e+10

Sheet Сентябрь2007
B2: Клиенты Участников торгов Фондовой биржи ММВБ
B3: СЕНТЯБРЬ '07
B6: Динамика количества клиентов за сентябрь 2007 г.
B10: Количество зарегистрированных клиентов в Системе торгов: | H10: Таблица 1
B11: Группы клиентов | E11: 2007-09-01 | F11: 2007-10-01 | G11: Изменение (ед.) | H11: Изменение (%)
B12: Физические лица | E12: 443354 | F12: 451458 | G12: =F12-E12 -> 8104 | H12: =F12/E12-1 -> 0.01827884715
B13: Юридические лица | E13: 26945 | F13: 27262 | G13: =F13-E13 -> 317 | H13: =F13/E13-1 -> 0.01176470588
B14: Нерезиденты | E14: 2755 | F14: 2813 | G14: =F14-E14 -> 58 | H14: =F14/E14-1 -> 0.02105263158
B15: Клиенты, передавшие свои средства в ДУ | E15: 9790 | F15: 10010 | G15: =F15-E15 -> 220 | H15: =F15/E15-1 -> 0.02247191011
B16: Всего | E16: =SUM(E12:E15) -> 482844 | F16: =SUM(F12:F15) -> 491543 | G16: =F16-E16 -> 8699 | H16: =F16/E16-1 -> 0.01801617085
B19: Количество уникальных клиентов в Системе торгов: | H19: Таблица 2
B20: Группы клиентов | E20: 2007-09-01 | F20: 2007-10-01 | G20: Изменение (ед.) | H20: Изменение (%)
B21: Физические лица | E21: 382802 | F21: 388852 | G21: =F21-E21 -> 6050 | H21: =F21/E21-1 -> 0.01580451513
B22: Юридические лица | E22: 12069 | F22: 12193 | G22: =F22-E22 -> 124 | H22: =F22/E22-1 -> 0.01027425636
B23: Нерезиденты | E23: 1850 | F23: 1903 | G23: =F23-E23 -> 53 | H23: =F23/E23-1 -> 0.02864864865
B24: Клиенты, передавшие свои средства в ДУ | E24: 3738 | F24: 3801 | G24: =F24-E24 -> 63 | H24: =F24/E24-1 -> 0.01685393258
B25: Всего | E25: =SUM(E21:E24) -> 400459 | F25: =SUM(F21:F24) -> 406749 | G25: =F25-E25 -> 6290 | H25: =F25/E25-1 -> 0.01570697624
B28: Количество активных клиентов в Системе торгов (совершивших в течение месяца хотя бы одну сделку): | H28: Таблица 3
B29: Группы клиентов | E29: за август 2007 г. | F29: за сентябрь 2007 г. | G29: Изменение (ед.) | H29: Изменение (%)
B30: Физические лица | E30: 59164 | F30: 56919 | G30: =F30-E30 -> -2245 | H30: =F30/E30-1 -> -0.03794537219
B31: Юридические лица | E31: 2159 | F31: 2138 | G31: =F31-E31 -> -21 | H31: =F31/E31-1 -> -0.009726725336
B32: Нерезиденты | E32: 440 | F32: 441 | G32: =F32-E32 -> 1 | H32: =F32/E32-1 -> 0.002272727273
B33: Клиенты, передавшие свои средства в ДУ | E33: 3299 | F33: 3440 | G33: =F33-E33 -> 141 | H33: =F33/E33-1 -> 0.04274022431
B34: Всего | E34: =SUM(E30:E33) -> 65062 | F34: =SUM(F30:F33) -> 62938 | G34: =F34-E34 -> -2124 | H34: =F34/E34-1 -> -0.03264578402
B38: Изменение количества уникальных клиентов - ретроспективные данные
B42: Количество уникальных клиентов в Системе торгов (ежегодная статистика): | H42: Таблица 1
B43: Группы клиентов | F43: 2005-01-01 | G43: 2006-01-01 | H43: 2007-01-01
B44: Физические лица | F44: 63183 | G44: 95675 | H44: 198973
B45: Юридические лица | F45: 5002 | G45: 8601 | H45: 10665
B46: Нерезиденты | F46: 234 | G46: 630 | H46: 1140
B47: Клиенты, передавшие свои средства в ДУ | F47: 741 | G47: 1671 | H47: 2839
B48: Всего | F48: =SUM(F44:F47) -> 69160 | G48: =SUM(G44:G47) -> 106577 | H48: =SUM(H44:H47) -> 213617
B76: Количество уникальных клиентов в Системе торгов (за последние 6 месяцев): | H76: Таблица 2
B77: Группы клиентов | C77: 2007-05-01 | D77: 2007-06-01 | E77: 2007-07-01 | F77: 2007-08-01 | G77: 2007-09-01 | H77: 2007-10-01
B78: Физические лица | C78: 253143 | D78: 362873 | E78: 368644 | F78: 376029 | G78: 382802 | H78: 388852
B79: Юридические лица | C79: 11488 | D79: 11646 | E79: 11825 | F79: 11995 | G79: 12069 | H79: 12193
B80: Нерезиденты | C80: 1319 | D80: 1448 | E80: 1760 | F80: 1806 | G80: 1850 | H80: 1903
B81: Клиенты, передавшие свои средства в ДУ | C81: 3491 | D81: 3551 | E81: 3585 | F81: 3658 | G81: 3738 | H81: 3801
B82: Всего | C82: =SUM(C78:C81) -> 269441 | D82: 379518 | E82: 385814 | F82: 393488 | G82: 400459 | H82: 406749
B118: Дополнительные показатели по клиентам
B121: на 01.10.2007 г. | H121: Таблица 1
B122: Категории Участников торгов/клиентов | F122: Абсолютные показатели | G122: Доля от общего количества | H122: Количество организаций, допущенных к торгам
B123: Количество Участников торгов, имеющих зарегистрированных клиентов | F123: 464 | G123: 0.9027237354 | H123: 514
B124: Количество стран мира, представленных клиентами-нерезидентами | F124: 77
B125: Количество Участников торгов, зарегистрировавших клиентов-нерезидентов | F125: 199 | G125: 0.3871595331 | H125: 514
B126: Количество клиентов, подписавших Декларацию о рисках с целью совершения сделок с ценными бумагами, включёнными в Котировальный список "И" | F126: 4 679 (уникальных - 3 978)
B127: Количество Участников торгов, зарегистрировавших клиентов, имеющих намерение совершать сделки с ценными бумагами, включёнными в Котировальный список "И" | F127: 164 | G127: 0.3190661479 | H127: 514
B131: Списки ведущих операторов фондового рынка - клиенты Участников торгов (за сентябрь 2007 г.)
B134: Ведущие операторы рынка – число зарегистрированных уникальных клиентов | H134: Таблица 1
B135: Наименование Участника торгов | G135: Количество клиентов
B136: 1. ВТБ 24 (ЗАО) | G136: 133486
B137: 2. «Компания Брокеркредитсервис» (ООО) | G137: 28642
B138: 3. «ФИНАМ» (ЗАО) | G138: 26103
B139: 4. «АТОН» (ООО) | G139: 12589
B140: 5. «АЛЬФА-БАHK» (ОАО) | G140: 10095
B141: 6. ГК «АЛОР» | G141: 8554
B142: 7. «НЭТТРЭЙДЕР» (ООО) | G142: 6566
B143: 8. «Брокерский дом Открытие» (ОАО) | G143: 4944
B144: 9. КИТ Финанс (ООО) | G144: 4137
B145: 10. «АВК-Ценные бумаги» (ООО) | G145: 4041
B148: Ведущие операторы рынка – число активных клиентов | H148: Таблица 2
B149: Наименование Участника торгов | G149: Количество клиентов
B150: 1. «Компания Брокеркредитсервис» (ООО) | G150: 9277
B151: 2. «ФИНАМ» (ЗАО) | G151: 9250
B152: 3. ВТБ 24 (ЗАО) | G152: 4351
B153: 4. «АТОН» (ООО) | G153: 3208
B154: 5. «АЛЬФА-БАHK» (ОАО) | G154: 2854
B155: 6. ГК «АЛОР» | G155: 2078
B156: 7. «НЭТТРЭЙДЕР» (ООО) | G156: 2004
B157: 8. «Брокерский дом Открытие» (ОАО) | G157: 1353
B158: 9. «ЮТРЭЙД.РУ» (ОАО) | G158: 1250
B159: 10. КИТ Финанс (ООО) | G159: 1142
B162: Ведущие операторы рынка – объем клиентских операций | H162: Таблица 3
B163: Наименование Участника торгов | G163: Торговый оборот, руб.
B164: 1. КИТ Финанс (ООО) | G164: 709760687060
B165: 2. ИК «Тройка Диалог» (ЗАО) | G165: 661054356154
B166: 3. «Компания Брокеркредитсервис» (ООО) | G166: 334594065689
B167: 4. «ФИНАМ» (ЗАО) | G167: 277076552580
B168: 5. «ИК «Ди Си Кэпитал» (ООО) | G168: 243658306859
B169: 6. «АТОН» (ООО) | G169: 133685908117
B170: 7. «Брокерский дом Открытие» (ОАО) | G170: 124498012322
B171: 8. ГК «АЛОР» | G171: 105961546840
B172: 9. «ИК Ист Кэпитал» (ООО) | G172: 103962915462
B173: 10. «ЮТРЭЙД.РУ» (ОАО) | G173: 79017032142

Sheet Октябрь2007
B2: Клиенты Участников торгов Фондовой биржи ММВБ
B3: ОКТЯБРЬ '07
B6: Динамика количества клиентов за октябрь 2007 г.
B10: Количество зарегистрированных клиентов в Системе торгов: | H10: Таблица 1
B11: Группы клиентов | E11: 2007-10-01 | F11: 2007-11-01 | G11: Изменение (ед.) | H11: Изменение (%)
B12: Физические лица | E12: 451458 | F12: 463745 | G12: =F12-E12 -> 12287 | H12: =F12/E12-1 -> 0.02721626375
B13: Юридические лица | E13: 27262 | F13: 27593 | G13: =F13-E13 -> 331 | H13: =F13/E13-1 -> 0.0121414423
B14: Нерезиденты | E14: 2813 | F14: 2941 | G14: =F14-E14 -> 128 | H14: =F14/E14-1 -> 0.04550302169
B15: Клиенты, передавшие свои средства в ДУ | E15: 10010 | F15: 10285 | G15: =F15-E15 -> 275 | H15: =F15/E15-1 -> 0.02747252747
B16: Всего | E16: =SUM(E12:E15) -> 491543 | F16: =SUM(F12:F15) -> 504564 | G16: =F16-E16 -> 13021 | H16: =F16/E16-1 -> 0.02649005275
B19: Количество уникальных клиентов в Системе торгов: | H19: Таблица 2
B20: Группы клиентов | E20: 2007-10-01 | F20: 2007-11-01 | G20: Изменение (ед.) | H20: Изменение (%)
B21: Физические лица | E21: 388852 | F21: 398685 | G21: =F21-E21 -> 9833 | H21: =F21/E21-1 -> 0.02528725582
B22: Юридические лица | E22: 12193 | F22: 12361 | G22: =F22-E22 -> 168 | H22: =F22/E22-1 -> 0.01377839744
B23: Нерезиденты | E23: 1903 | F23: 1977 | G23: =F23-E23 -> 74 | H23: =F23/E23-1 -> 0.03888596952
B24: Клиенты, передавшие свои средства в ДУ | E24: 3801 | F24: 3883 | G24: =F24-E24 -> 82 | H24: =F24/E24-1 -> 0.02157327019
B25: Всего | E25: =SUM(E21:E24) -> 406749 | F25: =SUM(F21:F24) -> 416906 | G25: =F25-E25 -> 10157 | H25: =F25/E25-1 -> 0.02497117387
B28: Количество активных клиентов в Системе торгов (совершивших в течение месяца хотя бы одну сделку): | H28: Таблица 3
B29: Группы клиентов | E29: за сентябрь 2007 г. | F29: за октябрь 2007 г. | G29: Изменение (ед.) | H29: Изменение (%)
B30: Физические лица | E30: 56919 | F30: 68744 | G30: =F30-E30 -> 11825 | H30: =F30/E30-1 -> 0.207751366
B31: Юридические лица | E31: 2138 | F31: 2364 | G31: =F31-E31 -> 226 | H31: =F31/E31-1 -> 0.1057062675
B32: Нерезиденты | E32: 441 | F32: 485 | G32: =F32-E32 -> 44 | H32: =F32/E32-1 -> 0.09977324263
B33: Клиенты, передавшие свои средства в ДУ | E33: 3440 | F33: 3665 | G33: =F33-E33 -> 225 | H33: =F33/E33-1 -> 0.06540697674
B34: Всего | E34: =SUM(E30:E33) -> 62938 | F34: =SUM(F30:F33) -> 75258 | G34: =F34-E34 -> 12320 | H34: =F34/E34-1 -> 0.1957481966
B38: Изменение количества уникальных клиентов - ретроспективные данные
B42: Количество уникальных клиентов в Системе торгов (ежегодная статистика): | H42: Таблица 1
B43: Группы клиентов | F43: 2005-01-01 | G43: 2006-01-01 | H43: 2007-01-01
B44: Физические лица | F44: 63183 | G44: 95675 | H44: 198973
B45: Юридические лица | F45: 5002 | G45: 8601 | H45: 10665
B46: Нерезиденты | F46: 234 | G46: 630 | H46: 1140
B47: Клиенты, передавшие свои средства в ДУ | F47: 741 | G47: 1671 | H47: 2839
B48: Всего | F48: =SUM(F44:F47) -> 69160 | G48: =SUM(G44:G47) -> 106577 | H48: =SUM(H44:H47) -> 213617
B76: Количество уникальных клиентов в Системе торгов (за последние 6 месяцев): | H76: Таблица 2
B77: Группы клиентов | C77: 2007-06-01 | D77: 2007-07-01 | E77: 2007-08-01 | F77: 2007-09-01 | G77: 2007-10-01 | H77: 2007-11-01
B78: Физические лица | C78: 362873 | D78: 368644 | E78: 376029 | F78: 382802 | G78: 388852 | H78: 398685
B79: Юридические лица | C79: 11646 | D79: 11825 | E79: 11995 | F79: 12069 | G79: 12193 | H79: 12361
B80: Нерезиденты | C80: 1448 | D80: 1760 | E80: 1806 | F80: 1850 | G80: 1903 | H80: 1977
B81: Клиенты, передавшие свои средства в ДУ | C81: 3551 | D81: 3585 | E81: 3658 | F81: 3738 | G81: 3801 | H81: 3883
B82: Всего | C82: =SUM(C78:C81) -> 379518 | D82: 385814 | E82: 393488 | F82: 400459 | G82: 406749 | H82: 416906
B118: Дополнительные показатели по клиентам
B121: на 01.11.2007 г. | H121: Таблица 1
B122: Категории Участников торгов/клиентов | F122: Абсолютные показатели | G122: Доля от общего количества | H122: Количество организаций, допущенных к торгам
B123: Количество Участников торгов, имеющих зарегистрированных клиентов | F123: 467 | G123: 0.8878326996 | H123: 526
B124: Количество стран мира, представленных клиентами-нерезидентами | F124: 79
B125: Количество Участников торгов, зарегистрировавших клиентов-нерезидентов | F125: 203 | G125: 0.3859315589 | H125: 526
B126: Количество клиентов, подписавших Декларацию о рисках с целью совершения сделок с ценными бумагами, включёнными в Котировальный список "И" | F126: 6 073 (уникальных - 5 293)
B127: Количество Участников торгов, зарегистрировавших клиентов, имеющих намерение совершать сделки с ценными бумагами, включёнными в Котировальный список "И" | F127: 182 | G127: 0.3460076046 | H127: 526
B131: Списки ведущих операторов фондового рынка - клиенты Участников торгов (за октябрь 2007 г.)
B134: Ведущие операторы рынка – число зарегистрированных уникальных клиентов | H134: Таблица 1
B135: Наименование Участника торгов | G135: Количество клиентов
B136: 1. ВТБ 24 (ЗАО) | G136: 133791
B137: 2. «Компания Брокеркредитсервис» (ООО) | G137: 29751
B138: 3. «ФИНАМ» (ЗАО) | G138: 27782
B139: 4. «АТОН» (ООО) | G139: 13714
B140: 5. «АЛЬФА-БАHK» (ОАО) | G140: 11337
B141: 6. ГК «АЛОР» | G141: 8906
B142: 7. «НЭТТРЭЙДЕР» (ООО) | G142: 6732
B143: 8. «Брокерский дом Открытие» (ОАО) | G143: 5197
B144: 9. КИТ Финанс (ООО) | G144: 4325
B145: 10. «АВК-Ценные бумаги» (ООО) | G145: 4064
B148: Ведущие операторы рынка – число активных клиентов | H148: Таблица 2
B149: Наименование Участника торгов | G149: Количество клиентов
B150: 1. «Компания Брокеркредитсервис» (ООО) | G150: 10923
B151: 2. «ФИНАМ» (ЗАО) | G151: 10882
B152: 3. ВТБ 24 (ЗАО) | G152: 4890
B153: 4. «АТОН» (ООО) | G153: 3894
B154: 5. «АЛЬФА-БАHK» (ОАО) | G154: 3250
B155: 6. ГК «АЛОР» | G155: 2420
B156: 7. «НЭТТРЭЙДЕР» (ООО) | G156: 2373
B157: 8. «Брокерский дом Открытие» (ОАО) | G157: 1572
B158: 9. «ЮТРЭЙД.РУ» (ОАО) | G158: 1445
B159: 10. КИТ Финанс (ООО) | G159: 1369
B162: Ведущие операторы рынка – объем клиентских операций | H162: Таблица 3
B163: Наименование Участника торгов | G163: Торговый оборот, руб.
B164: 1. КИТ Финанс (ООО) | G164: 796190369229
B165: 2. ИК «Тройка Диалог» (ЗАО) | G165: 695408453111
B166: 3. «Компания Брокеркредитсервис» (ООО) | G166: 370853889316
B167: 4. «ФИНАМ» (ЗАО) | G167: 347277884346
B168: 5. «ИК «Ди Си Кэпитал» (ООО) | G168: 273911634497
B169: 6. «Брокерский дом Открытие» (ОАО) | G169: 197536141951
B170: 7. «АТОН» (ООО) | G170: 187079567027
B171: 8. ГК «АЛОР» | G171: 145532436225
B172: 9. ВТБ 24 (ЗАО) | G172: 108696805871
B173: 10. «ЮТРЭЙД.РУ» (ОАО) | G173: 97429165664

Sheet Ноябрь2007
B2: Клиенты Участников торгов Фондовой биржи ММВБ
B3: НОЯБРЬ '07
B6: Динамика количества клиентов за ноябрь 2007 г.
B10: Количество зарегистрированных клиентов в Системе торгов: | H10: Таблица 1
B11: Группы клиентов | E11: 2007-11-01 | F11: 2007-12-01 | G11: Изменение (ед.) | H11: Изменение (%)
B12: Физические лица | E12: 463745 | F12: 475667 | G12: =F12-E12 -> 11922 | H12: =F12/E12-1 -> 0.02570809389
B13: Юридические лица | E13: 27593 | F13: 27872 | G13: =F13-E13 -> 279 | H13: =F13/E13-1 -> 0.0101112601
B14: Нерезиденты | E14: 2941 | F14: 3038 | G14: =F14-E14 -> 97 | H14: =F14/E14-1 -> 0.03298197892
B15: Клиенты, передавшие свои средства в ДУ | E15: 10285 | F15: 10537 | G15: =F15-E15 -> 252 | H15: =F15/E15-1 -> 0.02450170151
B16: Всего | E16: =SUM(E12:E15) -> 504564 | F16: =SUM(F12:F15) -> 517114 | G16: =F16-E16 -> 12550 | H16: =F16/E16-1 -> 0.02487295962
B19: Количество уникальных клиентов в Системе торгов: | H19: Таблица 2
B20: Группы клиентов | E20: 2007-11-01 | F20: 2007-12-01 | G20: Изменение (ед.) | H20: Изменение (%)
B21: Физические лица | E21: 398685 | F21: 407622 | G21: =F21-E21 -> 8937 | H21: =F21/E21-1 -> 0.02241619324
B22: Юридические лица | E22: 12361 | F22: 12510 | G22: =F22-E22 -> 149 | H22: =F22/E22-1 -> 0.01205404094
B23: Нерезиденты | E23: 1977 | F23: 2026 | G23: =F23-E23 -> 49 | H23: =F23/E23-1 -> 0.02478502782
B24: Клиенты, передавшие свои средства в ДУ | E24: 3883 | F24: 3980 | G24: =F24-E24 -> 97 | H24: =F24/E24-1 -> 0.02498068504
B25: Всего | E25: =SUM(E21:E24) -> 416906 | F25: =SUM(F21:F24) -> 426138 | G25: =F25-E25 -> 9232 | H25: =F25/E25-1 -> 0.02214408044
B28: Количество активных клиентов в Системе торгов (совершивших в течение месяца хотя бы одну сделку): | H28: Таблица 3
B29: Группы клиентов | E29: за октябрь 2007 г. | F29: за ноябрь 2007 г. | G29: Изменение (ед.) | H29: Изменение (%)
B30: Физические лица | E30: 68744 | F30: 68387 | G30: =F30-E30 -> -357 | H30: =F30/E30-1 -> -0.005193180496
B31: Юридические лица | E31: 2364 | F31: 2368 | G31: =F31-E31 -> 4 | H31: =F31/E31-1 -> 0.001692047377
B32: Нерезиденты | E32: 485 | F32: 481 | G32: =F32-E32 -> -4 | H32: =F32/E32-1 -> -0.00824742268
B33: Клиенты, передавшие свои средства в ДУ | E33: 3665 | F33: 3531 | G33: =F33-E33 -> -134 | H33: =F33/E33-1 -> -0.03656207367
B34: Всего | E34: =SUM(E30:E33) -> 75258 | F34: =SUM(F30:F33) -> 74767 | G34: =F34-E34 -> -491 | H34: =F34/E34-1 -> -0.006524223338
B38: Изменение количества уникальных клиентов - ретроспективные данные
B42: Количество уникальных клиентов в Системе торгов (ежегодная статистика): | H42: Таблица 1
B43: Группы клиентов | F43: 2005-01-01 | G43: 2006-01-01 | H43: 2007-01-01
B44: Физические лица | F44: 63183 | G44: 95675 | H44: 198973
B45: Юридические лица | F45: 5002 | G45: 8601 | H45: 10665
B46: Нерезиденты | F46: 234 | G46: 630 | H46: 1140
B47: Клиенты, передавшие свои средства в ДУ | F47: 741 | G47: 1671 | H47: 2839
B48: Всего | F48: =SUM(F44:F47) -> 69160 | G48: =SUM(G44:G47) -> 106577 | H48: =SUM(H44:H47) -> 213617
B76: Количество уникальных клиентов в Системе торгов (за последние 6 месяцев): | H76: Таблица 2
B77: Группы клиентов | C77: 2007-07-01 | D77: 2007-08-01 | E77: 2007-09-01 | F77: 2007-10-01 | G77: 2007-11-01 | H77: 2007-12-01
B78: Физические лица | C78: 368644 | D78: 376029 | E78: 382802 | F78: 388852 | G78: 398685 | H78: 407622
B79: Юридические лица | C79: 11825 | D79: 11995 | E79: 12069 | F79: 12193 | G79: 12361 | H79: 12510
B80: Нерезиденты | C80: 1760 | D80: 1806 | E80: 1850 | F80: 1903 | G80: 1977 | H80: 2026
B81: Клиенты, передавшие свои средства в ДУ | C81: 3585 | D81: 3658 | E81: 3738 | F81: 3801 | G81: 3883 | H81: 3980
B82: Всего | C82: =SUM(C78:C81) -> 385814 | D82: 393488 | E82: 400459 | F82: 406749 | G82: 416906 | H82: 426138
B118: Дополнительные показатели по клиентам
B121: на 01.12.2007 г. | H121: Таблица 1
B122: Категории Участников торгов/клиентов | F122: Абсолютные показатели | G122: Доля от общего количества | H122: Количество организаций, допущенных к торгам
B123: Количество Участников торгов, имеющих зарегистрированных клиентов | F123: 499 | G123: 0.9468690702 | H123: 527
B124: Количество стран мира, представленных клиентами-нерезидентами | F124: 80
B125: Количество Участников торгов, зарегистрировавших клиентов-нерезидентов | F125: 215 | G125: 0.4079696395 | H125: 527
B126: Количество клиентов, подписавших Декларацию о рисках с целью совершения сделок с ценными бумагами, включёнными в Котировальный список "И" | F126: 8 845 (уникальных - 7 636)
B127: Количество Участников торгов, зарегистрировавших клиентов, имеющих намерение совершать сделки с ценными бумагами, включёнными в Котировальный список "И" | F127: 202 | G127: 0.3833017078 | H127: 527
B131: Списки ведущих операторов фондового рынка - клиенты Участников торгов (за ноябрь 2007 г.)
B134: Ведущие операторы рынка – число зарегистрированных уникальных клиентов | H134: Таблица 1
B135: Наименование Участника торгов | G135: Количество клиентов
B136: 1. ВТБ 24 (ЗАО) | G136: 134135
B137: 2. «Компания Брокеркредитсервис» (ООО) | G137: 30793
B138: 3. «ФИНАМ» (ЗАО) | G138: 29313
B139: 4. «АТОН» (ООО) | G139: 14796
B140: 5. «АЛЬФА-БАHK» (ОАО) | G140: 12638
B141: 6. ГК «АЛОР» | G141: 9262
B142: 7. «НЭТТРЭЙДЕР» (ООО) | G142: 6867
B143: 8. «Брокерский дом Открытие» (ОАО) | G143: 5343
B144: 9. КИТ Финанс (ООО) | G144: 4508
B145: 10. «АВК-Ценные бумаги» (ООО) | G145: 4090
B148: Ведущие операторы рынка – число активных клиентов | H148: Таблица 2
B149: Наименование Участника торгов | G149: Количество клиентов
B150: 1. «ФИНАМ» (ЗАО) | G150: 11441
B151: 2. «Компания Брокеркредитсервис» (ООО) | G151: 11105
B152: 3. ВТБ 24 (ЗАО) | G152: 5063
B153: 4. «АТОН» (ООО) | G153: 4129
B154: 5. «АЛЬФА-БАHK» (ОАО) | G154: 3259
B155: 6. ГК «АЛОР» | G155: 2459
B156: 7. «НЭТТРЭЙДЕР» (ООО) | G156: 2289
B157: 8. «Брокерский дом Открытие» (ОАО) | G157: 1549
B158: 9. «ЮТРЭЙД.РУ» (ОАО) | G158: 1502
B159: 10. КИТ Финанс (ООО) | G159: 1388
B162: Ведущие операторы рынка – объем клиентских операций | H162: Таблица 3
B163: Наименование Участника торгов | G163: Торговый оборот, руб.
B164: 1. ИК «Тройка Диалог» (ЗАО) | G164: 774350903094
B165: 2. КИТ Финанс (ООО) | G165: 711354002561
B166: 3. «Компания Брокеркредитсервис» (ООО) | G166: 404710369360
B167: 4. «ФИНАМ» (ЗАО) | G167: 385682078546
B168: 5. «ИК «Ди Си Кэпитал» (ООО) | G168: 336619542398
B169: 6. «Брокерский дом Открытие» (ОАО) | G169: 172097405466
B170: 7. ГК «АЛОР» | G170: 171249136914
B171: 8. «АТОН» (ООО) | G171: 165945524907
B172: 9. ВТБ 24 (ЗАО) | G172: 124291902321
B173: 10. ИК «Церих Кэпитал Менеджмент» (ОАО) | G173: 99534020492

Sheet Декабрь2007
B2: Клиенты Участников торгов Фондовой биржи ММВБ
B3: ДЕКАБРЬ '07
B6: Динамика количества клиентов за декабрь 2007 г.
B10: Количество зарегистрированных клиентов в Системе торгов: | H10: Таблица 1
B11: Группы клиентов | E11: 2007-12-01 | F11: 2008-01-01 | G11: Изменение (ед.) | H11: Изменение (%)
B12: Физические лица | E12: 475667 | F12: 487555 | G12: =F12-E12 -> 11888 | H12: =F12/E12-1 -> 0.02499227401
B13: Юридические лица | E13: 27872 | F13: 28276 | G13: =F13-E13 -> 404 | H13: =F13/E13-1 -> 0.01449483352
B14: Нерезиденты | E14: 3038 | F14: 3235 | G14: =F14-E14 -> 197 | H14: =F14/E14-1 -> 0.06484529296
B15: Клиенты, передавшие свои средства в ДУ | E15: 10537 | F15: 10800 | G15: =F15-E15 -> 263 | H15: =F15/E15-1 -> 0.02495966594
B16: Всего | E16: =SUM(E12:E15) -> 517114 | F16: =SUM(F12:F15) -> 529866 | G16: =F16-E16 -> 12752 | H16: =F16/E16-1 -> 0.02465993959
B19: Количество уникальных клиентов в Системе торгов: | H19: Таблица 2
B20: Группы клиентов | E20: 2007-12-01 | F20: 2008-01-01 | G20: Изменение (ед.) | H20: Изменение (%)
B21: Физические лица | E21: 407622 | F21: 417403 | G21: =F21-E21 -> 9781 | H21: =F21/E21-1 -> 0.02399527013
B22: Юридические лица | E22: 12510 | F22: 12703 | G22: =F22-E22 -> 193 | H22: =F22/E22-1 -> 0.01542765787
B23: Нерезиденты | E23: 2026 | F23: 2078 | G23: =F23-E23 -> 52 | H23: =F23/E23-1 -> 0.02566633761
B24: Клиенты, передавшие свои средства в ДУ | E24: 3980 | F24: 4061 | G24: =F24-E24 -> 81 | H24: =F24/E24-1 -> 0.02035175879
B25: Всего | E25: =SUM(E21:E24) -> 426138 | F25: =SUM(F21:F24) -> 436245 | G25: =F25-E25 -> 10107 | H25: =F25/E25-1 -> 0.02371766892
B28: Количество активных клиентов в Системе торгов (совершивших в течение месяца хотя бы одну сделку): | H28: Таблица 3
B29: Группы клиентов | E29: за ноябрь 2007 г. | F29: за декабрь 2007 г. | G29: Изменение (ед.) | H29: Изменение (%)
B30: Физические лица | E30: 68387 | F30: 74266 | G30: =F30-E30 -> 5879 | H30: =F30/E30-1 -> 0.08596663108
B31: Юридические лица | E31: 2368 | F31: 2550 | G31: =F31-E31 -> 182 | H31: =F31/E31-1 -> 0.07685810811
B32: Нерезиденты | E32: 481 | F32: 512 | G32: =F32-E32 -> 31 | H32: =F32/E32-1 -> 0.06444906445
B33: Клиенты, передавшие свои средства в ДУ | E33: 3531 | F33: 3765 | G33: =F33-E33 -> 234 | H33: =F33/E33-1 -> 0.06627017842
B34: Всего | E34: =SUM(E30:E33) -> 74767 | F34: =SUM(F30:F33) -> 81093 | G34: =F34-E34 -> 6326 | H34: =F34/E34-1 -> 0.08460952024
B38: Изменение количества уникальных клиентов - ретроспективные данные
B42: Количество уникальных клиентов в Системе торгов (ежегодная статистика): | H42: Таблица 1
B43: Группы клиентов | E43: 2005-01-01 | F43: 2006-01-01 | G43: 2007-01-01 | H43: 2008-01-01
B44: Физические лица | E44: 63183 | F44: 95675 | G44: 198973 | H44: 417403
B45: Юридические лица | E45: 5002 | F45: 8601 | G45: 10665 | H45: 12703
B46: Нерезиденты | E46: 234 | F46: 630 | G46: 1140 | H46: 2078
B47: Клиенты, передавшие свои средства в ДУ | E47: 741 | F47: 1671 | G47: 2839 | H47: 4061
B48: Всего | E48: =SUM(E44:E47) -> 69160 | F48: =SUM(F44:F47) -> 106577 | G48: =SUM(G44:G47) -> 213617 | H48: =SUM(H44:H47) -> 436245
B76: Количество уникальных клиентов в Системе торгов (за последние 6 месяцев): | H76: Таблица 2
B77: Группы клиентов | C77: 2007-08-01 | D77: 2007-09-01 | E77: 2007-10-01 | F77: 2007-11-01 | G77: 2007-12-01 | H77: 2008-01-01
B78: Физические лица | C78: 376029 | D78: 382802 | E78: 388852 | F78: 398685 | G78: 407622 | H78: 417403
B79: Юридические лица | C79: 11995 | D79: 12069 | E79: 12193 | F79: 12361 | G79: 12510 | H79: 12703
B80: Нерезиденты | C80: 1806 | D80: 1850 | E80: 1903 | F80: 1977 | G80: 2026 | H80: 2078
B81: Клиенты, передавшие свои средства в ДУ | C81: 3658 | D81: 3738 | E81: 3801 | F81: 3883 | G81: 3980 | H81: 4061
B82: Всего | C82: =SUM(C78:C81) -> 393488 | D82: 400459 | E82: 406749 | F82: 416906 | G82: 426138 | H82: 436245
B118: Дополнительные показатели по клиентам
B121: на 01.01.2008 г. | H121: Таблица 1
B122: Категории Участников торгов/клиентов | F122: Абсолютные показатели | G122: Доля от общего количества | H122: Количество организаций, допущенных к торгам
B123: Количество Участников торгов, имеющих зарегистрированных клиентов | F123: 502 | G123: 0.9672447013 | H123: 519
B124: Количество стран мира, представленных клиентами-нерезидентами | F124: 80
B125: Количество Участников торгов, зарегистрировавших клиентов-нерезидентов | F125: 219 | G125: 0.4219653179 | H125: 519
B126: Количество клиентов, подписавших Декларацию о рисках с целью совершения сделок с ценными бумагами, включёнными в Котировальный список "И" | F126: 11 628 (уникальных - 9 835)
B127: Количество Участников торгов, зарегистрировавших клиентов, имеющих намерение совершать сделки с ценными бумагами, включёнными в Котировальный список "И" | F127: 217 | G127: 0.4181117534 | H127: 519
B131: Списки ведущих операторов фондового рынка - клиенты Участников торгов (за декабрь 2007 г.)
B134: Ведущие операторы рынка – число зарегистрированных уникальных клиентов | H134: Таблица 1
B135: Наименование Участника торгов | G135: Количество клиентов
B136: 1. ВТБ 24 (ЗАО) | G136: 134522
B137: 2. «Компания Брокеркредитсервис» (ООО) | G137: 31851
B138: 3. «ФИНАМ» (ЗАО) | G138: 30747
B139: 4. «АТОН» (ООО) | G139: 15728
B140: 5. «АЛЬФА-БАHK» (ОАО) | G140: 13609
B141: 6. ГК «АЛОР» | G141: 9588
B142: 7. «НЭТТРЭЙДЕР» (ООО) | G142: 7051
B143: 8. «Брокерский дом Открытие» (ОАО) | G143: 5461
B144: 9. КИТ Финанс (ООО) | G144: 4719
B145: 10. «АВК-Ценные бумаги» (ООО) | G145: 4123
B148: Ведущие операторы рынка – число активных клиентов | H148: Таблица 2
B149: Наименование Участника торгов | G149: Количество клиентов
B150: 1. «ФИНАМ» (ЗАО) | G150: 12023
B151: 2. «Компания Брокеркредитсервис» (ООО) | G151: 11913
B152: 3. ВТБ 24 (ЗАО) | G152: 5502
B153: 4. «АТОН» (ООО) | G153: 4631
B154: 5. «АЛЬФА-БАHK» (ОАО) | G154: 3337
B155: 6. ГК «АЛОР» | G155: 2638
B156: 7. «НЭТТРЭЙДЕР» (ООО) | G156: 2423
B157: 8. «Брокерский дом Открытие» (ОАО) | G157: 1645
B158: 9. «ЮТРЭЙД.РУ» (ОАО) | G158: 1611
B159: 10. КИТ Финанс (ООО) | G159: 1503
B162: Ведущие операторы рынка – объем клиентских операций | H162: Таблица 3
B163: Наименование Участника торгов | G163: Торговый оборот, руб.
B164: 1. ИК «Тройка Диалог» (ЗАО) | G164: 900609976729
B165: 2. КИТ Финанс (ООО) | G165: 569840999342
B166: 3. «Компания Брокеркредитсервис» (ООО) | G166: 389635862603
B167: 4. «ФИНАМ» (ЗАО) | G167: 378229607789
B168: 5. «ИК «Ди Си Кэпитал» (ООО) | G168: 363889595495
B169: 6. «Брокерский дом Открытие» (ОАО) | G169: 181912476785
B170: 7. «АТОН» (ООО) | G170: 176104622083
B171: 8. ГК «АЛОР» | G171: 152051748785
B172: 9. ВТБ 24 (ЗАО) | G172: 134806059739
B173: 10. ИК «Церих Кэпитал Менеджмент» (ОАО) | G173: 108521383949

Sheet Январь2008
B2: Клиенты Участников торгов Фондовой биржи ММВБ
B3: ЯНВАРЬ '08
B6: Динамика количества клиентов за январь 2008 г.
B10: Количество зарегистрированных клиентов в Системе торгов: | H10: Таблица 1
B11: Группы клиентов | E11: 2008-01-01 | F11: 2008-02-01 | G11: Изменение (ед.) | H11: Изменение (%)
B12: Физические лица | E12: 487555 | F12: 499330 | G12: =F12-E12 -> 11775 | H12: =F12/E12-1 -> 0.02415112141
B13: Юридические лица | E13: 28276 | F13: 28467 | G13: =F13-E13 -> 191 | H13: =F13/E13-1 -> 0.006754845098
B14: Нерезиденты | E14: 3235 | F14: 3338 | G14: =F14-E14 -> 103 | H14: =F14/E14-1 -> 0.03183925811
B15: Клиенты, передавшие свои средства в ДУ | E15: 10800 | F15: 11235 | G15: =F15-E15 -> 435 | H15: =F15/E15-1 -> 0.04027777778
B16: Всего | E16: =SUM(E12:E15) -> 529866 | F16: =SUM(F12:F15) -> 542370 | G16: =F16-E16 -> 12504 | H16: =F16/E16-1 -> 0.02359841922
B19: Количество уникальных клиентов в Системе торгов: | H19: Таблица 2
B20: Группы клиентов | E20: 2008-01-01 | F20: 2008-02-01 | G20: Изменение (ед.) | H20: Изменение (%)
B21: Физические лица | E21: 417403 | F21: 426646 | G21: =F21-E21 -> 9243 | H21: =F21/E21-1 -> 0.022144067
B22: Юридические лица | E22: 12703 | F22: 12848 | G22: =F22-E22 -> 145 | H22: =F22/E22-1 -> 0.01141462647
B23: Нерезиденты | E23: 2078 | F23: 2125 | G23: =F23-E23 -> 47 | H23: =F23/E23-1 -> 0.02261790183
B24: Клиенты, передавшие свои средства в ДУ | E24: 4061 | F24: 4130 | G24: =F24-E24 -> 69 | H24: =F24/E24-1 -> 0.01699088894
B25: Всего | E25: =SUM(E21:E24) -> 436245 | F25: =SUM(F21:F24) -> 445749 | G25: =F25-E25 -> 9504 | H25: =F25/E25-1 -> 0.02178592305
B28: Количество активных клиентов в Системе торгов (совершивших в течение месяца хотя бы одну сделку): | H28: Таблица 3
B29: Группы клиентов | E29: за декабрь 2007 г. | F29: за январь 2008 г. | G29: Изменение (ед.) | H29: Изменение (%)
B30: Физические лица | E30: 74266 | F30: 75146 | G30: =F30-E30 -> 880 | H30: =F30/E30-1 -> 0.01184929847
B31: Юридические лица | E31: 2550 | F31: 2196 | G31: =F31-E31 -> -354 | H31: =F31/E31-1 -> -0.1388235294
B32: Нерезиденты | E32: 512 | F32: 497 | G32: =F32-E32 -> -15 | H32: =F32/E32-1 -> -0.029296875
B33: Клиенты, передавшие свои средства в ДУ | E33: 3765 | F33: 3444 | G33: =F33-E33 -> -321 | H33: =F33/E33-1 -> -0.08525896414
B34: Всего | E34: =SUM(E30:E33) -> 81093 | F34: =SUM(F30:F33) -> 81283 | G34: =F34-E34 -> 190 | H34: =F34/E34-1 -> 0.002342988914
B38: Изменение количества уникальных клиентов - ретроспективные данные
B42: Количество уникальных клиентов в Системе торгов (ежегодная статистика): | H42: Таблица 1
B43: Группы клиентов | E43: 2005-01-01 | F43: 2006-01-01 | G43: 2007-01-01 | H43: 2008-01-01
B44: Физические лица | E44: 63183 | F44: 95675 | G44: 198973 | H44: 417403
B45: Юридические лица | E45: 5002 | F45: 8601 | G45: 10665 | H45: 12703
B46: Нерезиденты | E46: 234 | F46: 630 | G46: 1140 | H46: 2078
B47: Клиенты, передавшие свои средства в ДУ | E47: 741 | F47: 1671 | G47: 2839 | H47: 4061
B48: Всего | E48: =SUM(E44:E47) -> 69160 | F48: =SUM(F44:F47) -> 106577 | G48: =SUM(G44:G47) -> 213617 | H48: =SUM(H44:H47) -> 436245
B76: Количество уникальных клиентов в Системе торгов (за последние 6 месяцев): | H76: Таблица 2
B77: Группы клиентов | C77: 2007-09-01 | D77: 2007-10-01 | E77: 2007-11-01 | F77: 2007-12-01 | G77: 2008-01-01 | H77: 2008-02-01
B78: Физические лица | C78: 382802 | D78: 388852 | E78: 398685 | F78: 407622 | G78: 417403 | H78: 426646
B79: Юридические лица | C79: 12069 | D79: 12193 | E79: 12361 | F79: 12510 | G79: 12703 | H79: 12848
B80: Нерезиденты | C80: 1850 | D80: 1903 | E80: 1977 | F80: 2026 | G80: 2078 | H80: 2125
B81: Клиенты, передавшие свои средства в ДУ | C81: 3738 | D81: 3801 | E81: 3883 | F81: 3980 | G81: 4061 | H81: 4130
B82: Всего | C82: =SUM(C78:C81) -> 400459 | D82: 406749 | E82: 416906 | F82: 426138 | G82: 436245 | H82: 445749
B118: Дополнительные показатели по клиентам
B121: на 01.02.2008 г. | H121: Таблица 1
B122: Категории Участников торгов/клиентов | F122: Абсолютные показатели | G122: Доля от общего количества | H122: Количество организаций, допущенных к торгам
B123: Количество Участников торгов, имеющих зарегистрированных клиентов | F123: 502 | G123: 0.9561904762 | H123: 525
B124: Количество стран мира, представленных клиентами-нерезидентами | F124: 80
B125: Количество Участников торгов, зарегистрировавших клиентов-нерезидентов | F125: 222 | G125: 0.4228571429 | H125: 525
B126: Количество клиентов, подписавших Декларацию о рисках с целью совершения сделок с ценными бумагами, включёнными в Котировальный список "И" | F126: 14 764 (уникальных - 12 472)
B127: Количество Участников торгов, зарегистрировавших клиентов, имеющих намерение совершать сделки с ценными бумагами, включёнными в Котировальный список "И" | F127: 221 | G127: 0.420952381 | H127: 525
B131: Списки ведущих операторов фондового рынка - клиенты Участников торгов (за январь 2008 г.)
B134: Ведущие операторы рынка – число зарегистрированных уникальных клиентов | H134: Таблица 1
B135: Наименование Участника торгов | G135: Количество клиентов
B136: 1. ВТБ 24 (ЗАО) | G136: 134914
B137: 2. «Компания Брокеркредитсервис» (ООО) | G137: 33012
B138: 3. «ФИНАМ» (ЗАО) | G138: 32534
B139: 4. «АТОН» (ООО) | G139: 16383
B140: 5. «АЛЬФА-БАHK» (ОАО) | G140: 14459
B141: 6. ГК «АЛОР» | G141: 9919
B142: 7. «НЭТТРЭЙДЕР» (ООО) | G142: 7221
B143: 8. ФК «ОТКРЫТИЕ» (ООО) | G143: 5657
B144: 9. КИТ Финанс (ООО) | G144: 4960
B145: 10. «АВК-Ценные бумаги» (ООО) | G145: 4144
B148: Ведущие операторы рынка – число активных клиентов | H148: Таблица 2
B149: Наименование Участника торгов | G149: Количество клиентов
B150: 1. «ФИНАМ» (ЗАО) | G150: 12841
B151: 2. «Компания Брокеркредитсервис» (ООО) | G151: 12457
B152: 3. ВТБ 24 (ЗАО) | G152: 5474
B153: 4. «АТОН» (ООО) | G153: 4732
B154: 5. «АЛЬФА-БАHK» (ОАО) | G154: 3615
B155: 6. ГК «АЛОР» | G155: 2717
B156: 7. «НЭТТРЭЙДЕР» (ООО) | G156: 2577
B157: 8. КИТ Финанс (ООО) | G157: 1699
B158: 9. ФК «ОТКРЫТИЕ» (ООО) | G158: 1691
B159: 10. «ЮТРЭЙД.РУ» (ОАО) | G159: 1685
B162: Ведущие операторы рынка – объем клиентских операций | H162: Таблица 3
B163: Наименование Участника торгов | G163: Торговый оборот, руб.
B164: 1. ИК «Тройка Диалог» (ЗАО) | G164: 714587161468
B165: 2. КИТ Финанс (ООО) | G165: 450620867397
B166: 3. «ФИНАМ» (ЗАО) | G166: 324419294425
B167: 4. «Компания Брокеркредитсервис» (ООО) | G167: 320200186669
B168: 5. «ИК «Ди Си Кэпитал» (ООО) | G168: 300659452161
B169: 6. ФК «ОТКРЫТИЕ» (ООО) | G169: 196909558272
B170: 7. «АТОН» (ООО) | G170: 149221542596
B171: 8. ГК «АЛОР» | G171: 145676340520
B172: 9. ВТБ 24 (ЗАО) | G172: 119067757123
B173: 10. «ИК Ист Кэпитал» (ООО) | G173: 92480197532

Sheet Февраль2008
B2: Клиенты Участников торгов Фондовой биржи ММВБ
B3: ФЕВРАЛЬ '08
B6: Динамика количества клиентов за февраль 2008 г.
B10: Количество зарегистрированных клиентов в Системе торгов: | H10: Таблица 1
B11: Группы клиентов | E11: 2008-02-01 | F11: 2008-03-01 | G11: Изменение (ед.) | H11: Изменение (%)
B12: Физические лица | E12: 499330 | F12: 510328 | G12: =F12-E12 -> 10998 | H12: =F12/E12-1 -> 0.02202551419
B13: Юридические лица | E13: 28467 | F13: 28749 | G13: =F13-E13 -> 282 | H13: =F13/E13-1 -> 0.009906207187
B14: Нерезиденты | E14: 3338 | F14: 3466 | G14: =F14-E14 -> 128 | H14: =F14/E14-1 -> 0.03834631516
B15: Клиенты, передавшие свои средства в ДУ | E15: 11235 | F15: 11377 | G15: =F15-E15 -> 142 | H15: =F15/E15-1 -> 0.01263907432
B16: Всего | E16: =SUM(E12:E15) -> 542370 | F16: =SUM(F12:F15) -> 553920 | G16: =F16-E16 -> 11550 | H16: =F16/E16-1 -> 0.02129542563
B19: Количество уникальных клиентов в Системе торгов: | H19: Таблица 2
B20: Группы клиентов | E20: 2008-02-01 | F20: 2008-03-01 | G20: Изменение (ед.) | H20: Изменение (%)
B21: Физические лица | E21: 426646 | F21: 435322 | G21: =F21-E21 -> 8676 | H21: =F21/E21-1 -> 0.02033535999
B22: Юридические лица | E22: 12848 | F22: 12996 | G22: =F22-E22 -> 148 | H22: =F22/E22-1 -> 0.01151930262
B23: Нерезиденты | E23: 2125 | F23: 2183 | G23: =F23-E23 -> 58 | H23: =F23/E23-1 -> 0.02729411765
B24: Клиенты, передавшие свои средства в ДУ | E24: 4130 | F24: 4161 | G24: =F24-E24 -> 31 | H24: =F24/E24-1 -> 0.007506053269
B25: Всего | E25: =SUM(E21:E24) -> 445749 | F25: =SUM(F21:F24) -> 454662 | G25: =F25-E25 -> 8913 | H25: =F25/E25-1 -> 0.01999555804
B28: Количество активных клиентов в Системе торгов (совершивших в течение месяца хотя бы одну сделку): | H28: Таблица 3
B29: Группы клиентов | E29: за январь 2008 г. | F29: за февраль 2008 г. | G29: Изменение (ед.) | H29: Изменение (%)
B30: Физические лица | E30: 75146 | F30: 68552 | G30: =F30-E30 -> -6594 | H30: =F30/E30-1 -> -0.08774918159
B31: Юридические лица | E31: 2196 | F31: 2194 | G31: =F31-E31 -> -2 | H31: =F31/E31-1 -> -0.0009107468124
B32: Нерезиденты | E32: 497 | F32: 511 | G32: =F32-E32 -> 14 | H32: =F32/E32-1 -> 0.02816901408
B33: Клиенты, передавшие свои средства в ДУ | E33: 3444 | F33: 3446 | G33: =F33-E33 -> 2 | H33: =F33/E33-1 -> 0.0005807200929
B34: Всего | E34: =SUM(E30:E33) -> 81283 | F34: =SUM(F30:F33) -> 74703 | G34: =F34-E34 -> -6580 | H34: =F34/E34-1 -> -0.08095173653
B38: Изменение количества уникальных клиентов - ретроспективные данные
B42: Количество уникальных клиентов в Системе торгов (ежегодная статистика): | H42: Таблица 1
B43: Группы клиентов | E43: 2005-01-01 | F43: 2006-01-01 | G43: 2007-01-01 | H43: 2008-01-01
B44: Физические лица | E44: 63183 | F44: 95675 | G44: 198973 | H44: 417403
B45: Юридические лица | E45: 5002 | F45: 8601 | G45: 10665 | H45: 12703
B46: Нерезиденты | E46: 234 | F46: 630 | G46: 1140 | H46: 2078
B47: Клиенты, передавшие свои средства в ДУ | E47: 741 | F47: 1671 | G47: 2839 | H47: 4061
B48: Всего | E48: =SUM(E44:E47) -> 69160 | F48: =SUM(F44:F47) -> 106577 | G48: =SUM(G44:G47) -> 213617 | H48: =SUM(H44:H47) -> 436245
B76: Количество уникальных клиентов в Системе торгов (за последние 6 месяцев): | H76: Таблица 2
B77: Группы клиентов | C77: 2007-10-01 | D77: 2007-11-01 | E77: 2007-12-01 | F77: 2008-01-01 | G77: 2008-02-01 | H77: 2008-03-01
B78: Физические лица | C78: 388852 | D78: 398685 | E78: 407622 | F78: 417403 | G78: 426646 | H78: 435322
B79: Юридические лица | C79: 12193 | D79: 12361 | E79: 12510 | F79: 12703 | G79: 12848 | H79: 12996
B80: Нерезиденты | C80: 1903 | D80: 1977 | E80: 2026 | F80: 2078 | G80: 2125 | H80: 2183
B81: Клиенты, передавшие свои средства в ДУ | C81: 3801 | D81: 3883 | E81: 3980 | F81: 4061 | G81: 4130 | H81: 4161
B82: Всего | C82: =SUM(C78:C81) -> 406749 | D82: 416906 | E82: 426138 | F82: 436245 | G82: 445749 | H82: 454662
B118: Дополнительные показатели по клиентам
B121: на 01.03.2008 г. | H121: Таблица 1
B122: Категории Участников торгов/клиентов | F122: Абсолютные показатели | G122: Доля от общего количества | H122: Количество организаций, допущенных к торгам
B123: Количество Участников торгов, имеющих зарегистрированных клиентов | F123: 507 | G123: 0.9548022599 | H123: 531
B124: Количество стран мира, представленных клиентами-нерезидентами | F124: 82
B125: Количество Участников торгов, зарегистрировавших клиентов-нерезидентов | F125: 227 | G125: 0.4274952919 | H125: 531
B126: Количество клиентов, подписавших Декларацию о рисках с целью совершения сделок с ценными бумагами, включёнными в Котировальный список "И" | F126: 18 034 (уникальных - 15 015)
B127: Количество Участников торгов, зарегистрировавших клиентов, имеющих намерение совершать сделки с ценными бумагами, включёнными в Котировальный список "И" | F127: 232 | G127: 0.4369114878 | H127: 531
B131: Списки ведущих операторов фондового рынка - клиенты Участников торгов (за февраль 2008 г.)
B134: Ведущие операторы рынка – число зарегистрированных уникальных клиентов | H134: Таблица 1
B135: Наименование Участника торгов | G135: Количество клиентов
B136: 1. ВТБ 24 (ЗАО) | G136: 135325
B137: 2. «Компания Брокеркредитсервис» (ООО) | G137: 34177
B138: 3. «ФИНАМ» (ЗАО) | G138: 34146
B139: 4. «АТОН» (ООО) | G139: 17626
B140: 5. «АЛЬФА-БАHK» (ОАО) | G140: 15564
B141: 6. ГК «АЛОР» | G141: 10217
B142: 7. «НЭТТРЭЙДЕР» (ООО) | G142: 7435
B143: 8. ФК «ОТКРЫТИЕ» (ООО) | G143: 5799
B144: 9. КИТ Финанс (ООО) | G144: 5219
B145: 10. «АВК-Ценные бумаги» (ООО) | G145: 4176
B148: Ведущие операторы рынка – число активных клиентов | H148: Таблица 2
B149: Наименование Участника торгов | G149: Количество клиентов
B150: 1. «ФИНАМ» (ЗАО) | G150: 12254
B151: 2. «Компания Брокеркредитсервис» (ООО) | G151: 11501
B152: 3. ВТБ 24 (ЗАО) | G152: 5095
B153: 4. «АТОН» (ООО) | G153: 4554
B154: 5. «АЛЬФА-БАHK» (ОАО) | G154: 3348
B155: 6. ГК «АЛОР» | G155: 2502
B156: 7. «НЭТТРЭЙДЕР» (ООО) | G156: 2290
B157: 8. «ЮТРЭЙД.РУ» (ОАО) | G157: 1678
B158: 9. КИТ Финанс (ООО) | G158: 1636
B159: 10. ФК «ОТКРЫТИЕ» (ООО) | G159: 1549
B162: Ведущие операторы рынка – объем клиентских операций | H162: Таблица 3
B163: Наименование Участника торгов | G163: Торговый оборот, руб.
B164: 1. ИК «Тройка Диалог» (ЗАО) | G164: 736809214360
B165: 2. КИТ Финанс (ООО) | G165: 533925700203
B166: 3. «ФИНАМ» (ЗАО) | G166: 360331500148
B167: 4. «Компания Брокеркредитсервис» (ООО) | G167: 355973185540
B168: 5. «ИК «Ди Си Кэпитал» (ООО) | G168: 325920013930
B169: 6. ФК «ОТКРЫТИЕ» (ООО) | G169: 285063092681
B170: 7. ГК «АЛОР» | G170: 187774036522
B171: 8. «АТОН» (ООО) | G171: 162365081063
B172: 9. ВТБ 24 (ЗАО) | G172: 153819372183
B173: 10. «ИК Ист Кэпитал» (ООО) | G173: 114299447914

Sheet Март2008
B2: Клиенты Участников торгов Фондовой биржи ММВБ
B3: МАРТ '08
B6: Динамика количества клиентов за март 2008 г.
B10: Количество зарегистрированных клиентов в Системе торгов: | H10: Таблица 1
B11: Группы клиентов | E11: 2008-03-01 | F11: 2008-04-01 | G11: Изменение (ед.) | H11: Изменение (%)
B12: Физические лица | E12: 510328 | F12: 520595 | G12: =F12-E12 -> 10267 | H12: =F12/E12-1 -> 0.02011843363
B13: Юридические лица | E13: 28749 | F13: 29069 | G13: =F13-E13 -> 320 | H13: =F13/E13-1 -> 0.01113082194
B14: Нерезиденты | E14: 3466 | F14: 3530 | G14: =F14-E14 -> 64 | H14: =F14/E14-1 -> 0.01846508944
B15: Клиенты, передавшие свои средства в ДУ | E15: 11377 | F15: 11490 | G15: =F15-E15 -> 113 | H15: =F15/E15-1 -> 0.009932319592
B16: Всего | E16: =SUM(E12:E15) -> 553920 | F16: =SUM(F12:F15) -> 564684 | G16: =F16-E16 -> 10764 | H16: =F16/E16-1 -> 0.01943240901
B19: Количество уникальных клиентов в Системе торгов: | H19: Таблица 2
B20: Группы клиентов | E20: 2008-03-01 | F20: 2008-04-01 | G20: Изменение (ед.) | H20: Изменение (%)
B21: Физические лица | E21: 435322 | F21: 443511 | G21: =F21-E21 -> 8189 | H21: =F21/E21-1 -> 0.01881136262
B22: Юридические лица | E22: 12996 | F22: 13127 | G22: =F22-E22 -> 131 | H22: =F22/E22-1 -> 0.01008002462
B23: Нерезиденты | E23: 2183 | F23: 2239 | G23: =F23-E23 -> 56 | H23: =F23/E23-1 -> 0.02565277142
B24: Клиенты, передавшие свои средства в ДУ | E24: 4161 | F24: 4185 | G24: =F24-E24 -> 24 | H24: =F24/E24-1 -> 0.005767844268
B25: Всего | E25: =SUM(E21:E24) -> 454662 | F25: =SUM(F21:F24) -> 463062 | G25: =F25-E25 -> 8400 | H25: =F25/E25-1 -> 0.01847526294
B28: Количество активных клиентов в Системе торгов (совершивших в течение месяца хотя бы одну сделку): | H28: Таблица 3
B29: Группы клиентов | E29: за февраль 2008 г. | F29: за март 2008 г. | G29: Изменение (ед.) | H29: Изменение (%)
B30: Физические лица | E30: 68552 | F30: 64834 | G30: =F30-E30 -> -3718 | H30: =F30/E30-1 -> -0.05423620026
B31: Юридические лица | E31: 2194 | F31: 2194 | G31: =F31-E31 -> 0 | H31: =F31/E31-1 -> 0
B32: Нерезиденты | E32: 511 | F32: 495 | G32: =F32-E32 -> -16 | H32: =F32/E32-1 -> -0.0313111546
B33: Клиенты, передавшие свои средства в ДУ | E33: 3446 | F33: 3279 | G33: =F33-E33 -> -167 | H33: =F33/E33-1 -> -0.04846198491
B34: Всего | E34: =SUM(E30:E33) -> 74703 | F34: =SUM(F30:F33) -> 70802 | G34: =F34-E34 -> -3901 | H34: =F34/E34-1 -> -0.05222012503
B38: Изменение количества уникальных клиентов - ретроспективные данные
B42: Количество уникальных клиентов в Системе торгов (ежегодная статистика): | H42: Таблица 1
B43: Группы клиентов | E43: 2005-01-01 | F43: 2006-01-01 | G43: 2007-01-01 | H43: 2008-01-01
B44: Физические лица | E44: 63183 | F44: 95675 | G44: 198973 | H44: 417403
B45: Юридические лица | E45: 5002 | F45: 8601 | G45: 10665 | H45: 12703
B46: Нерезиденты | E46: 234 | F46: 630 | G46: 1140 | H46: 2078
B47: Клиенты, передавшие свои средства в ДУ | E47: 741 | F47: 1671 | G47: 2839 | H47: 4061
B48: Всего | E48: =SUM(E44:E47) -> 69160 | F48: =SUM(F44:F47) -> 106577 | G48: =SUM(G44:G47) -> 213617 | H48: =SUM(H44:H47) -> 436245
B76: Количество уникальных клиентов в Системе торгов (за последние 6 месяцев): | H76: Таблица 2
B77: Группы клиентов | C77: 2007-11-01 | D77: 2007-12-01 | E77: 2008-01-01 | F77: 2008-02-01 | G77: 2008-03-01 | H77: 2008-04-01
B78: Физические лица | C78: 398685 | D78: 407622 | E78: 417403 | F78: 426646 | G78: 435322 | H78: 443511
B79: Юридические лица | C79: 12361 | D79: 12510 | E79: 12703 | F79: 12848 | G79: 12996 | H79: 13127
B80: Нерезиденты | C80: 1977 | D80: 2026 | E80: 2078 | F80: 2125 | G80: 2183 | H80: 2239
B81: Клиенты, передавшие свои средства в ДУ | C81: 3883 | D81: 3980 | E81: 4061 | F81: 4130 | G81: 4161 | H81: 4185
B82: Всего | C82: =SUM(C78:C81) -> 416906 | D82: 426138 | E82: 436245 | F82: 445749 | G82: 454662 | H82: 463062
B118: Дополнительные показатели по клиентам
B121: на 01.04.2008 г. | H121: Таблица 1
B122: Категории Участников торгов/клиентов | F122: Абсолютные показатели | G122: Доля от общего количества | H122: Количество организаций, допущенных к торгам
B123: Количество Участников торгов, имеющих зарегистрированных клиентов | F123: 513 | G123: 0.9570895522 | H123: 536
B124: Количество стран мира, представленных клиентами-нерезидентами | F124: 82
B125: Количество Участников торгов, зарегистрировавших клиентов-нерезидентов | F125: 229 | G125: 0.427238806 | H125: 536
B126: Количество клиентов, подписавших Декларацию о рисках с целью совершения сделок с ценными бумагами, включёнными в Котировальный список "И" | F126: 20 980 (уникальных - 17 145)
B127: Количество Участников торгов, зарегистрировавших клиентов, имеющих намерение совершать сделки с ценными бумагами, включёнными в Котировальный список "И" | F127: 245 | G127: 0.4570895522 | H127: 536
B131: Списки ведущих операторов фондового рынка - клиенты Участников торгов (за март 2008 г.)
B134: Ведущие операторы рынка – число зарегистрированных уникальных клиентов | H134: Таблица 1
B135: Наименование Участника торгов | G135: Количество клиентов
B136: 1. ВТБ 24 (ЗАО) | G136: 135683
B137: 2. «ФИНАМ» (ЗАО) | G137: 35497
B138: 3. «Компания Брокеркредитсервис» (ООО) | G138: 34968
B139: 4. «АТОН» (ООО) | G139: 18239
B140: 5. «АЛЬФА-БАHK» (ОАО) | G140: 16745
B141: 6. ГК «АЛОР» | G141: 10500
B142: 7. «НЭТТРЭЙДЕР» (ООО) | G142: 7682
B143: 8. ФК «ОТКРЫТИЕ» (ООО) | G143: 5908
B144: 9. КИТ Финанс (ООО) | G144: 5431
B145: 10. ИФК «Солид» (ЗАО) | G145: 4189
B148: Ведущие операторы рынка – число активных клиентов | H148: Таблица 2
B149: Наименование Участника торгов | G149: Количество клиентов
B150: 1. «ФИНАМ» (ЗАО) | G150: 11913
B151: 2. «Компания Брокеркредитсервис» (ООО) | G151: 10938
B152: 3. ВТБ 24 (ЗАО) | G152: 4803
B153: 4. «АТОН» (ООО) | G153: 4503
B154: 5. «АЛЬФА-БАHK» (ОАО) | G154: 3185
B155: 6. ГК «АЛОР» | G155: 2433
B156: 7. «НЭТТРЭЙДЕР» (ООО) | G156: 2091
B157: 8. «ЮТРЭЙД.РУ» (ОАО) | G157: 1654
B158: 9. КИТ Финанс (ООО) | G158: 1613
B159: 10. ФК «ОТКРЫТИЕ» (ООО) | G159: 1430
B162: Ведущие операторы рынка – объем клиентских операций | H162: Таблица 3
B163: Наименование Участника торгов | G163: Торговый оборот, руб.
B164: 1. ИК «Тройка Диалог» (ЗАО) | G164: 800410610032
B165: 2. КИТ Финанс (ООО) | G165: 427396059410
B166: 3. «Компания Брокеркредитсервис» (ООО) | G166: 312138159429
B167: 4. «ФИНАМ» (ЗАО) | G167: 311069228817
B168: 5. «ИК «Ди Си Кэпитал» (ООО) | G168: 286461806048
B169: 6. ФК «ОТКРЫТИЕ» (ООО) | G169: 189475141888
B170: 7. «АТОН» (ООО) | G170: 177136055377
B171: 8. ГК «АЛОР» | G171: 145066475703
B172: 9. ВТБ 24 (ЗАО) | G172: 120248833097
B173: 10. «ЮТРЭЙД.РУ» (ОАО) | G173: 102242331361

Sheet Апрель2008
B2: Клиенты Участников торгов Фондовой биржи ММВБ
B3: АПРЕЛЬ '08
B6: Динамика количества клиентов за апрель 2008 г.
B10: Количество зарегистрированных клиентов в Системе торгов: | H10: Таблица 1
B11: Группы клиентов | E11: 2008-04-01 | F11: 2008-05-01 | G11: Изменение (ед.) | H11: Изменение (%)
B12: Физические лица | E12: 520595 | F12: 531364 | G12: =F12-E12 -> 10769 | H12: =F12/E12-1 -> 0.02068594589
B13: Юридические лица | E13: 29069 | F13: 29398 | G13: =F13-E13 -> 329 | H13: =F13/E13-1 -> 0.01131789879
B14: Нерезиденты | E14: 3530 | F14: 3733 | G14: =F14-E14 -> 203 | H14: =F14/E14-1 -> 0.05750708215
B15: Клиенты, передавшие свои средства в ДУ | E15: 11490 | F15: 11690 | G15: =F15-E15 -> 200 | H15: =F15/E15-1 -> 0.01740644038
B16: Всего | E16: =SUM(E12:E15) -> 564684 | F16: =SUM(F12:F15) -> 576185 | G16: =F16-E16 -> 11501 | H16: =F16/E16-1 -> 0.02036714339
B19: Количество уникальных клиентов в Системе торгов: | H19: Таблица 2
B20: Группы клиентов | E20: 2008-04-01 | F20: 2008-05-01 | G20: Изменение (ед.) | H20: Изменение (%)
B21: Физические лица | E21: 443511 | F21: 452140 | G21: =F21-E21 -> 8629 | H21: =F21/E21-1 -> 0.0194561127
B22: Юридические лица | E22: 13127 | F22: 13259 | G22: =F22-E22 -> 132 | H22: =F22/E22-1 -> 0.01005561057
B23: Нерезиденты | E23: 2239 | F23: 2304 | G23: =F23-E23 -> 65 | H23: =F23/E23-1 -> 0.02903081733
B24: Клиенты, передавшие свои средства в ДУ | E24: 4185 | F24: 4217 | G24: =F24-E24 -> 32 | H24: =F24/E24-1 -> 0.007646356033
B25: Всего | E25: =SUM(E21:E24) -> 463062 | F25: =SUM(F21:F24) -> 471920 | G25: =F25-E25 -> 8858 | H25: =F25/E25-1 -> 0.01912918788
B28: Количество активных клиентов в Системе торгов (совершивших в течение месяца хотя бы одну сделку): | H28: Таблица 3
B29: Группы клиентов | E29: за март 2008 г. | F29: за апрель 2008 г. | G29: Изменение (ед.) | H29: Изменение (%)
B30: Физические лица | E30: 64834 | F30: 68503 | G30: =F30-E30 -> 3669 | H30: =F30/E30-1 -> 0.05659067773
B31: Юридические лица | E31: 2194 | F31: 2291 | G31: =F31-E31 -> 97 | H31: =F31/E31-1 -> 0.04421148587
B32: Нерезиденты | E32: 495 | F32: 527 | G32: =F32-E32 -> 32 | H32: =F32/E32-1 -> 0.06464646465
B33: Клиенты, передавшие свои средства в ДУ | E33: 3279 | F33: 3474 | G33: =F33-E33 -> 195 | H33: =F33/E33-1 -> 0.05946935041
B34: Всего | E34: =SUM(E30:E33) -> 70802 | F34: =SUM(F30:F33) -> 74795 | G34: =F34-E34 -> 3993 | H34: =F34/E34-1 -> 0.05639671196
B38: Изменение количества уникальных клиентов - ретроспективные данные
B42: Количество уникальных клиентов в Системе торгов (ежегодная статистика): | H42: Таблица 1
B43: Группы клиентов | E43: 2005-01-01 | F43: 2006-01-01 | G43: 2007-01-01 | H43: 2008-01-01
B44: Физические лица | E44: 63183 | F44: 95675 | G44: 198973 | H44: 417403
B45: Юридические лица | E45: 5002 | F45: 8601 | G45: 10665 | H45: 12703
B46: Нерезиденты | E46: 234 | F46: 630 | G46: 1140 | H46: 2078
B47: Клиенты, передавшие свои средства в ДУ | E47: 741 | F47: 1671 | G47: 2839 | H47: 4061
B48: Всего | E48: =SUM(E44:E47) -> 69160 | F48: =SUM(F44:F47) -> 106577 | G48: =SUM(G44:G47) -> 213617 | H48: =SUM(H44:H47) -> 436245
B76: Количество уникальных клиентов в Системе торгов (за последние 6 месяцев): | H76: Таблица 2
B77: Группы клиентов | C77: 2007-12-01 | D77: 2008-01-01 | E77: 2008-02-01 | F77: 2008-03-01 | G77: 2008-04-01 | H77: 2008-05-01
B78: Физические лица | C78: 407622 | D78: 417403 | E78: 426646 | F78: 435322 | G78: 443511 | H78: 452140
B79: Юридические лица | C79: 12510 | D79: 12703 | E79: 12848 | F79: 12996 | G79: 13127 | H79: 13259
B80: Нерезиденты | C80: 2026 | D80: 2078 | E80: 2125 | F80: 2183 | G80: 2239 | H80: 2304
B81: Клиенты, передавшие свои средства в ДУ | C81: 3980 | D81: 4061 | E81: 4130 | F81: 4161 | G81: 4185 | H81: 4217
B82: Всего | C82: =SUM(C78:C81) -> 426138 | D82: 436245 | E82: 445749 | F82: 454662 | G82: 463062 | H82: 471920
B118: Дополнительные показатели по клиентам
B121: на 01.05.2008 г. | H121: Таблица 1
B122: Категории Участников торгов/клиентов | F122: Абсолютные показатели | G122: Доля от общего количества | H122: Количество организаций, допущенных к торгам
B123: Количество Участников торгов, имеющих зарегистрированных клиентов | F123: 521 | G123: 0.9648148148 | H123: 540
B124: Количество стран мира, представленных клиентами-нерезидентами | F124: 82
B125: Количество Участников торгов, зарегистрировавших клиентов-нерезидентов | F125: 235 | G125: 0.4351851852 | H125: 540
B126: Количество клиентов, подписавших Декларацию о рисках с целью совершения сделок с ценными бумагами, включёнными в Котировальный список "И" | F126: 24 355 (уникальных - 19 496)
B127: Количество Участников торгов, зарегистрировавших клиентов, имеющих намерение совершать сделки с ценными бумагами, включёнными в Котировальный список "И" | F127: 251 | G127: 0.4648148148 | H127: 540
B131: Списки ведущих операторов фондового рынка - клиенты Участников торгов (за апрель 2008 г.)
B134: Ведущие операторы рынка – число зарегистрированных уникальных клиентов | H134: Таблица 1
B135: Наименование Участника торгов | G135: Количество клиентов
B136: 1. ВТБ 24 (ЗАО) | G136: 136034
B137: 2. «ФИНАМ» (ЗАО) | G137: 36983
B138: 3. «Компания Брокеркредитсервис» (ООО) | G138: 35897
B139: 4. «АТОН» (ООО) | G139: 18783
B140: 5. «АЛЬФА-БАHK» (ОАО) | G140: 17939
B141: 6. ГК «АЛОР» | G141: 10729
B142: 7. «НЭТТРЭЙДЕР» (ООО) | G142: 7962
B143: 8. ФК «ОТКРЫТИЕ» (ООО) | G143: 6107
B144: 9. КИТ Финанс (ООО) | G144: 5678
B145: 10. «ЮТРЭЙД.РУ» (ОАО) | G145: 4279
B148: Ведущие операторы рынка – число активных клиентов | H148: Таблица 2
B149: Наименование Участника торгов | G149: Количество клиентов
B150: 1. «ФИНАМ» (ЗАО) | G150: 12578
B151: 2. «Компания Брокеркредитсервис» (ООО) | G151: 11363
B152: 3. ВТБ 24 (ЗАО) | G152: 4755
B153: 4. «АТОН» (ООО) | G153: 4713
B154: 5. «АЛЬФА-БАHK» (ОАО) | G154: 3230
B155: 6. ГК «АЛОР» | G155: 2511
B156: 7. «НЭТТРЭЙДЕР» (ООО) | G156: 2195
B157: 8. «ЮТРЭЙД.РУ» (ОАО) | G157: 1708
B158: 9. КИТ Финанс (ООО) | G158: 1690
B159: 10. ФК «ОТКРЫТИЕ» (ООО) | G159: 1512
B162: Ведущие операторы рынка – объем клиентских операций | H162: Таблица 3
B163: Наименование Участника торгов | G163: Торговый оборот, руб.
B164: 1. ИК «Тройка Диалог» (ЗАО) | G164: 830431767011
B165: 2. КИТ Финанс (ООО) | G165: 496835938037
B166: 3. «Компания Брокеркредитсервис» (ООО) | G166: 312270786275
B167: 4. «ФИНАМ» (ЗАО) | G167: 309377475088
B168: 5. «ИК «Ди Си Кэпитал» (ООО) | G168: 283436314706
B169: 6. ФК «ОТКРЫТИЕ» (ООО) | G169: 215890920488
B170: 7. «АТОН» (ООО) | G170: 214016685630
B171: 8. ГК «АЛОР» | G171: 152602246090
B172: 9. ВТБ 24 (ЗАО) | G172: 138280807515
B173: 10. «ЮТРЭЙД.РУ» (ОАО) | G173: 124408809998

Sheet Май2008
B2: Клиенты Участников торгов Фондовой биржи ММВБ
B3: МАЙ '08
B6: Динамика количества клиентов за май 2008 г.
B10: Количество зарегистрированных клиентов в Системе торгов: | H10: Таблица 1
B11: Группы клиентов | E11: 2008-05-01 | F11: 2008-06-01 | G11: Изменение (ед.) | H11: Изменение (%)
B12: Физические лица | E12: 531364 | F12: 544724 | G12: =F12-E12 -> 13360 | H12: =F12/E12-1 -> 0.02514283994
B13: Юридические лица | E13: 29398 | F13: 29621 | G13: =F13-E13 -> 223 | H13: =F13/E13-1 -> 0.007585550037
B14: Нерезиденты | E14: 3733 | F14: 3863 | G14: =F14-E14 -> 130 | H14: =F14/E14-1 -> 0.03482453791
B15: Клиенты, передавшие свои средства в ДУ | E15: 11690 | F15: 11858 | G15: =F15-E15 -> 168 | H15: =F15/E15-1 -> 0.01437125749
B16: Всего | E16: =SUM(E12:E15) -> 576185 | F16: =SUM(F12:F15) -> 590066 | G16: =F16-E16 -> 13881 | H16: =F16/E16-1 -> 0.0240912207
B19: Количество уникальных клиентов в Системе торгов: | H19: Таблица 2
B20: Группы клиентов | E20: 2008-05-01 | F20: 2008-06-01 | G20: Изменение (ед.) | H20: Изменение (%)
B21: Физические лица | E21: 452140 | F21: 463282 | G21: =F21-E21 -> 11142 | H21: =F21/E21-1 -> 0.02464280975
B22: Юридические лица | E22: 13259 | F22: 13375 | G22: =F22-E22 -> 116 | H22: =F22/E22-1 -> 0.008748774417
B23: Нерезиденты | E23: 2304 | F23: 2359 | G23: =F23-E23 -> 55 | H23: =F23/E23-1 -> 0.02387152778
B24: Клиенты, передавшие свои средства в ДУ | E24: 4217 | F24: 4270 | G24: =F24-E24 -> 53 | H24: =F24/E24-1 -> 0.01256817643
B25: Всего | E25: =SUM(E21:E24) -> 471920 | F25: =SUM(F21:F24) -> 483286 | G25: =F25-E25 -> 11366 | H25: =F25/E25-1 -> 0.02408459061
B28: Количество активных клиентов в Системе торгов (совершивших в течение месяца хотя бы одну сделку): | H28: Таблица 3
B29: Группы клиентов | E29: за апрель 2008 г. | F29: за май 2008 г. | G29: Изменение (ед.) | H29: Изменение (%)
B30: Физические лица | E30: 68503 | F30: 79846 | G30: =F30-E30 -> 11343 | H30: =F30/E30-1 -> 0.165583989
B31: Юридические лица | E31: 2291 | F31: 2377 | G31: =F31-E31 -> 86 | H31: =F31/E31-1 -> 0.03753819293
B32: Нерезиденты | E32: 527 | F32: 541 | G32: =F32-E32 -> 14 | H32: =F32/E32-1 -> 0.0265654649
B33: Клиенты, передавшие свои средства в ДУ | E33: 3474 | F33: 3527 | G33: =F33-E33 -> 53 | H33: =F33/E33-1 -> 0.01525618883
B34: Всего | E34: =SUM(E30:E33) -> 74795 | F34: =SUM(F30:F33) -> 86291 | G34: =F34-E34 -> 11496 | H34: =F34/E34-1 -> 0.1537001136
B38: Изменение количества уникальных клиентов - ретроспективные данные
B42: Количество уникальных клиентов в Системе торгов (ежегодная статистика): | H42: Таблица 1
B43: Группы клиентов | E43: 2005-01-01 | F43: 2006-01-01 | G43: 2007-01-01 | H43: 2008-01-01
B44: Физические лица | E44: 63183 | F44: 95675 | G44: 198973 | H44: 417403
B45: Юридические лица | E45: 5002 | F45: 8601 | G45: 10665 | H45: 12703
B46: Нерезиденты | E46: 234 | F46: 630 | G46: 1140 | H46: 2078
B47: Клиенты, передавшие свои средства в ДУ | E47: 741 | F47: 1671 | G47: 2839 | H47: 4061
B48: Всего | E48: =SUM(E44:E47) -> 69160 | F48: =SUM(F44:F47) -> 106577 | G48: =SUM(G44:G47) -> 213617 | H48: =SUM(H44:H47) -> 436245
B76: Количество уникальных клиентов в Системе торгов (за последние 6 месяцев): | H76: Таблица 2
B77: Группы клиентов | C77: 2008-01-01 | D77: 2008-02-01 | E77: 2008-03-01 | F77: 2008-04-01 | G77: 2008-05-01 | H77: 2008-06-01
B78: Физические лица | C78: 417403 | D78: 426646 | E78: 435322 | F78: 443511 | G78: 452140 | H78: 463282
B79: Юридические лица | C79: 12703 | D79: 12848 | E79: 12996 | F79: 13127 | G79: 13259 | H79: 13375
B80: Нерезиденты | C80: 2078 | D80: 2125 | E80: 2183 | F80: 2239 | G80: 2304 | H80: 2359
B81: Клиенты, передавшие свои средства в ДУ | C81: 4061 | D81: 4130 | E81: 4161 | F81: 4185 | G81: 4217 | H81: 4270
B82: Всего | C82: =SUM(C78:C81) -> 436245 | D82: 445749 | E82: 454662 | F82: 463062 | G82: 471920 | H82: 483286
B118: Дополнительные показатели по клиентам
B121: на 01.06.2008 г. | H121: Таблица 1
B122: Категории Участников торгов/клиентов | F122: Абсолютные показатели | G122: Доля от общего количества | H122: Количество организаций, допущенных к торгам
B123: Количество Участников торгов, имеющих зарегистрированных клиентов | F123: 523 | G123: 0.966728281 | H123: 541
B124: Количество стран мира, представленных клиентами-нерезидентами | F124: 82
B125: Количество Участников торгов, зарегистрировавших клиентов-нерезидентов | F125: 239 | G125: 0.4417744917 | H125: 541
B126: Количество клиентов, подписавших Декларацию о рисках с целью совершения сделок с ценными бумагами, включёнными в Котировальный список "И" | F126: 27 080 (уникальных - 21 647)
B127: Количество Участников торгов, зарегистрировавших клиентов, имеющих намерение совершать сделки с ценными бумагами, включёнными в Котировальный список "И" | F127: 258 | G127: 0.4768946396 | H127: 541
B131: Списки ведущих операторов фондового рынка - клиенты Участников торгов (за май 2008 г.)
B134: Ведущие операторы рынка – число зарегистрированных уникальных клиентов | H134: Таблица 1
B135: Наименование Участника торгов | G135: Количество клиентов
B136: 1. ВТБ 24 (ЗАО) | G136: 136475
B137: 2. «ФИНАМ» (ЗАО) | G137: 38464
B138: 3. «Компания Брокеркредитсервис» (ООО) | G138: 36766
B139: 4. «АТОН» (ООО) | G139: 19319
B140: 5. «АЛЬФА-БАHK» (ОАО) | G140: 19069
B141: 6. ГК «АЛОР» | G141: 10941
B142: 7. «НЭТТРЭЙДЕР» (ООО) | G142: 8294
B143: 8. ФК «ОТКРЫТИЕ» (ООО) | G143: 6239
B144: 9. КИТ Финанс (ООО) | G144: 5923
B145: 10. «ЮТРЭЙД.РУ» (ОАО) | G145: 4423
B148: Ведущие операторы рынка – число активных клиентов | H148: Таблица 2
B149: Наименование Участника торгов | G149: Количество клиентов
B150: 1. «ФИНАМ» (ЗАО) | G150: 14419
B151: 2. «Компания Брокеркредитсервис» (ООО) | G151: 12725
B152: 3. ВТБ 24 (ЗАО) | G152: 5360
B153: 4. «АТОН» (ООО) | G153: 5253
B154: 5. «АЛЬФА-БАHK» (ОАО) | G154: 3593
B155: 6. ГК «АЛОР» | G155: 2701
B156: 7. «НЭТТРЭЙДЕР» (ООО) | G156: 2550
B157: 8. КИТ Финанс (ООО) | G157: 1931
B158: 9. «ЮТРЭЙД.РУ» (ОАО) | G158: 1911
B159: 10. ФК «ОТКРЫТИЕ» (ООО) | G159: 1712
B162: Ведущие операторы рынка – объем клиентских операций | H162: Таблица 3
B163: Наименование Участника торгов | G163: Торговый оборот, руб.
B164: 1. ИК «Тройка Диалог» (ЗАО) | G164: 1157810643783
B165: 2. КИТ Финанс (ООО) | G165: 418030768601
B166: 3. «ФИНАМ» (ЗАО) | G166: 373207774849
B167: 4. «Компания Брокеркредитсервис» (ООО) | G167: 360565512059
B168: 5. ФК «ОТКРЫТИЕ» (ООО) | G168: 328404630224
B169: 6. «ИК «Ди Си Кэпитал» (ООО) | G169: 293295913071
B170: 7. «АТОН» (ООО) | G170: 209629386638
B171: 8. ГК «АЛОР» | G171: 188004510492
B172: 9. ВТБ 24 (ЗАО) | G172: 170298686506
B173: 10. «ЮТРЭЙД.РУ» (ОАО) | G173: 123437448260

Sheet Июнь2008
B2: Клиенты Участников торгов Фондовой биржи ММВБ
B3: ИЮНЬ '08
B6: Динамика количества клиентов за июнь 2008 г.
B10: Количество зарегистрированных клиентов в Системе торгов: | H10: Таблица 1
B11: Группы клиентов | E11: 2008-06-01 | F11: 2008-07-01 | G11: Изменение (ед.) | H11: Изменение (%)
B12: Физические лица | E12: 544724 | F12: 555425 | G12: =F12-E12 -> 10701 | H12: =F12/E12-1 -> 0.01964481095
B13: Юридические лица | E13: 29621 | F13: 29871 | G13: =F13-E13 -> 250 | H13: =F13/E13-1 -> 0.008439958138
B14: Нерезиденты | E14: 3863 | F14: 3988 | G14: =F14-E14 -> 125 | H14: =F14/E14-1 -> 0.03235827077
B15: Клиенты, передавшие свои средства в ДУ | E15: 11858 | F15: 11880 | G15: =F15-E15 -> 22 | H15: =F15/E15-1 -> 0.00185528757
B16: Всего | E16: =SUM(E12:E15) -> 590066 | F16: =SUM(F12:F15) -> 601164 | G16: =F16-E16 -> 11098 | H16: =F16/E16-1 -> 0.01880806554
B19: Количество уникальных клиентов в Системе торгов: | H19: Таблица 2
B20: Группы клиентов | E20: 2008-06-01 | F20: 2008-07-01 | G20: Изменение (ед.) | H20: Изменение (%)
B21: Физические лица | E21: 463282 | F21: 472080 | G21: =F21-E21 -> 8798 | H21: =F21/E21-1 -> 0.0189905932
B22: Юридические лица | E22: 13375 | F22: 13533 | G22: =F22-E22 -> 158 | H22: =F22/E22-1 -> 0.01181308411
B23: Нерезиденты | E23: 2359 | F23: 2413 | G23: =F23-E23 -> 54 | H23: =F23/E23-1 -> 0.02289105553
B24: Клиенты, передавшие свои средства в ДУ | E24: 4270 | F24: 4280 | G24: =F24-E24 -> 10 | H24: =F24/E24-1 -> 0.002341920375
B25: Всего | E25: =SUM(E21:E24) -> 483286 | F25: =SUM(F21:F24) -> 492306 | G25: =F25-E25 -> 9020 | H25: =F25/E25-1 -> 0.01866389674
B28: Количество активных клиентов в Системе торгов (совершивших в течение месяца хотя бы одну сделку): | H28: Таблица 3
B29: Группы клиентов | E29: за май 2008 г. | F29: за июнь 2008 г. | G29: Изменение (ед.) | H29: Изменение (%)
B30: Физические лица | E30: 79846 | F30: 67474 | G30: =F30-E30 -> -12372 | H30: =F30/E30-1 -> -0.1549482754
B31: Юридические лица | E31: 2377 | F31: 2195 | G31: =F31-E31 -> -182 | H31: =F31/E31-1 -> -0.07656710139
B32: Нерезиденты | E32: 541 | F32: 525 | G32: =F32-E32 -> -16 | H32: =F32/E32-1 -> -0.02957486137
B33: Клиенты, передавшие свои средства в ДУ | E33: 3527 | F33: 3302 | G33: =F33-E33 -> -225 | H33: =F33/E33-1 -> -0.06379359229
B34: Всего | E34: =SUM(E30:E33) -> 86291 | F34: =SUM(F30:F33) -> 73496 | G34: =F34-E34 -> -12795 | H34: =F34/E34-1 -> -0.1482773406
B38: Изменение количества уникальных клиентов - ретроспективные данные
B42: Количество уникальных клиентов в Системе торгов (ежегодная статистика): | H42: Таблица 1
B43: Группы клиентов | E43: 2005-01-01 | F43: 2006-01-01 | G43: 2007-01-01 | H43: 2008-01-01
B44: Физические лица | E44: 63183 | F44: 95675 | G44: 198973 | H44: 417403
B45: Юридические лица | E45: 5002 | F45: 8601 | G45: 10665 | H45: 12703
B46: Нерезиденты | E46: 234 | F46: 630 | G46: 1140 | H46: 2078
B47: Клиенты, передавшие свои средства в ДУ | E47: 741 | F47: 1671 | G47: 2839 | H47: 4061
B48: Всего | E48: =SUM(E44:E47) -> 69160 | F48: =SUM(F44:F47) -> 106577 | G48: =SUM(G44:G47) -> 213617 | H48: =SUM(H44:H47) -> 436245
B76: Количество уникальных клиентов в Системе торгов (за последние 6 месяцев): | H76: Таблица 2
B77: Группы клиентов | C77: 2008-02-01 | D77: 2008-03-01 | E77: 2008-04-01 | F77: 2008-05-01 | G77: 2008-06-01 | H77: 2008-07-01
B78: Физические лица | C78: 426646 | D78: 435322 | E78: 443511 | F78: 452140 | G78: 463282 | H78: 472080
B79: Юридические лица | C79: 12848 | D79: 12996 | E79: 13127 | F79: 13259 | G79: 13375 | H79: 13533
B80: Нерезиденты | C80: 2125 | D80: 2183 | E80: 2239 | F80: 2304 | G80: 2359 | H80: 2413
B81: Клиенты, передавшие свои средства в ДУ | C81: 4130 | D81: 4161 | E81: 4185 | F81: 4217 | G81: 4270 | H81: 4280
B82: Всего | C82: =SUM(C78:C81) -> 445749 | D82: 454662 | E82: 463062 | F82: 471920 | G82: 483286 | H82: 492306
B118: Дополнительные показатели по клиентам
B121: на 01.07.2008 г. | H121: Таблица 1
B122: Категории Участников торгов/клиентов | F122: Абсолютные показатели | G122: Доля от общего количества | H122: Количество организаций, допущенных к торгам
B123: Количество Участников торгов, имеющих зарегистрированных клиентов | F123: 527 | G123: 0.9652014652 | H123: 546
B124: Количество стран мира, представленных клиентами-нерезидентами | F124: 82
B125: Количество Участников торгов, зарегистрировавших клиентов-нерезидентов | F125: 240 | G125: 0.4395604396 | H125: 546
B126: Количество клиентов, подписавших Декларацию о рисках с целью совершения сделок с ценными бумагами, включёнными в Котировальный список "И" | F126: 29 791 (уникальных - 23 696)
B127: Количество Участников торгов, зарегистрировавших клиентов, имеющих намерение совершать сделки с ценными бумагами, включёнными в Котировальный список "И" | F127: 267 | G127: 0.489010989 | H127: 546
B131: Списки ведущих операторов фондового рынка - клиенты Участников торгов (за июнь 2008 г.)
B134: Ведущие операторы рынка – число зарегистрированных уникальных клиентов | H134: Таблица 1
B135: Наименование Участника торгов | G135: Количество клиентов
B136: 1. ВТБ 24 (ЗАО) | G136: 136811
B137: 2. «ФИНАМ» (ЗАО) | G137: 39670
B138: 3. «Компания Брокеркредитсервис» (ООО) | G138: 37685
B139: 4. «АЛЬФА-БАHK» (ОАО) | G139: 20249
B140: 5. «АТОН» (ООО) | G140: 19724
B141: 6. ГК «АЛОР» | G141: 11129
B142: 7. «НЭТТРЭЙДЕР» (ООО) | G142: 8553
B143: 8. ФК «ОТКРЫТИЕ» (ООО) | G143: 6360
B144: 9. КИТ Финанс (ООО) | G144: 6152
B145: 10. «ЮТРЭЙД.РУ» (ОАО) | G145: 4520
B148: Ведущие операторы рынка – число активных клиентов | H148: Таблица 2
B149: Наименование Участника торгов | G149: Количество клиентов
B150: 1. «ФИНАМ» (ЗАО) | G150: 12740
B151: 2. «Компания Брокеркредитсервис» (ООО) | G151: 11035
B152: 3. ВТБ 24 (ЗАО) | G152: 4804
B153: 4. «АТОН» (ООО) | G153: 4644
B154: 5. «АЛЬФА-БАHK» (ОАО) | G154: 3151
B155: 6. ГК «АЛОР» | G155: 2289
B156: 7. «НЭТТРЭЙДЕР» (ООО) | G156: 2176
B157: 8. КИТ Финанс (ООО) | G157: 1748
B158: 9. «ЮТРЭЙД.РУ» (ОАО) | G158: 1730
B159: 10. ФК «ОТКРЫТИЕ» (ООО) | G159: 1432
B162: Ведущие операторы рынка – объем клиентских операций | H162: Таблица 3
B163: Наименование Участника торгов | G163: Торговый оборот, руб.
B164: 1. ИК «Тройка Диалог» (ЗАО) | G164: 1045300349050
B165: 2. КИТ Финанс (ООО) | G165: 325052345788
B166: 3. «Компания Брокеркредитсервис» (ООО) | G166: 273196826417
B167: 4. «ИК «Ди Си Кэпитал» (ООО) | G167: 264368754062
B168: 5. «ФИНАМ» (ЗАО) | G168: 253570934548
B169: 6. ФК «ОТКРЫТИЕ» (ООО) | G169: 175440775111
B170: 7. ГК «АЛОР» | G170: 148154267039
B171: 8. «АТОН» (ООО) | G171: 141344475686
B172: 9. ВТБ 24 (ЗАО) | G172: 100315111285
B173: 10. «ЮТРЭЙД.РУ» (ОАО) | G173: 86316675887

Sheet Июль2008
B2: Клиенты Участников торгов Фондовой биржи ММВБ
B3: ИЮЛЬ '08
B6: Динамика количества клиентов за июль 2008 г.
B10: Количество зарегистрированных клиентов в Системе торгов: | H10: Таблица 1
B11: Группы клиентов | E11: 2008-07-01 | F11: 2008-08-01 | G11: Изменение (ед.) | H11: Изменение (%)
B12: Физические лица | E12: 555425 | F12: 564387 | G12: =F12-E12 -> 8962 | H12: =F12/E12-1 -> 0.01613539182
B13: Юридические лица | E13: 29871 | F13: 30152 | G13: =F13-E13 -> 281 | H13: =F13/E13-1 -> 0.009407117271
B14: Нерезиденты | E14: 3988 | F14: 4339 | G14: =F14-E14 -> 351 | H14: =F14/E14-1 -> 0.08801404213
B15: Клиенты, передавшие свои средства в ДУ | E15: 11880 | F15: 12108 | G15: =F15-E15 -> 228 | H15: =F15/E15-1 -> 0.01919191919
B16: Всего | E16: =SUM(E12:E15) -> 601164 | F16: =SUM(F12:F15) -> 610986 | G16: =F16-E16 -> 9822 | H16: =F16/E16-1 -> 0.01633830369
B19: Количество уникальных клиентов в Системе торгов: | H19: Таблица 2
B20: Группы клиентов | E20: 2008-07-01 | F20: 2008-08-01 | G20: Изменение (ед.) | H20: Изменение (%)
B21: Физические лица | E21: 472080 | F21: 479248 | G21: =F21-E21 -> 7168 | H21: =F21/E21-1 -> 0.01518386714
B22: Юридические лица | E22: 13533 | F22: 13672 | G22: =F22-E22 -> 139 | H22: =F22/E22-1 -> 0.01027118895
B23: Нерезиденты | E23: 2413 | F23: 2497 | G23: =F23-E23 -> 84 | H23: =F23/E23-1 -> 0.03481143804
B24: Клиенты, передавшие свои средства в ДУ | E24: 4280 | F24: 4312 | G24: =F24-E24 -> 32 | H24: =F24/E24-1 -> 0.007476635514
B25: Всего | E25: =SUM(E21:E24) -> 492306 | F25: =SUM(F21:F24) -> 499729 | G25: =F25-E25 -> 7423 | H25: =F25/E25-1 -> 0.01507802058
B28: Количество активных клиентов в Системе торгов (совершивших в течение месяца хотя бы одну сделку): | H28: Таблица 3
B29: Группы клиентов | E29: за июнь 2008 г. | F29: за июль 2008 г. | G29: Изменение (ед.) | H29: Изменение (%)
B30: Физические лица | E30: 67474 | F30: 66902 | G30: =F30-E30 -> -572 | H30: =F30/E30-1 -> -0.00847733942
B31: Юридические лица | E31: 2195 | F31: 2178 | G31: =F31-E31 -> -17 | H31: =F31/E31-1 -> -0.007744874715
B32: Нерезиденты | E32: 525 | F32: 514 | G32: =F32-E32 -> -11 | H32: =F32/E32-1 -> -0.02095238095
B33: Клиенты, передавшие свои средства в ДУ | E33: 3302 | F33: 3201 | G33: =F33-E33 -> -101 | H33: =F33/E33-1 -> -0.03058752271
B34: Всего | E34: =SUM(E30:E33) -> 73496 | F34: =SUM(F30:F33) -> 72795 | G34: =F34-E34 -> -701 | H34: =F34/E34-1 -> -0.009537934037
B38: Изменение количества уникальных клиентов - ретроспективные данные
B42: Количество уникальных клиентов в Системе торгов (ежегодная статистика): | H42: Таблица 1
B43: Группы клиентов | E43: 2005-01-01 | F43: 2006-01-01 | G43: 2007-01-01 | H43: 2008-01-01
B44: Физические лица | E44: 63183 | F44: 95675 | G44: 198973 | H44: 417403
B45: Юридические лица | E45: 5002 | F45: 8601 | G45: 10665 | H45: 12703
B46: Нерезиденты | E46: 234 | F46: 630 | G46: 1140 | H46: 2078
B47: Клиенты, передавшие свои средства в ДУ | E47: 741 | F47: 1671 | G47: 2839 | H47: 4061
B48: Всего | E48: =SUM(E44:E47) -> 69160 | F48: =SUM(F44:F47) -> 106577 | G48: =SUM(G44:G47) -> 213617 | H48: =SUM(H44:H47) -> 436245
B76: Количество уникальных клиентов в Системе торгов (за последние 6 месяцев): | H76: Таблица 2
B77: Группы клиентов | C77: 2008-03-01 | D77: 2008-04-01 | E77: 2008-05-01 | F77: 2008-06-01 | G77: 2008-07-01 | H77: 2008-08-01
B78: Физические лица | C78: 435322 | D78: 443511 | E78: 452140 | F78: 463282 | G78: 472080 | H78: 479248
B79: Юридические лица | C79: 12996 | D79: 13127 | E79: 13259 | F79: 13375 | G79: 13533 | H79: 13672
B80: Нерезиденты | C80: 2183 | D80: 2239 | E80: 2304 | F80: 2359 | G80: 2413 | H80: 2497
B81: Клиенты, передавшие свои средства в ДУ | C81: 4161 | D81: 4185 | E81: 4217 | F81: 4270 | G81: 4280 | H81: 4312
B82: Всего | C82: =SUM(C78:C81) -> 454662 | D82: 463062 | E82: 471920 | F82: 483286 | G82: 492306 | H82: 499729
B118: Дополнительные показатели по клиентам
B121: на 01.08.2008 г. | H121: Таблица 1
B122: Категории Участников торгов/клиентов | F122: Абсолютные показатели | G122: Доля от общего количества | H122: Количество организаций, допущенных к торгам
B123: Количество Участников торгов, имеющих зарегистрированных клиентов | F123: 528 | G123: 0.9688073394 | H123: 545
B124: Количество стран мира, представленных клиентами-нерезидентами | F124: 83
B125: Количество Участников торгов, зарегистрировавших клиентов-нерезидентов | F125: 243 | G125: 0.4458715596 | H125: 545
B126: Количество клиентов, подписавших Декларацию о рисках с целью совершения сделок с ценными бумагами, включёнными в Котировальный список "И" | F126: 33 692 (уникальных - 26 578)
B127: Количество Участников торгов, зарегистрировавших клиентов, имеющих намерение совершать сделки с ценными бумагами, включёнными в Котировальный список "И" | F127: 275 | G127: 0.504587156 | H127: 545
B131: Списки ведущих операторов фондового рынка - клиенты Участников торгов (за июль 2008 г.)
B134: Ведущие операторы рынка – число зарегистрированных уникальных клиентов | H134: Таблица 1
B135: Наименование Участника торгов | G135: Количество клиентов
B136: 1. ВТБ 24 (ЗАО) | G136: 137192
B137: 2. «ФИНАМ» (ЗАО) | G137: 41021
B138: 3. «Компания Брокеркредитсервис» (ООО) | G138: 38734
B139: 4. «АЛЬФА-БАHK» (ОАО) | G139: 21507
B140: 5. «АТОН» (ООО) | G140: 20093
B141: 6. ГК «АЛОР» | G141: 11321
B142: 7. «НЭТТРЭЙДЕР» (ООО) | G142: 8728
B143: 8. ФК «ОТКРЫТИЕ» (ООО) | G143: 6536
B144: 9. КИТ Финанс (ООО) | G144: 6430
B145: 10. «ЮТРЭЙД.РУ» (ОАО) | G145: 4695
B148: Ведущие операторы рынка – число активных клиентов | H148: Таблица 2
B149: Наименование Участника торгов | G149: Количество клиентов
B150: 1. «ФИНАМ» (ЗАО) | G150: 12584
B151: 2. «Компания Брокеркредитсервис» (ООО) | G151: 11410
B152: 3. ВТБ 24 (ЗАО) | G152: 4852
B153: 4. «АТОН» (ООО) | G153: 4534
B154: 5. «АЛЬФА-БАHK» (ОАО) | G154: 3347
B155: 6. ГК «АЛОР» | G155: 2228
B156: 7. «НЭТТРЭЙДЕР» (ООО) | G156: 2064
B157: 8. КИТ Финанс (ООО) | G157: 1794
B158: 9. «ЮТРЭЙД.РУ» (ОАО) | G158: 1766
B159: 10. ФК «ОТКРЫТИЕ» (ООО) | G159: 1490
B162: Ведущие операторы рынка – объем клиентских операций | H162: Таблица 3
B163: Наименование Участника торгов | G163: Торговый оборот, руб.
B164: 1. ИК «Тройка Диалог» (ЗАО) | G164: 1070296200500
B165: 2. КИТ Финанс (ООО) | G165: 419323287259
B166: 3. «ФИНАМ» (ЗАО) | G166: 357483290794
B167: 4. «Компания Брокеркредитсервис» (ООО) | G167: 312584797745
B168: 5. «ИК «Ди Си Кэпитал» (ООО) | G168: 305930323733
B169: 6. ГК «АЛОР» | G169: 184099380505
B170: 7. «АТОН» (ООО) | G170: 177353965765
B171: 8. ФК «ОТКРЫТИЕ» (ООО) | G171: 144193643662
B172: 9. ВТБ 24 (ЗАО) | G172: 125349403974
B173: 10. «ЮТРЭЙД.РУ» (ОАО) | G173: 114658870425

Sheet Август2008
B2: Клиенты Участников торгов Фондовой биржи ММВБ
B3: АВГУСТ '08
B6: Динамика количества клиентов за август 2008 г.
B10: Количество зарегистрированных клиентов в Системе торгов: | H10: Таблица 1
B11: Группы клиентов | E11: 2008-08-01 | F11: 2008-09-01 | G11: Изменение (ед.) | H11: Изменение (%)
B12: Физические лица | E12: 564387 | F12: 572917 | G12: =F12-E12 -> 8530 | H12: =F12/E12-1 -> 0.01511374288
B13: Юридические лица | E13: 30152 | F13: 30249 | G13: =F13-E13 -> 97 | H13: =F13/E13-1 -> 0.003217033696
B14: Нерезиденты | E14: 4339 | F14: 4416 | G14: =F14-E14 -> 77 | H14: =F14/E14-1 -> 0.01774602443
B15: Клиенты, передавшие свои средства в ДУ | E15: 12108 | F15: 12232 | G15: =F15-E15 -> 124 | H15: =F15/E15-1 -> 0.01024116287
B16: Всего | E16: =SUM(E12:E15) -> 610986 | F16: =SUM(F12:F15) -> 619814 | G16: =F16-E16 -> 8828 | H16: =F16/E16-1 -> 0.01444877624
B19: Количество уникальных клиентов в Системе торгов: | H19: Таблица 2
B20: Группы клиентов | E20: 2008-08-01 | F20: 2008-09-01 | G20: Изменение (ед.) | H20: Изменение (%)
B21: Физические лица | E21: 479248 | F21: 486235 | G21: =F21-E21 -> 6987 | H21: =F21/E21-1 -> 0.01457909058
B22: Юридические лица | E22: 13672 | F22: 13812 | G22: =F22-E22 -> 140 | H22: =F22/E22-1 -> 0.01023990638
B23: Нерезиденты | E23: 2497 | F23: 2558 | G23: =F23-E23 -> 61 | H23: =F23/E23-1 -> 0.02442931518
B24: Клиенты, передавшие свои средства в ДУ | E24: 4312 | F24: 4340 | G24: =F24-E24 -> 28 | H24: =F24/E24-1 -> 0.006493506494
B25: Всего | E25: =SUM(E21:E24) -> 499729 | F25: =SUM(F21:F24) -> 506945 | G25: =F25-E25 -> 7216 | H25: =F25/E25-1 -> 0.01443982639
B28: Количество активных клиентов в Системе торгов (совершивших в течение месяца хотя бы одну сделку): | H28: Таблица 3
B29: Группы клиентов | E29: за июль 2008 г. | F29: за август 2008 г. | G29: Изменение (ед.) | H29: Изменение (%)
B30: Физические лица | E30: 66902 | F30: 62554 | G30: =F30-E30 -> -4348 | H30: =F30/E30-1 -> -0.06499058324
B31: Юридические лица | E31: 2178 | F31: 2030 | G31: =F31-E31 -> -148 | H31: =F31/E31-1 -> -0.06795224977
B32: Нерезиденты | E32: 514 | F32: 523 | G32: =F32-E32 -> 9 | H32: =F32/E32-1 -> 0.01750972763
B33: Клиенты, передавшие свои средства в ДУ | E33: 3201 | F33: 2987 | G33: =F33-E33 -> -214 | H33: =F33/E33-1 -> -0.06685410809
B34: Всего | E34: =SUM(E30:E33) -> 72795 | F34: =SUM(F30:F33) -> 68094 | G34: =F34-E34 -> -4701 | H34: =F34/E34-1 -> -0.06457861117
B38: Изменение количества уникальных клиентов - ретроспективные данные
B42: Количество уникальных клиентов в Системе торгов (ежегодная статистика): | H42: Таблица 1
B43: Группы клиентов | E43: 2005-01-01 | F43: 2006-01-01 | G43: 2007-01-01 | H43: 2008-01-01
B44: Физические лица | E44: 63183 | F44: 95675 | G44: 198973 | H44: 417403
B45: Юридические лица | E45: 5002 | F45: 8601 | G45: 10665 | H45: 12703
B46: Нерезиденты | E46: 234 | F46: 630 | G46: 1140 | H46: 2078
B47: Клиенты, передавшие свои средства в ДУ | E47: 741 | F47: 1671 | G47: 2839 | H47: 4061
B48: Всего | E48: =SUM(E44:E47) -> 69160 | F48: =SUM(F44:F47) -> 106577 | G48: =SUM(G44:G47) -> 213617 | H48: =SUM(H44:H47) -> 436245
B76: Количество уникальных клиентов в Системе торгов (за последние 6 месяцев): | H76: Таблица 2
B77: Группы клиентов | C77: 2008-04-01 | D77: 2008-05-01 | E77: 2008-06-01 | F77: 2008-07-01 | G77: 2008-08-01 | H77: 2008-09-01
B78: Физические лица | C78: 443511 | D78: 452140 | E78: 463282 | F78: 472080 | G78: 479248 | H78: 486235
B79: Юридические лица | C79: 13127 | D79: 13259 | E79: 13375 | F79: 13533 | G79: 13672 | H79: 13812
B80: Нерезиденты | C80: 2239 | D80: 2304 | E80: 2359 | F80: 2413 | G80: 2497 | H80: 2558
B81: Клиенты, передавшие свои средства в ДУ | C81: 4185 | D81: 4217 | E81: 4270 | F81: 4280 | G81: 4312 | H81: 4340
B82: Всего | C82: =SUM(C78:C81) -> 463062 | D82: 471920 | E82: 483286 | F82: 492306 | G82: 499729 | H82: 506945
B118: Дополнительные показатели по клиентам
B121: на 01.09.2008 г. | H121: Таблица 1
B122: Категории Участников торгов/клиентов | F122: Абсолютные показатели | G122: Доля от общего количества | H122: Количество организаций, допущенных к торгам
B123: Количество Участников торгов, имеющих зарегистрированных клиентов | F123: 533 | G123: 0.9779816514 | H123: 545
B124: Количество стран мира, представленных клиентами-нерезидентами | F124: 85
B125: Количество Участников торгов, зарегистрировавших клиентов-нерезидентов | F125: 245 | G125: 0.4495412844 | H125: 545
B126: Количество клиентов, подписавших Декларацию о рисках с целью совершения сделок с ценными бумагами, включёнными в Котировальный список "И" | F126: 37 114 (уникальных - 29 259)
B127: Количество Участников торгов, зарегистрировавших клиентов, имеющих намерение совершать сделки с ценными бумагами, включёнными в Котировальный список "И" | F127: 283 | G127: 0.519266055 | H127: 545
B131: Списки ведущих операторов фондового рынка - клиенты Участников торгов (за август 2008 г.)
B134: Ведущие операторы рынка – число зарегистрированных уникальных клиентов | H134: Таблица 1
B135: Наименование Участника торгов | G135: Количество клиентов
B136: 1. ВТБ 24 (ЗАО) | G136: 137571
B137: 2. «ФИНАМ» (ЗАО) | G137: 42459
B138: 3. «Компания Брокеркредитсервис» (ООО) | G138: 39623
B139: 4. «АЛЬФА-БАHK» (ОАО) | G139: 22492
B140: 5. «АТОН» (ООО) | G140: 20405
B141: 6. ГК «АЛОР» | G141: 11527
B142: 7. «НЭТТРЭЙДЕР» (ООО) | G142: 8927
B143: 8. КИТ Финанс (ООО) | G143: 6768
B144: 9. ФК «ОТКРЫТИЕ» (ООО) | G144: 6699
B145: 10. «ЮТРЭЙД.РУ» (ОАО) | G145: 4869
B148: Ведущие операторы рынка – число активных клиентов | H148: Таблица 2
B149: Наименование Участника торгов | G149: Количество клиентов
B150: 1. «ФИНАМ» (ЗАО) | G150: 12240
B151: 2. «Компания Брокеркредитсервис» (ООО) | G151: 10698
B152: 3. ВТБ 24 (ЗАО) | G152: 4756
B153: 4. «АТОН» (ООО) | G153: 4132
B154: 5. «АЛЬФА-БАHK» (ОАО) | G154: 3348
B155: 6. ГК «АЛОР» | G155: 2101
B156: 7. КИТ Финанс (ООО) | G156: 1896
B157: 8. «НЭТТРЭЙДЕР» (ООО) | G157: 1879
B158: 9. «ЮТРЭЙД.РУ» (ОАО) | G158: 1714
B159: 10. ФК «ОТКРЫТИЕ» (ООО) | G159: 1469
B162: Ведущие операторы рынка – объем клиентских операций | H162: Таблица 3
B163: Наименование Участника торгов | G163: Торговый оборот, руб.
B164: 1. ИК «Тройка Диалог» (ЗАО) | G164: 961654802683
B165: 2. КИТ Финанс (ООО) | G165: 458770130641
B166: 3. «ФИНАМ» (ЗАО) | G166: 339098216542
B167: 4. «ИК «Ди Си Кэпитал» (ООО) | G167: 255185281637
B168: 5. «Компания Брокеркредитсервис» (ООО) | G168: 254546911646
B169: 6. ГК «АЛОР» | G169: 167785218141
B170: 7. «АТОН» (ООО) | G170: 156239588218
B171: 8. ФК «ОТКРЫТИЕ» (ООО) | G171: 114496283643
B172: 9. ВТБ 24 (ЗАО) | G172: 109752608719
B173: 10. «ЮТРЭЙД.РУ» (ОАО) | G173: 107877708370

Sheet Сентябрь2008
B2: Клиенты Участников торгов Фондовой биржи ММВБ
B3: СЕНТЯБРЬ '08
B6: Динамика количества клиентов за сентябрь 2008 г.
B10: Количество зарегистрированных клиентов в Системе торгов: | H10: Таблица 1
B11: Группы клиентов | E11: 2008-09-01 | F11: 2008-10-01 | G11: Изменение (ед.) | H11: Изменение (%)
B12: Физические лица | E12: 572917 | F12: 597158 | G12: =F12-E12 -> 24241 | H12: =F12/E12-1 -> 0.04231153902
B13: Юридические лица | E13: 30249 | F13: 30566 | G13: =F13-E13 -> 317 | H13: =F13/E13-1 -> 0.01047968528
B14: Нерезиденты | E14: 4416 | F14: 4604 | G14: =F14-E14 -> 188 | H14: =F14/E14-1 -> 0.04257246377
B15: Клиенты, передавшие свои средства в ДУ | E15: 12232 | F15: 12418 | G15: =F15-E15 -> 186 | H15: =F15/E15-1 -> 0.015206017
B16: Всего | E16: =SUM(E12:E15) -> 619814 | F16: =SUM(F12:F15) -> 644746 | G16: =F16-E16 -> 24932 | H16: =F16/E16-1 -> 0.04022497072
B19: Количество уникальных клиентов в Системе торгов: | H19: Таблица 2
B20: Группы клиентов | E20: 2008-09-01 | F20: 2008-10-01 | G20: Изменение (ед.) | H20: Изменение (%)
B21: Физические лица | E21: 486235 | F21: 506541 | G21: =F21-E21 -> 20306 | H21: =F21/E21-1 -> 0.04176169959
B22: Юридические лица | E22: 13812 | F22: 14055 | G22: =F22-E22 -> 243 | H22: =F22/E22-1 -> 0.01759339705
B23: Нерезиденты | E23: 2558 | F23: 2705 | G23: =F23-E23 -> 147 | H23: =F23/E23-1 -> 0.05746677091
B24: Клиенты, передавшие свои средства в ДУ | E24: 4340 | F24: 4399 | G24: =F24-E24 -> 59 | H24: =F24/E24-1 -> 0.01359447005
B25: Всего | E25: =SUM(E21:E24) -> 506945 | F25: =SUM(F21:F24) -> 527700 | G25: =F25-E25 -> 20755 | H25: =F25/E25-1 -> 0.040941325
B28: Количество активных клиентов в Системе торгов (совершивших в течение месяца хотя бы одну сделку): | H28: Таблица 3
B29: Группы клиентов | E29: за август 2008 г. | F29: за сентябрь 2008 г. | G29: Изменение (ед.) | H29: Изменение (%)
B30: Физические лица | E30: 62554 | F30: 83075 | G30: =F30-E30 -> 20521 | H30: =F30/E30-1 -> 0.3280525626
B31: Юридические лица | E31: 2030 | F31: 2218 | G31: =F31-E31 -> 188 | H31: =F31/E31-1 -> 0.09261083744
B32: Нерезиденты | E32: 523 | F32: 596 | G32: =F32-E32 -> 73 | H32: =F32/E32-1 -> 0.1395793499
B33: Клиенты, передавшие свои средства в ДУ | E33: 2987 | F33: 2936 | G33: =F33-E33 -> -51 | H33: =F33/E33-1 -> -0.01707398728
B34: Всего | E34: =SUM(E30:E33) -> 68094 | F34: =SUM(F30:F33) -> 88825 | G34: =F34-E34 -> 20731 | H34: =F34/E34-1 -> 0.3044467941
B38: Изменение количества уникальных клиентов - ретроспективные данные
B42: Количество уникальных клиентов в Системе торгов (ежегодная статистика): | H42: Таблица 1
B43: Группы клиентов | E43: 2005-01-01 | F43: 2006-01-01 | G43: 2007-01-01 | H43: 2008-01-01
B44: Физические лица | E44: 63183 | F44: 95675 | G44: 198973 | H44: 417403
B45: Юридические лица | E45: 5002 | F45: 8601 | G45: 10665 | H45: 12703
B46: Нерезиденты | E46: 234 | F46: 630 | G46: 1140 | H46: 2078
B47: Клиенты, передавшие свои средства в ДУ | E47: 741 | F47: 1671 | G47: 2839 | H47: 4061
B48: Всего | E48: =SUM(E44:E47) -> 69160 | F48: =SUM(F44:F47) -> 106577 | G48: =SUM(G44:G47) -> 213617 | H48: =SUM(H44:H47) -> 436245
B76: Количество уникальных клиентов в Системе торгов (за последние 6 месяцев): | H76: Таблица 2
B77: Группы клиентов | C77: 2008-05-01 | D77: 2008-06-01 | E77: 2008-07-01 | F77: 2008-08-01 | G77: 2008-09-01 | H77: 2008-10-01
B78: Физические лица | C78: 452140 | D78: 463282 | E78: 472080 | F78: 479248 | G78: 486235 | H78: 506541
B79: Юридические лица | C79: 13259 | D79: 13375 | E79: 13533 | F79: 13672 | G79: 13812 | H79: 14055
B80: Нерезиденты | C80: 2304 | D80: 2359 | E80: 2413 | F80: 2497 | G80: 2558 | H80: 2705
B81: Клиенты, передавшие свои средства в ДУ | C81: 4217 | D81: 4270 | E81: 4280 | F81: 4312 | G81: 4340 | H81: 4399
B82: Всего | C82: =SUM(C78:C81) -> 471920 | D82: 483286 | E82: 492306 | F82: 499729 | G82: 506945 | H82: 527700
B118: Дополнительные показатели по клиентам
B121: на 01.10.2008 г. | H121: Таблица 1
B122: Категории Участников торгов/клиентов | F122: Абсолютные показатели | G122: Доля от общего количества | H122: Количество организаций, допущенных к торгам
B123: Количество Участников торгов, имеющих зарегистрированных клиентов | F123: 537 | G123: 0.9779816514 | H123: 545
B124: Количество стран мира, представленных клиентами-нерезидентами | F124: 86
B125: Количество Участников торгов, зарегистрировавших клиентов-нерезидентов | F125: 252 | G125: 0.4495412844 | H125: 545
B126: Количество клиентов, подписавших Декларацию о рисках с целью совершения сделок с ценными бумагами, включёнными в Котировальный список "И" | F126: 44539 (уникальных - 35554)
B127: Количество Участников торгов, зарегистрировавших клиентов, имеющих намерение совершать сделки с ценными бумагами, включёнными в Котировальный список "И" | F127: 307 | G127: 0.519266055 | H127: 545
B131: Списки ведущих операторов фондового рынка - клиенты Участников торгов (за сентябрь 2008 г.)
B134: Ведущие операторы рынка – число зарегистрированных уникальных клиентов | H134: Таблица 1
B135: Наименование Участника торгов | G135: Количество клиентов
B136: 1. ВТБ 24 (ЗАО) | G136: 139312
B137: 2. «ФИНАМ» (ЗАО) | G137: 45579
B138: 3. «Компания Брокеркредитсервис» (ООО) | G138: 41957
B139: 4. «АЛЬФА-БАHK» (ОАО) | G139: 24072
B140: 5. «АТОН» (ООО) | G140: 21173
B141: 6. ГК «АЛОР» | G141: 11957
B142: 7. «НЭТТРЭЙДЕР» (ООО) | G142: 9151
B143: 8. КИТ Финанс (ООО) | G143: 7291
B144: 9. ФК «ОТКРЫТИЕ» (ООО) | G144: 7048
B145: 10. «ЮТРЭЙД.РУ» (ОАО) | G145: 5203
B148: Ведущие операторы рынка – число активных клиентов | H148: Таблица 2
B149: Наименование Участника торгов | G149: Количество клиентов
B150: 1. «ФИНАМ» (ЗАО) | G150: 15171
B151: 2. «Компания Брокеркредитсервис» (ООО) | G151: 13245
B152: 3. ВТБ 24 (ЗАО) | G152: 6686
B153: 4. «АТОН» (ООО) | G153: 4916
B154: 5. «АЛЬФА-БАHK» (ОАО) | G154: 4144
B155: 6. ГК «АЛОР» | G155: 2721
B156: 7. «ЮТРЭЙД.РУ» (ОАО) | G156: 2620
B157: 8. «НЭТТРЭЙДЕР» (ООО) | G157: 2388
B158: 9. КИТ Финанс (ООО) | G158: 2371
B159: 10. ФК «ОТКРЫТИЕ» (ООО) | G159: 1878
B162: Ведущие операторы рынка – объем клиентских операций | H162: Таблица 3
B163: Наименование Участника торгов | G163: Торговый оборот, руб.
B164: 1. ИК «Тройка Диалог» (ЗАО) | G164: 745820424680
B165: 2. КИТ Финанс (ООО) | G165: 450596927707
B166: 3. «ФИНАМ» (ЗАО) | G166: 265091505863
B167: 4. «Компания Брокеркредитсервис» (ООО) | G167: 195072339704
B168: 5. «ИК «Ди Си Кэпитал» (ООО) | G168: 167549443823
B169: 6. ГК «АЛОР» | G169: 152305439975
B170: 7. «АТОН» (ООО) | G170: 111036256247
B171: 8. ФК «ОТКРЫТИЕ» (ООО) | G171: 89830063927
B172: 9. «ЮТРЭЙД.РУ» (ОАО) | G172: 85534468456
B173: 10. ВТБ 24 (ЗАО) | G173: 84204829514

Sheet Октябрь2008
B2: Клиенты Участников торгов Фондовой биржи ММВБ
B3: ОКТЯБРЬ '08
B6: Динамика количества клиентов за октябрь 2008 г.
B10: Количество зарегистрированных клиентов в Системе торгов: | H10: Таблица 1
B11: Группы клиентов | E11: 2008-10-01 | F11: 2008-11-01 | G11: Изменение (ед.) | H11: Изменение (%)
B12: Физические лица | E12: 597158 | F12: 628387 | G12: =F12-E12 -> 31229 | H12: =F12/E12-1 -> 0.05229604225
B13: Юридические лица | E13: 30566 | F13: 37076 | G13: =F13-E13 -> 6510 | H13: =F13/E13-1 -> 0.2129817444
B14: Нерезиденты | E14: 4604 | F14: 4777 | G14: =F14-E14 -> 173 | H14: =F14/E14-1 -> 0.03757602085
B15: Клиенты, передавшие свои средства в ДУ | E15: 12418 | F15: 12512 | G15: =F15-E15 -> 94 | H15: =F15/E15-1 -> 0.00756965695
B16: Всего | E16: =SUM(E12:E15) -> 644746 | F16: =SUM(F12:F15) -> 682752 | G16: =F16-E16 -> 38006 | H16: =F16/E16-1 -> 0.05894724434
B19: Количество уникальных клиентов в Системе торгов: | H19: Таблица 2
B20: Группы клиентов | E20: 2008-10-01 | F20: 2008-11-01 | G20: Изменение (ед.) | H20: Изменение (%)
B21: Физические лица | E21: 506541 | F21: 532372 | G21: =F21-E21 -> 25831 | H21: =F21/E21-1 -> 0.05099488492
B22: Юридические лица | E22: 14055 | F22: 14337 | G22: =F22-E22 -> 282 | H22: =F22/E22-1 -> 0.02006403415
B23: Нерезиденты | E23: 2705 | F23: 2850 | G23: =F23-E23 -> 145 | H23: =F23/E23-1 -> 0.05360443623
B24: Клиенты, передавшие свои средства в ДУ | E24: 4399 | F24: 4422 | G24: =F24-E24 -> 23 | H24: =F24/E24-1 -> 0.005228461014
B25: Всего | E25: =SUM(E21:E24) -> 527700 | F25: =SUM(F21:F24) -> 553981 | G25: =F25-E25 -> 26281 | H25: =F25/E25-1 -> 0.04980291832
B28: Количество активных клиентов в Системе торгов (совершивших в течение месяца хотя бы одну сделку): | H28: Таблица 3
B29: Группы клиентов | E29: за сентябрь 2008 г. | F29: за октябрь 2008 г. | G29: Изменение (ед.) | H29: Изменение (%)
B30: Физические лица | E30: 83075 | F30: 90674 | G30: =F30-E30 -> 7599 | H30: =F30/E30-1 -> 0.09147156184
B31: Юридические лица | E31: 2218 | F31: 2075 | G31: =F31-E31 -> -143 | H31: =F31/E31-1 -> -0.06447249775
B32: Нерезиденты | E32: 596 | F32: 610 | G32: =F32-E32 -> 14 | H32: =F32/E32-1 -> 0.02348993289
B33: Клиенты, передавшие свои средства в ДУ | E33: 2936 | F33: 2767 | G33: =F33-E33 -> -169 | H33: =F33/E33-1 -> -0.0575613079
B34: Всего | E34: =SUM(E30:E33) -> 88825 | F34: =SUM(F30:F33) -> 96126 | G34: =F34-E34 -> 7301 | H34: =F34/E34-1 -> 0.08219532789
B38: Изменение количества уникальных клиентов - ретроспективные данные
B42: Количество уникальных клиентов в Системе торгов (ежегодная статистика): | H42: Таблица 1
B43: Группы клиентов | E43: 2005-01-01 | F43: 2006-01-01 | G43: 2007-01-01 | H43: 2008-01-01
B44: Физические лица | E44: 63183 | F44: 95675 | G44: 198973 | H44: 417403
B45: Юридические лица | E45: 5002 | F45: 8601 | G45: 10665 | H45: 12703
B46: Нерезиденты | E46: 234 | F46: 630 | G46: 1140 | H46: 2078
B47: Клиенты, передавшие свои средства в ДУ | E47: 741 | F47: 1671 | G47: 2839 | H47: 4061
B48: Всего | E48: =SUM(E44:E47) -> 69160 | F48: =SUM(F44:F47) -> 106577 | G48: =SUM(G44:G47) -> 213617 | H48: =SUM(H44:H47) -> 436245
B76: Количество уникальных клиентов в Системе торгов (за последние 6 месяцев): | H76: Таблица 2
B77: Группы клиентов | C77: 2008-06-01 | D77: 2008-07-01 | E77: 2008-08-01 | F77: 2008-09-01 | G77: 2008-10-01 | H77: 2008-11-01
B78: Физические лица | C78: 463282 | D78: 472080 | E78: 479248 | F78: 486235 | G78: 506541 | H78: 532372
B79: Юридические лица | C79: 13375 | D79: 13533 | E79: 13672 | F79: 13812 | G79: 14055 | H79: 14337
B80: Нерезиденты | C80: 2359 | D80: 2413 | E80: 2497 | F80: 2558 | G80: 2705 | H80: 2850
B81: Клиенты, передавшие свои средства в ДУ | C81: 4270 | D81: 4280 | E81: 4312 | F81: 4340 | G81: 4399 | H81: 4422
B82: Всего | C82: =SUM(C78:C81) -> 483286 | D82: 492306 | E82: 499729 | F82: 506945 | G82: 527700 | H82: 553981
B118: Дополнительные показатели по клиентам
B121: на 01.11.2008 г. | H121: Таблица 1
B122: Категории Участников торгов/клиентов | F122: Абсолютные показатели | G122: Доля от общего количества | H122: Количество организаций, допущенных к торгам
B123: Количество Участников торгов, имеющих зарегистрированных клиентов | F123: 541 | G123: 0.9783001808 | H123: 553
B124: Количество стран мира, представленных клиентами-нерезидентами | F124: 87
B125: Количество Участников торгов, зарегистрировавших клиентов-нерезидентов | F125: 257 | G125: 0.4647377939 | H125: 553
B126: Количество клиентов, подписавших Декларацию о рисках с целью совершения сделок с ценными бумагами, включёнными в Котировальный список "И" | F126: 52776 (уникальных - 42435)
B127: Количество Участников торгов, зарегистрировавших клиентов, имеющих намерение совершать сделки с ценными бумагами, включёнными в Котировальный список "И" | F127: 320 | G127: 0.5786618445 | H127: 553
B131: Списки ведущих операторов фондового рынка - клиенты Участников торгов (за октябрь 2008 г.)
B134: Ведущие операторы рынка – число зарегистрированных уникальных клиентов | H134: Таблица 1
B135: Наименование Участника торгов | G135: Количество клиентов
B136: 1. ВТБ 24 (ЗАО) | G136: 141419
B137: 2. «ФИНАМ» (ЗАО) | G137: 49957
B138: 3. «Компания Брокеркредитсервис» (ООО) | G138: 44783
B139: 4. «АЛЬФА-БАHK» (ОАО) | G139: 25909
B140: 5. «АТОН» (ООО) | G140: 22259
B141: 6. ГК «АЛОР» | G141: 12510
B142: 7. «НЭТТРЭЙДЕР» (ООО) | G142: 9301
B143: 8. КИТ Финанс (ООО) | G143: 7739
B144: 9. ФК «ОТКРЫТИЕ» (ООО) | G144: 7422
B145: 10. «ЮТРЭЙД.РУ» (ОАО) | G145: 5188
B148: Ведущие операторы рынка – число активных клиентов | H148: Таблица 2
B149: Наименование Участника торгов | G149: Количество клиентов
B150: 1. «ФИНАМ» (ЗАО) | G150: 16788
B151: 2. «Компания Брокеркредитсервис» (ООО) | G151: 14176
B152: 3. ВТБ 24 (ЗАО) | G152: 7334
B153: 4. «АТОН» (ООО) | G153: 5243
B154: 5. «АЛЬФА-БАHK» (ОАО) | G154: 4537
B155: 6. ГК «АЛОР» | G155: 2898
B156: 7. КИТ Финанс (ООО) | G156: 2376
B157: 8. «НЭТТРЭЙДЕР» (ООО) | G157: 2317
B158: 9. «ЮТРЭЙД.РУ» (ОАО) | G158: 2277
B159: 10. ФК «ОТКРЫТИЕ» (ООО) | G159: 1949
B162: Ведущие операторы рынка – объем клиентских операций | H162: Таблица 3
B163: Наименование Участника торгов | G163: Торговый оборот, руб.
B164: 1. КИТ Финанс (ООО) | G164: 418971784924
B165: 2. ИК «Тройка Диалог» (ЗАО) | G165: 256997098355
B166: 3. «ФИНАМ» (ЗАО) | G166: 184032255650
B167: 4. «Компания Брокеркредитсервис» (ООО) | G167: 105155214445
B168: 5. ГК «АЛОР» | G168: 65361829838
B169: 6. ВТБ 24 (ЗАО) | G169: 54999502133
B170: 7. «АТОН» (ООО) | G170: 45455130816
B171: 8. ФК «УРАЛСИБ» | G171: 32450091895
B172: 9. «ИФК «РИГрупп-Финанс» (ЗАО) | G172: 29096593526
B173: 10. «АЛЬФА-БАHK» (ОАО) | G173: 28746088142

Sheet Ноябрь2008
B2: Клиенты Участников торгов Фондовой биржи ММВБ
B3: НОЯБРЬ '08
B6: Динамика количества клиентов за ноябрь 2008 г.
B10: Количество зарегистрированных клиентов в Системе торгов: | H10: Таблица 1
B11: Группы клиентов | E11: 2008-11-01 | F11: 2008-12-01 | G11: Изменение (ед.) | H11: Изменение (%)
B12: Физические лица | E12: 628387 | F12: 648383 | G12: =F12-E12 -> 19996 | H12: =F12/E12-1 -> 0.0318211548
B13: Юридические лица | E13: 37076 | F13: 37535 | G13: =F13-E13 -> 459 | H13: =F13/E13-1 -> 0.01237997626
B14: Нерезиденты | E14: 4777 | F14: 5095 | G14: =F14-E14 -> 318 | H14: =F14/E14-1 -> 0.06656897634
B15: Клиенты, передавшие свои средства в ДУ | E15: 12512 | F15: 12680 | G15: =F15-E15 -> 168 | H15: =F15/E15-1 -> 0.01342710997
B16: Всего | E16: =SUM(E12:E15) -> 682752 | F16: =SUM(F12:F15) -> 703693 | G16: =F16-E16 -> 20941 | H16: =F16/E16-1 -> 0.03067145904
B19: Количество уникальных клиентов в Системе торгов: | H19: Таблица 2
B20: Группы клиентов | E20: 2008-11-01 | F20: 2008-12-01 | G20: Изменение (ед.) | H20: Изменение (%)
B21: Физические лица | E21: 532372 | F21: 548450 | G21: =F21-E21 -> 16078 | H21: =F21/E21-1 -> 0.03020068674
B22: Юридические лица | E22: 14337 | F22: 14535 | G22: =F22-E22 -> 198 | H22: =F22/E22-1 -> 0.01381042059
B23: Нерезиденты | E23: 2850 | F23: 2980 | G23: =F23-E23 -> 130 | H23: =F23/E23-1 -> 0.04561403509
B24: Клиенты, передавшие свои средства в ДУ | E24: 4422 | F24: 4460 | G24: =F24-E24 -> 38 | H24: =F24/E24-1 -> 0.008593396653
B25: Всего | E25: =SUM(E21:E24) -> 553981 | F25: =SUM(F21:F24) -> 570425 | G25: =F25-E25 -> 16444 | H25: =F25/E25-1 -> 0.02968332849
B28: Количество активных клиентов в Системе торгов (совершивших в течение месяца хотя бы одну сделку): | H28: Таблица 3
B29: Группы клиентов | E29: за октябрь 2008 г. | F29: за ноябрь 2008 г. | G29: Изменение (ед.) | H29: Изменение (%)
B30: Физические лица | E30: 90674 | F30: 83909 | G30: =F30-E30 -> -6765 | H30: =F30/E30-1 -> -0.07460793612
B31: Юридические лица | E31: 2075 | F31: 1840 | G31: =F31-E31 -> -235 | H31: =F31/E31-1 -> -0.113253012
B32: Нерезиденты | E32: 610 | F32: 563 | G32: =F32-E32 -> -47 | H32: =F32/E32-1 -> -0.07704918033
B33: Клиенты, передавшие свои средства в ДУ | E33: 2767 | F33: 2529 | G33: =F33-E33 -> -238 | H33: =F33/E33-1 -> -0.08601373329
B34: Всего | E34: =SUM(E30:E33) -> 96126 | F34: =SUM(F30:F33) -> 88841 | G34: =F34-E34 -> -7285 | H34: =F34/E34-1 -> -0.07578594761
B38: Изменение количества уникальных клиентов - ретроспективные данные
B42: Количество уникальных клиентов в Системе торгов (ежегодная статистика): | H42: Таблица 1
B43: Группы клиентов | E43: 2005-01-01 | F43: 2006-01-01 | G43: 2007-01-01 | H43: 2008-01-01
B44: Физические лица | E44: 63183 | F44: 95675 | G44: 198973 | H44: 417403
B45: Юридические лица | E45: 5002 | F45: 8601 | G45: 10665 | H45: 12703
B46: Нерезиденты | E46: 234 | F46: 630 | G46: 1140 | H46: 2078
B47: Клиенты, передавшие свои средства в ДУ | E47: 741 | F47: 1671 | G47: 2839 | H47: 4061
B48: Всего | E48: =SUM(E44:E47) -> 69160 | F48: =SUM(F44:F47) -> 106577 | G48: =SUM(G44:G47) -> 213617 | H48: =SUM(H44:H47) -> 436245
B76: Количество уникальных клиентов в Системе торгов (за последние 6 месяцев): | H76: Таблица 2
B77: Группы клиентов | C77: 2008-07-01 | D77: 2008-08-01 | E77: 2008-09-01 | F77: 2008-10-01 | G77: 2008-11-01 | H77: 2008-12-01
B78: Физические лица | C78: 472080 | D78: 479248 | E78: 486235 | F78: 506541 | G78: 532372 | H78: 548450
B79: Юридические лица | C79: 13533 | D79: 13672 | E79: 13812 | F79: 14055 | G79: 14337 | H79: 14535
B80: Нерезиденты | C80: 2413 | D80: 2497 | E80: 2558 | F80: 2705 | G80: 2850 | H80: 2980
B81: Клиенты, передавшие свои средства в ДУ | C81: 4280 | D81: 4312 | E81: 4340 | F81: 4399 | G81: 4422 | H81: 4460
B82: Всего | C82: =SUM(C78:C81) -> 492306 | D82: 499729 | E82: 506945 | F82: 527700 | G82: 553981 | H82: 570425
B118: Дополнительные показатели по клиентам
B121: на 01.12.2008 г. | H121: Таблица 1
B122: Категории Участников торгов/клиентов | F122: Абсолютные показатели | G122: Доля от общего количества | H122: Количество организаций, допущенных к торгам
B123: Количество Участников торгов, имеющих зарегистрированных клиентов | F123: 549 | G123: 0.9945652174 | H123: 552
B124: Количество стран мира, представленных клиентами-нерезидентами | F124: 89
B125: Количество Участников торгов, зарегистрировавших клиентов-нерезидентов | F125: 262 | G125: 0.4746376812 | H125: 552
B126: Количество клиентов, подписавших Декларацию о рисках с целью совершения сделок с ценными бумагами, включёнными в Котировальный список "И" | F126: 58456 (уникальных - 47107)
B127: Количество Участников торгов, зарегистрировавших клиентов, имеющих намерение совершать сделки с ценными бумагами, включёнными в Котировальный список "И" | F127: 330 | G127: 0.597826087 | H127: 552
B131: Списки ведущих операторов фондового рынка - клиенты Участников торгов (за ноябрь 2008 г.)
B134: Ведущие операторы рынка – число зарегистрированных уникальных клиентов | H134: Таблица 1
B135: Наименование Участника торгов | G135: Количество клиентов
B136: 1. ВТБ 24 (ЗАО) | G136: 142851
B137: 2. «ФИНАМ» (ЗАО) | G137: 53199
B138: 3. «Компания Брокеркредитсервис» (ООО) | G138: 46563
B139: 4. «АЛЬФА-БАHK» (ОАО) | G139: 27461
B140: 5. «АТОН» (ООО) | G140: 23115
B141: 6. ГК «АЛОР» | G141: 12882
B142: 7. «НЭТТРЭЙДЕР» (ООО) | G142: 9416
B143: 8. КИТ Финанс (ООО) | G143: 8181
B144: 9. ФК «ОТКРЫТИЕ» (ООО) | G144: 7898
B145: 10. ИК «Церих Кэпитал Менеджмент» (ОАО) | G145: 5394
B148: Ведущие операторы рынка – число активных клиентов | H148: Таблица 2
B149: Наименование Участника торгов | G149: Количество клиентов
B150: 1. «ФИНАМ» (ЗАО) | G150: 16032
B151: 2. «Компания Брокеркредитсервис» (ООО) | G151: 13444
B152: 3. ВТБ 24 (ЗАО) | G152: 6859
B153: 4. «АТОН» (ООО) | G153: 4814
B154: 5. «АЛЬФА-БАHK» (ОАО) | G154: 4154
B155: 6. ГК «АЛОР» | G155: 2560
B156: 7. КИТ Финанс (ООО) | G156: 2199
B157: 8. «НЭТТРЭЙДЕР» (ООО) | G157: 1914
B158: 9. ФК «ОТКРЫТИЕ» (ООО) | G158: 1751
B159: 10. ИК «Церих Кэпитал Менеджмент» (ОАО) | G159: 1144
B162: Ведущие операторы рынка – объем клиентских операций | H162: Таблица 3
B163: Наименование Участника торгов | G163: Торговый оборот, руб.
B164: 1. КИТ Финанс (ООО) | G164: 375087167627
B165: 2. «ФИНАМ» (ЗАО) | G165: 190783651691
B166: 3. ИК «Тройка Диалог» (ЗАО) | G166: 167550127306
B167: 4. «Компания Брокеркредитсервис» (ООО) | G167: 112318499803
B168: 5. ВТБ 24 (ЗАО) | G168: 69308431609
B169: 6. ГК «АЛОР» | G169: 68268728453
B170: 7. «АТОН» (ООО) | G170: 47101153532
B171: 8. ИК «Церих Кэпитал Менеджмент» (ОАО) | G171: 35015225290
B172: 9. ФК «УРАЛСИБ» | G172: 26806033694
B173: 10. «ИФК «РИГрупп-Финанс» (ЗАО) | G173: 25797850101

Sheet Декабрь2008
B2: Клиенты Участников торгов Фондовой биржи ММВБ
B3: ДЕКАБРЬ '08
B6: Динамика количества клиентов за декабрь 2008 г.
B10: Количество зарегистрированных клиентов в Системе торгов: | H10: Таблица 1
B11: Группы клиентов | E11: 2008-12-01 | F11: 2009-01-01 | G11: Изменение (ед.) | H11: Изменение (%)
B12: Физические лица | E12: 648383 | F12: 662355 | G12: =F12-E12 -> 13972 | H12: =F12/E12-1 -> 0.02154899188
B13: Юридические лица | E13: 37535 | F13: 32057 | G13: =F13-E13 -> -5478 | H13: =F13/E13-1 -> -0.1459437858
B14: Нерезиденты | E14: 5095 | F14: 5258 | G14: =F14-E14 -> 163 | H14: =F14/E14-1 -> 0.03199214917
B15: Клиенты, передавшие свои средства в ДУ | E15: 12680 | F15: 13128 | G15: =F15-E15 -> 448 | H15: =F15/E15-1 -> 0.03533123028
B16: Всего | E16: =SUM(E12:E15) -> 703693 | F16: =SUM(F12:F15) -> 712798 | G16: =F16-E16 -> 9105 | H16: =F16/E16-1 -> 0.01293888102
B19: Количество уникальных клиентов в Системе торгов: | H19: Таблица 2
B20: Группы клиентов | E20: 2008-12-01 | F20: 2009-01-01 | G20: Изменение (ед.) | H20: Изменение (%)
B21: Физические лица | E21: 548450 | F21: 559320 | G21: =F21-E21 -> 10870 | H21: =F21/E21-1 -> 0.01981949129
B22: Юридические лица | E22: 14535 | F22: 14748 | G22: =F22-E22 -> 213 | H22: =F22/E22-1 -> 0.01465428277
B23: Нерезиденты | E23: 2980 | F23: 3097 | G23: =F23-E23 -> 117 | H23: =F23/E23-1 -> 0.03926174497
B24: Клиенты, передавшие свои средства в ДУ | E24: 4460 | F24: 4512 | G24: =F24-E24 -> 52 | H24: =F24/E24-1 -> 0.01165919283
B25: Всего | E25: =SUM(E21:E24) -> 570425 | F25: =SUM(F21:F24) -> 581677 | G25: =F25-E25 -> 11252 | H25: =F25/E25-1 -> 0.01972564316
B28: Количество активных клиентов в Системе торгов (совершивших в течение месяца хотя бы одну сделку): | H28: Таблица 3
B29: Группы клиентов | E29: за ноябрь 2008 г. | F29: за декабрь 2008 г. | G29: Изменение (ед.) | H29: Изменение (%)
B30: Физические лица | E30: 83909 | F30: 82577 | G30: =F30-E30 -> -1332 | H30: =F30/E30-1 -> -0.01587434006
B31: Юридические лица | E31: 1840 | F31: 2016 | G31: =F31-E31 -> 176 | H31: =F31/E31-1 -> 0.09565217391
B32: Нерезиденты | E32: 563 | F32: 577 | G32: =F32-E32 -> 14 | H32: =F32/E32-1 -> 0.02486678508
B33: Клиенты, передавшие свои средства в ДУ | E33: 2529 | F33: 2678 | G33: =F33-E33 -> 149 | H33: =F33/E33-1 -> 0.05891656781
B34: Всего | E34: =SUM(E30:E33) -> 88841 | F34: =SUM(F30:F33) -> 87848 | G34: =F34-E34 -> -993 | H34: =F34/E34-1 -> -0.01117727176
B38: Изменение количества уникальных клиентов - ретроспективные данные
B42: Количество уникальных клиентов в Системе торгов (ежегодная статистика): | H42: Таблица 1
B43: Группы клиентов | E43: 2005-01-01 | F43: 2006-01-01 | G43: 2007-01-01 | H43: 2008-01-01
B44: Физические лица | E44: 63183 | F44: 95675 | G44: 198973 | H44: 417403
B45: Юридические лица | E45: 5002 | F45: 8601 | G45: 10665 | H45: 12703
B46: Нерезиденты | E46: 234 | F46: 630 | G46: 1140 | H46: 2078
B47: Клиенты, передавшие свои средства в ДУ | E47: 741 | F47: 1671 | G47: 2839 | H47: 4061
B48: Всего | E48: =SUM(E44:E47) -> 69160 | F48: =SUM(F44:F47) -> 106577 | G48: =SUM(G44:G47) -> 213617 | H48: =SUM(H44:H47) -> 436245
B76: Количество уникальных клиентов в Системе торгов (за последние 6 месяцев): | H76: Таблица 2
B77: Группы клиентов | C77: 2008-08-01 | D77: 2008-09-01 | E77: 2008-10-01 | F77: 2008-11-01 | G77: 2008-12-01 | H77: 2009-01-01
B78: Физические лица | C78: 479248 | D78: 486235 | E78: 506541 | F78: 532372 | G78: 548450 | H78: 559320
B79: Юридические лица | C79: 13672 | D79: 13812 | E79: 14055 | F79: 14337 | G79: 14535 | H79: 14748
B80: Нерезиденты | C80: 2497 | D80: 2558 | E80: 2705 | F80: 2850 | G80: 2980 | H80: 3097
B81: Клиенты, передавшие свои средства в ДУ | C81: 4312 | D81: 4340 | E81: 4399 | F81: 4422 | G81: 4460 | H81: 4512
B82: Всего | C82: =SUM(C78:C81) -> 499729 | D82: 506945 | E82: 527700 | F82: 553981 | G82: 570425 | H82: 581677
B118: Дополнительные показатели по клиентам
B121: на 01.01.2009 г. | H121: Таблица 1
B122: Категории Участников торгов/клиентов | F122: Абсолютные показатели | G122: Доля от общего количества | H122: Количество организаций, допущенных к торгам
B123: Количество Участников торгов, имеющих зарегистрированных клиентов | F123: 552 | G123: 1.005464481 | H123: 549
B124: Количество стран мира, представленных клиентами-нерезидентами | F124: 89
B125: Количество Участников торгов, зарегистрировавших клиентов-нерезидентов | F125: 272 | G125: 0.4954462659 | H125: 549
B126: Количество клиентов, подписавших Декларацию о рисках с целью совершения сделок с ценными бумагами, включёнными в Котировальный список "И" | F126: 64037 (уникальных - 51099)
B127: Количество Участников торгов, зарегистрировавших клиентов, имеющих намерение совершать сделки с ценными бумагами, включёнными в Котировальный список "И" | F127: 341 | G127: 0.621129326 | H127: 549
B131: Списки ведущих операторов фондового рынка - клиенты Участников торгов (за декабрь 2008 г.)
B134: Ведущие операторы рынка – число зарегистрированных уникальных клиентов | H134: Таблица 1
B135: Наименование Участника торгов | G135: Количество клиентов
B136: 1. ВТБ 24 (ЗАО) | G136: 143813
B137: 2. «ФИНАМ» (ЗАО) | G137: 55637
B138: 3. «Компания Брокеркредитсервис» (ООО) | G138: 47797
B139: 4. «АЛЬФА-БАHK» (ОАО) | G139: 28254
B140: 5. «АТОН» (ООО) | G140: 23946
B141: 6. ГК «АЛОР» | G141: 13208
B142: 7. «НЭТТРЭЙДЕР» (ООО) | G142: 9494
B143: 8. КИТ Финанс (ООО) | G143: 8531
B144: 9. ФК «ОТКРЫТИЕ» (ООО) | G144: 8469
B145: 10. «ЮТРЭЙД.РУ» (ОАО) | G145: 5630
B148: Ведущие операторы рынка – число активных клиентов | H148: Таблица 2
B149: Наименование Участника торгов | G149: Количество клиентов
B150: 1. «ФИНАМ» (ЗАО) | G150: 16272
B151: 2. «Компания Брокеркредитсервис» (ООО) | G151: 13416
B152: 3. ВТБ 24 (ЗАО) | G152: 7230
B153: 4. «АТОН» (ООО) | G153: 4923
B154: 5. «АЛЬФА-БАHK» (ОАО) | G154: 4147
B155: 6. ГК «АЛОР» | G155: 2467
B156: 7. КИТ Финанс (ООО) | G156: 2293
B157: 8. «НЭТТРЭЙДЕР» (ООО) | G157: 1877
B158: 9. ФК «ОТКРЫТИЕ» (ООО) | G158: 1781
B159: 10. ИК «Церих Кэпитал Менеджмент» (ОАО) | G159: 1137
B162: Ведущие операторы рынка – объем клиентских операций | H162: Таблица 3
B163: Наименование Участника торгов | G163: Торговый оборот, руб.
B164: 1. КИТ Финанс (ООО) | G164: 4.786986995e+11
B165: 2. ИК «Тройка Диалог» (ЗАО) | G165: 2.464015575e+11
B166: 3. «ФИНАМ» (ЗАО) | G166: 2.283973519e+11
B167: 4. «Компания Брокеркредитсервис» (ООО) | G167: 1.601093802e+11
B168: 5. ГК «АЛОР» | G168: 8.786006012e+10
B169: 6. ВТБ 24 (ЗАО) | G169: 6.573564992e+10
B170: 7. «АТОН» (ООО) | G170: 5.561185487e+10
B171: 8. ИК «Церих Кэпитал Менеджмент» (ОАО) | G171: 3.409630536e+10
B172: 9. «ИФК «РИГрупп-Финанс» (ЗАО) | G172: 2.963947059e+10
B173: 10. «АЛЬФА-БАHK» (ОАО) | G173: 2.640382297e+10

Sheet Январь2009
B2: Клиенты Участников торгов Фондовой биржи ММВБ
B3: ЯНВАРЬ '09
B6: Динамика количества клиентов за январь 2009 г.
B10: Количество зарегистрированных клиентов в Системе торгов: | H10: Таблица 1
B11: Группы клиентов | E11: 2009-01-01 | F11: 2009-02-01 | G11: Изменение (ед.) | H11: Изменение (%)
B12: Физические лица | E12: 662355 | F12: 673300 | G12: =F12-E12 -> 10945 | H12: =F12/E12-1 -> 0.01652437137
B13: Юридические лица | E13: 32057 | F13: 32293 | G13: =F13-E13 -> 236 | H13: =F13/E13-1 -> 0.007361886639
B14: Нерезиденты | E14: 5258 | F14: 5321 | G14: =F14-E14 -> 63 | H14: =F14/E14-1 -> 0.01198174211
B15: Клиенты, передавшие свои средства в ДУ | E15: 13128 | F15: 13220 | G15: =F15-E15 -> 92 | H15: =F15/E15-1 -> 0.007007921999
B16: Всего | E16: =SUM(E12:E15) -> 712798 | F16: 724134 | G16: =F16-E16 -> 11336 | H16: =F16/E16-1 -> 0.01590352386
B19: Количество уникальных клиентов в Системе торгов: | H19: Таблица 2
B20: Группы клиентов | E20: 2009-01-01 | F20: 2009-02-01 | G20: Изменение (ед.) | H20: Изменение (%)
B21: Физические лица | E21: 559320 | F21: 568138 | G21: =F21-E21 -> 8818 | H21: =F21/E21-1 -> 0.01576557248
B22: Юридические лица | E22: 14748 | F22: 14886 | G22: =F22-E22 -> 138 | H22: =F22/E22-1 -> 0.009357200976
B23: Нерезиденты | E23: 3097 | F23: 3136 | G23: =F23-E23 -> 39 | H23: =F23/E23-1 -> 0.01259283177
B24: Клиенты, передавшие свои средства в ДУ | E24: 4512 | F24: 4545 | G24: =F24-E24 -> 33 | H24: =F24/E24-1 -> 0.007313829787
B25: Всего | E25: =SUM(E21:E24) -> 581677 | F25: =SUM(F21:F24) -> 590705 | G25: =F25-E25 -> 9028 | H25: =F25/E25-1 -> 0.01552064118
B28: Количество активных клиентов в Системе торгов (совершивших в течение месяца хотя бы одну сделку): | H28: Таблица 3
B29: Группы клиентов | E29: за декабрь 2008 г. | F29: за январь 2009 г. | G29: Изменение (ед.) | H29: Изменение (%)
B30: Физические лица | E30: 82577 | F30: 78564 | G30: =F30-E30 -> -4013 | H30: =F30/E30-1 -> -0.04859706698
B31: Юридические лица | E31: 2016 | F31: 1584 | G31: =F31-E31 -> -432 | H31: =F31/E31-1 -> -0.2142857143
B32: Нерезиденты | E32: 577 | F32: 504 | G32: =F32-E32 -> -73 | H32: =F32/E32-1 -> -0.1265164645
B33: Клиенты, передавшие свои средства в ДУ | E33: 2678 | F33: 2267 | G33: =F33-E33 -> -411 | H33: =F33/E33-1 -> -0.1534727409
B34: Всего | E34: =SUM(E30:E33) -> 87848 | F34: =SUM(F30:F33) -> 82919 | G34: =F34-E34 -> -4929 | H34: =F34/E34-1 -> -0.05610827793
B38: Изменение количества уникальных клиентов - ретроспективные данные
B42: Количество уникальных клиентов в Системе торгов (ежегодная статистика): | H42: Таблица 1
B43: Группы клиентов | E43: 2006-01-01 | F43: 2007-01-01 | G43: 2008-01-01 | H43: 2009-01-01
B44: Физические лица | E44: 95675 | F44: 198973 | G44: 417403 | H44: 559320
B45: Юридические лица | E45: 8601 | F45: 10665 | G45: 12703 | H45: 14748
B46: Нерезиденты | E46: 630 | F46: 1140 | G46: 2078 | H46: 3097
B47: Клиенты, передавшие свои средства в ДУ | E47: 1671 | F47: 2839 | G47: 4061 | H47: 4512
B48: Всего | E48: =SUM(E44:E47) -> 106577 | F48: =SUM(F44:F47) -> 213617 | G48: =SUM(G44:G47) -> 436245 | H48: =SUM(H44:H47) -> 581677
B76: Количество уникальных клиентов в Системе торгов (за последние 6 месяцев): | H76: Таблица 2
B77: Группы клиентов | C77: 2008-09-01 | D77: 2008-10-01 | E77: 2008-11-01 | F77: 2008-12-01 | G77: 2009-01-01 | H77: 2009-02-01
B78: Физические лица | C78: 486235 | D78: 506541 | E78: 532372 | F78: 548450 | G78: 559320 | H78: 568138
B79: Юридические лица | C79: 13812 | D79: 14055 | E79: 14337 | F79: 14535 | G79: 14748 | H79: 14886
B80: Нерезиденты | C80: 2558 | D80: 2705 | E80: 2850 | F80: 2980 | G80: 3097 | H80: 3136
B81: Клиенты, передавшие свои средства в ДУ | C81: 4340 | D81: 4399 | E81: 4422 | F81: 4460 | G81: 4512 | H81: 4545
B82: Всего | C82: =SUM(C78:C81) -> 506945 | D82: 527700 | E82: 553981 | F82: 570425 | G82: 581677 | H82: 590705
B118: Дополнительные показатели по клиентам
B121: на 01.02.2009 г. | H121: Таблица 1
B122: Категории Участников торгов/клиентов | F122: Абсолютные показатели | G122: Доля от общего количества | H122: Количество организаций, допущенных к торгам
B123: Количество Участников торгов, имеющих зарегистрированных клиентов | F123: 553 | G123: 1.025974026 | H123: 539
B124: Количество стран мира, представленных клиентами-нерезидентами | F124: 89
B125: Количество Участников торгов, зарегистрировавших клиентов-нерезидентов | F125: 274 | G125: 0.5083487941 | H125: 539
B126: Количество клиентов, подписавших Декларацию о рисках с целью совершения сделок с ценными бумагами, включёнными в Котировальный список "И" | F126: 67494 (уникальных - 53600)
B127: Количество Участников торгов, зарегистрировавших клиентов, имеющих намерение совершать сделки с ценными бумагами, включёнными в Котировальный список "И" | F127: 343 | G127: 0.6363636364 | H127: 539
B131: Списки ведущих операторов фондового рынка - клиенты Участников торгов (за январь 2009 г.)
B134: Ведущие операторы рынка – число зарегистрированных уникальных клиентов | H134: Таблица 1
B135: Наименование Участника торгов | G135: Количество клиентов
B136: 1. ВТБ 24 (ЗАО) | G136: 144523
B137: 2. «ФИНАМ» (ЗАО) | G137: 57451
B138: 3. «Компания Брокеркредитсервис» (ООО) | G138: 48683
B139: 4. «АЛЬФА-БАHK» (ОАО) | G139: 28895
B140: 5. «АТОН» (ООО) | G140: 24390
B141: 6. ГК «АЛОР» | G141: 13402
B142: 7. «НЭТТРЭЙДЕР» (ООО) | G142: 9535
B143: 8. КИТ Финанс (ООО) | G143: 8785
B144: 9. ФК «ОТКРЫТИЕ» (ООО) | G144: 8761
B145: 10. ИК «Церих Кэпитал Менеджмент» (ОАО) | G145: 5721
B148: Ведущие операторы рынка – число активных клиентов | H148: Таблица 2
B149: Наименование Участника торгов | G149: Количество клиентов
B150: 1. «ФИНАМ» (ЗАО) | G150: 16492
B151: 2. «Компания Брокеркредитсервис» (ООО) | G151: 12683
B152: 3. ВТБ 24 (ЗАО) | G152: 6772
B153: 4. «АТОН» (ООО) | G153: 5024
B154: 5. «АЛЬФА-БАHK» (ОАО) | G154: 4109
B155: 6. ГК «АЛОР» | G155: 2379
B156: 7. КИТ Финанс (ООО) | G156: 2089
B157: 8. ФК «ОТКРЫТИЕ» (ООО) | G157: 1669
B158: 9. «НЭТТРЭЙДЕР» (ООО) | G158: 1657
B159: 10. ИК «Церих Кэпитал Менеджмент» (ОАО) | G159: 1031
B162: Ведущие операторы рынка – объем клиентских операций | H162: Таблица 3
B163: Наименование Участника торгов | G163: Торговый оборот, руб.
B164: 1. КИТ Финанс (ООО) | G164: 231750973437
B165: 2. «ФИНАМ» (ЗАО) | G165: 153440064341
B166: 3. ИК «Тройка Диалог» (ЗАО) | G166: 119553516618
B167: 4. «Компания Брокеркредитсервис» (ООО) | G167: 112995708963
B168: 5. ГК «АЛОР» | G168: 70503332994
B169: 6. ВТБ 24 (ЗАО) | G169: 44557691281
B170: 7. «АТОН» (ООО) | G170: 35222141966
B171: 8. ИК «Церих Кэпитал Менеджмент» (ОАО) | G171: 26765469861
B172: 9. «ИК «ВЕЛЕС Капитал» (ООО) | G172: 23561164711
B173: 10. ФК «ОТКРЫТИЕ» (ООО) | G173: 17263794179

Sheet Февраль2009
B2: Клиенты Участников торгов Фондовой биржи ММВБ
B3: ФЕВРАЛЬ '09
B6: Динамика количества клиентов за февраль 2009 г.
B10: Количество зарегистрированных клиентов в Системе торгов: | H10: Таблица 1
B11: Группы клиентов | E11: 2009-02-01 | F11: 2009-03-01 | G11: Изменение (ед.) | H11: Изменение (%)
B12: Физические лица | E12: 673300 | F12: 689043 | G12: =F12-E12 -> 15743 | H12: =F12/E12-1 -> 0.02338185059
B13: Юридические лица | E13: 32293 | F13: 32629 | G13: =F13-E13 -> 336 | H13: =F13/E13-1 -> 0.01040473168
B14: Нерезиденты | E14: 5321 | F14: 5448 | G14: =F14-E14 -> 127 | H14: =F14/E14-1 -> 0.02386769404
B15: Клиенты, передавшие свои средства в ДУ | E15: 13220 | F15: 13326 | G15: =F15-E15 -> 106 | H15: =F15/E15-1 -> 0.008018154312
B16: Всего | E16: 724134 | F16: 740446 | G16: =F16-E16 -> 16312 | H16: =F16/E16-1 -> 0.02252621752
B19: Количество уникальных клиентов в Системе торгов: | H19: Таблица 2
B20: Группы клиентов | E20: 2009-02-01 | F20: 2009-03-01 | G20: Изменение (ед.) | H20: Изменение (%)
B21: Физические лица | E21: 568138 | F21: 580932 | G21: =F21-E21 -> 12794 | H21: =F21/E21-1 -> 0.02251917668
B22: Юридические лица | E22: 14886 | F22: 15040 | G22: =F22-E22 -> 154 | H22: =F22/E22-1 -> 0.01034529088
B23: Нерезиденты | E23: 3136 | F23: 3190 | G23: =F23-E23 -> 54 | H23: =F23/E23-1 -> 0.01721938776
B24: Клиенты, передавшие свои средства в ДУ | E24: 4545 | F24: 4567 | G24: =F24-E24 -> 22 | H24: =F24/E24-1 -> 0.004840484048
B25: Всего | E25: =SUM(E21:E24) -> 590705 | F25: =SUM(F21:F24) -> 603729 | G25: =F25-E25 -> 13024 | H25: =F25/E25-1 -> 0.0220482305
B28: Количество активных клиентов в Системе торгов (совершивших в течение месяца хотя бы одну сделку): | H28: Таблица 3
B29: Группы клиентов | E29: за январь 2009 г. | F29: за февраль 2009 г. | G29: Изменение (ед.) | H29: Изменение (%)
B30: Физические лица | E30: 78564 | F30: 89423 | G30: =F30-E30 -> 10859 | H30: =F30/E30-1 -> 0.1382185225
B31: Юридические лица | E31: 1584 | F31: 1794 | G31: =F31-E31 -> 210 | H31: =F31/E31-1 -> 0.1325757576
B32: Нерезиденты | E32: 504 | F32: 546 | G32: =F32-E32 -> 42 | H32: =F32/E32-1 -> 0.08333333333
B33: Клиенты, передавшие свои средства в ДУ | E33: 2267 | F33: 2501 | G33: =F33-E33 -> 234 | H33: =F33/E33-1 -> 0.1032201147
B34: Всего | E34: =SUM(E30:E33) -> 82919 | F34: =SUM(F30:F33) -> 94264 | G34: =F34-E34 -> 11345 | H34: =F34/E34-1 -> 0.1368202704
B38: Изменение количества уникальных клиентов - ретроспективные данные
B42: Количество уникальных клиентов в Системе торгов (ежегодная статистика): | H42: Таблица 1
B43: Группы клиентов | E43: 2006-01-01 | F43: 2007-01-01 | G43: 2008-01-01 | H43: 2009-01-01
B44: Физические лица | E44: 95675 | F44: 198973 | G44: 417403 | H44: 559320
B45: Юридические лица | E45: 8601 | F45: 10665 | G45: 12703 | H45: 14748
B46: Нерезиденты | E46: 630 | F46: 1140 | G46: 2078 | H46: 3097
B47: Клиенты, передавшие свои средства в ДУ | E47: 1671 | F47: 2839 | G47: 4061 | H47: 4512
B48: Всего | E48: =SUM(E44:E47) -> 106577 | F48: =SUM(F44:F47) -> 213617 | G48: =SUM(G44:G47) -> 436245 | H48: =SUM(H44:H47) -> 581677
B76: Количество уникальных клиентов в Системе торгов (за последние 6 месяцев): | H76: Таблица 2
B77: Группы клиентов | C77: 2008-10-01 | D77: 2008-11-01 | E77: 2008-12-01 | F77: 2009-01-01 | G77: 2009-02-01 | H77: 2009-03-01
B78: Физические лица | C78: 506541 | D78: 532372 | E78: 548450 | F78: 559320 | G78: 568138 | H78: 580932
B79: Юридические лица | C79: 14055 | D79: 14337 | E79: 14535 | F79: 14748 | G79: 14886 | H79: 15040
B80: Нерезиденты | C80: 2705 | D80: 2850 | E80: 2980 | F80: 3097 | G80: 3136 | H80: 3190
B81: Клиенты, передавшие свои средства в ДУ | C81: 4399 | D81: 4422 | E81: 4460 | F81: 4512 | G81: 4545 | H81: 4567
B82: Всего | C82: =SUM(C78:C81) -> 527700 | D82: 553981 | E82: 570425 | F82: 581677 | G82: 590705 | H82: 603729
B118: Дополнительные показатели по клиентам
B121: на 01.03.2009 г. | H121: Таблица 1
B122: Категории Участников торгов/клиентов | F122: Абсолютные показатели | G122: Доля от общего количества | H122: Количество организаций, допущенных к торгам
B123: Количество Участников торгов, имеющих зарегистрированных клиентов | F123: 554 | G123: 1.022140221 | H123: 542
B124: Количество стран мира, представленных клиентами-нерезидентами | F124: 89
B125: Количество Участников торгов, зарегистрировавших клиентов-нерезидентов | F125: 276 | G125: 0.5092250923 | H125: 542
B126: Количество клиентов, подписавших Декларацию о рисках с целью совершения сделок с ценными бумагами, включёнными в Котировальный список "И" | F126: 72050 (уникальных - 57154)
B127: Количество Участников торгов, зарегистрировавших клиентов, имеющих намерение совершать сделки с ценными бумагами, включёнными в Котировальный список "И" | F127: 346 | G127: 0.6363636364 | H127: 542
B131: Списки ведущих операторов фондового рынка - клиенты Участников торгов (за февраль 2009 г.)
B134: Ведущие операторы рынка – число зарегистрированных уникальных клиентов | H134: Таблица 1
B135: Наименование Участника торгов | G135: Количество клиентов
B136: 1. ВТБ 24 (ЗАО) | G136: 145539
B137: 2. «ФИНАМ» (ЗАО) | G137: 59855
B138: 3. «Компания Брокеркредитсервис» (ООО) | G138: 50014
B139: 4. «АЛЬФА-БАHK» (ОАО) | G139: 29886
B140: 5. «АТОН» (ООО) | G140: 24994
B141: 6. ГК «АЛОР» | G141: 13621
B142: 7. «НЭТТРЭЙДЕР» (ООО) | G142: 9599
B143: 8. КИТ Финанс (ООО) | G143: 9136
B144: 9. ФК «ОТКРЫТИЕ» (ООО) | G144: 9124
B145: 10. ИК «Церих Кэпитал Менеджмент» (ОАО) | G145: 5836
B148: Ведущие операторы рынка – число активных клиентов | H148: Таблица 2
B149: Наименование Участника торгов | G149: Количество клиентов
B150: 1. «ФИНАМ» (ЗАО) | G150: 18050
B151: 2. «Компания Брокеркредитсервис» (ООО) | G151: 14022
B152: 3. ВТБ 24 (ЗАО) | G152: 7426
B153: 4. «АТОН» (ООО) | G153: 5638
B154: 5. «АЛЬФА-БАHK» (ОАО) | G154: 4672
B155: 6. ГК «АЛОР» | G155: 2607
B156: 7. КИТ Финанс (ООО) | G156: 2362
B157: 8. ФК «ОТКРЫТИЕ» (ООО) | G157: 1837
B158: 9. «НЭТТРЭЙДЕР» (ООО) | G158: 1825
B159: 10. ИК «Церих Кэпитал Менеджмент» (ОАО) | G159: 1207
B162: Ведущие операторы рынка – объем клиентских операций | H162: Таблица 3
B163: Наименование Участника торгов | G163: Торговый оборот, руб.
B164: 1. КИТ Финанс (ООО) | G164: 280614349300
B165: 2. «ФИНАМ» (ЗАО) | G165: 234354908550
B166: 3. ИК «Тройка Диалог» (ЗАО) | G166: 220233400578
B167: 4. «Компания Брокеркредитсервис» (ООО) | G167: 178691934859
B168: 5. ГК «АЛОР» | G168: 140049200938
B169: 6. ВТБ 24 (ЗАО) | G169: 74498396682
B170: 7. «АТОН» (ООО) | G170: 54955949283
B171: 8. ИК «Церих Кэпитал Менеджмент» (ОАО) | G171: 47368686212
B172: 9. «ИК ВЕЛЕС Капитал (ООО) | G172: 45770377013
B173: 10. «АЛЬФА-БАHK» (ОАО) | G173: 30310748172

Sheet Март2009
B2: Клиенты Участников торгов Фондовой биржи ММВБ
B3: МАРТ '09
B6: Динамика количества клиентов за март 2009 г.
B10: Количество зарегистрированных клиентов в Системе торгов: | H10: Таблица 1
B11: Группы клиентов | E11: 2009-03-01 | F11: 2009-04-01 | G11: Изменение (ед.) | H11: Изменение (%)
B12: Физические лица | E12: 689043 | F12: 706147 | G12: =F12-E12 -> 17104 | H12: =F12/E12-1 -> 0.02482283399
B13: Юридические лица | E13: 32629 | F13: 33064 | G13: =F13-E13 -> 435 | H13: =F13/E13-1 -> 0.0133316988
B14: Нерезиденты | E14: 5448 | F14: 5557 | G14: =F14-E14 -> 109 | H14: =F14/E14-1 -> 0.02000734214
B15: Клиенты, передавшие свои средства в ДУ | E15: 13326 | F15: 13389 | G15: =F15-E15 -> 63 | H15: =F15/E15-1 -> 0.00472760018
B16: Всего | E16: 740446 | F16: 758157 | G16: =F16-E16 -> 17711 | H16: =F16/E16-1 -> 0.02391936752
B19: Количество уникальных клиентов в Системе торгов: | H19: Таблица 2
B20: Группы клиентов | E20: 2009-03-01 | F20: 2009-04-01 | G20: Изменение (ед.) | H20: Изменение (%)
B21: Физические лица | E21: 580932 | F21: 592595 | G21: =F21-E21 -> 11663 | H21: =F21/E21-1 -> 0.02007636006
B22: Юридические лица | E22: 15040 | F22: 15240 | G22: =F22-E22 -> 200 | H22: =F22/E22-1 -> 0.01329787234
B23: Нерезиденты | E23: 3190 | F23: 3278 | G23: =F23-E23 -> 88 | H23: =F23/E23-1 -> 0.0275862069
B24: Клиенты, передавшие свои средства в ДУ | E24: 4567 | F24: 4578 | G24: =F24-E24 -> 11 | H24: =F24/E24-1 -> 0.002408583315
B25: Всего | E25: =SUM(E21:E24) -> 603729 | F25: =SUM(F21:F24) -> 615691 | G25: =F25-E25 -> 11962 | H25: =F25/E25-1 -> 0.01981352561
B28: Количество активных клиентов в Системе торгов (совершивших в течение месяца хотя бы одну сделку): | H28: Таблица 3
B29: Группы клиентов | E29: за февраль 2009 г. | F29: за март 2009 г. | G29: Изменение (ед.) | H29: Изменение (%)
B30: Физические лица | E30: 89423 | F30: 100062 | G30: =F30-E30 -> 10639 | H30: =F30/E30-1 -> 0.1189738658
B31: Юридические лица | E31: 1794 | F31: 1953 | G31: =F31-E31 -> 159 | H31: =F31/E31-1 -> 0.08862876254
B32: Нерезиденты | E32: 546 | F32: 607 | G32: =F32-E32 -> 61 | H32: =F32/E32-1 -> 0.1117216117
B33: Клиенты, передавшие свои средства в ДУ | E33: 2501 | F33: 2652 | G33: =F33-E33 -> 151 | H33: =F33/E33-1 -> 0.06037584966
B34: Всего | E34: =SUM(E30:E33) -> 94264 | F34: =SUM(F30:F33) -> 105274 | G34: =F34-E34 -> 11010 | H34: =F34/E34-1 -> 0.1167996266
B38: Изменение количества уникальных клиентов - ретроспективные данные
B42: Количество уникальных клиентов в Системе торгов (ежегодная статистика): | H42: Таблица 1
B43: Группы клиентов | E43: 2006-01-01 | F43: 2007-01-01 | G43: 2008-01-01 | H43: 2009-01-01
B44: Физические лица | E44: 95675 | F44: 198973 | G44: 417403 | H44: 559320
B45: Юридические лица | E45: 8601 | F45: 10665 | G45: 12703 | H45: 14748
B46: Нерезиденты | E46: 630 | F46: 1140 | G46: 2078 | H46: 3097
B47: Клиенты, передавшие свои средства в ДУ | E47: 1671 | F47: 2839 | G47: 4061 | H47: 4512
B48: Всего | E48: =SUM(E44:E47) -> 106577 | F48: =SUM(F44:F47) -> 213617 | G48: =SUM(G44:G47) -> 436245 | H48: =SUM(H44:H47) -> 581677
B76: Количество уникальных клиентов в Системе торгов (за последние 6 месяцев): | H76: Таблица 2
B77: Группы клиентов | C77: 2008-11-01 | D77: 2008-12-01 | E77: 2009-01-01 | F77: 2009-02-01 | G77: 2009-03-01 | H77: 2009-04-01
B78: Физические лица | C78: 532372 | D78: 548450 | E78: 559320 | F78: 568138 | G78: 580932 | H78: 592595
B79: Юридические лица | C79: 14337 | D79: 14535 | E79: 14748 | F79: 14886 | G79: 15040 | H79: 15240
B80: Нерезиденты | C80: 2850 | D80: 2980 | E80: 3097 | F80: 3136 | G80: 3190 | H80: 3278
B81: Клиенты, передавшие свои средства в ДУ | C81: 4422 | D81: 4460 | E81: 4512 | F81: 4545 | G81: 4567 | H81: 4578
B82: Всего | C82: =SUM(C78:C81) -> 553981 | D82: 570425 | E82: 581677 | F82: 590705 | G82: 603729 | H82: 615691
B118: Дополнительные показатели по клиентам
B121: на 01.04.2009 г. | H121: Таблица 1
B122: Категории Участников торгов/клиентов | F122: Абсолютные показатели | G122: Доля от общего количества | H122: Количество организаций, допущенных к торгам
B123: Количество Участников торгов, имеющих зарегистрированных клиентов | F123: 561 | G123: 1.02 | H123: 550
B124: Количество стран мира, представленных клиентами-нерезидентами | F124: 93
B125: Количество Участников торгов, зарегистрировавших клиентов-нерезидентов | F125: 280 | G125: 0.5090909091 | H125: 550
B126: Количество клиентов, подписавших Декларацию о рисках с целью совершения сделок с ценными бумагами, включёнными в Котировальный список "И" | F126: 79161 (уникальных - 62750)
B127: Количество Участников торгов, зарегистрировавших клиентов, имеющих намерение совершать сделки с ценными бумагами, включёнными в Котировальный список "И" | F127: 357 | G127: 0.6490909091 | H127: 550
B131: Списки ведущих операторов фондового рынка - клиенты Участников торгов (за март 2009 г.)
B134: Ведущие операторы рынка – число зарегистрированных уникальных клиентов | H134: Таблица 1
B135: Наименование Участника торгов | G135: Количество клиентов
B136: 1. ВТБ 24 (ЗАО) | G136: 146756
B137: 2. «ФИНАМ» (ЗАО) | G137: 61982
B138: 3. «Компания Брокеркредитсервис» (ООО) | G138: 51487
B139: 4. «АЛЬФА-БАHK» (ОАО) | G139: 30932
B140: 5. «АТОН» (ООО) | G140: 25802
B141: 6. ГК «АЛОР» | G141: 13801
B142: 7. «НЭТТРЭЙДЕР» (ООО) | G142: 9656
B143: 8. ФК «ОТКРЫТИЕ» (ООО) | G143: 9624
B144: 9. КИТ Финанс (ООО) | G144: 9538
B145: 10. ИК «Церих Кэпитал Менеджмент» (ОАО) | G145: 5968
B148: Ведущие операторы рынка – число активных клиентов | H148: Таблица 2
B149: Наименование Участника торгов | G149: Количество клиентов
B150: 1. «ФИНАМ» (ЗАО) | G150: 19742
B151: 2. «Компания Брокеркредитсервис» (ООО) | G151: 15619
B152: 3. ВТБ 24 (ЗАО) | G152: 8668
B153: 4. «АТОН» (ООО) | G153: 6372
B154: 5. «АЛЬФА-БАHK» (ОАО) | G154: 5227
B155: 6. ГК «АЛОР» | G155: 2903
B156: 7. КИТ Финанс (ООО) | G156: 2731
B157: 8. ФК «ОТКРЫТИЕ» (ООО) | G157: 2162
B158: 9. «НЭТТРЭЙДЕР» (ООО) | G158: 2087
B159: 10. ИК «Церих Кэпитал Менеджмент» (ОАО) | G159: 1275
B162: Ведущие операторы рынка – объем клиентских операций | H162: Таблица 3
B163: Наименование Участника торгов | G163: Торговый оборот, руб.
B164: 1. КИТ Финанс (ООО) | G164: 385701653810
B165: 3. «ФИНАМ» (ЗАО) | G165: 335061328021
B166: 2. ИК «Тройка Диалог» (ЗАО) | G166: 296292255754
B167: 4. «Компания Брокеркредитсервис» (ООО) | G167: 276613991530
B168: 5. ГК «АЛОР» | G168: 162046363870
B169: 6. ВТБ 24 (ЗАО) | G169: 146035748498
B170: 7. ИК «Церих Кэпитал Менеджмент» (ОАО) | G170: 93691062886
B171: 8. «АТОН» (ООО) | G171: 78789361754
B172: 9. ФК «ОТКРЫТИЕ» (ООО) | G172: 61840666199
B173: 10. «АЛЬФА-БАHK» (ОАО) | G173: 54456406273

Sheet Апрель2009
B2: Клиенты Участников торгов Фондовой биржи ММВБ
B3: АПРЕЛЬ '09
B6: Динамика количества клиентов за апрель 2009 г.
B10: Количество зарегистрированных клиентов в Системе торгов: | H10: Таблица 1
B11: Группы клиентов | E11: 2009-04-01 | F11: 2009-05-01 | G11: Изменение (ед.) | H11: Изменение (%)
B12: Физические лица | E12: 706147 | F12: 721451 | G12: =F12-E12 -> 15304 | H12: =F12/E12-1 -> 0.02167254127
B13: Юридические лица | E13: 33064 | F13: 33420 | G13: =F13-E13 -> 356 | H13: =F13/E13-1 -> 0.01076699734
B14: Нерезиденты | E14: 5557 | F14: 5641 | G14: =F14-E14 -> 84 | H14: =F14/E14-1 -> 0.01511606982
B15: Клиенты, передавшие свои средства в ДУ | E15: 13389 | F15: 13531 | G15: =F15-E15 -> 142 | H15: =F15/E15-1 -> 0.01060572111
B16: Всего | E16: 758157 | F16: =SUM(F12:F15) -> 774043 | G16: =F16-E16 -> 15886 | H16: =F16/E16-1 -> 0.02095344368
B19: Количество уникальных клиентов в Системе торгов: | H19: Таблица 2
B20: Группы клиентов | E20: 2009-04-01 | F20: 2009-05-01 | G20: Изменение (ед.) | H20: Изменение (%)
B21: Физические лица | E21: 592595 | F21: 603405 | G21: =F21-E21 -> 10810 | H21: =F21/E21-1 -> 0.01824180089
B22: Юридические лица | E22: 15240 | F22: 15425 | G22: =F22-E22 -> 185 | H22: =F22/E22-1 -> 0.01213910761
B23: Нерезиденты | E23: 3278 | F23: 3351 | G23: =F23-E23 -> 73 | H23: =F23/E23-1 -> 0.02226967663
B24: Клиенты, передавшие свои средства в ДУ | E24: 4578 | F24: 4605 | G24: =F24-E24 -> 27 | H24: =F24/E24-1 -> 0.005897771953
B25: Всего | E25: =SUM(E21:E24) -> 615691 | F25: =SUM(F21:F24) -> 626786 | G25: =F25-E25 -> 11095 | H25: =F25/E25-1 -> 0.01802040309
B28: Количество активных клиентов в Системе торгов (совершивших в течение месяца хотя бы одну сделку): | H28: Таблица 3
B29: Группы клиентов | E29: за март 2009 г. | F29: за апрель 2009 г. | G29: Изменение (ед.) | H29: Изменение (%)
B30: Физические лица | E30: 100062 | F30: 101670 | G30: =F30-E30 -> 1608 | H30: =F30/E30-1 -> 0.01607003658
B31: Юридические лица | E31: 1953 | F31: 1949 | G31: =F31-E31 -> -4 | H31: =F31/E31-1 -> -0.00204813108
B32: Нерезиденты | E32: 607 | F32: 634 | G32: =F32-E32 -> 27 | H32: =F32/E32-1 -> 0.04448105437
B33: Клиенты, передавшие свои средства в ДУ | E33: 2652 | F33: 2616 | G33: =F33-E33 -> -36 | H33: =F33/E33-1 -> -0.01357466063
B34: Всего | E34: =SUM(E30:E33) -> 105274 | F34: =SUM(F30:F33) -> 106869 | G34: =F34-E34 -> 1595 | H34: =F34/E34-1 -> 0.01515093945
B38: Изменение количества уникальных клиентов - ретроспективные данные
B42: Количество уникальных клиентов в Системе торгов (ежегодная статистика): | H42: Таблица 1
B43: Группы клиентов | E43: 2006-01-01 | F43: 2007-01-01 | G43: 2008-01-01 | H43: 2009-01-01
B44: Физические лица | E44: 95675 | F44: 198973 | G44: 417403 | H44: 559320
B45: Юридические лица | E45: 8601 | F45: 10665 | G45: 12703 | H45: 14748
B46: Нерезиденты | E46: 630 | F46: 1140 | G46: 2078 | H46: 3097
B47: Клиенты, передавшие свои средства в ДУ | E47: 1671 | F47: 2839 | G47: 4061 | H47: 4512
B48: Всего | E48: =SUM(E44:E47) -> 106577 | F48: =SUM(F44:F47) -> 213617 | G48: =SUM(G44:G47) -> 436245 | H48: =SUM(H44:H47) -> 581677
B76: Количество уникальных клиентов в Системе торгов (за последние 6 месяцев): | H76: Таблица 2
B77: Группы клиентов | C77: 2008-12-01 | D77: 2009-01-01 | E77: 2009-02-01 | F77: 2009-03-01 | G77: 2009-04-01 | H77: 2009-05-01
B78: Физические лица | C78: 548450 | D78: 559320 | E78: 568138 | F78: 580932 | G78: 592595 | H78: 603405
B79: Юридические лица | C79: 14535 | D79: 14748 | E79: 14886 | F79: 15040 | G79: 15240 | H79: 15425
B80: Нерезиденты | C80: 2980 | D80: 3097 | E80: 3136 | F80: 3190 | G80: 3278 | H80: 3351
B81: Клиенты, передавшие свои средства в ДУ | C81: 4460 | D81: 4512 | E81: 4545 | F81: 4567 | G81: 4578 | H81: 4605
B82: Всего | C82: =SUM(C78:C81) -> 570425 | D82: 581677 | E82: 590705 | F82: 603729 | G82: 615691 | H82: 626786
B118: Дополнительные показатели по клиентам
B121: на 01.05.2009 г. | H121: Таблица 1
B122: Категории Участников торгов/клиентов | F122: Абсолютные показатели | G122: Доля от общего количества | H122: Количество организаций, допущенных к торгам
B123: Количество Участников торгов, имеющих зарегистрированных клиентов | F123: 565 | G123: =F123/H123 -> 1.018018018 | H123: 555
B124: Количество стран мира, представленных клиентами-нерезидентами | F124: 93
B125: Количество Участников торгов, зарегистрировавших клиентов-нерезидентов | F125: 285 | G125: =F125/H125 -> 0.5135135135 | H125: 555
B126: Количество клиентов, подписавших Декларацию о рисках с целью совершения сделок с ценными бумагами, включёнными в Котировальный список "И" | F126: 83770 (уникальных - 66365)
B127: Количество Участников торгов, зарегистрировавших клиентов, имеющих намерение совершать сделки с ценными бумагами, включёнными в Котировальный список "И" | F127: 367 | G127: =F127/H127 -> 0.6612612613 | H127: 555
B131: Списки ведущих операторов фондового рынка - клиенты Участников торгов (за апрель 2009 г.)
B134: Ведущие операторы рынка – число зарегистрированных уникальных клиентов | H134: Таблица 1
B135: Наименование Участника торгов | G135: Количество клиентов
B136: 1. ВТБ 24 (ЗАО) | G136: 147769
B137: 2. «ФИНАМ» (ЗАО) | G137: 63981
B138: 3. «Компания Брокеркредитсервис» (ООО) | G138: 52904
B139: 4. «АЛЬФА-БАHK» (ОАО) | G139: 31844
B140: 5. «АТОН» (ООО) | G140: 26584
B141: 6. ГК «АЛОР» | G141: 13956
B142: 7. ФК «ОТКРЫТИЕ» (ООО) | G142: 10065
B143: 8. КИТ Финанс (ООО) | G143: 9944
B144: 9. «НЭТТРЭЙДЕР» (ООО) | G144: 9708
B145: 10. ИК «Церих Кэпитал Менеджмент» (ОАО) | G145: 6054
B148: Ведущие операторы рынка – число активных клиентов | H148: Таблица 2
B149: Наименование Участника торгов | G149: Количество клиентов
B150: 1. «ФИНАМ» (ЗАО) | G150: 19551
B151: 2. «Компания Брокеркредитсервис» (ООО) | G151: 15958
B152: 3. ВТБ 24 (ЗАО) | G152: 8978
B153: 4. «АТОН» (ООО) | G153: 6743
B154: 5. «АЛЬФА-БАHK» (ОАО) | G154: 5460
B155: 6. КИТ Финанс (ООО) | G155: 2891
B156: 7. ГК «АЛОР» | G156: 2879
B157: 8. ФК «ОТКРЫТИЕ» (ООО) | G157: 2282
B158: 9. «НЭТТРЭЙДЕР» (ООО) | G158: 2076
B159: 10. ИК «Церих Кэпитал Менеджмент» (ОАО) | G159: 1257
B162: Ведущие операторы рынка – объем клиентских операций | H162: Таблица 3
B163: Наименование Участника торгов | G163: Торговый оборот, руб.
B164: 1. «Компания Брокеркредитсервис» (ООО) | G164: 365982247031
B165: 2. КИТ Финанс (ООО) | G165: 362787076002
B166: 3. «ФИНАМ» (ЗАО) | G166: 325723626858
B167: 4. ИК «Тройка Диалог» (ЗАО) | G167: 313191471835
B168: 5. ГК «АЛОР» | G168: 165552413138
B169: 6. ВТБ 24 (ЗАО) | G169: 163038652028
B170: 7. ИК «Церих Кэпитал Менеджмент» (ОАО) | G170: 100658311746
B171: 8. «АТОН» (ООО) | G171: 97741182001
B172: 9. ФК «ОТКРЫТИЕ» (ООО) | G172: 80478143680
B173: 10. «АЛЬФА-БАHK» (ОАО) | G173: 60586629813

Sheet Май2009
B2: Клиенты Участников торгов Фондовой биржи ММВБ
B3: МАЙ '09
B6: Динамика количества клиентов за май 2009 г.
B10: Количество зарегистрированных клиентов в Системе торгов: | H10: Таблица 1
B11: Группы клиентов | E11: 2009-05-01 | F11: 2009-06-01 | G11: Изменение (ед.) | H11: Изменение (%)
B12: Физические лица | E12: 721451 | F12: 734305 | G12: =F12-E12 -> 12854 | H12: =F12/E12-1 -> 0.01781687183
B13: Юридические лица | E13: 33420 | F13: 33584 | G13: =F13-E13 -> 164 | H13: =F13/E13-1 -> 0.004907241173
B14: Нерезиденты | E14: 5641 | F14: 5889 | G14: =F14-E14 -> 248 | H14: =F14/E14-1 -> 0.0439638362
B15: Клиенты, передавшие свои средства в ДУ | E15: 13531 | F15: 13671 | G15: =F15-E15 -> 140 | H15: =F15/E15-1 -> 0.01034661148
B16: Всего | E16: =SUM(E12:E15) -> 774043 | F16: =SUM(F12:F15) -> 787449 | G16: =F16-E16 -> 13406 | H16: =F16/E16-1 -> 0.01731945124
B19: Количество уникальных клиентов в Системе торгов: | H19: Таблица 2
B20: Группы клиентов | E20: 2009-05-01 | F20: 2009-06-01 | G20: Изменение (ед.) | H20: Изменение (%)
B21: Физические лица | E21: 603405 | F21: 613499 | G21: =F21-E21 -> 10094 | H21: =F21/E21-1 -> 0.01672839967
B22: Юридические лица | E22: 15425 | F22: 15567 | G22: =F22-E22 -> 142 | H22: =F22/E22-1 -> 0.009205834684
B23: Нерезиденты | E23: 3351 | F23: 3409 | G23: =F23-E23 -> 58 | H23: =F23/E23-1 -> 0.01730826619
B24: Клиенты, передавшие свои средства в ДУ | E24: 4605 | F24: 4634 | G24: =F24-E24 -> 29 | H24: =F24/E24-1 -> 0.006297502714
B25: Всего | E25: =SUM(E21:E24) -> 626786 | F25: =SUM(F21:F24) -> 637109 | G25: =F25-E25 -> 10323 | H25: =F25/E25-1 -> 0.01646973608
B28: Количество активных клиентов в Системе торгов (совершивших в течение месяца хотя бы одну сделку): | H28: Таблица 3
B29: Группы клиентов | E29: за апрель 2009 г. | F29: за май 2009 г. | G29: Изменение (ед.) | H29: Изменение (%)
B30: Физические лица | E30: 101670 | F30: 107394 | G30: =F30-E30 -> 5724 | H30: =F30/E30-1 -> 0.05629979345
B31: Юридические лица | E31: 1949 | F31: 1912 | G31: =F31-E31 -> -37 | H31: =F31/E31-1 -> -0.01898409441
B32: Нерезиденты | E32: 634 | F32: 626 | G32: =F32-E32 -> -8 | H32: =F32/E32-1 -> -0.01261829653
B33: Клиенты, передавшие свои средства в ДУ | E33: 2616 | F33: 2591 | G33: =F33-E33 -> -25 | H33: =F33/E33-1 -> -0.009556574924
B34: Всего | E34: =SUM(E30:E33) -> 106869 | F34: =SUM(F30:F33) -> 112523 | G34: =F34-E34 -> 5654 | H34: =F34/E34-1 -> 0.05290589413
B38: Изменение количества уникальных клиентов - ретроспективные данные
B42: Количество уникальных клиентов в Системе торгов (ежегодная статистика): | H42: Таблица 1
B43: Группы клиентов | E43: 2006-01-01 | F43: 2007-01-01 | G43: 2008-01-01 | H43: 2009-01-01
B44: Физические лица | E44: 95675 | F44: 198973 | G44: 417403 | H44: 559320
B45: Юридические лица | E45: 8601 | F45: 10665 | G45: 12703 | H45: 14748
B46: Нерезиденты | E46: 630 | F46: 1140 | G46: 2078 | H46: 3097
B47: Клиенты, передавшие свои средства в ДУ | E47: 1671 | F47: 2839 | G47: 4061 | H47: 4512
B48: Всего | E48: =SUM(E44:E47) -> 106577 | F48: =SUM(F44:F47) -> 213617 | G48: =SUM(G44:G47) -> 436245 | H48: =SUM(H44:H47) -> 581677
B76: Количество уникальных клиентов в Системе торгов (за последние 6 месяцев): | H76: Таблица 2
B77: Группы клиентов | C77: 2009-01-01 | D77: 2009-02-01 | E77: 2009-03-01 | F77: 2009-04-01 | G77: 2009-05-01 | H77: 2009-06-01
B78: Физические лица | C78: 559320 | D78: 568138 | E78: 580932 | F78: 592595 | G78: 603405 | H78: 613499
B79: Юридические лица | C79: 14748 | D79: 14886 | E79: 15040 | F79: 15240 | G79: 15425 | H79: 15567
B80: Нерезиденты | C80: 3097 | D80: 3136 | E80: 3190 | F80: 3278 | G80: 3351 | H80: 3409
B81: Клиенты, передавшие свои средства в ДУ | C81: 4512 | D81: 4545 | E81: 4567 | F81: 4578 | G81: 4605 | H81: 4634
B82: Всего | C82: =SUM(C78:C81) -> 581677 | D82: 590705 | E82: 603729 | F82: 615691 | G82: 626786 | H82: 637109
B118: Дополнительные показатели по клиентам
B121: на 01.06.2009 г. | H121: Таблица 1
B122: Категории Участников торгов/клиентов | F122: Абсолютные показатели | G122: Доля от общего количества | H122: Количество организаций, допущенных к торгам
B123: Количество Участников торгов, имеющих зарегистрированных клиентов | F123: 575 | G123: =F123/H123 -> 1.021314387 | H123: 563
B124: Количество стран мира, представленных клиентами-нерезидентами | F124: 93
B125: Количество Участников торгов, зарегистрировавших клиентов-нерезидентов | F125: 287 | G125: =F125/H125 -> 0.5097690941 | H125: 563
B126: Количество клиентов, подписавших Декларацию о рисках с целью совершения сделок с ценными бумагами, включёнными в Котировальный список "И" | F126: 87851 (уникальных - 69501)
B127: Количество Участников торгов, зарегистрировавших клиентов, имеющих намерение совершать сделки с ценными бумагами, включёнными в Котировальный список "И" | F127: 377 | G127: =F127/H127 -> 0.6696269982 | H127: 563
B131: Списки ведущих операторов фондового рынка - клиенты Участников торгов (за май 2009 г.)
B134: Ведущие операторы рынка – число зарегистрированных уникальных клиентов | H134: Таблица 1
B135: Наименование Участника торгов | G135: Количество клиентов
B136: 1. ВТБ 24 (ЗАО) | G136: 148620
B137: 2. «ФИНАМ» (ЗАО) | G137: 65880
B138: 3. «Компания Брокеркредитсервис» (ООО) | G138: 54025
B139: 4. «АЛЬФА-БАHK» (ОАО) | G139: 32664
B140: 5. «АТОН» (ООО) | G140: 27224
B141: 6. ГК «АЛОР» | G141: 14101
B142: 7. ФК «ОТКРЫТИЕ» (ООО) | G142: 10434
B143: 8. КИТ Финанс (ООО) | G143: 10271
B144: 9. «НЭТТРЭЙДЕР» (ООО) | G144: 9751
B145: 10. ИК «Церих Кэпитал Менеджмент» (ОАО) | G145: 6174
B148: Ведущие операторы рынка – число активных клиентов | H148: Таблица 2
B149: Наименование Участника торгов | G149: Количество клиентов
B150: 1. «ФИНАМ» (ЗАО) | G150: 20324
B151: 2. «Компания Брокеркредитсервис» (ООО) | G151: 16580
B152: 3. ВТБ 24 (ЗАО) | G152: 9552
B153: 4. «АТОН» (ООО) | G153: 7180
B154: 5. «АЛЬФА-БАHK» (ОАО) | G154: 5827
B155: 6. КИТ Финанс (ООО) | G155: 3024
B156: 7. ГК «АЛОР» | G156: 2960
B157: 8. ФК «ОТКРЫТИЕ» (ООО) | G157: 2401
B158: 9. «НЭТТРЭЙДЕР» (ООО) | G158: 2177
B159: 10. ИК «Церих Кэпитал Менеджмент» (ОАО) | G159: 1331
B162: Ведущие операторы рынка – объем клиентских операций | H162: Таблица 3
B163: Наименование Участника торгов | G163: Торговый оборот, руб.
B164: 1. «ФИНАМ» (ЗАО) | G164: 455814569700
B165: 2. КИТ Финанс (ООО) | G165: 451437793782
B166: 3. ИК «Тройка Диалог» (ЗАО) | G166: 403790464316
B167: 4. «Компания Брокеркредитсервис» (ООО) | G167: 402293915769
B168: 5. ВТБ 24 (ЗАО) | G168: 210537300018
B169: 6. ГК «АЛОР» | G169: 201595771129
B170: 7. ИК «Церих Кэпитал Менеджмент» (ОАО) | G170: 108782405665
B171: 8. «АТОН» (ООО) | G171: 104564052179
B172: 9. ФК «ОТКРЫТИЕ» (ООО) | G172: 91290457316
B173: 10. «АЛЬФА-БАHK» (ОАО) | G173: 63387786175

Sheet Июнь2009
B2: Клиенты Участников торгов Фондовой биржи ММВБ
B3: ИЮНЬ '09
B6: Динамика количества клиентов за июнь 2009 г.
B10: Количество зарегистрированных клиентов в Системе торгов: | H10: Таблица 1
B11: Группы клиентов | E11: 2009-06-01 | F11: 2009-07-01 | G11: Изменение (ед.) | H11: Изменение (%)
B12: Физические лица | E12: 734305 | F12: 747597 | G12: =F12-E12 -> 13292 | H12: =F12/E12-1 -> 0.0181014701
B13: Юридические лица | E13: 33584 | F13: 33901 | G13: =F13-E13 -> 317 | H13: =F13/E13-1 -> 0.00943901858
B14: Нерезиденты | E14: 5889 | F14: 6006 | G14: =F14-E14 -> 117 | H14: =F14/E14-1 -> 0.01986754967
B15: Клиенты, передавшие свои средства в ДУ | E15: 13671 | F15: 13306 | G15: =F15-E15 -> -365 | H15: =F15/E15-1 -> -0.02669885158
B16: Всего | E16: =SUM(E12:E15) -> 787449 | F16: =SUM(F12:F15) -> 800810 | G16: =F16-E16 -> 13361 | H16: =F16/E16-1 -> 0.01696744805
B19: Количество уникальных клиентов в Системе торгов: | H19: Таблица 2
B20: Группы клиентов | E20: 2009-06-01 | F20: 2009-07-01 | G20: Изменение (ед.) | H20: Изменение (%)
B21: Физические лица | E21: 613499 | F21: 622352 | G21: =F21-E21 -> 8853 | H21: =F21/E21-1 -> 0.01443034137
B22: Юридические лица | E22: 15567 | F22: 15601 | G22: =F22-E22 -> 34 | H22: =F22/E22-1 -> 0.002184107407
B23: Нерезиденты | E23: 3409 | F23: 3476 | G23: =F23-E23 -> 67 | H23: =F23/E23-1 -> 0.01965385744
B24: Клиенты, передавшие свои средства в ДУ | E24: 4634 | F24: 4654 | G24: =F24-E24 -> 20 | H24: =F24/E24-1 -> 0.004315925766
B25: Всего | E25: =SUM(E21:E24) -> 637109 | F25: =SUM(F21:F24) -> 646083 | G25: =F25-E25 -> 8974 | H25: =F25/E25-1 -> 0.01408550185
B28: Количество активных клиентов в Системе торгов (совершивших в течение месяца хотя бы одну сделку): | H28: Таблица 3
B29: Группы клиентов | E29: за май 2009 г. | F29: за июнь 2009 г. | G29: Изменение (ед.) | H29: Изменение (%)
B30: Физические лица | E30: 107394 | F30: 111641 | G30: =F30-E30 -> 4247 | H30: =F30/E30-1 -> 0.03954597091
B31: Юридические лица | E31: 1912 | F31: 2090 | G31: =F31-E31 -> 178 | H31: =F31/E31-1 -> 0.09309623431
B32: Нерезиденты | E32: 626 | F32: 687 | G32: =F32-E32 -> 61 | H32: =F32/E32-1 -> 0.09744408946
B33: Клиенты, передавшие свои средства в ДУ | E33: 2591 | F33: 2532 | G33: =F33-E33 -> -59 | H33: =F33/E33-1 -> -0.02277113084
B34: Всего | E34: =SUM(E30:E33) -> 112523 | F34: =SUM(F30:F33) -> 116950 | G34: =F34-E34 -> 4427 | H34: =F34/E34-1 -> 0.03934306764
B38: Изменение количества уникальных клиентов - ретроспективные данные
B42: Количество уникальных клиентов в Системе торгов (ежегодная статистика): | H42: Таблица 1
B43: Группы клиентов | E43: 2006-01-01 | F43: 2007-01-01 | G43: 2008-01-01 | H43: 2009-01-01
B44: Физические лица | E44: 95675 | F44: 198973 | G44: 417403 | H44: 559320
B45: Юридические лица | E45: 8601 | F45: 10665 | G45: 12703 | H45: 14748
B46: Нерезиденты | E46: 630 | F46: 1140 | G46: 2078 | H46: 3097
B47: Клиенты, передавшие свои средства в ДУ | E47: 1671 | F47: 2839 | G47: 4061 | H47: 4512
B48: Всего | E48: =SUM(E44:E47) -> 106577 | F48: =SUM(F44:F47) -> 213617 | G48: =SUM(G44:G47) -> 436245 | H48: =SUM(H44:H47) -> 581677
B76: Количество уникальных клиентов в Системе торгов (за последние 6 месяцев): | H76: Таблица 2
B77: Группы клиентов | C77: 2009-02-01 | D77: 2009-03-01 | E77: 2009-04-01 | F77: 2009-05-01 | G77: 2009-06-01 | H77: 2009-07-01
B78: Физические лица | C78: 568138 | D78: 580932 | E78: 592595 | F78: 603405 | G78: 613499 | H78: 622352
B79: Юридические лица | C79: 14886 | D79: 15040 | E79: 15240 | F79: 15425 | G79: 15567 | H79: 15601
B80: Нерезиденты | C80: 3136 | D80: 3190 | E80: 3278 | F80: 3351 | G80: 3409 | H80: 3476
B81: Клиенты, передавшие свои средства в ДУ | C81: 4545 | D81: 4567 | E81: 4578 | F81: 4605 | G81: 4634 | H81: 4654
B82: Всего | C82: =SUM(C78:C81) -> 590705 | D82: =SUM(D78:D81) -> 603729 | E82: =SUM(E78:E81) -> 615691 | F82: =SUM(F78:F81) -> 626786 | G82: =SUM(G78:G81) -> 637109 | H82: 646083
B118: Дополнительные показатели по клиентам
B121: на 01.07.2009 г. | H121: Таблица 1
B122: Категории Участников торгов/клиентов | F122: Абсолютные показатели | G122: Доля от общего количества | H122: Количество организаций, допущенных к торгам
B123: Количество Участников торгов, имеющих зарегистрированных клиентов | F123: 583 | G123: =F123/H123 -> 1.046678636 | H123: 557
B124: Количество стран мира, представленных клиентами-нерезидентами | F124: 93
B125: Количество Участников торгов, зарегистрировавших клиентов-нерезидентов | F125: 292 | G125: =F125/H125 -> 0.5242369838 | H125: 557
B126: Количество клиентов, подписавших Декларацию о рисках с целью совершения сделок с ценными бумагами, включёнными в Котировальный список "И" | F126: 92200 (уникальных - 72926)
B127: Количество Участников торгов, зарегистрировавших клиентов, имеющих намерение совершать сделки с ценными бумагами, включёнными в Котировальный список "И" | F127: 385 | G127: =F127/H127 -> 0.6912028725 | H127: 557
B131: Списки ведущих операторов фондового рынка - клиенты Участников торгов (за июнь 2009 г.)
B134: Ведущие операторы рынка – число зарегистрированных уникальных клиентов | H134: Таблица 1
B135: Наименование Участника торгов | G135: Количество клиентов
B136: 1. ВТБ 24 (ЗАО) | G136: 149381
B137: 2. «ФИНАМ» (ЗАО) | G137: 67904
B138: 3. «Компания Брокеркредитсервис» (ООО) | G138: 55229
B139: 4. «АЛЬФА-БАHK» (ОАО) | G139: 33425
B140: 5. «АТОН» (ООО) | G140: 27890
B141: 6. ГК «АЛОР» | G141: 14264
B142: 7. ФК «ОТКРЫТИЕ» (ООО) | G142: 10993
B143: 8. КИТ Финанс (ООО) | G143: 10658
B144: 9. «НЭТТРЭЙДЕР» (ООО) | G144: 9814
B145: 10. ИК «Церих Кэпитал Менеджмент» (ОАО) | G145: 6294
B148: Ведущие операторы рынка – число активных клиентов | H148: Таблица 2
B149: Наименование Участника торгов | G149: Количество клиентов
B150: 1. «ФИНАМ» (ЗАО) | G150: 21215
B151: 2. «Компания Брокеркредитсервис» (ООО) | G151: 17165
B152: 3. ВТБ 24 (ЗАО) | G152: 9899
B153: 4. «АТОН» (ООО) | G153: 7433
B154: 5. «АЛЬФА-БАHK» (ОАО) | G154: 6176
B155: 6. КИТ Финанс (ООО) | G155: 3162
B156: 7. ГК «АЛОР» | G156: 3080
B157: 8. ФК «ОТКРЫТИЕ» (ООО) | G157: 2639
B158: 9. «НЭТТРЭЙДЕР» (ООО) | G158: 2243
B159: 10. ИК «Церих Кэпитал Менеджмент» (ОАО) | G159: 1356
B162: Ведущие операторы рынка – объем клиентских операций | H162: Таблица 3
B163: Наименование Участника торгов | G163: Торговый оборот, руб.
B164: 1. КИТ Финанс (ООО) | G164: 729312400632
B165: 2. «ФИНАМ» (ЗАО) | G165: 521883905453
B166: 3. «Компания Брокеркредитсервис» (ООО) | G166: 473767583321
B167: 4. ИК «Тройка Диалог» (ЗАО) | G167: 444733919521
B168: 5. ВТБ 24 (ЗАО) | G168: 276975252657
B169: 6. ГК «АЛОР» | G169: 260671173338
B170: 7. ИК «Церих Кэпитал Менеджмент» (ОАО) | G170: 166773797358
B171: 8. «АТОН» (ООО) | G171: 133433655687
B172: 9. ФК «ОТКРЫТИЕ» (ООО) | G172: 129600821512
B173: 10. «АЛЬФА-БАHK» (ОАО) | G173: 85875908506

Sheet Июль2009
B2: Клиенты Участников торгов Фондовой биржи ММВБ
B3: ИЮЛЬ '09
B6: Динамика количества клиентов за июль 2009 г.
B10: Количество зарегистрированных клиентов в Системе торгов: | H10: Таблица 1
B11: Группы клиентов | E11: 2009-07-01 | F11: 2009-08-01 | G11: Изменение (ед.) | H11: Изменение (%)
B12: Физические лица | E12: 747597 | F12: 759278 | G12: =F12-E12 -> 11681 | H12: =F12/E12-1 -> 0.0156247283
B13: Юридические лица | E13: 33901 | F13: 34124 | G13: =F13-E13 -> 223 | H13: =F13/E13-1 -> 0.006577977051
B14: Нерезиденты | E14: 6006 | F14: 6263 | G14: =F14-E14 -> 257 | H14: =F14/E14-1 -> 0.04279054279
B15: Клиенты, передавшие свои средства в ДУ | E15: 13306 | F15: 13147 | G15: =F15-E15 -> -159 | H15: =F15/E15-1 -> -0.01194949647
B16: Всего | E16: =SUM(E12:E15) -> 800810 | F16: =SUM(F12:F15) -> 812812 | G16: =F16-E16 -> 12002 | H16: =F16/E16-1 -> 0.01498732533
B19: Количество уникальных клиентов в Системе торгов: | H19: Таблица 2
B20: Группы клиентов | E20: 2009-07-01 | F20: 2009-08-01 | G20: Изменение (ед.) | H20: Изменение (%)
B21: Физические лица | E21: 622352 | F21: 629527 | G21: =F21-E21 -> 7175 | H21: =F21/E21-1 -> 0.01152884541
B22: Юридические лица | E22: 15601 | F22: 15745 | G22: =F22-E22 -> 144 | H22: =F22/E22-1 -> 0.009230177553
B23: Нерезиденты | E23: 3476 | F23: 3549 | G23: =F23-E23 -> 73 | H23: =F23/E23-1 -> 0.02100115075
B24: Клиенты, передавшие свои средства в ДУ | E24: 4654 | F24: 4672 | G24: =F24-E24 -> 18 | H24: =F24/E24-1 -> 0.003867640739
B25: Всего | E25: =SUM(E21:E24) -> 646083 | F25: =SUM(F21:F24) -> 653493 | G25: =F25-E25 -> 7410 | H25: =F25/E25-1 -> 0.01146911465
B28: Количество активных клиентов в Системе торгов (совершивших в течение месяца хотя бы одну сделку): | H28: Таблица 3
B29: Группы клиентов | E29: за июнь 2009 г. | F29: за июль 2009 г. | G29: Изменение (ед.) | H29: Изменение (%)
B30: Физические лица | E30: 111641 | F30: 92088 | G30: =F30-E30 -> -19553 | H30: =F30/E30-1 -> -0.175141749
B31: Юридические лица | E31: 2090 | F31: 1837 | G31: =F31-E31 -> -253 | H31: =F31/E31-1 -> -0.1210526316
B32: Нерезиденты | E32: 687 | F32: 649 | G32: =F32-E32 -> -38 | H32: =F32/E32-1 -> -0.05531295488
B33: Клиенты, передавшие свои средства в ДУ | E33: 2532 | F33: 2524 | G33: =F33-E33 -> -8 | H33: =F33/E33-1 -> -0.003159557662
B34: Всего | E34: =SUM(E30:E33) -> 116950 | F34: =SUM(F30:F33) -> 97098 | G34: =F34-E34 -> -19852 | H34: =F34/E34-1 -> -0.1697477555
B38: Изменение количества уникальных клиентов - ретроспективные данные
B42: Количество уникальных клиентов в Системе торгов (ежегодная статистика): | H42: Таблица 1
B43: Группы клиентов | E43: 2006-01-01 | F43: 2007-01-01 | G43: 2008-01-01 | H43: 2009-01-01
B44: Физические лица | E44: 95675 | F44: 198973 | G44: 417403 | H44: 559320
B45: Юридические лица | E45: 8601 | F45: 10665 | G45: 12703 | H45: 14748
B46: Нерезиденты | E46: 630 | F46: 1140 | G46: 2078 | H46: 3097
B47: Клиенты, передавшие свои средства в ДУ | E47: 1671 | F47: 2839 | G47: 4061 | H47: 4512
B48: Всего | E48: =SUM(E44:E47) -> 106577 | F48: =SUM(F44:F47) -> 213617 | G48: =SUM(G44:G47) -> 436245 | H48: =SUM(H44:H47) -> 581677
B76: Количество уникальных клиентов в Системе торгов (за последние 6 месяцев): | H76: Таблица 2
B77: Группы клиентов | C77: 2009-03-01 | D77: 2009-04-01 | E77: 2009-05-01 | F77: 2009-06-01 | G77: 2009-07-01 | H77: 2009-08-01
B78: Физические лица | C78: 580932 | D78: 592595 | E78: 603405 | F78: 613499 | G78: 622352 | H78: 629527
B79: Юридические лица | C79: 15040 | D79: 15240 | E79: 15425 | F79: 15567 | G79: 15601 | H79: 15745
B80: Нерезиденты | C80: 3190 | D80: 3278 | E80: 3351 | F80: 3409 | G80: 3476 | H80: 3549
B81: Клиенты, передавшие свои средства в ДУ | C81: 4567 | D81: 4578 | E81: 4605 | F81: 4634 | G81: 4654 | H81: 4672
B82: Всего | C82: =SUM(C78:C81) -> 603729 | D82: =SUM(D78:D81) -> 615691 | E82: =SUM(E78:E81) -> 626786 | F82: =SUM(F78:F81) -> 637109 | G82: =SUM(G78:G81) -> 646083 | H82: 646083
B118: Дополнительные показатели по клиентам
B121: на 01.08.2009 г. | H121: Таблица 1
B122: Категории Участников торгов/клиентов | F122: Абсолютные показатели | G122: Доля от общего количества | H122: Количество организаций, допущенных к торгам
B123: Количество Участников торгов, имеющих зарегистрированных клиентов | F123: 585 | G123: =F123/H123 -> 1.055956679 | H123: 554
B124: Количество стран мира, представленных клиентами-нерезидентами | F124: 93
B125: Количество Участников торгов, зарегистрировавших клиентов-нерезидентов | F125: 295 | G125: =F125/H125 -> 0.5324909747 | H125: 554
B126: Количество клиентов, подписавших Декларацию о рисках с целью совершения сделок с ценными бумагами, включёнными в Котировальный список "И" | F126: 96 126 (уникальных - 75 571)
B127: Количество Участников торгов, зарегистрировавших клиентов, имеющих намерение совершать сделки с ценными бумагами, включёнными в Котировальный список "И" | F127: 389 | G127: =F127/H127 -> 0.702166065 | H127: 554
B131: Списки ведущих операторов фондового рынка - клиенты Участников торгов (за июль 2009 г.)
B134: Ведущие операторы рынка – число зарегистрированных уникальных клиентов | H134: Таблица 1
B135: Наименование Участника торгов | G135: Количество клиентов
B136: 1. ВТБ 24 (ЗАО) | G136: 149996
B137: 2. «ФИНАМ» (ЗАО) | G137: 69610
B138: 3. «Компания Брокеркредитсервис» (ООО) | G138: 56222
B139: 4. «АЛЬФА-БАHK» (ОАО) | G139: 34023
B140: 5. «АТОН» (ООО) | G140: 28420
B141: 6. ГК «АЛОР» | G141: 14381
B142: 7. ФК «ОТКРЫТИЕ» (ООО) | G142: 11508
B143: 8. КИТ Финанс (ООО) | G143: 10969
B144: 9. «НЭТТРЭЙДЕР» (ООО) | G144: 9840
B145: 10. ИК «Церих Кэпитал Менеджмент» (ОАО) | G145: 6401
B148: Ведущие операторы рынка – число активных клиентов | H148: Таблица 2
B149: Наименование Участника торгов | G149: Количество клиентов
B150: 1. «ФИНАМ» (ЗАО) | G150: 18166
B151: 2. «Компания Брокеркредитсервис» (ООО) | G151: 15229
B152: 3. ВТБ 24 (ЗАО) | G152: 8518
B153: 4. «АТОН» (ООО) | G153: 6498
B154: 5. «АЛЬФА-БАHK» (ОАО) | G154: 5398
B155: 6. КИТ Финанс (ООО) | G155: 2853
B156: 7. ГК «АЛОР» | G156: 2612
B157: 8. ФК «ОТКРЫТИЕ» (ООО) | G157: 2453
B158: 9. «НЭТТРЭЙДЕР» (ООО) | G158: 1662
B159: 10. ИК «Церих Кэпитал Менеджмент» (ОАО) | G159: 1213
B162: Ведущие операторы рынка – объем клиентских операций | H162: Таблица 3
B163: Наименование Участника торгов | G163: Торговый оборот, руб.
B164: 1. «ФИНАМ» (ЗАО) | G164: 485868597573
B165: 2. КИТ Финанс (ООО) | G165: 432986668660
B166: 3. «Компания Брокеркредитсервис» (ООО) | G166: 392322464150
B167: 4. ИК «Тройка Диалог» (ЗАО) | G167: 377861524075
B168: 5. ГК «АЛОР» | G168: 295158184125
B169: 6. ВТБ 24 (ЗАО) | G169: 234048659546
B170: 7. «АТОН» (ООО) | G170: 143201215870
B171: 8. ИК «Церих Кэпитал Менеджмент» (ОАО) | G171: 114753865419
B172: 9. ФК «ОТКРЫТИЕ» (ООО) | G172: 106757402306
B173: 10. «АЛЬФА-БАHK» (ОАО) | G173: 81378232990

Sheet Август2009
B2: Клиенты Участников торгов Фондовой биржи ММВБ
B3: АВГУСТ '09
B6: Динамика количества клиентов за август 2009 г.
B10: Количество зарегистрированных клиентов в Системе торгов: | H10: Таблица 1
B11: Группы клиентов | E11: 2009-08-01 | F11: 2009-09-01 | G11: Изменение (ед.) | H11: Изменение (%)
B12: Физические лица | E12: 759278 | F12: 767150 | G12: =F12-E12 -> 7872 | H12: =F12/E12-1 -> 0.01036774409
B13: Юридические лица | E13: 34124 | F13: 34304 | G13: =F13-E13 -> 180 | H13: =F13/E13-1 -> 0.00527487985
B14: Нерезиденты | E14: 6263 | F14: 6383 | G14: =F14-E14 -> 120 | H14: =F14/E14-1 -> 0.01916014689
B15: Клиенты, передавшие свои средства в ДУ | E15: 13147 | F15: 13209 | G15: =F15-E15 -> 62 | H15: =F15/E15-1 -> 0.004715904769
B16: Всего | E16: =SUM(E12:E15) -> 812812 | F16: =SUM(F12:F15) -> 821046 | G16: =F16-E16 -> 8234 | H16: =F16/E16-1 -> 0.01013026382
B19: Количество уникальных клиентов в Системе торгов: | H19: Таблица 2
B20: Группы клиентов | E20: 2009-08-01 | F20: 2009-09-01 | G20: Изменение (ед.) | H20: Изменение (%)
B21: Физические лица | E21: 629527 | F21: 635273 | G21: =F21-E21 -> 5746 | H21: =F21/E21-1 -> 0.009127487781
B22: Юридические лица | E22: 15745 | F22: 15846 | G22: =F22-E22 -> 101 | H22: =F22/E22-1 -> 0.006414734836
B23: Нерезиденты | E23: 3549 | F23: 3584 | G23: =F23-E23 -> 35 | H23: =F23/E23-1 -> 0.009861932939
B24: Клиенты, передавшие свои средства в ДУ | E24: 4672 | F24: 4678 | G24: =F24-E24 -> 6 | H24: =F24/E24-1 -> 0.001284246575
B25: Всего | E25: =SUM(E21:E24) -> 653493 | F25: =SUM(F21:F24) -> 659381 | G25: =F25-E25 -> 5888 | H25: =F25/E25-1 -> 0.009010042954
B28: Количество активных клиентов в Системе торгов (совершивших в течение месяца хотя бы одну сделку): | H28: Таблица 3
B29: Группы клиентов | E29: за июль 2009 г. | F29: за август 2009 г. | G29: Изменение (ед.) | H29: Изменение (%)
B30: Физические лица | E30: 92088 | F30: 97913 | G30: =F30-E30 -> 5825 | H30: =F30/E30-1 -> 0.06325471288
B31: Юридические лица | E31: 1837 | F31: 1843 | G31: =F31-E31 -> 6 | H31: =F31/E31-1 -> 0.003266194883
B32: Нерезиденты | E32: 649 | F32: 623 | G32: =F32-E32 -> -26 | H32: =F32/E32-1 -> -0.04006163328
B33: Клиенты, передавшие свои средства в ДУ | E33: 2524 | F33: 2224 | G33: =F33-E33 -> -300 | H33: =F33/E33-1 -> -0.118858954
B34: Всего | E34: =SUM(E30:E33) -> 97098 | F34: =SUM(F30:F33) -> 102603 | G34: =F34-E34 -> 5505 | H34: =F34/E34-1 -> 0.05669529753
B38: Изменение количества уникальных клиентов - ретроспективные данные
B42: Количество уникальных клиентов в Системе торгов (ежегодная статистика): | H42: Таблица 1
B43: Группы клиентов | E43: 2006-01-01 | F43: 2007-01-01 | G43: 2008-01-01 | H43: 2009-01-01
B44: Физические лица | E44: 95675 | F44: 198973 | G44: 417403 | H44: 559320
B45: Юридические лица | E45: 8601 | F45: 10665 | G45: 12703 | H45: 14748
B46: Нерезиденты | E46: 630 | F46: 1140 | G46: 2078 | H46: 3097
B47: Клиенты, передавшие свои средства в ДУ | E47: 1671 | F47: 2839 | G47: 4061 | H47: 4512
B48: Всего | E48: =SUM(E44:E47) -> 106577 | F48: =SUM(F44:F47) -> 213617 | G48: =SUM(G44:G47) -> 436245 | H48: =SUM(H44:H47) -> 581677
B76: Количество уникальных клиентов в Системе торгов (за последние 6 месяцев): | H76: Таблица 2
B77: Группы клиентов | C77: 2009-04-01 | D77: 2009-05-01 | E77: 2009-06-01 | F77: 2009-07-01 | G77: 2009-08-01 | H77: 2009-09-01
B78: Физические лица | C78: 592595 | D78: 603405 | E78: 613499 | F78: 622352 | G78: 629527 | H78: 635273
B79: Юридические лица | C79: 15240 | D79: 15425 | E79: 15567 | F79: 15601 | G79: 15745 | H79: 15846
B80: Нерезиденты | C80: 3278 | D80: 3351 | E80: 3409 | F80: 3476 | G80: 3549 | H80: 3584
B81: Клиенты, передавшие свои средства в ДУ | C81: 4578 | D81: 4605 | E81: 4634 | F81: 4654 | G81: 4672 | H81: 4678
B82: Всего | C82: =SUM(C78:C81) -> 615691 | D82: =SUM(D78:D81) -> 626786 | E82: =SUM(E78:E81) -> 637109 | F82: 646083 | G82: 653494 | H82: 659381
B118: Дополнительные показатели по клиентам
B121: на 01.09.2009 г. | H121: Таблица 1
B122: Категории Участников торгов/клиентов | F122: Абсолютные показатели | G122: Доля от общего количества | H122: Количество организаций, допущенных к торгам
B123: Количество Участников торгов, имеющих зарегистрированных клиентов | F123: 585 | G123: =F123/H123 -> 1.054054054 | H123: 555
B124: Количество стран мира, представленных клиентами-нерезидентами | F124: 93
B125: Количество Участников торгов, зарегистрировавших клиентов-нерезидентов | F125: 299 | G125: =F125/H125 -> 0.5387387387 | H125: 555
B126: Количество клиентов, подписавших Декларацию о рисках с целью совершения сделок с ценными бумагами, включёнными в Котировальный список "И" | F126: 99 673 (уникальных - 77 908)
B127: Количество Участников торгов, зарегистрировавших клиентов, имеющих намерение совершать сделки с ценными бумагами, включёнными в Котировальный список "И" | F127: 389 | G127: =F127/H127 -> 0.7009009009 | H127: 555
B131: Списки ведущих операторов фондового рынка - клиенты Участников торгов (за август 2009 г.)
B134: Ведущие операторы рынка – число зарегистрированных уникальных клиентов | H134: Таблица 1
B135: Наименование Участника торгов | G135: Количество клиентов
B136: 1. ВТБ 24 (ЗАО) | G136: 150662
B137: 2. «ФИНАМ» (ЗАО) | G137: 71184
B138: 3. «Компания Брокеркредитсервис» (ООО) | G138: 57045
B139: 4. «АЛЬФА-БАHK» (ОАО) | G139: 34593
B140: 5. «АТОН» (ООО) | G140: 28976
B141: 6. ГК «АЛОР» | G141: 14524
B142: 7. ФК «ОТКРЫТИЕ» (ООО) | G142: 11856
B143: 8. КИТ Финанс (ООО) | G143: 11243
B144: 9. «НЭТТРЭЙДЕР» (ООО) | G144: 9860
B145: 10. ИК «Церих Кэпитал Менеджмент» (ОАО) | G145: 6479
B148: Ведущие операторы рынка – число активных клиентов | H148: Таблица 2
B149: Наименование Участника торгов | G149: Количество клиентов
B150: 1. «ФИНАМ» (ЗАО) | G150: 18748
B151: 2. «Компания Брокеркредитсервис» (ООО) | G151: 15706
B152: 3. ВТБ 24 (ЗАО) | G152: 8945
B153: 4. «АТОН» (ООО) | G153: 6931
B154: 5. «АЛЬФА-БАHK» (ОАО) | G154: 5607
B155: 6. КИТ Финанс (ООО) | G155: 2943
B156: 7. ГК «АЛОР» | G156: 2764
B157: 8. ФК «ОТКРЫТИЕ» (ООО) | G157: 2564
B158: 9. «НЭТТРЭЙДЕР» (ООО) | G158: 1754
B159: 10. ИК «Церих Кэпитал Менеджмент» (ОАО) | G159: 1258
B162: Ведущие операторы рынка – объем клиентских операций | H162: Таблица 3
B163: Наименование Участника торгов | G163: Торговый оборот, руб.
B164: 1. «ФИНАМ» (ЗАО) | G164: 443155713577
B165: 2. «Компания Брокеркредитсервис» (ООО) | G165: 403702615949
B166: 3. ИК «Тройка Диалог» (ЗАО) | G166: 375554834080
B167: 4. ГК «АЛОР» | G167: 303416553846
B168: 5. ВТБ 24 (ЗАО) | G168: 249587476660
B169: 6. «АТОН» (ООО) | G169: 167592326706
B170: 7. ИК «Церих Кэпитал Менеджмент» (ОАО) | G170: 141457722032
B171: 8. ФК «ОТКРЫТИЕ» (ООО) | G171: 107212607651
B172: 9. КИТ Финанс (ООО) | G172: 104120981093
B173: 10. ФК «УРАЛСИБ» | G173: 80330449199

Sheet Сентябрь2009
B2: Клиенты Участников торгов Фондовой биржи ММВБ
B3: СЕНТЯБРЬ '09
B6: Динамика количества клиентов за сентябрь 2009 г.
B10: Количество зарегистрированных клиентов в Системе торгов: | H10: Таблица 1
B11: Группы клиентов | E11: 2009-09-01 | F11: 2009-10-01 | G11: Изменение (ед.) | H11: Изменение (%)
B12: Физические лица | E12: 767150 | F12: 778501 | G12: =F12-E12 -> 11351 | H12: =F12/E12-1 -> 0.01479632406
B13: Юридические лица | E13: 34304 | F13: 34531 | G13: =F13-E13 -> 227 | H13: =F13/E13-1 -> 0.006617304104
B14: Нерезиденты | E14: 6383 | F14: 6785 | G14: =F14-E14 -> 402 | H14: =F14/E14-1 -> 0.06297979007
B15: Клиенты, передавшие свои средства в ДУ | E15: 13209 | F15: 13118 | G15: =F15-E15 -> -91 | H15: =F15/E15-1 -> -0.006889242183
B16: Всего | E16: =SUM(E12:E15) -> 821046 | F16: =SUM(F12:F15) -> 832935 | G16: =F16-E16 -> 11889 | H16: =F16/E16-1 -> 0.01448030926
B19: Количество уникальных клиентов в Системе торгов: | H19: Таблица 2
B20: Группы клиентов | E20: 2009-09-01 | F20: 2009-10-01 | G20: Изменение (ед.) | H20: Изменение (%)
B21: Физические лица | E21: 635273 | F21: 643480 | G21: =F21-E21 -> 8207 | H21: =F21/E21-1 -> 0.01291885536
B22: Юридические лица | E22: 15846 | F22: 15957 | G22: =F22-E22 -> 111 | H22: =F22/E22-1 -> 0.007004922378
B23: Нерезиденты | E23: 3584 | F23: 3642 | G23: =F23-E23 -> 58 | H23: =F23/E23-1 -> 0.01618303571
B24: Клиенты, передавшие свои средства в ДУ | E24: 4678 | F24: 4592 | G24: =F24-E24 -> -86 | H24: =F24/E24-1 -> -0.01838392475
B25: Всего | E25: =SUM(E21:E24) -> 659381 | F25: =SUM(F21:F24) -> 667671 | G25: =F25-E25 -> 8290 | H25: =F25/E25-1 -> 0.01257239745
B28: Количество активных клиентов в Системе торгов (совершивших в течение месяца хотя бы одну сделку): | H28: Таблица 3
B29: Группы клиентов | E29: за август 2009 г. | F29: за сентябрь 2009 г. | G29: Изменение (ед.) | H29: Изменение (%)
B30: Физические лица | E30: 97913 | F30: 111701 | G30: =F30-E30 -> 13788 | H30: =F30/E30-1 -> 0.1408188902
B31: Юридические лица | E31: 1843 | F31: 1983 | G31: =F31-E31 -> 140 | H31: =F31/E31-1 -> 0.07596310364
B32: Нерезиденты | E32: 623 | F32: 673 | G32: =F32-E32 -> 50 | H32: =F32/E32-1 -> 0.08025682183
B33: Клиенты, передавшие свои средства в ДУ | E33: 2224 | F33: 2382 | G33: =F33-E33 -> 158 | H33: =F33/E33-1 -> 0.07104316547
B34: Всего | E34: =SUM(E30:E33) -> 102603 | F34: =SUM(F30:F33) -> 116739 | G34: =F34-E34 -> 14136 | H34: =F34/E34-1 -> 0.1377737493
B38: Изменение количества уникальных клиентов - ретроспективные данные
B42: Количество уникальных клиентов в Системе торгов (ежегодная статистика): | H42: Таблица 1
B43: Группы клиентов | E43: 2006-01-01 | F43: 2007-01-01 | G43: 2008-01-01 | H43: 2009-01-01
B44: Физические лица | E44: 95675 | F44: 198973 | G44: 417403 | H44: 559320
B45: Юридические лица | E45: 8601 | F45: 10665 | G45: 12703 | H45: 14748
B46: Нерезиденты | E46: 630 | F46: 1140 | G46: 2078 | H46: 3097
B47: Клиенты, передавшие свои средства в ДУ | E47: 1671 | F47: 2839 | G47: 4061 | H47: 4512
B48: Всего | E48: =SUM(E44:E47) -> 106577 | F48: =SUM(F44:F47) -> 213617 | G48: =SUM(G44:G47) -> 436245 | H48: =SUM(H44:H47) -> 581677
B76: Количество уникальных клиентов в Системе торгов (за последние 6 месяцев): | H76: Таблица 2
B77: Группы клиентов | C77: 2009-05-01 | D77: 2009-06-01 | E77: 2009-07-01 | F77: 2009-08-01 | G77: 2009-09-01 | H77: 2009-10-01
B78: Физические лица | C78: 603405 | D78: 613499 | E78: 622352 | F78: 629527 | G78: 635273 | H78: 643480
B79: Юридические лица | C79: 15425 | D79: 15567 | E79: 15601 | F79: 15745 | G79: 15846 | H79: 15957
B80: Нерезиденты | C80: 3351 | D80: 3409 | E80: 3476 | F80: 3549 | G80: 3584 | H80: 3642
B81: Клиенты, передавшие свои средства в ДУ | C81: 4605 | D81: 4634 | E81: 4654 | F81: 4672 | G81: 4678 | H81: 4592
B82: Всего | C82: =SUM(C78:C81) -> 626786 | D82: =SUM(D78:D81) -> 637109 | E82: 646083 | F82: 653494 | G82: 659381 | H82: 667671
B118: Дополнительные показатели по клиентам
B121: на 01.10.2009 г. | H121: Таблица 1
B122: Категории Участников торгов/клиентов | F122: Абсолютные показатели | G122: Доля от общего количества | H122: Количество организаций, допущенных к торгам
B123: Количество Участников торгов, имеющих зарегистрированных клиентов | F123: 588 | G123: =F123/H123 -> 1.057553957 | H123: 556
B124: Количество стран мира, представленных клиентами-нерезидентами | F124: 93
B125: Количество Участников торгов, зарегистрировавших клиентов-нерезидентов | F125: 303 | G125: =F125/H125 -> 0.5449640288 | H125: 556
B126: Количество клиентов, подписавших Декларацию о рисках с целью совершения сделок с ценными бумагами, включёнными в Котировальный список "И" | F126: 104 407 (уникальных - 80 786)
B127: Количество Участников торгов, зарегистрировавших клиентов, имеющих намерение совершать сделки с ценными бумагами, включёнными в Котировальный список "И" | F127: 392 | G127: =F127/H127 -> 0.7050359712 | H127: 556
B131: Списки ведущих операторов фондового рынка - клиенты Участников торгов (за сентябрь 2009 г.)
B134: Ведущие операторы рынка – число зарегистрированных уникальных клиентов | H134: Таблица 1
B135: Наименование Участника торгов | G135: Количество клиентов
B136: 1. ВТБ 24 (ЗАО) | G136: 151310
B137: 2. «ФИНАМ» (ЗАО) | G137: 73172
B138: 3. «Компания Брокеркредитсервис» (ООО) | G138: 58192
B139: 4. «АЛЬФА-БАHK» (ОАО) | G139: 35216
B140: 5. «АТОН» (ООО) | G140: 29492
B141: 6. ГК «АЛОР» | G141: 14667
B142: 7. ФК «ОТКРЫТИЕ» (ООО) | G142: 12257
B143: 8. КИТ Финанс (ООО) | G143: 11595
B144: 9. «НЭТТРЭЙДЕР» (ООО) | G144: 9903
B145: 10. ИК «Церих Кэпитал Менеджмент» (ОАО) | G145: 6558
B148: Ведущие операторы рынка – число активных клиентов | H148: Таблица 2
B149: Наименование Участника торгов | G149: Количество клиентов
B150: 1. «ФИНАМ» (ЗАО) | G150: 21172
B151: 2. «Компания Брокеркредитсервис» (ООО) | G151: 17520
B152: 3. ВТБ 24 (ЗАО) | G152: 10201
B153: 4. «АТОН» (ООО) | G153: 7395
B154: 5. «АЛЬФА-БАHK» (ОАО) | G154: 6204
B155: 6. КИТ Финанс (ООО) | G155: 3295
B156: 7. ГК «АЛОР» | G156: 3051
B157: 8. ФК «ОТКРЫТИЕ» (ООО) | G157: 2882
B158: 9. «НЭТТРЭЙДЕР» (ООО) | G158: 1961
B159: 10. ИК «Церих Кэпитал Менеджмент» (ОАО) | G159: 1327
B162: Ведущие операторы рынка – объем клиентских операций | H162: Таблица 3
B163: Наименование Участника торгов | G163: Торговый оборот, руб.
B164: 1. «ФИНАМ» (ЗАО) | G164: 505932757804
B165: 2. «Компания Брокеркредитсервис» (ООО) | G165: 473586103923
B166: 3. ИК «Тройка Диалог» (ЗАО) | G166: 409096815759
B167: 4. ГК «АЛОР» | G167: 281702814285
B168: 5. ВТБ 24 (ЗАО) | G168: 271369891322
B169: 6. «АТОН» (ООО) | G169: 207329663793
B170: 7. ИК «Церих Кэпитал Менеджмент» (ОАО) | G170: 191785849328
B171: 8. ФК «ОТКРЫТИЕ» (ООО) | G171: 129765150096
B172: 9. ФК «УРАЛСИБ» | G172: 103273285966
B173: 10. КИТ Финанс (ООО) | G173: 95997357986

Sheet Октябрь2009
B2: Клиенты Участников торгов Фондовой биржи ММВБ
B3: ОКТЯБРЬ '09
B6: Динамика количества клиентов за октябрь 2009 г.
B10: Количество зарегистрированных клиентов в Системе торгов: | H10: Таблица 1
B11: Группы клиентов | E11: 2009-10-01 | F11: 2009-11-01 | G11: Изменение (ед.) | H11: Изменение (%)
B12: Физические лица | E12: 778501 | F12: 791311 | G12: =F12-E12 -> 12810 | H12: =F12/E12-1 -> 0.01645469948
B13: Юридические лица | E13: 34531 | F13: 34694 | G13: =F13-E13 -> 163 | H13: =F13/E13-1 -> 0.004720396166
B14: Нерезиденты | E14: 6785 | F14: 6902 | G14: =F14-E14 -> 117 | H14: =F14/E14-1 -> 0.01724392041
B15: Клиенты, передавшие свои средства в ДУ | E15: 13118 | F15: 13331 | G15: =F15-E15 -> 213 | H15: =F15/E15-1 -> 0.01623723129
B16: Всего | E16: =SUM(E12:E15) -> 832935 | F16: =SUM(F12:F15) -> 846238 | G16: =F16-E16 -> 13303 | H16: =F16/E16-1 -> 0.01597123425
B19: Количество уникальных клиентов в Системе торгов: | H19: Таблица 2
B20: Группы клиентов | E20: 2009-10-01 | F20: 2009-11-01 | G20: Изменение (ед.) | H20: Изменение (%)
B21: Физические лица | E21: 643480 | F21: 653201 | G21: =F21-E21 -> 9721 | H21: =F21/E21-1 -> 0.01510691863
B22: Юридические лица | E22: 15957 | F22: 16065 | G22: =F22-E22 -> 108 | H22: =F22/E22-1 -> 0.006768189509
B23: Нерезиденты | E23: 3642 | F23: 3722 | G23: =F23-E23 -> 80 | H23: =F23/E23-1 -> 0.02196595277
B24: Клиенты, передавшие свои средства в ДУ | E24: 4592 | F24: 4625 | G24: =F24-E24 -> 33 | H24: =F24/E24-1 -> 0.00718641115
B25: Всего | E25: =SUM(E21:E24) -> 667671 | F25: =SUM(F21:F24) -> 677613 | G25: =F25-E25 -> 9942 | H25: =F25/E25-1 -> 0.01489056736
B28: Количество активных клиентов в Системе торгов (совершивших в течение месяца хотя бы одну сделку): | H28: Таблица 3
B29: Группы клиентов | E29: за сентябрь 2009 г. | F29: за октябрь 2009 г. | G29: Изменение (ед.) | H29: Изменение (%)
B30: Физические лица | E30: 111701 | F30: 119838 | G30: =F30-E30 -> 8137 | H30: =F30/E30-1 -> 0.07284625921
B31: Юридические лица | E31: 1983 | F31: 2053 | G31: =F31-E31 -> 70 | H31: =F31/E31-1 -> 0.03530005043
B32: Нерезиденты | E32: 673 | F32: 715 | G32: =F32-E32 -> 42 | H32: =F32/E32-1 -> 0.06240713224
B33: Клиенты, передавшие свои средства в ДУ | E33: 2382 | F33: 2504 | G33: =F33-E33 -> 122 | H33: =F33/E33-1 -> 0.05121746432
B34: Всего | E34: =SUM(E30:E33) -> 116739 | F34: =SUM(F30:F33) -> 125110 | G34: =F34-E34 -> 8371 | H34: =F34/E34-1 -> 0.07170697025
B38: Изменение количества уникальных клиентов - ретроспективные данные
B42: Количество уникальных клиентов в Системе торгов (ежегодная статистика): | H42: Таблица 1
B43: Группы клиентов | E43: 2006-01-01 | F43: 2007-01-01 | G43: 2008-01-01 | H43: 2009-01-01
B44: Физические лица | E44: 95675 | F44: 198973 | G44: 417403 | H44: 559320
B45: Юридические лица | E45: 8601 | F45: 10665 | G45: 12703 | H45: 14748
B46: Нерезиденты | E46: 630 | F46: 1140 | G46: 2078 | H46: 3097
B47: Клиенты, передавшие свои средства в ДУ | E47: 1671 | F47: 2839 | G47: 4061 | H47: 4512
B48: Всего | E48: =SUM(E44:E47) -> 106577 | F48: =SUM(F44:F47) -> 213617 | G48: =SUM(G44:G47) -> 436245 | H48: =SUM(H44:H47) -> 581677
B76: Количество уникальных клиентов в Системе торгов (за последние 6 месяцев): | H76: Таблица 2
B77: Группы клиентов | C77: 2009-06-01 | D77: 2009-07-01 | E77: 2009-08-01 | F77: 2009-09-01 | G77: 2009-10-01 | H77: 2009-11-01
B78: Физические лица | C78: 613499 | D78: 622352 | E78: 629527 | F78: 635273 | G78: 643480 | H78: 653201
B79: Юридические лица | C79: 15567 | D79: 15601 | E79: 15745 | F79: 15846 | G79: 15957 | H79: 16065
B80: Нерезиденты | C80: 3409 | D80: 3476 | E80: 3549 | F80: 3584 | G80: 3642 | H80: 3722
B81: Клиенты, передавшие свои средства в ДУ | C81: 4634 | D81: 4654 | E81: 4672 | F81: 4678 | G81: 4592 | H81: 4625
B82: Всего | C82: =SUM(C78:C81) -> 637109 | D82: 646083 | E82: 653494 | F82: 659381 | G82: 667671 | H82: 677613
B118: Дополнительные показатели по клиентам
B121: на 01.11.2009 г. | H121: Таблица 1
B122: Категории Участников торгов/клиентов | F122: Абсолютные показатели | G122: Доля от общего количества | H122: Количество организаций, допущенных к торгам
B123: Количество Участников торгов, имеющих зарегистрированных клиентов | F123: 590 | G123: =F123/H123 -> 1.063063063 | H123: 555
B124: Количество стран мира, представленных клиентами-нерезидентами | F124: 93
B125: Количество Участников торгов, зарегистрировавших клиентов-нерезидентов | F125: 306 | G125: =F125/H125 -> 0.5513513514 | H125: 555
B126: Количество клиентов, подписавших Декларацию о рисках с целью совершения сделок с ценными бумагами, включёнными в Котировальный список "И" | F126: 109 781 (уникальных - 84 234)
B127: Количество Участников торгов, зарегистрировавших клиентов, имеющих намерение совершать сделки с ценными бумагами, включёнными в Котировальный список "И" | F127: 397 | G127: =F127/H127 -> 0.7153153153 | H127: 555
B131: Списки ведущих операторов фондового рынка - клиенты Участников торгов (за октябрь 2009 г.)
B134: Ведущие операторы рынка – число зарегистрированных уникальных клиентов | H134: Таблица 1
B135: Наименование Участника торгов | G135: Количество клиентов
B136: 1. ВТБ 24 (ЗАО) | G136: 152141
B137: 2. «ФИНАМ» (ЗАО) | G137: 75711
B138: 3. «Компания Брокеркредитсервис» (ООО) | G138: 59488
B139: 4. «АЛЬФА-БАHK» (ОАО) | G139: 36033
B140: 5. «АТОН» (ООО) | G140: 30127
B141: 6. ГК «АЛОР» | G141: 14856
B142: 7. ФК «ОТКРЫТИЕ» (ООО) | G142: 13057
B143: 8. КИТ Финанс (ООО) | G143: 11982
B144: 9. «НЭТТРЭЙДЕР» (ООО) | G144: 9613
B145: 10. ИК «Церих Кэпитал Менеджмент» (ОАО) | G145: 6658
B148: Ведущие операторы рынка – число активных клиентов | H148: Таблица 2
B149: Наименование Участника торгов | G149: Количество клиентов
B150: 1. «ФИНАМ» (ЗАО) | G150: 22852
B151: 2. «Компания Брокеркредитсервис» (ООО) | G151: 18580
B152: 3. ВТБ 24 (ЗАО) | G152: 10875
B153: 4. «АТОН» (ООО) | G153: 7805
B154: 5. «АЛЬФА-БАHK» (ОАО) | G154: 6715
B155: 6. КИТ Финанс (ООО) | G155: 3489
B156: 7. ГК «АЛОР» | G156: 3358
B157: 8. ФК «ОТКРЫТИЕ» (ООО) | G157: 3115
B158: 9. «НЭТТРЭЙДЕР» (ООО) | G158: 2731
B159: 10. ФК «УРАЛСИБ» | G159: 1397
B162: Ведущие операторы рынка – объем клиентских операций | H162: Таблица 3
B163: Наименование Участника торгов | G163: Торговый оборот, руб.
B164: 1. «ФИНАМ» (ЗАО) | G164: 630951911214
B165: 2. «Компания Брокеркредитсервис» (ООО) | G165: 540922440159
B166: 3. ИК «Тройка Диалог» (ЗАО) | G166: 516606008956
B167: 4. ГК «АЛОР» | G167: 318420427957
B168: 5. ВТБ 24 (ЗАО) | G168: 287183737447
B169: 6. «АТОН» (ООО) | G169: 228193705053
B170: 7. ИК «Церих Кэпитал Менеджмент» (ОАО) | G170: 228073014004
B171: 8. ФК «ОТКРЫТИЕ» (ООО) | G171: 141858660433
B172: 9. ФК «УРАЛСИБ» | G172: 108484693198
B173: 10. «ИК ВЕЛЕС Капитал» (ООО) | G173: 102681596563

Sheet Ноябрь2009
B2: Клиенты Участников торгов Фондовой биржи ММВБ
B3: НОЯБРЬ '09
B6: Динамика количества клиентов за ноябрь 2009 г.
B10: Количество зарегистрированных клиентов в Системе торгов: | H10: Таблица 1
B11: Группы клиентов | E11: 2009-11-01 | F11: 2009-12-01 | G11: Изменение (ед.) | H11: Изменение (%)
B12: Физические лица | E12: 791311 | F12: 805409 | G12: =F12-E12 -> 14098 | H12: =F12/E12-1 -> 0.01781600407
B13: Юридические лица | E13: 34694 | F13: 40186 | G13: =F13-E13 -> 5492 | H13: =F13/E13-1 -> 0.1582982648
B14: Нерезиденты | E14: 6902 | F14: 7003 | G14: =F14-E14 -> 101 | H14: =F14/E14-1 -> 0.01463343958
B15: Клиенты, передавшие свои средства в ДУ | E15: 13331 | F15: 13516 | G15: =F15-E15 -> 185 | H15: =F15/E15-1 -> 0.01387742855
B16: Всего | E16: =SUM(E12:E15) -> 846238 | F16: =SUM(F12:F15) -> 866114 | G16: =F16-E16 -> 19876 | H16: =F16/E16-1 -> 0.02348748224
B19: Количество уникальных клиентов в Системе торгов: | H19: Таблица 2
B20: Группы клиентов | E20: 2009-11-01 | F20: 2009-12-01 | G20: Изменение (ед.) | H20: Изменение (%)
B21: Физические лица | E21: 653201 | F21: 663580 | G21: =F21-E21 -> 10379 | H21: =F21/E21-1 -> 0.01588944291
B22: Юридические лица | E22: 16065 | F22: 16190 | G22: =F22-E22 -> 125 | H22: =F22/E22-1 -> 0.007780890134
B23: Нерезиденты | E23: 3722 | F23: 3784 | G23: =F23-E23 -> 62 | H23: =F23/E23-1 -> 0.01665771091
B24: Клиенты, передавшие свои средства в ДУ | E24: 4625 | F24: 4660 | G24: =F24-E24 -> 35 | H24: =F24/E24-1 -> 0.007567567568
B25: Всего | E25: =SUM(E21:E24) -> 677613 | F25: =SUM(F21:F24) -> 688214 | G25: =F25-E25 -> 10601 | H25: =F25/E25-1 -> 0.01564462311
B28: Количество активных клиентов в Системе торгов (совершивших в течение месяца хотя бы одну сделку): | H28: Таблица 3
B29: Группы клиентов | E29: за октябрь 2009 г. | F29: за ноябрь 2009 г. | G29: Изменение (ед.) | H29: Изменение (%)
B30: Физические лица | E30: 119838 | F30: 108762 | G30: =F30-E30 -> -11076 | H30: =F30/E30-1 -> -0.09242477344
B31: Юридические лица | E31: 2053 | F31: 1880 | G31: =F31-E31 -> -173 | H31: =F31/E31-1 -> -0.08426692645
B32: Нерезиденты | E32: 715 | F32: 671 | G32: =F32-E32 -> -44 | H32: =F32/E32-1 -> -0.06153846154
B33: Клиенты, передавшие свои средства в ДУ | E33: 2504 | F33: 2253 | G33: =F33-E33 -> -251 | H33: =F33/E33-1 -> -0.1002396166
B34: Всего | E34: =SUM(E30:E33) -> 125110 | F34: =SUM(F30:F33) -> 113566 | G34: =F34-E34 -> -11544 | H34: =F34/E34-1 -> -0.09227080169
B38: Изменение количества уникальных клиентов - ретроспективные данные
B42: Количество уникальных клиентов в Системе торгов (ежегодная статистика): | H42: Таблица 1
B43: Группы клиентов | E43: 2006-01-01 | F43: 2007-01-01 | G43: 2008-01-01 | H43: 2009-01-01
B44: Физические лица | E44: 95675 | F44: 198973 | G44: 417403 | H44: 559320
B45: Юридические лица | E45: 8601 | F45: 10665 | G45: 12703 | H45: 14748
B46: Нерезиденты | E46: 630 | F46: 1140 | G46: 2078 | H46: 3097
B47: Клиенты, передавшие свои средства в ДУ | E47: 1671 | F47: 2839 | G47: 4061 | H47: 4512
B48: Всего | E48: =SUM(E44:E47) -> 106577 | F48: =SUM(F44:F47) -> 213617 | G48: =SUM(G44:G47) -> 436245 | H48: =SUM(H44:H47) -> 581677
B76: Количество уникальных клиентов в Системе торгов (за последние 6 месяцев): | H76: Таблица 2
B77: Группы клиентов | C77: 2009-07-01 | D77: 2009-08-01 | E77: 2009-09-01 | F77: 2009-10-01 | G77: 2009-11-01 | H77: 2009-12-01
B78: Физические лица | C78: 622352 | D78: 629527 | E78: 635273 | F78: 643480 | G78: 653201 | H78: 663580
B79: Юридические лица | C79: 15601 | D79: 15745 | E79: 15846 | F79: 15957 | G79: 16065 | H79: 16190
B80: Нерезиденты | C80: 3476 | D80: 3549 | E80: 3584 | F80: 3642 | G80: 3722 | H80: 3784
B81: Клиенты, передавшие свои средства в ДУ | C81: 4654 | D81: 4672 | E81: 4678 | F81: 4592 | G81: 4625 | H81: 4660
B82: Всего | C82: 646083 | D82: 653494 | E82: 659381 | F82: 667671 | G82: 677613 | H82: 688214
B118: Дополнительные показатели по клиентам
B121: на 01.12.2009 г. | H121: Таблица 1
B122: Категории Участников торгов/клиентов | F122: Абсолютные показатели | G122: Доля от общего количества | H122: Количество организаций, допущенных к торгам
B123: Количество Участников торгов, имеющих зарегистрированных клиентов | F123: 592 | G123: =F123/H123 -> 1.059033989 | H123: 559
B124: Количество стран мира, представленных клиентами-нерезидентами | F124: 93
B125: Количество Участников торгов, зарегистрировавших клиентов-нерезидентов | F125: 308 | G125: =F125/H125 -> 0.5509838998 | H125: 559
B126: Количество клиентов, подписавших Декларацию о рисках с целью совершения сделок с ценными бумагами, включёнными в Котировальный список "И" | F126: 114 043 (уникальных - 87 074)
B127: Количество Участников торгов, зарегистрировавших клиентов, имеющих намерение совершать сделки с ценными бумагами, включёнными в Котировальный список "И" | F127: 399 | G127: =F127/H127 -> 0.7137745975 | H127: 559
B131: Списки ведущих операторов фондового рынка - клиенты Участников торгов (за ноябрь 2009 г.)
B134: Ведущие операторы рынка – число зарегистрированных уникальных клиентов | H134: Таблица 1
B135: Наименование Участника торгов | G135: Количество клиентов
B136: Сбербанк России (ОАО) | G136: 205022
B137: ВТБ 24 (ЗАО) | G137: 152710
B138: «ФИНАМ» (ЗАО) | G138: 78145
B139: «Компания Брокеркредитсервис» (ООО) | G139: 60988
B140: «АЛЬФА-БАHK» (ОАО) | G140: 36770
B141: «АТОН» (ООО) | G141: 30664
B142: ГК «АЛОР» | G142: 15047
B143: ФК «ОТКРЫТИЕ» (ООО) | G143: 13700
B144: КИТ Финанс (ООО) | G144: 12356
B145: «НЭТТРЭЙДЕР» (ООО) | G145: 9614
B148: Ведущие операторы рынка – число активных клиентов | H148: Таблица 2
B149: Наименование Участника торгов | G149: Количество клиентов
B150: «ФИНАМ» (ЗАО) | G150: 20925
B151: «Компания Брокеркредитсервис» (ООО) | G151: 17525
B152: Сбербанк России (ОАО) | G152: 16336
B153: ВТБ 24 (ЗАО) | G153: 9898
B154: «АТОН» (ООО) | G154: 7343
B155: «АЛЬФА-БАHK» (ОАО) | G155: 6305
B156: КИТ Финанс (ООО) | G156: 3402
B157: ГК «АЛОР» | G157: 3110
B158: ФК «ОТКРЫТИЕ» (ООО) | G158: 2960
B159: «НЭТТРЭЙДЕР» (ООО) | G159: 1809
B162: Ведущие операторы рынка – объем клиентских операций | H162: Таблица 3
B163: Наименование Участника торгов | G163: Торговый оборот, руб.
B164: «ФИНАМ» (ЗАО) | G164: 486704255449
B165: «Компания Брокеркредитсервис» (ООО) | G165: 415417887348
B166: ИК «Тройка Диалог» (ЗАО) | G166: 412328878325
B167: ГК «АЛОР» | G167: 240285017650
B168: ВТБ 24 (ЗАО) | G168: 200111703988
B169: «АТОН» (ООО) | G169: 184387837991
B170: ИК «Церих Кэпитал Менеджмент» (ОАО) | G170: 169053361191
B171: ФК «ОТКРЫТИЕ» (ООО) | G171: 119891671338
B172: ФК «УРАЛСИБ» | G172: 87414950453
B173: КИТ Финанс (ООО) | G173: 78400725438

Sheet Декабрь2009
B2: Клиенты Участников торгов Фондовой биржи ММВБ
B3: ДЕКАБРЬ '09
B6: Динамика количества клиентов за декабрь 2009 г.
B10: Количество зарегистрированных клиентов в Системе торгов: | H10: Таблица 1
B11: Группы клиентов | E11: 2009-12-01 | F11: 2010-01-01 | G11: Изменение (ед.) | H11: Изменение (%)
B12: Физические лица | E12: 805409 | F12: 815897 | G12: =F12-E12 -> 10488 | H12: =F12/E12-1 -> 0.0130219553
B13: Юридические лица | E13: 40186 | F13: 34439 | G13: =F13-E13 -> -5747 | H13: =F13/E13-1 -> -0.1430100035
B14: Нерезиденты | E14: 7003 | F14: 7098 | G14: =F14-E14 -> 95 | H14: =F14/E14-1 -> 0.01356561474
B15: Клиенты, передавшие свои средства в ДУ | E15: 13516 | F15: 13659 | G15: =F15-E15 -> 143 | H15: =F15/E15-1 -> 0.01058005327
B16: Всего | E16: =SUM(E12:E15) -> 866114 | F16: 871093 | G16: =F16-E16 -> 4979 | H16: =F16/E16-1 -> 0.00574866588
B19: Количество уникальных клиентов в Системе торгов: | H19: Таблица 2
B20: Группы клиентов | E20: 2009-12-01 | F20: 2010-01-01 | G20: Изменение (ед.) | H20: Изменение (%)
B21: Физические лица | E21: 663580 | F21: 671475 | G21: =F21-E21 -> 7895 | H21: =F21/E21-1 -> 0.01189758582
B22: Юридические лица | E22: 16190 | F22: 16364 | G22: =F22-E22 -> 174 | H22: =F22/E22-1 -> 0.01074737492
B23: Нерезиденты | E23: 3784 | F23: 3851 | G23: =F23-E23 -> 67 | H23: =F23/E23-1 -> 0.01770613108
B24: Клиенты, передавшие свои средства в ДУ | E24: 4660 | F24: 4717 | G24: =F24-E24 -> 57 | H24: =F24/E24-1 -> 0.01223175966
B25: Всего | E25: =SUM(E21:E24) -> 688214 | F25: 696407 | G25: =F25-E25 -> 8193 | H25: =F25/E25-1 -> 0.01190472731
B28: Количество активных клиентов в Системе торгов (совершивших в течение месяца хотя бы одну сделку): | H28: Таблица 3
B29: Группы клиентов | E29: за ноябрь 2009 г. | F29: за декабрь 2009 г. | G29: Изменение (ед.) | H29: Изменение (%)
B30: Физические лица | E30: 108762 | F30: 114103 | G30: =F30-E30 -> 5341 | H30: =F30/E30-1 -> 0.04910722495
B31: Юридические лица | E31: 1880 | F31: 2157 | G31: =F31-E31 -> 277 | H31: =F31/E31-1 -> 0.1473404255
B32: Нерезиденты | E32: 671 | F32: 704 | G32: =F32-E32 -> 33 | H32: =F32/E32-1 -> 0.04918032787
B33: Клиенты, передавшие свои средства в ДУ | E33: 2253 | F33: 2404 | G33: =F33-E33 -> 151 | H33: =F33/E33-1 -> 0.06702174878
B34: Всего | E34: =SUM(E30:E33) -> 113566 | F34: 119368 | G34: =F34-E34 -> 5802 | H34: =F34/E34-1 -> 0.05108923445
B38: Изменение количества уникальных клиентов - ретроспективные данные
B42: Количество уникальных клиентов в Системе торгов (ежегодная статистика): | H42: Таблица 1
B43: Группы клиентов | E43: 2007-01-01 | F43: 2008-01-01 | G43: 2009-01-01 | H43: 2010-01-01
B44: Физические лица | E44: 198973 | F44: 417403 | G44: 559320 | H44: 671475
B45: Юридические лица | E45: 10665 | F45: 12703 | G45: 14748 | H45: 16364
B46: Нерезиденты | E46: 1140 | F46: 2078 | G46: 3097 | H46: 3851
B47: Клиенты, передавшие свои средства в ДУ | E47: 2839 | F47: 4061 | G47: 4512 | H47: 4717
B48: Всего | E48: =SUM(E44:E47) -> 213617 | F48: =SUM(F44:F47) -> 436245 | G48: =SUM(G44:G47) -> 581677 | H48: =SUM(H44:H47) -> 696407
B76: Количество уникальных клиентов в Системе торгов (за последние 6 месяцев): | H76: Таблица 2
B77: Группы клиентов | C77: 2009-08-01 | D77: 2009-09-01 | E77: 2009-10-01 | F77: 2009-11-01 | G77: 2009-12-01 | H77: 2010-01-01
B78: Физические лица | C78: 629527 | D78: 635273 | E78: 643480 | F78: 653201 | G78: 663580 | H78: 671475
B79: Юридические лица | C79: 15745 | D79: 15846 | E79: 15957 | F79: 16065 | G79: 16190 | H79: 16364
B80: Нерезиденты | C80: 3549 | D80: 3584 | E80: 3642 | F80: 3722 | G80: 3784 | H80: 3851
B81: Клиенты, передавшие свои средства в ДУ | C81: 4672 | D81: 4678 | E81: 4592 | F81: 4625 | G81: 4660 | H81: 4717
B82: Всего | C82: 653494 | D82: 659381 | E82: 667671 | F82: 677613 | G82: 688214 | H82: =SUM(H78:H81) -> 696407
B118: Дополнительные показатели по клиентам
B121: на 01.01.2010 г. | H121: Таблица 1
B122: Категории Участников торгов/клиентов | F122: Абсолютные показатели | G122: Доля от общего количества | H122: Количество организаций, допущенных к торгам
B123: Количество Участников торгов, имеющих зарегистрированных клиентов | F123: 598 | G123: =F123/H123 -> 1.054673721 | H123: 567
B124: Количество стран мира, представленных клиентами-нерезидентами | F124: 94
B125: Количество Участников торгов, зарегистрировавших клиентов-нерезидентов | F125: 313 | G125: =F125/H125 -> 0.5520282187 | H125: 567
B126: Количество клиентов, подписавших Декларацию о рисках с целью совершения сделок с ценными бумагами, включёнными в Котировальный список "И" | F126: 119 286 (уникальных - 90 062)
B127: Количество Участников торгов, зарегистрировавших клиентов, имеющих намерение совершать сделки с ценными бумагами, включёнными в Котировальный список "И" | F127: 403 | G127: =F127/H127 -> 0.7107583774 | H127: 567
B131: Списки ведущих операторов фондового рынка - клиенты Участников торгов (за декабрь 2009 г.)
B134: Ведущие операторы рынка – число зарегистрированных уникальных клиентов | H134: Таблица 1
B135: Наименование Участника торгов | G135: Количество клиентов
B136: Сбербанк России (ОАО) | G136: 207507
B137: ВТБ 24 (ЗАО) | G137: 153179
B138: «ФИНАМ» (ЗАО) | G138: 80191
B139: «Компания Брокеркредитсервис» (ООО) | G139: 62383
B140: «АЛЬФА-БАHK» (ОАО) | G140: 37478
B141: «АТОН» (ООО) | G141: 31142
B142: ГК «АЛОР» | G142: 15268
B143: ФК «ОТКРЫТИЕ» (ООО) | G143: 14320
B144: КИТ Финанс (ООО) | G144: 12684
B145: «НЭТТРЭЙДЕР» (ООО) | G145: 9636
B148: Ведущие операторы рынка – число активных клиентов | H148: Таблица 2
B149: Наименование Участника торгов | G149: Количество клиентов
B150: «ФИНАМ» (ЗАО) | G150: 21497
B151: Сбербанк России (ОАО) | G151: 18842
B152: «Компания Брокеркредитсервис» (ООО) | G152: 18113
B153: ВТБ 24 (ЗАО) | G153: 10200
B154: «АТОН» (ООО) | G154: 7579
B155: «АЛЬФА-БАHK» (ОАО) | G155: 6575
B156: КИТ Финанс (ООО) | G156: 3531
B157: ГК «АЛОР» | G157: 3222
B158: ФК «ОТКРЫТИЕ» (ООО) | G158: 3189
B159: «НЭТТРЭЙДЕР» (ООО) | G159: 1862
B162: Ведущие операторы рынка – объем клиентских операций | H162: Таблица 3
B163: Наименование Участника торгов | G163: Торговый оборот, руб.
B164: ИК «Тройка Диалог» (ЗАО) | G164: 579210050698
B165: «Компания Брокеркредитсервис» (ООО) | G165: 464485556460
B166: «ФИНАМ» (ЗАО) | G166: 432796832290
B167: ГК «АЛОР» | G167: 202896788696
B168: «АТОН» (ООО) | G168: 186790054377
B169: ВТБ 24 (ЗАО) | G169: 179325832340
B170: ФК «ОТКРЫТИЕ» (ООО) | G170: 146913069914
B171: ИК «Церих Кэпитал Менеджмент» (ОАО) | G171: 139561112280
B172: «ВБРР» (ОАО) | G172: 114268096322
B173: КИТ Финанс (ООО) | G173: 82187554530

Sheet Январь2010
B2: Клиенты Участников торгов Фондовой биржи ММВБ
B3: ЯНВАРЬ '10
B6: Динамика количества клиентов за январь 2010 г.
B10: Количество зарегистрированных клиентов в Системе торгов: | H10: Таблица 1
B11: Группы клиентов | E11: 2010-01-01 | F11: 2010-02-01 | G11: Изменение (ед.) | H11: Изменение (%)
B12: Физические лица | E12: 815897 | F12: 824961 | G12: =F12-E12 -> 9064 | H12: =F12/E12-1 -> 0.01110924541
B13: Юридические лица | E13: 34439 | F13: 34599 | G13: =F13-E13 -> 160 | H13: =F13/E13-1 -> 0.004645895642
B14: Нерезиденты | E14: 7098 | F14: 7159 | G14: =F14-E14 -> 61 | H14: =F14/E14-1 -> 0.008593970132
B15: Клиенты, передавшие свои средства в ДУ | E15: 13659 | F15: 13777 | G15: =F15-E15 -> 118 | H15: =F15/E15-1 -> 0.008638992606
B16: Всего | E16: 871093 | F16: 880496 | G16: =F16-E16 -> 9403 | H16: =F16/E16-1 -> 0.01079448463
B19: Количество уникальных клиентов в Системе торгов: | H19: Таблица 2
B20: Группы клиентов | E20: 2010-01-01 | F20: 2010-02-01 | G20: Изменение (ед.) | H20: Изменение (%)
B21: Физические лица | E21: 671475 | F21: 677996 | G21: =F21-E21 -> 6521 | H21: =F21/E21-1 -> 0.009711456123
B22: Юридические лица | E22: 16364 | F22: 16468 | G22: =F22-E22 -> 104 | H22: =F22/E22-1 -> 0.006355414324
B23: Нерезиденты | E23: 3851 | F23: 3877 | G23: =F23-E23 -> 26 | H23: =F23/E23-1 -> 0.006751493119
B24: Клиенты, передавшие свои средства в ДУ | E24: 4717 | F24: 4709 | G24: =F24-E24 -> -8 | H24: =F24/E24-1 -> -0.001695993216
B25: Всего | E25: 696407 | F25: 703050 | G25: =F25-E25 -> 6643 | H25: =F25/E25-1 -> 0.00953896213
B28: Количество активных клиентов в Системе торгов (совершивших в течение месяца хотя бы одну сделку): | H28: Таблица 3
B29: Группы клиентов | E29: за декабрь 2009 г. | F29: за январь 2010 г. | G29: Изменение (ед.) | H29: Изменение (%)
B30: Физические лица | E30: 114103 | F30: 108655 | G30: =F30-E30 -> -5448 | H30: =F30/E30-1 -> -0.04774633445
B31: Юридические лица | E31: 2157 | F31: 1775 | G31: =F31-E31 -> -382 | H31: =F31/E31-1 -> -0.177097821
B32: Нерезиденты | E32: 704 | F32: 602 | G32: =F32-E32 -> -102 | H32: =F32/E32-1 -> -0.1448863636
B33: Клиенты, передавшие свои средства в ДУ | E33: 2404 | F33: 2276 | G33: =F33-E33 -> -128 | H33: =F33/E33-1 -> -0.05324459235
B34: Всего | E34: 119368 | F34: 113308 | G34: =F34-E34 -> -6060 | H34: =F34/E34-1 -> -0.05076737484
B38: Изменение количества уникальных клиентов - ретроспективные данные
B42: Количество уникальных клиентов в Системе торгов (ежегодная статистика): | H42: Таблица 1
B43: Группы клиентов | E43: 2007-01-01 | F43: 2008-01-01 | G43: 2009-01-01 | H43: 2010-01-01
B44: Физические лица | E44: 198973 | F44: 417403 | G44: 559320 | H44: 671475
B45: Юридические лица | E45: 10665 | F45: 12703 | G45: 14748 | H45: 16364
B46: Нерезиденты | E46: 1140 | F46: 2078 | G46: 3097 | H46: 3851
B47: Клиенты, передавшие свои средства в ДУ | E47: 2839 | F47: 4061 | G47: 4512 | H47: 4717
B48: Всего | E48: =SUM(E44:E47) -> 213617 | F48: =SUM(F44:F47) -> 436245 | G48: =SUM(G44:G47) -> 581677 | H48: =SUM(H44:H47) -> 696407
B76: Количество уникальных клиентов в Системе торгов (за последние 6 месяцев): | H76: Таблица 2
B77: Группы клиентов | C77: 2009-09-01 | D77: 2009-10-01 | E77: 2009-11-01 | F77: 2009-12-01 | G77: 2010-01-01 | H77: 2010-02-01
B78: Физические лица | C78: 635273 | D78: 643480 | E78: 653201 | F78: 663580 | G78: 671475 | H78: 677996
B79: Юридические лица | C79: 15846 | D79: 15957 | E79: 16065 | F79: 16190 | G79: 16364 | H79: 16468
B80: Нерезиденты | C80: 3584 | D80: 3642 | E80: 3722 | F80: 3784 | G80: 3851 | H80: 3877
B81: Клиенты, передавшие свои средства в ДУ | C81: 4678 | D81: 4592 | E81: 4625 | F81: 4660 | G81: 4717 | H81: 4709
B82: Всего | C82: 659381 | D82: 667671 | E82: 677613 | F82: 688214 | G82: =SUM(G78:G81) -> 696407 | H82: 703050
B118: Дополнительные показатели по клиентам
B121: на 01.02.2010 г. | H121: Таблица 1
B122: Категории Участников торгов/клиентов | F122: Абсолютные показатели | G122: Доля от общего количества | H122: Количество организаций, допущенных к торгам
B123: Количество Участников торгов, имеющих зарегистрированных клиентов | F123: 602 | G123: =F123/H123 -> 1.061728395 | H123: 567
B124: Количество стран мира, представленных клиентами-нерезидентами | F124: 94
B125: Количество Участников торгов, зарегистрировавших клиентов-нерезидентов | F125: 314 | G125: =F125/H125 -> 0.5537918871 | H125: 567
B126: Количество клиентов, подписавших Декларацию о рисках с целью совершения сделок с ценными бумагами, включёнными в Котировальный список "И" | F126: 122 544 (уникальных - 92 146)
B127: Количество Участников торгов, зарегистрировавших клиентов, имеющих намерение совершать сделки с ценными бумагами, включёнными в Котировальный список "И" | F127: 408 | G127: =F127/H127 -> 0.7195767196 | H127: 567
B131: Списки ведущих операторов фондового рынка - клиенты Участников торгов (за январь 2010 г.)
B134: Ведущие операторы рынка – число зарегистрированных уникальных клиентов | H134: Таблица 1
B135: Наименование Участника торгов | G135: Количество клиентов
B136: Сбербанк России (ОАО) | G136: 209471
B137: ВТБ 24 (ЗАО) | G137: 153634
B138: «ФИНАМ» (ЗАО) | G138: 81904
B139: «Компания Брокеркредитсервис» (ООО) | G139: 63310
B140: «АЛЬФА-БАHK» (ОАО) | G140: 38181
B141: «АТОН» (ООО) | G141: 31533
B142: ГК «АЛОР» | G142: 15401
B143: ФК «ОТКРЫТИЕ» (ООО) | G143: 14644
B144: КИТ Финанс (ООО) | G144: 12914
B145: «НЭТТРЭЙДЕР» (ООО) | G145: 9630
B148: Ведущие операторы рынка – число активных клиентов | H148: Таблица 2
B149: Наименование Участника торгов | G149: Количество клиентов
B150: «ФИНАМ» (ЗАО) | G150: 21199
B151: «Компания Брокеркредитсервис» (ООО) | G151: 17319
B152: Сбербанк России (ОАО) | G152: 17048
B153: ВТБ 24 (ЗАО) | G153: 9759
B154: «АТОН» (ООО) | G154: 7297
B155: «АЛЬФА-БАHK» (ОАО) | G155: 6276
B156: КИТ Финанс (ООО) | G156: 3388
B157: ФК «ОТКРЫТИЕ» (ООО) | G157: 3078
B158: ГК «АЛОР» | G158: 3053
B159: «НЭТТРЭЙДЕР» (ООО) | G159: 1784
B162: Ведущие операторы рынка – объем клиентских операций | H162: Таблица 3
B163: Наименование Участника торгов | G163: Торговый оборот, руб.
B164: ИК «Тройка Диалог» (ЗАО) | G164: 349505235940
B165: «ФИНАМ» (ЗАО) | G165: 307252477949
B166: «Компания Брокеркредитсервис» (ООО) | G166: 266434532190
B167: ГК «АЛОР» | G167: 154730265055
B168: ВТБ 24 (ЗАО) | G168: 135975185130
B169: «АТОН» (ООО) | G169: 126252975265
B170: ФК «ОТКРЫТИЕ» (ООО) | G170: 119230614914
B171: ИК «Церих Кэпитал Менеджмент» (ОАО) | G171: 88561225725
B172: «ИК ВЕЛЕС Капитал» (ООО) | G172: 74338968109
B173: КИТ Финанс (ООО) | G173: 57972898450

Sheet Февраль2010
B2: Клиенты Участников торгов Фондовой биржи ММВБ
B3: ФЕВРАЛЬ '10
B6: Динамика количества клиентов за февраль 2010 г.
B10: Количество зарегистрированных клиентов в Системе торгов: | H10: Таблица 1
B11: Группы клиентов | E11: 2010-02-01 | F11: 2010-03-01 | G11: Изменение (ед.) | H11: Изменение (%)
B12: Физические лица | E12: 824961 | F12: 836121 | G12: =F12-E12 -> 11160 | H12: =F12/E12-1 -> 0.01352791223
B13: Юридические лица | E13: 34599 | F13: 34707 | G13: =F13-E13 -> 108 | H13: =F13/E13-1 -> 0.003121477499
B14: Нерезиденты | E14: 7159 | F14: 7215 | G14: =F14-E14 -> 56 | H14: =F14/E14-1 -> 0.007822321553
B15: Клиенты, передавшие свои средства в ДУ | E15: 13777 | F15: 13955 | G15: =F15-E15 -> 178 | H15: =F15/E15-1 -> 0.0129200842
B16: Всего | E16: 880496 | F16: 891998 | G16: =F16-E16 -> 11502 | H16: =F16/E16-1 -> 0.01306309171
B19: Количество уникальных клиентов в Системе торгов: | H19: Таблица 2
B20: Группы клиентов | E20: 2010-02-01 | F20: 2010-03-01 | G20: Изменение (ед.) | H20: Изменение (%)
B21: Физические лица | E21: 677996 | F21: 685978 | G21: =F21-E21 -> 7982 | H21: =F21/E21-1 -> 0.01177293081
B22: Юридические лица | E22: 16468 | F22: 16528 | G22: =F22-E22 -> 60 | H22: =F22/E22-1 -> 0.003643429682
B23: Нерезиденты | E23: 3877 | F23: 3920 | G23: =F23-E23 -> 43 | H23: =F23/E23-1 -> 0.01109104978
B24: Клиенты, передавшие свои средства в ДУ | E24: 4709 | F24: 4767 | G24: =F24-E24 -> 58 | H24: =F24/E24-1 -> 0.01231684009
B25: Всего | E25: 703050 | F25: 711193 | G25: =F25-E25 -> 8143 | H25: =F25/E25-1 -> 0.01158239101
B28: Количество активных клиентов в Системе торгов (совершивших в течение месяца хотя бы одну сделку): | H28: Таблица 3
B29: Группы клиентов | E29: за январь 2010 г. | F29: за февраль 2010 г. | G29: Изменение (ед.) | H29: Изменение (%)
B30: Физические лица | E30: 108655 | F30: 105636 | G30: =F30-E30 -> -3019 | H30: =F30/E30-1 -> -0.02778519166
B31: Юридические лица | E31: 1775 | F31: 1790 | G31: =F31-E31 -> 15 | H31: =F31/E31-1 -> 0.008450704225
B32: Нерезиденты | E32: 602 | F32: 654 | G32: =F32-E32 -> 52 | H32: =F32/E32-1 -> 0.08637873754
B33: Клиенты, передавшие свои средства в ДУ | E33: 2276 | F33: 2414 | G33: =F33-E33 -> 138 | H33: =F33/E33-1 -> 0.06063268893
B34: Всего | E34: 113308 | F34: 110494 | G34: =F34-E34 -> -2814 | H34: =F34/E34-1 -> -0.02483496311
B38: Изменение количества уникальных клиентов - ретроспективные данные
B42: Количество уникальных клиентов в Системе торгов (ежегодная статистика): | H42: Таблица 1
B43: Группы клиентов | E43: 2007-01-01 | F43: 2008-01-01 | G43: 2009-01-01 | H43: 2010-01-01
B44: Физические лица | E44: 198973 | F44: 417403 | G44: 559320 | H44: 671475
B45: Юридические лица | E45: 10665 | F45: 12703 | G45: 14748 | H45: 16364
B46: Нерезиденты | E46: 1140 | F46: 2078 | G46: 3097 | H46: 3851
B47: Клиенты, передавшие свои средства в ДУ | E47: 2839 | F47: 4061 | G47: 4512 | H47: 4717
B48: Всего | E48: =SUM(E44:E47) -> 213617 | F48: =SUM(F44:F47) -> 436245 | G48: =SUM(G44:G47) -> 581677 | H48: =SUM(H44:H47) -> 696407
B76: Количество уникальных клиентов в Системе торгов (за последние 6 месяцев): | H76: Таблица 2
B77: Группы клиентов | C77: 2009-10-01 | D77: 2009-11-01 | E77: 2009-12-01 | F77: 2010-01-01 | G77: 2010-02-01 | H77: 2010-03-01
B78: Физические лица | C78: 643480 | D78: 653201 | E78: 663580 | F78: 671475 | G78: 677996 | H78: 685978
B79: Юридические лица | C79: 15957 | D79: 16065 | E79: 16190 | F79: 16364 | G79: 16468 | H79: 16528
B80: Нерезиденты | C80: 3642 | D80: 3722 | E80: 3784 | F80: 3851 | G80: 3877 | H80: 3920
B81: Клиенты, передавшие свои средства в ДУ | C81: 4592 | D81: 4625 | E81: 4660 | F81: 4717 | G81: 4709 | H81: 4767
B82: Всего | C82: 667671 | D82: 677613 | E82: 688214 | F82: =SUM(F78:F81) -> 696407 | G82: 703050 | H82: 711193
B118: Дополнительные показатели по клиентам
B121: на 01.03.2010 г. | H121: Таблица 1
B122: Категории Участников торгов/клиентов | F122: Абсолютные показатели | G122: Доля от общего количества | H122: Количество организаций, допущенных к торгам
B123: Количество Участников торгов, имеющих зарегистрированных клиентов | F123: 606 | G123: =F123/H123 -> 1.091891892 | H123: 555
B124: Количество стран мира, представленных клиентами-нерезидентами | F124: 95
B125: Количество Участников торгов, зарегистрировавших клиентов-нерезидентов | F125: 316 | G125: =F125/H125 -> 0.5693693694 | H125: 555
B126: Количество клиентов, подписавших Декларацию о рисках с целью совершения сделок с ценными бумагами, включёнными в Котировальный список "И" | F126: 126 680 (уникальных - 94 957)
B127: Количество Участников торгов, зарегистрировавших клиентов, имеющих намерение совершать сделки с ценными бумагами, включёнными в Котировальный список "И" | F127: 411 | G127: =F127/H127 -> 0.7405405405 | H127: 555
B131: Списки ведущих операторов фондового рынка - клиенты Участников торгов (за январь 2010 г.)
B134: Ведущие операторы рынка – число зарегистрированных уникальных клиентов | H134: Таблица 1
B135: Наименование Участника торгов | G135: Количество клиентов
B136: Сбербанк России (ОАО) | G136: 211332
B137: ВТБ 24 (ЗАО) | G137: 154236
B138: «ФИНАМ» (ЗАО) | G138: 83983
B139: «Компания Брокеркредитсервис» (ООО) | G139: 64451
B140: «АЛЬФА-БАHK» (ОАО) | G140: 39132
B141: «АТОН» (ООО) | G141: 31904
B142: ГК «АЛОР» | G142: 15579
B143: ФК «ОТКРЫТИЕ» (ООО) | G143: 15154
B144: КИТ Финанс (ООО) | G144: 13233
B145: «НЭТТРЭЙДЕР» (ООО) | G145: 9648
B148: Ведущие операторы рынка – число активных клиентов | H148: Таблица 2
B149: Наименование Участника торгов | G149: Количество клиентов
B150: «ФИНАМ» (ЗАО) | G150: 20757
B151: «Компания Брокеркредитсервис» (ООО) | G151: 17409
B152: Сбербанк России (ОАО) | G152: 14357
B153: ВТБ 24 (ЗАО) | G153: 9772
B154: «АТОН» (ООО) | G154: 7177
B155: «АЛЬФА-БАHK» (ОАО) | G155: 6549
B156: КИТ Финанс (ООО) | G156: 3408
B157: ФК «ОТКРЫТИЕ» (ООО) | G157: 3064
B158: ГК «АЛОР» | G158: 3077
B159: «НЭТТРЭЙДЕР» (ООО) | G159: 1751
B162: Ведущие операторы рынка – объем клиентских операций | H162: Таблица 3
B163: Наименование Участника торгов | G163: Торговый оборот, руб.
B164: ИК «Тройка Диалог» (ЗАО) | G164: 578744469452
B165: «ФИНАМ» (ЗАО) | G165: 405975378880
B166: «Компания Брокеркредитсервис» (ООО) | G166: 373837362411
B167: ГК «АЛОР» | G167: 201838188758
B168: ФК «ОТКРЫТИЕ» (ООО) | G168: 172619944972
B169: ВТБ 24 (ЗАО) | G169: 168371681645
B170: ИК «Церих Кэпитал Менеджмент» (ОАО) | G170: 139104271869
B171: «АТОН» (ООО) | G171: 134246848113
B172: «ИК ВЕЛЕС Капитал» (ООО) | G172: 93886516026
B173: КИТ Финанс (ООО) | G173: 79563688043

Sheet Март2010
B2: Клиенты Участников торгов Фондовой биржи ММВБ
B3: МАРТ '10
B6: Динамика количества клиентов за Март 2010 г.
B10: Количество зарегистрированных клиентов в Системе торгов: | H10: Таблица 1
B11: Группы клиентов | E11: 2010-03-01 | F11: 2010-04-01 | G11: Изменение (ед.) | H11: Изменение (%)
B12: Физические лица | E12: 836121 | F12: 854568 | G12: =F12-E12 -> 18447 | H12: =F12/E12-1 -> 0.0220625962
B13: Юридические лица | E13: 34707 | F13: 34909 | G13: =F13-E13 -> 202 | H13: =F13/E13-1 -> 0.005820151554
B14: Нерезиденты | E14: 7215 | F14: 7286 | G14: =F14-E14 -> 71 | H14: =F14/E14-1 -> 0.009840609841
B15: Клиенты, передавшие свои средства в ДУ | E15: 13955 | F15: 14244 | G15: =F15-E15 -> 289 | H15: =F15/E15-1 -> 0.02070942315
B16: Всего | E16: 891998 | F16: 911007 | G16: =F16-E16 -> 19009 | H16: =F16/E16-1 -> 0.0213105859
B19: Количество уникальных клиентов в Системе торгов: | H19: Таблица 2
B20: Группы клиентов | E20: 2010-03-01 | F20: 2010-04-01 | G20: Изменение (ед.) | H20: Изменение (%)
B21: Физические лица | E21: 685978 | F21: 697291 | G21: =F21-E21 -> 11313 | H21: =F21/E21-1 -> 0.01649178254
B22: Юридические лица | E22: 16528 | F22: 16723 | G22: =F22-E22 -> 195 | H22: =F22/E22-1 -> 0.0117981607
B23: Нерезиденты | E23: 3920 | F23: 3985 | G23: =F23-E23 -> 65 | H23: =F23/E23-1 -> 0.01658163265
B24: Клиенты, передавшие свои средства в ДУ | E24: 4767 | F24: 4866 | G24: =F24-E24 -> 99 | H24: =F24/E24-1 -> 0.02076777848
B25: Всего | E25: 711193 | F25: 722865 | G25: =F25-E25 -> 11672 | H25: =F25/E25-1 -> 0.01641186007
B28: Количество активных клиентов в Системе торгов (совершивших в течение месяца хотя бы одну сделку): | H28: Таблица 3
B29: Группы клиентов | E29: за февраль 2010 г. | F29: за март 2010 г. | G29: Изменение (ед.) | H29: Изменение (%)
B30: Физические лица | E30: 105636 | F30: 113025 | G30: =F30-E30 -> 7389 | H30: =F30/E30-1 -> 0.06994774509
B31: Юридические лица | E31: 1790 | F31: 2025 | G31: =F31-E31 -> 235 | H31: =F31/E31-1 -> 0.1312849162
B32: Нерезиденты | E32: 654 | F32: 719 | G32: =F32-E32 -> 65 | H32: =F32/E32-1 -> 0.0993883792
B33: Клиенты, передавшие свои средства в ДУ | E33: 2414 | F33: 2758 | G33: =F33-E33 -> 344 | H33: =F33/E33-1 -> 0.1425020713
B34: Всего | E34: 110494 | F34: =SUM(F30:F33) -> 118527 | G34: =F34-E34 -> 8033 | H34: =F34/E34-1 -> 0.07270078013
B38: Изменение количества уникальных клиентов - ретроспективные данные
B42: Количество уникальных клиентов в Системе торгов (ежегодная статистика): | H42: Таблица 1
B43: Группы клиентов | E43: 2007-01-01 | F43: 2008-01-01 | G43: 2009-01-01 | H43: 2010-01-01
B44: Физические лица | E44: 198973 | F44: 417403 | G44: 559320 | H44: 671475
B45: Юридические лица | E45: 10665 | F45: 12703 | G45: 14748 | H45: 16364
B46: Нерезиденты | E46: 1140 | F46: 2078 | G46: 3097 | H46: 3851
B47: Клиенты, передавшие свои средства в ДУ | E47: 2839 | F47: 4061 | G47: 4512 | H47: 4717
B48: Всего | E48: =SUM(E44:E47) -> 213617 | F48: =SUM(F44:F47) -> 436245 | G48: =SUM(G44:G47) -> 581677 | H48: =SUM(H44:H47) -> 696407
B76: Количество уникальных клиентов в Системе торгов (за последние 6 месяцев): | H76: Таблица 2
B77: Группы клиентов | C77: 2009-11-01 | D77: 2009-12-01 | E77: 2010-01-01 | F77: 2010-02-01 | G77: 2010-03-01 | H77: 2010-04-01
B78: Физические лица | C78: 653201 | D78: 663580 | E78: 671475 | F78: 677996 | G78: 685978 | H78: 697291
B79: Юридические лица | C79: 16065 | D79: 16190 | E79: 16364 | F79: 16468 | G79: 16528 | H79: 16723
B80: Нерезиденты | C80: 3722 | D80: 3784 | E80: 3851 | F80: 3877 | G80: 3920 | H80: 3985
B81: Клиенты, передавшие свои средства в ДУ | C81: 4625 | D81: 4660 | E81: 4717 | F81: 4709 | G81: 4767 | H81: 4866
B82: Всего | C82: 677613 | D82: 688214 | E82: 696407 | F82: 703050 | G82: 711193 | H82: 722865
B118: Дополнительные показатели по клиентам
B121: на 01.03.2010 г. | H121: Таблица 1
B122: Категории Участников торгов/клиентов | F122: Абсолютные показатели | G122: Доля от общего количества | H122: Количество организаций, допущенных к торгам
B123: Количество Участников торгов, имеющих зарегистрированных клиентов | F123: 609 | G123: =F123/H123 -> 1.081705151 | H123: 563
B124: Количество стран мира, представленных клиентами-нерезидентами | F124: 96
B125: Количество Участников торгов, зарегистрировавших клиентов-нерезидентов | F125: 319 | G125: =F125/H125 -> 0.56660746 | H125: =H123 -> 563
B126: Количество клиентов, подписавших Декларацию о рисках с целью совершения сделок с ценными бумагами, включёнными в Котировальный список "И" | F126: 131 304 (уникальных - 98 312)
B127: Количество Участников торгов, зарегистрировавших клиентов, имеющих намерение совершать сделки с ценными бумагами, включёнными в Котировальный список "И" | F127: 417 | G127: =F127/H127 -> 0.7406749556 | H127: =H123 -> 563
B131: Списки ведущих операторов фондового рынка - клиенты Участников торгов (за январь 2010 г.)
B134: Ведущие операторы рынка – число зарегистрированных уникальных клиентов | H134: Таблица 1
B135: Наименование Участника торгов | G135: Количество клиентов
B136: Сбербанк России (ОАО) | C136: Сбербанк России (ОАО) | D136: Сбербанк России (ОАО) | E136: Сбербанк России (ОАО) | F136: Сбербанк России (ОАО) | G136: 213658 | H136: 213658
B137: ВТБ 24 (ЗАО) | C137: ВТБ 24 (ЗАО) | D137: ВТБ 24 (ЗАО) | E137: ВТБ 24 (ЗАО) | F137: ВТБ 24 (ЗАО) | G137: 154838 | H137: 154838
B138: "ФИНАМ" (ЗАО) | C138: "ФИНАМ" (ЗАО) | D138: "ФИНАМ" (ЗАО) | E138: "ФИНАМ" (ЗАО) | F138: "ФИНАМ" (ЗАО) | G138: 86186 | H138: 86186
B139: "Компания Брокеркредитсервис" (ООО) | C139: "Компания Брокеркредитсервис" (ООО) | D139: "Компания Брокеркредитсервис" (ООО) | E139: "Компания Брокеркредитсервис" (ООО) | F139: "Компания Брокеркредитсервис" (ООО) | G139: 65927 | H139: 65927
B140: "АЛЬФА-БАHK" (ОАО) | C140: "АЛЬФА-БАHK" (ОАО) | D140: "АЛЬФА-БАHK" (ОАО) | E140: "АЛЬФА-БАHK" (ОАО) | F140: "АЛЬФА-БАHK" (ОАО) | G140: 40134 | H140: 40134
B141: "АТОН" (ООО) | C141: "АТОН" (ООО) | D141: "АТОН" (ООО) | E141: "АТОН" (ООО) | F141: "АТОН" (ООО) | G141: 32431 | H141: 32431
B142: ФК "ОТКРЫТИЕ" (ООО) | C142: ФК "ОТКРЫТИЕ" (ООО) | D142: ФК "ОТКРЫТИЕ" (ООО) | E142: ФК "ОТКРЫТИЕ" (ООО) | F142: ФК "ОТКРЫТИЕ" (ООО) | G142: 15969 | H142: 15969
B143: ГК "АЛОР" | C143: ГК "АЛОР" | D143: ГК "АЛОР" | E143: ГК "АЛОР" | F143: ГК "АЛОР" | G143: 15763 | H143: 15763
B144: КИТ Финанс (ООО) | C144: КИТ Финанс (ООО) | D144: КИТ Финанс (ООО) | E144: КИТ Финанс (ООО) | F144: КИТ Финанс (ООО) | G144: 13552 | H144: 13552
B145: "НЭТТРЭЙДЕР" (ООО) | C145: "НЭТТРЭЙДЕР" (ООО) | D145: "НЭТТРЭЙДЕР" (ООО) | E145: "НЭТТРЭЙДЕР" (ООО) | F145: "НЭТТРЭЙДЕР" (ООО) | G145: 9692 | H145: 9692
B148: Ведущие операторы рынка – число активных клиентов | H148: Таблица 2
B149: Наименование Участника торгов | G149: Количество клиентов
B150: "ФИНАМ" (ЗАО) | C150: "ФИНАМ" (ЗАО) | D150: "ФИНАМ" (ЗАО) | E150: "ФИНАМ" (ЗАО) | F150: "ФИНАМ" (ЗАО) | G150: 21700 | H150: 21700
B151: "Компания Брокеркредитсервис" (ООО) | G151: 18410 | H151: 18410
B152: Сбербанк России (ОАО) | G152: 16979 | H152: 16979
B153: ВТБ 24 (ЗАО) | G153: 10357 | H153: 10357
B154: "АТОН" (ООО) | C154: "АТОН" (ООО) | D154: "АТОН" (ООО) | E154: "АТОН" (ООО) | F154: "АТОН" (ООО) | G154: 7569 | H154: 7569
B155: "АЛЬФА-БАHK" (ОАО) | C155: "АЛЬФА-БАHK" (ОАО) | D155: "АЛЬФА-БАHK" (ОАО) | E155: "АЛЬФА-БАHK" (ОАО) | F155: "АЛЬФА-БАHK" (ОАО) | G155: 6870 | H155: 6870
B156: КИТ Финанс (ООО) | C156: КИТ Финанс (ООО) | D156: КИТ Финанс (ООО) | E156: КИТ Финанс (ООО) | F156: КИТ Финанс (ООО) | G156: 3514 | H156: 3514
B157: ФК "ОТКРЫТИЕ" (ООО) | G157: 3323 | H157: 3323
B158: ГК "АЛОР" | G158: 3167 | H158: 3167
B159: "НЭТТРЭЙДЕР" (ООО) | G159: 2235 | H159: 2235
B162: Ведущие операторы рынка – объем клиентских операций | H162: Таблица 3
B163: Наименование Участника торгов | G163: Торговый оборот, руб.
B164: ИК "Тройка Диалог" (ЗАО) | C164: ИК "Тройка Диалог" (ЗАО) | D164: ИК "Тройка Диалог" (ЗАО) | E164: ИК "Тройка Диалог" (ЗАО) | F164: ИК "Тройка Диалог" (ЗАО) | G164: 8.38171123e+11 | H164: 8.38171123e+11
B165: "ФИНАМ" (ЗАО) | C165: "ФИНАМ" (ЗАО) | D165: "ФИНАМ" (ЗАО) | E165: "ФИНАМ" (ЗАО) | F165: "ФИНАМ" (ЗАО) | G165: 5.206943386e+11 | H165: 5.206943386e+11
B166: "Компания Брокеркредитсервис" (ООО) | C166: "Компания Брокеркредитсервис" (ООО) | D166: "Компания Брокеркредитсервис" (ООО) | E166: "Компания Брокеркредитсервис" (ООО) | F166: "Компания Брокеркредитсервис" (ООО) | G166: 4.887610869e+11 | H166: 4.887610869e+11
B167: ГК "АЛОР" | C167: ГК "АЛОР" | D167: ГК "АЛОР" | E167: ГК "АЛОР" | F167: ГК "АЛОР" | G167: 2.366796023e+11 | H167: 2.366796023e+11
B168: ФК "ОТКРЫТИЕ" (ООО) | C168: ФК "ОТКРЫТИЕ" (ООО) | D168: ФК "ОТКРЫТИЕ" (ООО) | E168: ФК "ОТКРЫТИЕ" (ООО) | F168: ФК "ОТКРЫТИЕ" (ООО) | G168: 2.223019335e+11 | H168: 2.223019335e+11
B169: ВТБ 24 (ЗАО) | C169: ВТБ 24 (ЗАО) | D169: ВТБ 24 (ЗАО) | E169: ВТБ 24 (ЗАО) | F169: ВТБ 24 (ЗАО) | G169: 1.802098067e+11 | H169: 1.802098067e+11
B170: "АТОН" (ООО) | C170: "АТОН" (ООО) | D170: "АТОН" (ООО) | E170: "АТОН" (ООО) | F170: "АТОН" (ООО) | G170: 1.558042202e+11 | H170: 1.558042202e+11
B171: "РОНИН" (ООО) | C171: "РОНИН" (ООО) | D171: "РОНИН" (ООО) | E171: "РОНИН" (ООО) | F171: "РОНИН" (ООО) | G171: 1.540750577e+11 | H171: 1.540750577e+11
B172: "ИК ВЕЛЕС Капитал" (ООО) | C172: "ИК ВЕЛЕС Капитал" (ООО) | D172: "ИК ВЕЛЕС Капитал" (ООО) | E172: "ИК ВЕЛЕС Капитал" (ООО) | F172: "ИК ВЕЛЕС Капитал" (ООО) | G172: 1.494833785e+11 | H172: 1.494833785e+11
B173: ИК "Церих Кэпитал Менеджмент" (ОАО) | C173: ИК "Церих Кэпитал Менеджмент" (ОАО) | D173: ИК "Церих Кэпитал Менеджмент" (ОАО) | E173: ИК "Церих Кэпитал Менеджмент" (ОАО) | F173: ИК "Церих Кэпитал Менеджмент" (ОАО) | G173: 1.402902705e+11 | H173: 1.402902705e+11

Sheet Апрель2010
B2: Клиенты Участников торгов Фондовой биржи ММВБ
B3: Апрель '10
B6: Динамика количества клиентов за Апрель 2010 г.
B10: Количество зарегистрированных клиентов в Системе торгов: | H10: Таблица 1
B11: Группы клиентов | E11: 2010-04-01 | F11: 2010-05-01 | G11: Изменение (ед.) | H11: Изменение (%)
B12: Физические лица | E12: 854568 | F12: 867635 | G12: =F12-E12 -> 13067 | H12: =F12/E12-1 -> 0.0152907668
B13: Юридические лица | E13: 34909 | F13: 35181 | G13: =F13-E13 -> 272 | H13: =F13/E13-1 -> 0.007791686958
B14: Нерезиденты | E14: 7286 | F14: 7436 | G14: =F14-E14 -> 150 | H14: =F14/E14-1 -> 0.02058742794
B15: Клиенты, передавшие свои средства в ДУ | E15: 14244 | F15: 14563 | G15: =F15-E15 -> 319 | H15: =F15/E15-1 -> 0.02239539455
B16: Всего | E16: 911007 | F16: 924815 | G16: =F16-E16 -> 13808 | H16: =F16/E16-1 -> 0.0151568539
B19: Количество уникальных клиентов в Системе торгов: | H19: Таблица 2
B20: Группы клиентов | E20: 2010-04-01 | F20: 2010-05-01 | G20: Изменение (ед.) | H20: Изменение (%)
B21: Физические лица | E21: 697291 | F21: 707663 | G21: =F21-E21 -> 10372 | H21: =F21/E21-1 -> 0.01487470798
B22: Юридические лица | E22: 16723 | F22: 16892 | G22: =F22-E22 -> 169 | H22: =F22/E22-1 -> 0.01010584225
B23: Нерезиденты | E23: 3985 | F23: 3790 | G23: =F23-E23 -> -195 | H23: =F23/E23-1 -> -0.04893350063
B24: Клиенты, передавшие свои средства в ДУ | E24: 4866 | F24: 4947 | G24: =F24-E24 -> 81 | H24: =F24/E24-1 -> 0.01664611591
B25: Всего | E25: 722865 | F25: 733292 | G25: =F25-E25 -> 10427 | H25: =F25/E25-1 -> 0.01442454677
B28: Количество активных клиентов в Системе торгов (совершивших в течение месяца хотя бы одну сделку): | H28: Таблица 3
B29: Группы клиентов | E29: за март 2010 г. | F29: за апрель 2010 г. | G29: Изменение (ед.) | H29: Изменение (%)
B30: Физические лица | E30: 113025 | F30: 116094 | G30: =F30-E30 -> 3069 | H30: =F30/E30-1 -> 0.02715328467
B31: Юридические лица | E31: 2025 | F31: 1966 | G31: =F31-E31 -> -59 | H31: =F31/E31-1 -> -0.02913580247
B32: Нерезиденты | E32: 719 | F32: 711 | G32: =F32-E32 -> -8 | H32: =F32/E32-1 -> -0.01112656467
B33: Клиенты, передавшие свои средства в ДУ | E33: 2758 | F33: 2926 | G33: =F33-E33 -> 168 | H33: =F33/E33-1 -> 0.06091370558
B34: Всего | E34: =SUM(E30:E33) -> 118527 | F34: 121679 | G34: =F34-E34 -> 3152 | H34: =F34/E34-1 -> 0.02659309693
B38: Изменение количества уникальных клиентов - ретроспективные данные
B42: Количество уникальных клиентов в Системе торгов (ежегодная статистика): | H42: Таблица 1
B43: Группы клиентов | E43: 2007-01-01 | F43: 2008-01-01 | G43: 2009-01-01 | H43: 2010-01-01
B44: Физические лица | E44: 198973 | F44: 417403 | G44: 559320 | H44: 671475
B45: Юридические лица | E45: 10665 | F45: 12703 | G45: 14748 | H45: 16364
B46: Нерезиденты | E46: 1140 | F46: 2078 | G46: 3097 | H46: 3851
B47: Клиенты, передавшие свои средства в ДУ | E47: 2839 | F47: 4061 | G47: 4512 | H47: 4717
B48: Всего | E48: =SUM(E44:E47) -> 213617 | F48: =SUM(F44:F47) -> 436245 | G48: =SUM(G44:G47) -> 581677 | H48: =SUM(H44:H47) -> 696407
B76: Количество уникальных клиентов в Системе торгов (за последние 6 месяцев): | H76: Таблица 2
B77: Группы клиентов | C77: 2009-12-01 | D77: 2010-01-01 | E77: 2010-02-01 | F77: 2010-03-01 | G77: 2010-04-01 | H77: 2010-05-01
B78: Физические лица | C78: 663580 | D78: 671475 | E78: 677996 | F78: 685978 | G78: 697291 | H78: 707663
B79: Юридические лица | C79: 16190 | D79: 16364 | E79: 16468 | F79: 16528 | G79: 16723 | H79: 16892
B80: Нерезиденты | C80: 3784 | D80: 3851 | E80: 3877 | F80: 3920 | G80: 3985 | H80: 3790
B81: Клиенты, передавшие свои средства в ДУ | C81: 4660 | D81: 4717 | E81: 4709 | F81: 4767 | G81: 4866 | H81: 4947
B82: Всего | C82: 688214 | D82: 696407 | E82: 703050 | F82: 711193 | G82: 722865 | H82: 733292
B118: Дополнительные показатели по клиентам
B121: на 01.03.2010 г. | H121: Таблица 1
B122: Категории Участников торгов/клиентов | F122: Абсолютные показатели | G122: Доля от общего количества | H122: Количество организаций, допущенных к торгам
B123: Количество Участников торгов, имеющих зарегистрированных клиентов | F123: 612 | G123: =F123/H123 -> 1.087033748 | H123: 563
B124: Количество стран мира, представленных клиентами-нерезидентами | F124: 96
B125: Количество Участников торгов, зарегистрировавших клиентов-нерезидентов | F125: 323 | G125: =F125/H125 -> 0.5737122558 | H125: =H123 -> 563
B126: Количество клиентов, подписавших Декларацию о рисках с целью совершения сделок с ценными бумагами, включёнными в Котировальный список "И" | F126: 136 131 (уникальных - 101 601)
B127: Количество Участников торгов, зарегистрировавших клиентов, имеющих намерение совершать сделки с ценными бумагами, включёнными в Котировальный список "И" | F127: 423 | G127: =F127/H127 -> 0.7513321492 | H127: =H123 -> 563
B131: Списки ведущих операторов фондового рынка - клиенты Участников торгов (за апрель 2010 г.)
B134: Ведущие операторы рынка – число зарегистрированных уникальных клиентов | H134: Таблица 1
B135: Наименование Участника торгов | G135: Количество клиентов
B136: Сбербанк России (ОАО) | C136: Сбербанк России (ОАО) | D136: Сбербанк России (ОАО) | E136: Сбербанк России (ОАО) | F136: Сбербанк России (ОАО) | G136: 215996 | H136: 215996
B137: ВТБ 24 (ЗАО) | C137: ВТБ 24 (ЗАО) | D137: ВТБ 24 (ЗАО) | E137: ВТБ 24 (ЗАО) | F137: ВТБ 24 (ЗАО) | G137: 155330 | H137: 155330
B138: "ФИНАМ" (ЗАО) | C138: "ФИНАМ" (ЗАО) | D138: "ФИНАМ" (ЗАО) | E138: "ФИНАМ" (ЗАО) | F138: "ФИНАМ" (ЗАО) | G138: 88304 | H138: 88304
B139: "Компания Брокеркредитсервис" (ООО) | C139: "Компания Брокеркредитсервис" (ООО) | D139: "Компания Брокеркредитсервис" (ООО) | E139: "Компания Брокеркредитсервис" (ООО) | F139: "Компания Брокеркредитсервис" (ООО) | G139: 67334 | H139: 67334
B140: "АЛЬФА-БАHK" (ОАО) | C140: "АЛЬФА-БАHK" (ОАО) | D140: "АЛЬФА-БАHK" (ОАО) | E140: "АЛЬФА-БАHK" (ОАО) | F140: "АЛЬФА-БАHK" (ОАО) | G140: 41099 | H140: 41099
B141: "АТОН" (ООО) | C141: "АТОН" (ООО) | D141: "АТОН" (ООО) | E141: "АТОН" (ООО) | F141: "АТОН" (ООО) | G141: 32994 | H141: 32994
B142: ГК "АЛОР" | C142: ГК "АЛОР" | D142: ГК "АЛОР" | E142: ГК "АЛОР" | F142: ГК "АЛОР" | G142: 20171 | H142: 20171
B143: ФК "ОТКРЫТИЕ" (ООО) | C143: ФК "ОТКРЫТИЕ" (ООО) | D143: ФК "ОТКРЫТИЕ" (ООО) | E143: ФК "ОТКРЫТИЕ" (ООО) | F143: ФК "ОТКРЫТИЕ" (ООО) | G143: 16708 | H143: 16708
B144: КИТ Финанс (ООО) | C144: КИТ Финанс (ООО) | D144: КИТ Финанс (ООО) | E144: КИТ Финанс (ООО) | F144: КИТ Финанс (ООО) | G144: 13864 | H144: 13864
B145: "Инвестиционная палата" (ООО) | C145: "Инвестиционная палата" (ООО) | D145: "Инвестиционная палата" (ООО) | E145: "Инвестиционная палата" (ООО) | F145: "Инвестиционная палата" (ООО) | G145: 10325 | H145: 10325
B148: Ведущие операторы рынка – число активных клиентов | H148: Таблица 2
B149: Наименование Участника торгов | G149: Количество клиентов
B150: "ФИНАМ" (ЗАО) | C150: "ФИНАМ" (ЗАО) | D150: "ФИНАМ" (ЗАО) | E150: "ФИНАМ" (ЗАО) | F150: "ФИНАМ" (ЗАО) | G150: 22870 | H150: 22870
B151: "Компания Брокеркредитсервис" (ООО) | C151: "Компания Брокеркредитсервис" (ООО) | D151: "Компания Брокеркредитсервис" (ООО) | E151: "Компания Брокеркредитсервис" (ООО) | F151: "Компания Брокеркредитсервис" (ООО) | G151: 18849 | H151: 18849
B152: Сбербанк России (ОАО) | C152: Сбербанк России (ОАО) | D152: Сбербанк России (ОАО) | E152: Сбербанк России (ОАО) | F152: Сбербанк России (ОАО) | G152: 17336 | H152: 17336
B153: ВТБ 24 (ЗАО) | C153: ВТБ 24 (ЗАО) | D153: ВТБ 24 (ЗАО) | E153: ВТБ 24 (ЗАО) | F153: ВТБ 24 (ЗАО) | G153: 10623 | H153: 10623
B154: "АТОН" (ООО) | C154: "АТОН" (ООО) | D154: "АТОН" (ООО) | E154: "АТОН" (ООО) | F154: "АТОН" (ООО) | G154: 7871 | H154: 7871
B155: "АЛЬФА-БАHK" (ОАО) | C155: "АЛЬФА-БАHK" (ОАО) | D155: "АЛЬФА-БАHK" (ОАО) | E155: "АЛЬФА-БАHK" (ОАО) | F155: "АЛЬФА-БАHK" (ОАО) | G155: 6994 | H155: 6994
B156: КИТ Финанс (ООО) | C156: КИТ Финанс (ООО) | D156: КИТ Финанс (ООО) | E156: КИТ Финанс (ООО) | F156: КИТ Финанс (ООО) | G156: 3588 | H156: 3588
B157: ФК "ОТКРЫТИЕ" (ООО) | C157: ФК "ОТКРЫТИЕ" (ООО) | D157: ФК "ОТКРЫТИЕ" (ООО) | E157: ФК "ОТКРЫТИЕ" (ООО) | F157: ФК "ОТКРЫТИЕ" (ООО) | G157: 3508 | H157: 3508
B158: ГК "АЛОР" | C158: ГК "АЛОР" | D158: ГК "АЛОР" | E158: ГК "АЛОР" | F158: ГК "АЛОР" | G158: 3264 | H158: 3264
B159: "НЭТТРЭЙДЕР" (ООО) | C159: "НЭТТРЭЙДЕР" (ООО) | D159: "НЭТТРЭЙДЕР" (ООО) | E159: "НЭТТРЭЙДЕР" (ООО) | F159: "НЭТТРЭЙДЕР" (ООО) | G159: 1881 | H159: 1881
B162: Ведущие операторы рынка – объем клиентских операций | H162: Таблица 3
B163: Наименование Участника торгов | G163: Торговый оборот, руб.
B164: ИК "Тройка Диалог" (ЗАО) | C164: "ФИНАМ" (ЗАО) | D164: "ФИНАМ" (ЗАО) | E164: "ФИНАМ" (ЗАО) | F164: "ФИНАМ" (ЗАО) | G164: 8.190098618e+11 | H164: 8.190098618e+11
B165: "ФИНАМ" (ЗАО) | C165: "ФИНАМ" (ЗАО) | D165: "ФИНАМ" (ЗАО) | E165: "ФИНАМ" (ЗАО) | F165: "ФИНАМ" (ЗАО) | G165: 5.125383808e+11 | H165: 5.125383808e+11
B166: "Компания Брокеркредитсервис" (ООО) | C166: "Компания Брокеркредитсервис" (ООО) | D166: "Компания Брокеркредитсервис" (ООО) | E166: "Компания Брокеркредитсервис" (ООО) | F166: "Компания Брокеркредитсервис" (ООО) | G166: 4.238796322e+11 | H166: 4.238796322e+11
B167: ФК "ОТКРЫТИЕ" (ООО) | C167: ФК "ОТКРЫТИЕ" (ООО) | D167: ФК "ОТКРЫТИЕ" (ООО) | E167: ФК "ОТКРЫТИЕ" (ООО) | F167: ФК "ОТКРЫТИЕ" (ООО) | G167: 2.20375105e+11 | H167: 2.20375105e+11
B168: ГК "АЛОР" | C168: ГК "АЛОР" | D168: ГК "АЛОР" | E168: ГК "АЛОР" | F168: ГК "АЛОР" | G168: 2.047948744e+11 | H168: 2.047948744e+11
B169: "РОНИН" (ООО) | C169: "РОНИН" (ООО) | D169: "РОНИН" (ООО) | E169: "РОНИН" (ООО) | F169: "РОНИН" (ООО) | G169: 1.661724865e+11 | H169: 1.661724865e+11
B170: "АТОН" (ООО) | C170: "АТОН" (ООО) | D170: "АТОН" (ООО) | E170: "АТОН" (ООО) | F170: "АТОН" (ООО) | G170: 1.508043268e+11 | H170: 1.508043268e+11
B171: ВТБ 24 (ЗАО) | C171: ВТБ 24 (ЗАО) | D171: ВТБ 24 (ЗАО) | E171: ВТБ 24 (ЗАО) | F171: ВТБ 24 (ЗАО) | G171: 1.499415606e+11 | H171: 1.499415606e+11
B172: ИК "Церих Кэпитал Менеджмент" (ОАО) | C172: ИК "Церих Кэпитал Менеджмент" (ОАО) | D172: ИК "Церих Кэпитал Менеджмент" (ОАО) | E172: ИК "Церих Кэпитал Менеджмент" (ОАО) | F172: ИК "Церих Кэпитал Менеджмент" (ОАО) | G172: 1.125536049e+11 | H172: 1.125536049e+11
B173: "ИК ВЕЛЕС Капитал" (ООО) | C173: "ИК ВЕЛЕС Капитал" (ООО) | D173: "ИК ВЕЛЕС Капитал" (ООО) | E173: "ИК ВЕЛЕС Капитал" (ООО) | F173: "ИК ВЕЛЕС Капитал" (ООО) | G173: 1.113065441e+11 | H173: 1.113065441e+11

Sheet Май2010
B2: Клиенты Участников торгов Фондовой биржи ММВБ
B3: МАРТ '10
B6: Динамика количества клиентов за Март 2010 г.
B10: Количество зарегистрированных клиентов в Системе торгов: | H10: Таблица 1
B11: Группы клиентов | E11: 2010-03-01 | F11: 2010-04-01 | G11: Изменение (ед.) | H11: Изменение (%)
B12: Физические лица | E12: 836121 | F12: 854568 | G12: =F12-E12 -> 18447 | H12: =F12/E12-1 -> 0.0220625962
B13: Юридические лица | E13: 34707 | F13: 34909 | G13: =F13-E13 -> 202 | H13: =F13/E13-1 -> 0.005820151554
B14: Нерезиденты | E14: 7215 | F14: 7286 | G14: =F14-E14 -> 71 | H14: =F14/E14-1 -> 0.009840609841
B15: Клиенты, передавшие свои средства в ДУ | E15: 13955 | F15: 14244 | G15: =F15-E15 -> 289 | H15: =F15/E15-1 -> 0.02070942315
B16: Всего | E16: 891998 | F16: 911007 | G16: =F16-E16 -> 19009 | H16: =F16/E16-1 -> 0.0213105859
B19: Количество уникальных клиентов в Системе торгов: | H19: Таблица 2
B20: Группы клиентов | E20: 2010-03-01 | F20: 2010-04-01 | G20: Изменение (ед.) | H20: Изменение (%)
B21: Физические лица | E21: 685978 | F21: 697291 | G21: =F21-E21 -> 11313 | H21: =F21/E21-1 -> 0.01649178254
B22: Юридические лица | E22: 16528 | F22: 16723 | G22: =F22-E22 -> 195 | H22: =F22/E22-1 -> 0.0117981607
B23: Нерезиденты | E23: 3920 | F23: 3985 | G23: =F23-E23 -> 65 | H23: =F23/E23-1 -> 0.01658163265
B24: Клиенты, передавшие свои средства в ДУ | E24: 4767 | F24: 4866 | G24: =F24-E24 -> 99 | H24: =F24/E24-1 -> 0.02076777848
B25: Всего | E25: 711193 | F25: 722865 | G25: =F25-E25 -> 11672 | H25: =F25/E25-1 -> 0.01641186007
B28: Количество активных клиентов в Системе торгов (совершивших в течение месяца хотя бы одну сделку): | H28: Таблица 3
B29: Группы клиентов | E29: за февраль 2010 г. | F29: за март 2010 г. | G29: Изменение (ед.) | H29: Изменение (%)
B30: Физические лица | E30: 105636 | F30: 113025 | G30: =F30-E30 -> 7389 | H30: =F30/E30-1 -> 0.06994774509
B31: Юридические лица | E31: 1790 | F31: 2025 | G31: =F31-E31 -> 235 | H31: =F31/E31-1 -> 0.1312849162
B32: Нерезиденты | E32: 654 | F32: 719 | G32: =F32-E32 -> 65 | H32: =F32/E32-1 -> 0.0993883792
B33: Клиенты, передавшие свои средства в ДУ | E33: 2414 | F33: 2758 | G33: =F33-E33 -> 344 | H33: =F33/E33-1 -> 0.1425020713
B34: Всего | E34: 110494 | F34: =SUM(F30:F33) -> 118527 | G34: =F34-E34 -> 8033 | H34: =F34/E34-1 -> 0.07270078013
B38: Изменение количества уникальных клиентов - ретроспективные данные
B42: Количество уникальных клиентов в Системе торгов (ежегодная статистика): | H42: Таблица 1
B43: Группы клиентов | E43: 2007-01-01 | F43: 2008-01-01 | G43: 2009-01-01 | H43: 2010-01-01
B44: Физические лица | E44: 198973 | F44: 417403 | G44: 559320 | H44: 671475
B45: Юридические лица | E45: 10665 | F45: 12703 | G45: 14748 | H45: 16364
B46: Нерезиденты | E46: 1140 | F46: 2078 | G46: 3097 | H46: 3851
B47: Клиенты, передавшие свои средства в ДУ | E47: 2839 | F47: 4061 | G47: 4512 | H47: 4717
B48: Всего | E48: =SUM(E44:E47) -> 213617 | F48: =SUM(F44:F47) -> 436245 | G48: =SUM(G44:G47) -> 581677 | H48: =SUM(H44:H47) -> 696407
B76: Количество уникальных клиентов в Системе торгов (за последние 6 месяцев): | H76: Таблица 2
B77: Группы клиентов | C77: 2009-11-01 | D77: 2009-12-01 | E77: 2010-01-01 | F77: 2010-02-01 | G77: 2010-03-01 | H77: 2010-04-01
B78: Физические лица | C78: 653201 | D78: 663580 | E78: 671475 | F78: 677996 | G78: 685978 | H78: 697291
B79: Юридические лица | C79: 16065 | D79: 16190 | E79: 16364 | F79: 16468 | G79: 16528 | H79: 16723
B80: Нерезиденты | C80: 3722 | D80: 3784 | E80: 3851 | F80: 3877 | G80: 3920 | H80: 3985
B81: Клиенты, передавшие свои средства в ДУ | C81: 4625 | D81: 4660 | E81: 4717 | F81: 4709 | G81: 4767 | H81: 4866
B82: Всего | C82: 677613 | D82: 688214 | E82: 696407 | F82: 703050 | G82: 711193 | H82: 722865
B118: Дополнительные показатели по клиентам
B121: на 01.03.2010 г. | H121: Таблица 1
B122: Категории Участников торгов/клиентов | F122: Абсолютные показатели | G122: Доля от общего количества | H122: Количество организаций, допущенных к торгам
B123: Количество Участников торгов, имеющих зарегистрированных клиентов | F123: 609 | G123: =F123/H123 -> 1.081705151 | H123: 563
B124: Количество стран мира, представленных клиентами-нерезидентами | F124: 96
B125: Количество Участников торгов, зарегистрировавших клиентов-нерезидентов | F125: 319 | G125: =F125/H125 -> 0.56660746 | H125: =H123 -> 563
B126: Количество клиентов, подписавших Декларацию о рисках с целью совершения сделок с ценными бумагами, включёнными в Котировальный список "И" | F126: 131 304 (уникальных - 98 312)
B127: Количество Участников торгов, зарегистрировавших клиентов, имеющих намерение совершать сделки с ценными бумагами, включёнными в Котировальный список "И" | F127: 417 | G127: =F127/H127 -> 0.7406749556 | H127: =H123 -> 563
B131: Списки ведущих операторов фондового рынка - клиенты Участников торгов (за январь 2010 г.)
B134: Ведущие операторы рынка – число зарегистрированных уникальных клиентов | H134: Таблица 1
B135: Наименование Участника торгов | G135: Количество клиентов
B136: Сбербанк России (ОАО) | C136: Сбербанк России (ОАО) | D136: Сбербанк России (ОАО) | E136: Сбербанк России (ОАО) | F136: Сбербанк России (ОАО) | G136: 213658 | H136: 213658
B137: ВТБ 24 (ЗАО) | C137: ВТБ 24 (ЗАО) | D137: ВТБ 24 (ЗАО) | E137: ВТБ 24 (ЗАО) | F137: ВТБ 24 (ЗАО) | G137: 154838 | H137: 154838
B138: "ФИНАМ" (ЗАО) | C138: "ФИНАМ" (ЗАО) | D138: "ФИНАМ" (ЗАО) | E138: "ФИНАМ" (ЗАО) | F138: "ФИНАМ" (ЗАО) | G138: 86186 | H138: 86186
B139: "Компания Брокеркредитсервис" (ООО) | C139: "Компания Брокеркредитсервис" (ООО) | D139: "Компания Брокеркредитсервис" (ООО) | E139: "Компания Брокеркредитсервис" (ООО) | F139: "Компания Брокеркредитсервис" (ООО) | G139: 65927 | H139: 65927
B140: "АЛЬФА-БАHK" (ОАО) | C140: "АЛЬФА-БАHK" (ОАО) | D140: "АЛЬФА-БАHK" (ОАО) | E140: "АЛЬФА-БАHK" (ОАО) | F140: "АЛЬФА-БАHK" (ОАО) | G140: 40134 | H140: 40134
B141: "АТОН" (ООО) | C141: "АТОН" (ООО) | D141: "АТОН" (ООО) | E141: "АТОН" (ООО) | F141: "АТОН" (ООО) | G141: 32431 | H141: 32431
B142: ФК "ОТКРЫТИЕ" (ООО) | C142: ФК "ОТКРЫТИЕ" (ООО) | D142: ФК "ОТКРЫТИЕ" (ООО) | E142: ФК "ОТКРЫТИЕ" (ООО) | F142: ФК "ОТКРЫТИЕ" (ООО) | G142: 15969 | H142: 15969
B143: ГК "АЛОР" | C143: ГК "АЛОР" | D143: ГК "АЛОР" | E143: ГК "АЛОР" | F143: ГК "АЛОР" | G143: 15763 | H143: 15763
B144: КИТ Финанс (ООО) | C144: КИТ Финанс (ООО) | D144: КИТ Финанс (ООО) | E144: КИТ Финанс (ООО) | F144: КИТ Финанс (ООО) | G144: 13552 | H144: 13552
B145: "НЭТТРЭЙДЕР" (ООО) | C145: "НЭТТРЭЙДЕР" (ООО) | D145: "НЭТТРЭЙДЕР" (ООО) | E145: "НЭТТРЭЙДЕР" (ООО) | F145: "НЭТТРЭЙДЕР" (ООО) | G145: 9692 | H145: 9692
B148: Ведущие операторы рынка – число активных клиентов | H148: Таблица 2
B149: Наименование Участника торгов | G149: Количество клиентов
B150: "ФИНАМ" (ЗАО) | C150: "ФИНАМ" (ЗАО) | D150: "ФИНАМ" (ЗАО) | E150: "ФИНАМ" (ЗАО) | F150: "ФИНАМ" (ЗАО) | G150: 21700 | H150: 21700
B151: "Компания Брокеркредитсервис" (ООО) | G151: 18410 | H151: 18410
B152: Сбербанк России (ОАО) | G152: 16979 | H152: 16979
B153: ВТБ 24 (ЗАО) | G153: 10357 | H153: 10357
B154: "АТОН" (ООО) | C154: "АТОН" (ООО) | D154: "АТОН" (ООО) | E154: "АТОН" (ООО) | F154: "АТОН" (ООО) | G154: 7569 | H154: 7569
B155: "АЛЬФА-БАHK" (ОАО) | C155: "АЛЬФА-БАHK" (ОАО) | D155: "АЛЬФА-БАHK" (ОАО) | E155: "АЛЬФА-БАHK" (ОАО) | F155: "АЛЬФА-БАHK" (ОАО) | G155: 6870 | H155: 6870
B156: КИТ Финанс (ООО) | C156: КИТ Финанс (ООО) | D156: КИТ Финанс (ООО) | E156: КИТ Финанс (ООО) | F156: КИТ Финанс (ООО) | G156: 3514 | H156: 3514
B157: ФК "ОТКРЫТИЕ" (ООО) | G157: 3323 | H157: 3323
B158: ГК "АЛОР" | G158: 3167 | H158: 3167
B159: "НЭТТРЭЙДЕР" (ООО) | G159: 2235 | H159: 2235
B162: Ведущие операторы рынка – объем клиентских операций | H162: Таблица 3
B163: Наименование Участника торгов | G163: Торговый оборот, руб.
B164: ИК "Тройка Диалог" (ЗАО) | C164: ИК "Тройка Диалог" (ЗАО) | D164: ИК "Тройка Диалог" (ЗАО) | E164: ИК "Тройка Диалог" (ЗАО) | F164: ИК "Тройка Диалог" (ЗАО) | G164: 8.38171123e+11 | H164: 8.38171123e+11
B165: "ФИНАМ" (ЗАО) | C165: "ФИНАМ" (ЗАО) | D165: "ФИНАМ" (ЗАО) | E165: "ФИНАМ" (ЗАО) | F165: "ФИНАМ" (ЗАО) | G165: 5.206943386e+11 | H165: 5.206943386e+11
B166: "Компания Брокеркредитсервис" (ООО) | C166: "Компания Брокеркредитсервис" (ООО) | D166: "Компания Брокеркредитсервис" (ООО) | E166: "Компания Брокеркредитсервис" (ООО) | F166: "Компания Брокеркредитсервис" (ООО) | G166: 4.887610869e+11 | H166: 4.887610869e+11
B167: ГК "АЛОР" | C167: ГК "АЛОР" | D167: ГК "АЛОР" | E167: ГК "АЛОР" | F167: ГК "АЛОР" | G167: 2.366796023e+11 | H167: 2.366796023e+11
B168: ФК "ОТКРЫТИЕ" (ООО) | C168: ФК "ОТКРЫТИЕ" (ООО) | D168: ФК "ОТКРЫТИЕ" (ООО) | E168: ФК "ОТКРЫТИЕ" (ООО) | F168: ФК "ОТКРЫТИЕ" (ООО) | G168: 2.223019335e+11 | H168: 2.223019335e+11
B169: ВТБ 24 (ЗАО) | C169: ВТБ 24 (ЗАО) | D169: ВТБ 24 (ЗАО) | E169: ВТБ 24 (ЗАО) | F169: ВТБ 24 (ЗАО) | G169: 1.802098067e+11 | H169: 1.802098067e+11
B170: "АТОН" (ООО) | C170: "АТОН" (ООО) | D170: "АТОН" (ООО) | E170: "АТОН" (ООО) | F170: "АТОН" (ООО) | G170: 1.558042202e+11 | H170: 1.558042202e+11
B171: "РОНИН" (ООО) | C171: "РОНИН" (ООО) | D171: "РОНИН" (ООО) | E171: "РОНИН" (ООО) | F171: "РОНИН" (ООО) | G171: 1.540750577e+11 | H171: 1.540750577e+11
B172: "ИК ВЕЛЕС Капитал" (ООО) | C172: "ИК ВЕЛЕС Капитал" (ООО) | D172: "ИК ВЕЛЕС Капитал" (ООО) | E172: "ИК ВЕЛЕС Капитал" (ООО) | F172: "ИК ВЕЛЕС Капитал" (ООО) | G172: 1.494833785e+11 | H172: 1.494833785e+11
B173: ИК "Церих Кэпитал Менеджмент" (ОАО) | C173: ИК "Церих Кэпитал Менеджмент" (ОАО) | D173: ИК "Церих Кэпитал Менеджмент" (ОАО) | E173: ИК "Церих Кэпитал Менеджмент" (ОАО) | F173: ИК "Церих Кэпитал Менеджмент" (ОАО) | G173: 1.402902705e+11 | H173: 1.402902705e+11

Sheet Июнь2010
B2: Клиенты Участников торгов Фондовой биржи ММВБ
B3: Июнь '10
B6: Динамика количества клиентов за Июнь 2010 г.
B10: Количество зарегистрированных клиентов в Системе торгов: | H10: Таблица 1
B11: Группы клиентов | E11: 2010-06-01 | F11: 2010-07-01 | G11: Изменение (ед.) | H11: Изменение (%)
B12: Физические лица | E12: 873898 | F12: 859479 | G12: =F12-E12 -> -14419 | H12: =F12/E12-1 -> -0.01649963726
B13: Юридические лица | E13: 35213 | F13: 35280 | G13: =F13-E13 -> 67 | H13: =F13/E13-1 -> 0.001902706387
B14: Нерезиденты | E14: 7552 | F14: 7614 | G14: =F14-E14 -> 62 | H14: =F14/E14-1 -> 0.008209745763
B15: Клиенты, передавшие свои средства в ДУ | E15: 14639 | F15: 14827 | G15: =F15-E15 -> 188 | H15: =F15/E15-1 -> 0.01284240727
B16: Всего | E16: 931302 | F16: 917200 | G16: =F16-E16 -> -14102 | H16: =F16/E16-1 -> -0.01514224172
B19: Количество уникальных клиентов в Системе торгов: | H19: Таблица 2
B20: Группы клиентов | E20: 2010-06-01 | F20: 2010-07-01 | G20: Изменение (ед.) | H20: Изменение (%)
B21: Физические лица | E21: 711454 | F21: 699870 | G21: =F21-E21 -> -11584 | H21: =F21/E21-1 -> -0.01628214895
B22: Юридические лица | E22: 16953 | F22: 16990 | G22: =F22-E22 -> 37 | H22: =F22/E22-1 -> 0.002182504571
B23: Нерезиденты | E23: 3849 | F23: 3921 | G23: =F23-E23 -> 72 | H23: =F23/E23-1 -> 0.01870615744
B24: Клиенты, передавшие свои средства в ДУ | E24: 5006 | F24: 5080 | G24: =F24-E24 -> 74 | H24: =F24/E24-1 -> 0.01478226129
B25: Всего | E25: 737262 | F25: 725861 | G25: =F25-E25 -> -11401 | H25: =F25/E25-1 -> -0.01546397346
B28: Количество активных клиентов в Системе торгов (совершивших в течение месяца хотя бы одну сделку): | H28: Таблица 3
B29: Группы клиентов | E29: за май 2010 г. | F29: за июнь 2010 г. | G29: Изменение (ед.) | H29: Изменение (%)
B30: Физические лица | E30: 102023 | F30: 92464 | G30: =F30-E30 -> -9559 | H30: =F30/E30-1 -> -0.09369455907
B31: Юридические лица | E31: 1763 | F31: 1825 | G31: =F31-E31 -> 62 | H31: =F31/E31-1 -> 0.03516732842
B32: Нерезиденты | E32: 621 | F32: 611 | G32: =F32-E32 -> -10 | H32: =F32/E32-1 -> -0.01610305958
B33: Клиенты, передавшие свои средства в ДУ | E33: 2764 | F33: 2836 | G33: =F33-E33 -> 72 | H33: =F33/E33-1 -> 0.02604920405
B34: Всего | E34: 107171 | F34: 97736 | G34: =F34-E34 -> -9435 | H34: =F34/E34-1 -> -0.08803687565
B38: Изменение количества уникальных клиентов - ретроспективные данные
B42: Количество уникальных клиентов в Системе торгов (ежегодная статистика): | H42: Таблица 1
B43: Группы клиентов | E43: 2007-01-01 | F43: 2008-01-01 | G43: 2009-01-01 | H43: 2010-01-01
B44: Физические лица | E44: 198973 | F44: 417403 | G44: 559320 | H44: 671475
B45: Юридические лица | E45: 10665 | F45: 12703 | G45: 14748 | H45: 16364
B46: Нерезиденты | E46: 1140 | F46: 2078 | G46: 3097 | H46: 3851
B47: Клиенты, передавшие свои средства в ДУ | E47: 2839 | F47: 4061 | G47: 4512 | H47: 4717
B48: Всего | E48: =SUM(E44:E47) -> 213617 | F48: =SUM(F44:F47) -> 436245 | G48: =SUM(G44:G47) -> 581677 | H48: =SUM(H44:H47) -> 696407
B76: Количество уникальных клиентов в Системе торгов (за последние 6 месяцев): | H76: Таблица 2
B77: Группы клиентов | C77: 2010-02-01 | D77: 2010-03-01 | E77: 2010-04-01 | F77: 2010-05-01 | G77: 2010-06-01 | H77: 2010-07-01
B78: Физические лица | C78: 677996 | D78: 685978 | E78: 697291 | F78: 707663 | G78: 711454 | H78: 699870
B79: Юридические лица | C79: 16468 | D79: 16528 | E79: 16723 | F79: 16892 | G79: 16953 | H79: 16990
B80: Нерезиденты | C80: 3877 | D80: 3920 | E80: 3985 | F80: 3790 | G80: 3849 | H80: 3921
B81: Клиенты, передавшие свои средства в ДУ | C81: 4709 | D81: 4767 | E81: 4866 | F81: 4947 | G81: 5006 | H81: 5080
B82: Всего | C82: 703050 | D82: 711193 | E82: 722865 | F82: 733292 | G82: 737262 | H82: 725861
B118: Дополнительные показатели по клиентам
B121: на 01.07.2010 г. | H121: Таблица 1
B122: Категории Участников торгов/клиентов | G122: Абсолютные показатели
B123: Количество Участников торгов, имеющих зарегистрированных клиентов | G123: 586
B124: Количество стран мира, представленных клиентами-нерезидентами | G124: 93
B125: Количество Участников торгов, зарегистрировавших клиентов-нерезидентов | G125: 313
B126: Количество клиентов, подписавших Декларацию о рисках с целью совершения сделок с ценными бумагами, включёнными в Котировальный список "И" | G126: 115014
G127: 103999 | H127: уникальных
B128: Количество Участников торгов, зарегистрировавших клиентов, имеющих намерение совершать сделки с ценными бумагами, включёнными в Котировальный список "И" | G128: 420
B132: Списки ведущих операторов фондового рынка - клиенты Участников торгов (за июнь 2010 г.)
B135: Ведущие операторы рынка – число зарегистрированных уникальных клиентов | H135: Таблица 1
B136: Наименование Участника торгов | G136: Количество клиентов
B137: Сбербанк России (ОАО) | C137: Сбербанк России (ОАО) | D137: Сбербанк России (ОАО) | E137: Сбербанк России (ОАО) | F137: Сбербанк России (ОАО) | G137: 199554 | H137: 199554
B138: ВТБ 24 (ЗАО) | C138: ВТБ 24 (ЗАО) | D138: ВТБ 24 (ЗАО) | E138: ВТБ 24 (ЗАО) | F138: ВТБ 24 (ЗАО) | G138: 156267 | H138: 156267
B139: "ФИНАМ" (ЗАО) | C139: "ФИНАМ" (ЗАО) | D139: "ФИНАМ" (ЗАО) | E139: "ФИНАМ" (ЗАО) | F139: "ФИНАМ" (ЗАО) | G139: 82941 | H139: 82941
B140: "Компания Брокеркредитсервис" (ООО) | C140: "Компания Брокеркредитсервис" (ООО) | D140: "Компания Брокеркредитсервис" (ООО) | E140: "Компания Брокеркредитсервис" (ООО) | F140: "Компания Брокеркредитсервис" (ООО) | G140: 70205 | H140: 70205
B141: "АЛЬФА-БАHK" (ОАО) | C141: "АЛЬФА-БАHK" (ОАО) | D141: "АЛЬФА-БАHK" (ОАО) | E141: "АЛЬФА-БАHK" (ОАО) | F141: "АЛЬФА-БАHK" (ОАО) | G141: 43051 | H141: 43051
B142: "АТОН" (ООО) | C142: "АТОН" (ООО) | D142: "АТОН" (ООО) | E142: "АТОН" (ООО) | F142: "АТОН" (ООО) | G142: 33779 | H142: 33779
B143: ГК "АЛОР" | C143: ГК "АЛОР" | D143: ГК "АЛОР" | E143: ГК "АЛОР" | F143: ГК "АЛОР" | G143: 16206 | H143: 16206
B144: ФК "ОТКРЫТИЕ" (ООО) | C144: ФК "ОТКРЫТИЕ" (ООО) | D144: ФК "ОТКРЫТИЕ" (ООО) | E144: ФК "ОТКРЫТИЕ" (ООО) | F144: ФК "ОТКРЫТИЕ" (ООО) | G144: 17739 | H144: 17739
B145: КИТ Финанс (ООО) | C145: КИТ Финанс (ООО) | D145: КИТ Финанс (ООО) | E145: КИТ Финанс (ООО) | F145: КИТ Финанс (ООО) | G145: 14337 | H145: 14337
B146: "Инвестиционная палата" (ООО) | C146: "Инвестиционная палата" (ООО) | D146: "Инвестиционная палата" (ООО) | E146: "Инвестиционная палата" (ООО) | F146: "Инвестиционная палата" (ООО) | G146: 11588 | H146: 11588
B149: Ведущие операторы рынка – число активных клиентов | H149: Таблица 2
B150: Наименование Участника торгов | G150: Количество клиентов
B151: "ФИНАМ" (ЗАО) | C151: "ФИНАМ" (ЗАО) | D151: "ФИНАМ" (ЗАО) | E151: "ФИНАМ" (ЗАО) | F151: "ФИНАМ" (ЗАО) | G151: 18453 | H151: 18453
B152: "Компания Брокеркредитсервис" (ООО) | C152: "Компания Брокеркредитсервис" (ООО) | D152: "Компания Брокеркредитсервис" (ООО) | E152: "Компания Брокеркредитсервис" (ООО) | F152: "Компания Брокеркредитсервис" (ООО) | G152: 15958 | H152: 15958
B153: Сбербанк России (ОАО) | C153: Сбербанк России (ОАО) | D153: Сбербанк России (ОАО) | E153: Сбербанк России (ОАО) | F153: Сбербанк России (ОАО) | G153: 11168 | H153: 11168
B154: ВТБ 24 (ЗАО) | C154: ВТБ 24 (ЗАО) | D154: ВТБ 24 (ЗАО) | E154: ВТБ 24 (ЗАО) | F154: ВТБ 24 (ЗАО) | G154: 8737 | H154: 8737
B155: "АТОН" (ООО) | C155: "АТОН" (ООО) | D155: "АТОН" (ООО) | E155: "АТОН" (ООО) | F155: "АТОН" (ООО) | G155: 6378 | H155: 6378
B156: "АЛЬФА-БАHK" (ОАО) | C156: "АЛЬФА-БАHK" (ОАО) | D156: "АЛЬФА-БАHK" (ОАО) | E156: "АЛЬФА-БАHK" (ОАО) | F156: "АЛЬФА-БАHK" (ОАО) | G156: 6176 | H156: 6176
B157: ФК "ОТКРЫТИЕ" (ООО) | C157: ФК "ОТКРЫТИЕ" (ООО) | D157: ФК "ОТКРЫТИЕ" (ООО) | E157: ФК "ОТКРЫТИЕ" (ООО) | F157: ФК "ОТКРЫТИЕ" (ООО) | G157: 3024 | H157: 3024
B158: КИТ Финанс (ООО) | C158: КИТ Финанс (ООО) | D158: КИТ Финанс (ООО) | E158: КИТ Финанс (ООО) | F158: КИТ Финанс (ООО) | G158: 2989 | H158: 2989
B159: ГК "АЛОР" | C159: ГК "АЛОР" | D159: ГК "АЛОР" | E159: ГК "АЛОР" | F159: ГК "АЛОР" | G159: 2584 | H159: 2584
B160: "НЭТТРЭЙДЕР" (ООО) | C160: "НЭТТРЭЙДЕР" (ООО) | D160: "НЭТТРЭЙДЕР" (ООО) | E160: "НЭТТРЭЙДЕР" (ООО) | F160: "НЭТТРЭЙДЕР" (ООО) | G160: 1477 | H160: 1477
B163: Ведущие операторы рынка – объем клиентских операций | H163: Таблица 3
B164: Наименование Участника торгов | G164: Торговый оборот, руб.
B165: ИК "Тройка Диалог" (ЗАО) | C165: ИК "Тройка Диалог" (ЗАО) | D165: ИК "Тройка Диалог" (ЗАО) | E165: ИК "Тройка Диалог" (ЗАО) | F165: ИК "Тройка Диалог" (ЗАО) | G165: 5.474788973e+11 | H165: 5.474788973e+11
B166: "ФИНАМ" (ЗАО) | C166: "ФИНАМ" (ЗАО) | D166: "ФИНАМ" (ЗАО) | E166: "ФИНАМ" (ЗАО) | F166: "ФИНАМ" (ЗАО) | G166: 4.141098015e+11 | H166: 4.141098015e+11
B167: "Компания Брокеркредитсервис" (ООО) | C167: "Компания Брокеркредитсервис" (ООО) | D167: "Компания Брокеркредитсервис" (ООО) | E167: "Компания Брокеркредитсервис" (ООО) | F167: "Компания Брокеркредитсервис" (ООО) | G167: 3.815290088e+11 | H167: 3.815290088e+11
B168: ФК "ОТКРЫТИЕ" (ООО) | C168: ФК "ОТКРЫТИЕ" (ООО) | D168: ФК "ОТКРЫТИЕ" (ООО) | E168: ФК "ОТКРЫТИЕ" (ООО) | F168: ФК "ОТКРЫТИЕ" (ООО) | G168: 2.86901511e+11 | H168: 2.86901511e+11
B169: ГК "АЛОР" | C169: ГК "АЛОР" | D169: ГК "АЛОР" | E169: ГК "АЛОР" | F169: ГК "АЛОР" | G169: 2.552622947e+11 | H169: 2.552622947e+11
B170: ВТБ 24 (ЗАО) | C170: ВТБ 24 (ЗАО) | D170: ВТБ 24 (ЗАО) | E170: ВТБ 24 (ЗАО) | F170: ВТБ 24 (ЗАО) | G170: 1.475958963e+11 | H170: 1.475958963e+11
B171: ИК "Церих Кэпитал Менеджмент" (ОАО) | C171: ИК "Церих Кэпитал Менеджмент" (ОАО) | D171: ИК "Церих Кэпитал Менеджмент" (ОАО) | E171: ИК "Церих Кэпитал Менеджмент" (ОАО) | F171: ИК "Церих Кэпитал Менеджмент" (ОАО) | G171: 1.430742289e+11 | H171: 1.430742289e+11
B172: "АТОН" (ООО) | C172: "АТОН" (ООО) | D172: "АТОН" (ООО) | E172: "АТОН" (ООО) | F172: "АТОН" (ООО) | G172: 1.393732026e+11 | H172: 1.393732026e+11
B173: "РОНИН" (ООО) | C173: "РОНИН" (ООО) | D173: "РОНИН" (ООО) | E173: "РОНИН" (ООО) | F173: "РОНИН" (ООО) | G173: 1.059384489e+11 | H173: 1.059384489e+11
B174: "ИК ВЕЛЕС Капитал" (ООО) | C174: "ИК ВЕЛЕС Капитал" (ООО) | D174: "ИК ВЕЛЕС Капитал" (ООО) | E174: "ИК ВЕЛЕС Капитал" (ООО) | F174: "ИК ВЕЛЕС Капитал" (ООО) | G174: 1.036457954e+11 | H174: 1.036457954e+11

Sheet Июль2010
B2: Клиенты Участников торгов Фондовой биржи ММВБ
B3: Июль '10
B6: Динамика количества клиентов за Июль 2010 г.
B10: Количество зарегистрированных клиентов в Системе торгов: | H10: Таблица 1
B11: Группы клиентов | E11: 2010-07-01 | F11: 2010-08-01 | G11: Изменение (ед.) | H11: Изменение (%)
B12: Физические лица | E12: 859479 | F12: 853080 | G12: =F12-E12 -> -6399 | H12: =F12/E12-1 -> -0.007445208085
B13: Юридические лица | E13: 35280 | F13: 35402 | G13: =F13-E13 -> 122 | H13: =F13/E13-1 -> 0.003458049887
B14: Нерезиденты | E14: 7614 | F14: 7803 | G14: =F14-E14 -> 189 | H14: =F14/E14-1 -> 0.02482269504
B15: Клиенты, передавшие свои средства в ДУ | E15: 14827 | F15: 15016 | G15: =F15-E15 -> 189 | H15: =F15/E15-1 -> 0.01274701558
B16: Всего | E16: 917200 | F16: 911301 | G16: =F16-E16 -> -5899 | H16: =F16/E16-1 -> -0.006431530746
B19: Количество уникальных клиентов в Системе торгов: | H19: Таблица 2
B20: Группы клиентов | E20: 2010-07-01 | F20: 2010-08-01 | G20: Изменение (ед.) | H20: Изменение (%)
B21: Физические лица | E21: 711454 | F21: 693388 | G21: =F21-E21 -> -18066 | H21: =F21/E21-1 -> -0.02539306828
B22: Юридические лица | E22: 16953 | F22: 17040 | G22: =F22-E22 -> 87 | H22: =F22/E22-1 -> 0.005131835073
B23: Нерезиденты | E23: 3849 | F23: 3954 | G23: =F23-E23 -> 105 | H23: =F23/E23-1 -> 0.02727981294
B24: Клиенты, передавшие свои средства в ДУ | E24: 5006 | F24: 5145 | G24: =F24-E24 -> 139 | H24: =F24/E24-1 -> 0.02776667998
B25: Всего | E25: 737262 | F25: 719527 | G25: =F25-E25 -> -17735 | H25: =F25/E25-1 -> -0.02405522053
B28: Количество активных клиентов в Системе торгов (совершивших в течение месяца хотя бы одну сделку): | H28: Таблица 3
B29: Группы клиентов | E29: за июнь 2010 г. | F29: за июль 2010 г. | G29: Изменение (ед.) | H29: Изменение (%)
B30: Физические лица | E30: 92464 | F30: 90856 | G30: =F30-E30 -> -1608 | H30: =F30/E30-1 -> -0.017390552
B31: Юридические лица | E31: 1825 | F31: 1786 | G31: =F31-E31 -> -39 | H31: =F31/E31-1 -> -0.02136986301
B32: Нерезиденты | E32: 611 | F32: 568 | G32: =F32-E32 -> -43 | H32: =F32/E32-1 -> -0.07037643208
B33: Клиенты, передавшие свои средства в ДУ | E33: 2836 | F33: 2769 | G33: =F33-E33 -> -67 | H33: =F33/E33-1 -> -0.0236248237
B34: Всего | E34: 97736 | F34: 95979 | G34: =F34-E34 -> -1757 | H34: =F34/E34-1 -> -0.01797699926
B38: Изменение количества уникальных клиентов - ретроспективные данные
B42: Количество уникальных клиентов в Системе торгов (ежегодная статистика): | H42: Таблица 1
B43: Группы клиентов | E43: 2007-01-01 | F43: 2008-01-01 | G43: 2009-01-01 | H43: 2010-01-01
B44: Физические лица | E44: 198973 | F44: 417403 | G44: 559320 | H44: 671475
B45: Юридические лица | E45: 10665 | F45: 12703 | G45: 14748 | H45: 16364
B46: Нерезиденты | E46: 1140 | F46: 2078 | G46: 3097 | H46: 3851
B47: Клиенты, передавшие свои средства в ДУ | E47: 2839 | F47: 4061 | G47: 4512 | H47: 4717
B48: Всего | E48: =SUM(E44:E47) -> 213617 | F48: =SUM(F44:F47) -> 436245 | G48: =SUM(G44:G47) -> 581677 | H48: =SUM(H44:H47) -> 696407
B76: Количество уникальных клиентов в Системе торгов (за последние 6 месяцев): | H76: Таблица 2
B77: Группы клиентов | C77: 2010-03-01 | D77: 2010-04-01 | E77: 2010-05-01 | F77: 2010-06-01 | G77: 2010-07-01 | H77: 2010-08-01
B78: Физические лица | C78: 685978 | D78: 697291 | E78: 707663 | F78: 711454 | G78: 699870 | H78: 693388
B79: Юридические лица | C79: 16528 | D79: 16723 | E79: 16892 | F79: 16953 | G79: 16990 | H79: 17040
B80: Нерезиденты | C80: 3920 | D80: 3985 | E80: 3790 | F80: 3849 | G80: 3921 | H80: 3954
B81: Клиенты, передавшие свои средства в ДУ | C81: 4767 | D81: 4866 | E81: 4947 | F81: 5006 | G81: 5080 | H81: 5145
B82: Всего | C82: 711193 | D82: 722865 | E82: 733292 | F82: 737262 | G82: 725861 | H82: 719527
B118: Дополнительные показатели по клиентам
B121: на 01.08.2010 г. | H121: Таблица 1
B122: Категории Участников торгов/клиентов | G122: Абсолютные показатели
B123: Количество Участников торгов, имеющих зарегистрированных клиентов | G123: 587
B124: Количество стран мира, представленных клиентами-нерезидентами | G124: 94
B125: Количество Участников торгов, зарегистрировавших клиентов-нерезидентов | G125: 314
B126: Количество клиентов, подписавших Декларацию о рисках с целью совершения сделок с ценными бумагами, включёнными в Котировальный список "И" | G126: 117751
G127: 106279 | H127: уникальных
B128: Количество Участников торгов, зарегистрировавших клиентов, имеющих намерение совершать сделки с ценными бумагами, включёнными в Котировальный список "И" | G128: 423
B132: Списки ведущих операторов фондового рынка - клиенты Участников торгов (за июль 2010 г.)
B135: Ведущие операторы рынка – число зарегистрированных уникальных клиентов | H135: Таблица 1
B136: Наименование Участника торгов | G136: Количество клиентов
B137: Сбербанк России (ОАО) | C137: Сбербанк России (ОАО) | D137: Сбербанк России (ОАО) | E137: Сбербанк России (ОАО) | F137: Сбербанк России (ОАО) | G137: 195858
B138: ВТБ 24 (ЗАО) | C138: ВТБ 24 (ЗАО) | D138: ВТБ 24 (ЗАО) | E138: ВТБ 24 (ЗАО) | F138: ВТБ 24 (ЗАО) | G138: 156675
B139: "ФИНАМ" (ЗАО) | C139: "ФИНАМ" (ЗАО) | D139: "ФИНАМ" (ЗАО) | E139: "ФИНАМ" (ЗАО) | F139: "ФИНАМ" (ЗАО) | G139: 84552
B140: "Компания Брокеркредитсервис" (ООО) | C140: "Компания Брокеркредитсервис" (ООО) | D140: "Компания Брокеркредитсервис" (ООО) | E140: "Компания Брокеркредитсервис" (ООО) | F140: "Компания Брокеркредитсервис" (ООО) | G140: 71369
B141: "АЛЬФА-БАHK" (ОАО) | C141: "АЛЬФА-БАHK" (ОАО) | D141: "АЛЬФА-БАHK" (ОАО) | E141: "АЛЬФА-БАHK" (ОАО) | F141: "АЛЬФА-БАHK" (ОАО) | G141: 44030
B142: "АТОН" (ООО) | C142: "АТОН" (ООО) | D142: "АТОН" (ООО) | E142: "АТОН" (ООО) | F142: "АТОН" (ООО) | G142: 34092
B143: ФК "ОТКРЫТИЕ" (ООО) | C143: ФК "ОТКРЫТИЕ" (ООО) | D143: ФК "ОТКРЫТИЕ" (ООО) | E143: ФК "ОТКРЫТИЕ" (ООО) | F143: ФК "ОТКРЫТИЕ" (ООО) | G143: 18118
B144: ГК "АЛОР" | C144: ГК "АЛОР" | D144: ГК "АЛОР" | E144: ГК "АЛОР" | F144: ГК "АЛОР" | G144: 16307
B145: КИТ Финанс (ООО) | C145: КИТ Финанс (ООО) | D145: КИТ Финанс (ООО) | E145: КИТ Финанс (ООО) | F145: КИТ Финанс (ООО) | G145: 14699
B146: "Инвестиционная палата" (ООО) | C146: "Инвестиционная палата" (ООО) | D146: "Инвестиционная палата" (ООО) | E146: "Инвестиционная палата" (ООО) | F146: "Инвестиционная палата" (ООО) | G146: 12093
B149: Ведущие операторы рынка – число активных клиентов | H149: Таблица 2
B150: Наименование Участника торгов | G150: Количество клиентов
B151: "ФИНАМ" (ЗАО) | C151: "ФИНАМ" (ЗАО) | D151: "ФИНАМ" (ЗАО) | E151: "ФИНАМ" (ЗАО) | F151: "ФИНАМ" (ЗАО) | G151: 18053 | H151: 18453
B152: "Компания Брокеркредитсервис" (ООО) | C152: "Компания Брокеркредитсервис" (ООО) | D152: "Компания Брокеркредитсервис" (ООО) | E152: "Компания Брокеркредитсервис" (ООО) | F152: "Компания Брокеркредитсервис" (ООО) | G152: 15588 | H152: 15958
B153: Сбербанк России (ОАО) | C153: Сбербанк России (ОАО) | D153: Сбербанк России (ОАО) | E153: Сбербанк России (ОАО) | F153: Сбербанк России (ОАО) | G153: 11383 | H153: 11168
B154: ВТБ 24 (ЗАО) | C154: ВТБ 24 (ЗАО) | D154: ВТБ 24 (ЗАО) | E154: ВТБ 24 (ЗАО) | F154: ВТБ 24 (ЗАО) | G154: 8588 | H154: 8737
B155: "АТОН" (ООО) | C155: "АТОН" (ООО) | D155: "АТОН" (ООО) | E155: "АТОН" (ООО) | F155: "АТОН" (ООО) | G155: 6252 | H155: 6378
B156: "АЛЬФА-БАHK" (ОАО) | C156: "АЛЬФА-БАHK" (ОАО) | D156: "АЛЬФА-БАHK" (ОАО) | E156: "АЛЬФА-БАHK" (ОАО) | F156: "АЛЬФА-БАHK" (ОАО) | G156: 6069 | H156: 6176
B157: ФК "ОТКРЫТИЕ" (ООО) | C157: ФК "ОТКРЫТИЕ" (ООО) | D157: ФК "ОТКРЫТИЕ" (ООО) | E157: ФК "ОТКРЫТИЕ" (ООО) | F157: ФК "ОТКРЫТИЕ" (ООО) | G157: 3008 | H157: 3024
B158: КИТ Финанс (ООО) | C158: КИТ Финанс (ООО) | D158: КИТ Финанс (ООО) | E158: КИТ Финанс (ООО) | F158: КИТ Финанс (ООО) | G158: 2977 | H158: 2989
B159: ГК "АЛОР" | C159: ГК "АЛОР" | D159: ГК "АЛОР" | E159: ГК "АЛОР" | F159: ГК "АЛОР" | G159: 2495 | H159: 2584
B160: "НЭТТРЭЙДЕР" (ООО) | C160: "НЭТТРЭЙДЕР" (ООО) | D160: "НЭТТРЭЙДЕР" (ООО) | E160: "НЭТТРЭЙДЕР" (ООО) | F160: "НЭТТРЭЙДЕР" (ООО) | G160: 1449 | H160: 1477
B163: Ведущие операторы рынка – объем клиентских операций | H163: Таблица 3
B164: Наименование Участника торгов | G164: Торговый оборот, руб.
B165: ИК "Тройка Диалог" (ЗАО) | C165: ИК "Тройка Диалог" (ЗАО) | D165: ИК "Тройка Диалог" (ЗАО) | E165: ИК "Тройка Диалог" (ЗАО) | F165: ИК "Тройка Диалог" (ЗАО) | G165: 490134887045 | H165: 5.474788973e+11
B166: "ФИНАМ" (ЗАО) | C166: "ФИНАМ" (ЗАО) | D166: "ФИНАМ" (ЗАО) | E166: "ФИНАМ" (ЗАО) | F166: "ФИНАМ" (ЗАО) | G166: 371898189610 | H166: 4.141098015e+11
B167: "Компания Брокеркредитсервис" (ООО) | C167: "Компания Брокеркредитсервис" (ООО) | D167: "Компания Брокеркредитсервис" (ООО) | E167: "Компания Брокеркредитсервис" (ООО) | F167: "Компания Брокеркредитсервис" (ООО) | G167: 367317407819
B168: ФК "ОТКРЫТИЕ" (ООО) | C168: ФК "ОТКРЫТИЕ" (ООО) | D168: ФК "ОТКРЫТИЕ" (ООО) | E168: ФК "ОТКРЫТИЕ" (ООО) | F168: ФК "ОТКРЫТИЕ" (ООО) | G168: 275894790332
B169: ГК "АЛОР" | C169: ГК "АЛОР" | D169: ГК "АЛОР" | E169: ГК "АЛОР" | F169: ГК "АЛОР" | G169: 240473819074
B170: "АТОН" (ООО) | C170: "АТОН" (ООО) | D170: "АТОН" (ООО) | E170: "АТОН" (ООО) | F170: "АТОН" (ООО) | G170: 149912230965
B171: ВТБ 24 (ЗАО) | C171: ВТБ 24 (ЗАО) | D171: ВТБ 24 (ЗАО) | E171: ВТБ 24 (ЗАО) | F171: ВТБ 24 (ЗАО) | G171: 139336784360
B172: ИК "Церих Кэпитал Менеджмент" (ОАО) | C172: ИК "Церих Кэпитал Менеджмент" (ОАО) | D172: ИК "Церих Кэпитал Менеджмент" (ОАО) | E172: ИК "Церих Кэпитал Менеджмент" (ОАО) | F172: ИК "Церих Кэпитал Менеджмент" (ОАО) | G172: 125935898814
B173: "ИК ВЕЛЕС Капитал" (ООО) | C173: "ИК ВЕЛЕС Капитал" (ООО) | D173: "ИК ВЕЛЕС Капитал" (ООО) | E173: "ИК ВЕЛЕС Капитал" (ООО) | F173: "ИК ВЕЛЕС Капитал" (ООО) | G173: 99541258772
B174: "РОНИН" (ООО) | C174: "РОНИН" (ООО) | D174: "РОНИН" (ООО) | E174: "РОНИН" (ООО) | F174: "РОНИН" (ООО) | G174: 98341567749

Sheet Август2010
B2: Клиенты Участников торгов Фондовой биржи ММВБ
B3: Август '10
B6: Динамика количества клиентов за Август 2010 г.
B10: Количество зарегистрированных клиентов в Системе торгов: | H10: Таблица 1
B11: Группы клиентов | E11: 2010-08-01 | F11: 2010-09-01 | G11: Изменение (ед.) | H11: Изменение (%)
B12: Физические лица | E12: 853080 | F12: 841502 | G12: =F12-E12 -> -11578 | H12: =F12/E12-1 -> -0.01357199794
B13: Юридические лица | E13: 35402 | F13: 34959 | G13: =F13-E13 -> -443 | H13: =F13/E13-1 -> -0.01251341732
B14: Нерезиденты | E14: 7803 | F14: 7786 | G14: =F14-E14 -> -17 | H14: =F14/E14-1 -> -0.002178649237
B15: Клиенты, передавшие свои средства в ДУ | E15: 15016 | F15: 14945 | G15: =F15-E15 -> -71 | H15: =F15/E15-1 -> -0.004728289824
B16: Всего | E16: 911301 | F16: 899192 | G16: =F16-E16 -> -12109 | H16: =F16/E16-1 -> -0.01328759652
B19: Количество уникальных клиентов в Системе торгов: | H19: Таблица 2
B20: Группы клиентов | E20: 2010-08-01 | F20: 2010-09-01 | G20: Изменение (ед.) | H20: Изменение (%)
B21: Физические лица | E21: 693388 | F21: 683152 | G21: =F21-E21 -> -10236 | H21: =F21/E21-1 -> -0.01476229759
B22: Юридические лица | E22: 17040 | F22: 16657 | G22: =F22-E22 -> -383 | H22: =F22/E22-1 -> -0.02247652582
B23: Нерезиденты | E23: 3954 | F23: 3983 | G23: =F23-E23 -> 29 | H23: =F23/E23-1 -> 0.007334344967
B24: Клиенты, передавшие свои средства в ДУ | E24: 5145 | F24: 5084 | G24: =F24-E24 -> -61 | H24: =F24/E24-1 -> -0.01185617104
B25: Всего | E25: 719527 | F25: 708876 | G25: =F25-E25 -> -10651 | H25: =F25/E25-1 -> -0.01480278016
B28: Количество активных клиентов в Системе торгов (совершивших в течение месяца хотя бы одну сделку): | H28: Таблица 3
B29: Группы клиентов | E29: за июль 2010 г. | F29: за август 2010 г. | G29: Изменение (ед.) | H29: Изменение (%)
B30: Физические лица | E30: 90856 | F30: 92503 | G30: =F30-E30 -> 1647 | H30: =F30/E30-1 -> 0.01812758651
B31: Юридические лица | E31: 1786 | F31: 1732 | G31: =F31-E31 -> -54 | H31: =F31/E31-1 -> -0.03023516237
B32: Нерезиденты | E32: 568 | F32: 593 | G32: =F32-E32 -> 25 | H32: =F32/E32-1 -> 0.04401408451
B33: Клиенты, передавшие свои средства в ДУ | E33: 2769 | F33: 2569 | G33: =F33-E33 -> -200 | H33: =F33/E33-1 -> -0.07222824124
B34: Всего | E34: 95979 | F34: =SUM(F30:F33) -> 97397 | G34: =F34-E34 -> 1418 | H34: =F34/E34-1 -> 0.01477406516
B38: Изменение количества уникальных клиентов - ретроспективные данные
B42: Количество уникальных клиентов в Системе торгов (ежегодная статистика): | H42: Таблица 1
B43: Группы клиентов | E43: 2007-01-01 | F43: 2008-01-01 | G43: 2009-01-01 | H43: 2010-01-01
B44: Физические лица | E44: 198973 | F44: 417403 | G44: 559320 | H44: 671475
B45: Юридические лица | E45: 10665 | F45: 12703 | G45: 14748 | H45: 16364
B46: Нерезиденты | E46: 1140 | F46: 2078 | G46: 3097 | H46: 3851
B47: Клиенты, передавшие свои средства в ДУ | E47: 2839 | F47: 4061 | G47: 4512 | H47: 4717
B48: Всего | E48: =SUM(E44:E47) -> 213617 | F48: =SUM(F44:F47) -> 436245 | G48: =SUM(G44:G47) -> 581677 | H48: =SUM(H44:H47) -> 696407
B76: Количество уникальных клиентов в Системе торгов (за последние 6 месяцев): | H76: Таблица 2
B77: Группы клиентов | C77: 2010-04-01 | D77: 2010-05-01 | E77: 2010-06-01 | F77: 2010-07-01 | G77: 2010-08-01 | H77: 2010-09-01
B78: Физические лица | C78: 697291 | D78: 707663 | E78: 711454 | F78: 699870 | G78: 693388 | H78: 683152
B79: Юридические лица | C79: 16723 | D79: 16892 | E79: 16953 | F79: 16990 | G79: 17040 | H79: 16657
B80: Нерезиденты | C80: 3985 | D80: 3790 | E80: 3849 | F80: 3921 | G80: 3954 | H80: 3983
B81: Клиенты, передавшие свои средства в ДУ | C81: 4866 | D81: 4947 | E81: 5006 | F81: 5080 | G81: 5145 | H81: 5084
B82: Всего | C82: 722865 | D82: 733292 | E82: 737262 | F82: 725861 | G82: 719527 | H82: 708876
B118: Дополнительные показатели по клиентам
B121: на 01.09.2010 г. | H121: Таблица 1
B122: Категории Участников торгов/клиентов | G122: Абсолютные показатели
B123: Количество Участников торгов, имеющих зарегистрированных клиентов | G123: 588
B124: Количество стран мира, представленных клиентами-нерезидентами | G124: 93
B125: Количество Участников торгов, зарегистрировавших клиентов-нерезидентов | G125: 315
B126: Количество клиентов, подписавших Декларацию о рисках с целью совершения сделок с ценными бумагами, включёнными в Котировальный список "И" | G126: 120102
G127: 108389 | H127: уникальных
B128: Количество Участников торгов, зарегистрировавших клиентов, имеющих намерение совершать сделки с ценными бумагами, включёнными в Котировальный список "И" | G128: 426
B132: Списки ведущих операторов фондового рынка - клиенты Участников торгов (за август 2010 г.)
B135: Ведущие операторы рынка – число зарегистрированных уникальных клиентов | H135: Таблица 1
B136: Наименование Участника торгов | G136: Количество клиентов
B137: Сбербанк России ОАО | C137: Сбербанк России ОАО | D137: Сбербанк России ОАО | E137: Сбербанк России ОАО | F137: Сбербанк России ОАО | G137: 173026 | H137: 173026
B138: ВТБ 24 (ЗАО) | C138: ВТБ 24 (ЗАО) | D138: ВТБ 24 (ЗАО) | E138: ВТБ 24 (ЗАО) | F138: ВТБ 24 (ЗАО) | G138: 157090 | H138: 157090
B139: ЗАО "ФИНАМ" | C139: ЗАО "ФИНАМ" | D139: ЗАО "ФИНАМ" | E139: ЗАО "ФИНАМ" | F139: ЗАО "ФИНАМ" | G139: 80887 | H139: 80887
B140: ООО "Компания БКС" | C140: ООО "Компания БКС" | D140: ООО "Компания БКС" | E140: ООО "Компания БКС" | F140: ООО "Компания БКС" | G140: 72492 | H140: 72492
B141: ОАО "АЛЬФА-БАНК" | C141: ОАО "АЛЬФА-БАНК" | D141: ОАО "АЛЬФА-БАНК" | E141: ОАО "АЛЬФА-БАНК" | F141: ОАО "АЛЬФА-БАНК" | G141: 45107 | H141: 45107
B142: ООО "АТОН" | C142: ООО "АТОН" | D142: ООО "АТОН" | E142: ООО "АТОН" | F142: ООО "АТОН" | G142: 34352 | H142: 34352
B143: ГК "АЛОР" | C143: ГК "АЛОР" | D143: ГК "АЛОР" | E143: ГК "АЛОР" | F143: ГК "АЛОР" | G143: 20668 | H143: 20668
B144: ФК "ОТКРЫТИЕ" (ООО) | C144: ФК "ОТКРЫТИЕ" (ООО) | D144: ФК "ОТКРЫТИЕ" (ООО) | E144: ФК "ОТКРЫТИЕ" (ООО) | F144: ФК "ОТКРЫТИЕ" (ООО) | G144: 18454 | H144: 18454
B145: КИТ Финанс (ООО) | C145: КИТ Финанс (ООО) | D145: КИТ Финанс (ООО) | E145: КИТ Финанс (ООО) | F145: КИТ Финанс (ООО) | G145: 15003 | H145: 15003
B146: ООО "Инвестиционная палата" | C146: ООО "Инвестиционная палата" | D146: ООО "Инвестиционная палата" | E146: ООО "Инвестиционная палата" | F146: ООО "Инвестиционная палата" | G146: 12610 | H146: 12610
B149: Ведущие операторы рынка – число активных клиентов | H149: Таблица 2
B150: Наименование Участника торгов | G150: Количество клиентов
B151: ЗАО "ФИНАМ" | G151: 18076 | H151: 18076
B152: ООО "Компания БКС" | G152: 15975 | H152: 15975
B153: Сбербанк России ОАО | G153: 11540 | H153: 11540
B154: ВТБ 24 (ЗАО) | G154: 8905 | H154: 8905
B155: ООО "АТОН" | G155: 6550 | H155: 6550
B156: ОАО "АЛЬФА-БАНК" | G156: 6250 | H156: 6250
B157: КИТ Финанс (ООО) | G157: 3097 | H157: 3097
B158: ФК "ОТКРЫТИЕ" (ООО) | G158: 3012 | H158: 3012
B159: ГК "АЛОР" | G159: 2549 | H159: 2549
B160: ООО "НЭТТРЭЙДЕР" | G160: 1532 | H160: 1532
B163: Ведущие операторы рынка – объем клиентских операций | H163: Таблица 3
B164: Наименование Участника торгов | G164: Торговый оборот, руб.
B165: ЗАО ИК "Тройка Диалог" | G165: 4.819720645e+11
B166: ООО "Компания БКС" | G166: 3.431385341e+11
B167: ЗАО "ФИНАМ" | G167: 3.345204454e+11
B168: ЗАО АКБ "ЦентроКредит" | G168: 3.182872606e+11
B169: ФК "ОТКРЫТИЕ" (ООО) | G169: 2.897388333e+11
B170: ГК "АЛОР" | G170: 2.018282859e+11
B171: ООО "АТОН" | G171: 1.379925606e+11
B172: ВТБ 24 (ЗАО) | G172: 1.192896006e+11
B173: ООО "РОНИН" | G173: 1.184281881e+11
B174: ООО "ИК ВЕЛЕС Капитал" | G174: 1.183017584e+11

Sheet Сентябрь2010
B2: Клиенты Участников торгов Фондовой биржи ММВБ
B3: Сентябрь '10
B6: Динамика количества клиентов за Сентябрь 2010 г.
B10: Количество зарегистрированных клиентов в Системе торгов: | H10: Таблица 1
B11: Группы клиентов | E11: 2010-09-01 | F11: 2010-10-01 | G11: Изменение (ед.) | H11: Изменение (%)
B12: Физические лица | E12: 841502 | F12: 851230 | G12: =F12-E12 -> 9728 | H12: =F12/E12-1 -> 0.0115602815
B13: Юридические лица | E13: 34959 | F13: 35108 | G13: =F13-E13 -> 149 | H13: =F13/E13-1 -> 0.004262135645
B14: Нерезиденты | E14: 7786 | F14: 7890 | G14: =F14-E14 -> 104 | H14: =F14/E14-1 -> 0.01335730799
B15: Клиенты, передавшие свои средства в ДУ | E15: 14945 | F15: 15074 | G15: =F15-E15 -> 129 | H15: =F15/E15-1 -> 0.008631649381
B16: Всего | E16: 899192 | F16: 909302 | G16: =F16-E16 -> 10110 | H16: =F16/E16-1 -> 0.01124342743
B19: Количество уникальных клиентов в Системе торгов: | H19: Таблица 2
B20: Группы клиентов | E20: 2010-09-01 | F20: 2010-10-01 | G20: Изменение (ед.) | H20: Изменение (%)
B21: Физические лица | E21: 683152 | F21: 689991 | G21: =F21-E21 -> 6839 | H21: =F21/E21-1 -> 0.01001094925
B22: Юридические лица | E22: 16657 | F22: 16760 | G22: =F22-E22 -> 103 | H22: =F22/E22-1 -> 0.00618358648
B23: Нерезиденты | E23: 3983 | F23: 4042 | G23: =F23-E23 -> 59 | H23: =F23/E23-1 -> 0.01481295506
B24: Клиенты, передавшие свои средства в ДУ | E24: 5084 | F24: 5127 | G24: =F24-E24 -> 43 | H24: =F24/E24-1 -> 0.00845790716
B25: Всего | E25: 708876 | F25: 715920 | G25: =F25-E25 -> 7044 | H25: =F25/E25-1 -> 0.009936857786
B28: Количество активных клиентов в Системе торгов (совершивших в течение месяца хотя бы одну сделку): | H28: Таблица 3
B29: Группы клиентов | E29: за август 2010 г. | F29: за сентябрь 2010 г. | G29: Изменение (ед.) | H29: Изменение (%)
B30: Физические лица | E30: 92503 | F30: 98135 | G30: =F30-E30 -> 5632 | H30: =F30/E30-1 -> 0.06088451185
B31: Юридические лица | E31: 1732 | F31: 1934 | G31: =F31-E31 -> 202 | H31: =F31/E31-1 -> 0.1166281755
B32: Нерезиденты | E32: 593 | F32: 606 | G32: =F32-E32 -> 13 | H32: =F32/E32-1 -> 0.02192242833
B33: Клиенты, передавшие свои средства в ДУ | E33: 2569 | F33: 2728 | G33: =F33-E33 -> 159 | H33: =F33/E33-1 -> 0.06189178669
B34: Всего | E34: =SUM(E30:E33) -> 97397 | F34: =SUM(F30:F33) -> 103403 | G34: =F34-E34 -> 6006 | H34: =F34/E34-1 -> 0.06166514369
B38: Изменение количества уникальных клиентов - ретроспективные данные
B42: Количество уникальных клиентов в Системе торгов (ежегодная статистика): | H42: Таблица 1
B43: Группы клиентов | E43: 2007-01-01 | F43: 2008-01-01 | G43: 2009-01-01 | H43: 2010-01-01
B44: Физические лица | E44: 198973 | F44: 417403 | G44: 559320 | H44: 671475
B45: Юридические лица | E45: 10665 | F45: 12703 | G45: 14748 | H45: 16364
B46: Нерезиденты | E46: 1140 | F46: 2078 | G46: 3097 | H46: 3851
B47: Клиенты, передавшие свои средства в ДУ | E47: 2839 | F47: 4061 | G47: 4512 | H47: 4717
B48: Всего | E48: =SUM(E44:E47) -> 213617 | F48: =SUM(F44:F47) -> 436245 | G48: =SUM(G44:G47) -> 581677 | H48: =SUM(H44:H47) -> 696407
B76: Количество уникальных клиентов в Системе торгов (за последние 6 месяцев): | H76: Таблица 2
B77: Группы клиентов | C77: 2010-05-01 | D77: 2010-06-01 | E77: 2010-07-01 | F77: 2010-08-01 | G77: 2010-09-01 | H77: 2010-10-01
B78: Физические лица | C78: 707663 | D78: 711454 | E78: 699870 | F78: 693388 | G78: 683152 | H78: 689991
B79: Юридические лица | C79: 16892 | D79: 16953 | E79: 16990 | F79: 17040 | G79: 16657 | H79: 16760
B80: Нерезиденты | C80: 3790 | D80: 3849 | E80: 3921 | F80: 3954 | G80: 3983 | H80: 4042
B81: Клиенты, передавшие свои средства в ДУ | C81: 4947 | D81: 5006 | E81: 5080 | F81: 5145 | G81: 5084 | H81: 5127
B82: Всего | C82: 733292 | D82: 737262 | E82: 725861 | F82: 719527 | G82: 708876 | H82: 715920
B118: Дополнительные показатели по клиентам
B121: на 01.10.2010 г. | H121: Таблица 1
B122: Категории Участников торгов/клиентов | G122: Абсолютные показатели
B123: Количество Участников торгов, имеющих зарегистрированных клиентов | G123: 593
B124: Количество стран мира, представленных клиентами-нерезидентами | G124: 95
B125: Количество Участников торгов, зарегистрировавших клиентов-нерезидентов | G125: 319
B126: Количество клиентов, подписавших Декларацию о рисках с целью совершения сделок с ценными бумагами, включёнными в Котировальный список "И" | G126: 123399
G127: 111174 | H127: уникальных
B128: Количество Участников торгов, зарегистрировавших клиентов, имеющих намерение совершать сделки с ценными бумагами, включёнными в Котировальный список "И" | G128: 431
B132: Списки ведущих операторов фондового рынка - клиенты Участников торгов (за сентябрь 2010 г.)
B135: Ведущие операторы рынка – число зарегистрированных уникальных клиентов | H135: Таблица 1
B136: Наименование Участника торгов | G136: Количество клиентов
B137: Сбербанк России ОАО | C137: Сбербанк России ОАО | D137: Сбербанк России ОАО | E137: Сбербанк России ОАО | F137: Сбербанк России ОАО | G137: 173539 | H137: 173539
B138: ВТБ 24 (ЗАО) | C138: ВТБ 24 (ЗАО) | D138: ВТБ 24 (ЗАО) | E138: ВТБ 24 (ЗАО) | F138: ВТБ 24 (ЗАО) | G138: 157667 | H138: 157667
B139: ЗАО "ФИНАМ" | C139: ЗАО "ФИНАМ" | D139: ЗАО "ФИНАМ" | E139: ЗАО "ФИНАМ" | F139: ЗАО "ФИНАМ" | G139: 82558 | H139: 82558
B140: ООО "Компания БКС" | C140: ООО "Компания БКС" | D140: ООО "Компания БКС" | E140: ООО "Компания БКС" | F140: ООО "Компания БКС" | G140: 74074 | H140: 74074
B141: ОАО "АЛЬФА-БАНК" | C141: ОАО "АЛЬФА-БАНК" | D141: ОАО "АЛЬФА-БАНК" | E141: ОАО "АЛЬФА-БАНК" | F141: ОАО "АЛЬФА-БАНК" | G141: 45951 | H141: 45951
B142: ООО "АТОН" | C142: ООО "АТОН" | D142: ООО "АТОН" | E142: ООО "АТОН" | F142: ООО "АТОН" | G142: 34698 | H142: 34698
B143: ФК "ОТКРЫТИЕ" | C143: ФК "ОТКРЫТИЕ" | D143: ФК "ОТКРЫТИЕ" | E143: ФК "ОТКРЫТИЕ" | F143: ФК "ОТКРЫТИЕ" | G143: 18931 | H143: 18931
B144: ГК "АЛОР" | C144: ГК "АЛОР" | D144: ГК "АЛОР" | E144: ГК "АЛОР" | F144: ГК "АЛОР" | G144: 16629 | H144: 16629
B145: КИТ Финанс (ООО) | C145: КИТ Финанс (ООО) | D145: КИТ Финанс (ООО) | E145: КИТ Финанс (ООО) | F145: КИТ Финанс (ООО) | G145: 15281 | H145: 15281
B146: ООО "Инвестиционная палата" | C146: ООО "Инвестиционная палата" | D146: ООО "Инвестиционная палата" | E146: ООО "Инвестиционная палата" | F146: ООО "Инвестиционная палата" | G146: 13417 | H146: 13417
B149: Ведущие операторы рынка – число активных клиентов | H149: Таблица 2
B150: Наименование Участника торгов | G150: Количество клиентов
B151: ЗАО "ФИНАМ" | C151: ЗАО "ФИНАМ" | D151: ЗАО "ФИНАМ" | E151: ЗАО "ФИНАМ" | F151: ЗАО "ФИНАМ" | G151: 19204 | H151: 19204
B152: ООО "Компания БКС" | C152: ООО "Компания БКС" | D152: ООО "Компания БКС" | E152: ООО "Компания БКС" | F152: ООО "Компания БКС" | G152: 16881 | H152: 16881
B153: Сбербанк России ОАО | C153: Сбербанк России ОАО | D153: Сбербанк России ОАО | E153: Сбербанк России ОАО | F153: Сбербанк России ОАО | G153: 12875 | H153: 12875
B154: ВТБ 24 (ЗАО) | C154: ВТБ 24 (ЗАО) | D154: ВТБ 24 (ЗАО) | E154: ВТБ 24 (ЗАО) | F154: ВТБ 24 (ЗАО) | G154: 9385 | H154: 9385
B155: ООО "АТОН" | C155: ООО "АТОН" | D155: ООО "АТОН" | E155: ООО "АТОН" | F155: ООО "АТОН" | G155: 6779 | H155: 6779
B156: ОАО "АЛЬФА-БАНК" | C156: ОАО "АЛЬФА-БАНК" | D156: ОАО "АЛЬФА-БАНК" | E156: ОАО "АЛЬФА-БАНК" | F156: ОАО "АЛЬФА-БАНК" | G156: 6562 | H156: 6562
B157: КИТ Финанс (ООО) | C157: КИТ Финанс (ООО) | D157: КИТ Финанс (ООО) | E157: КИТ Финанс (ООО) | F157: КИТ Финанс (ООО) | G157: 3232 | H157: 3232
B158: ФК "ОТКРЫТИЕ" | C158: ФК "ОТКРЫТИЕ" | D158: ФК "ОТКРЫТИЕ" | E158: ФК "ОТКРЫТИЕ" | F158: ФК "ОТКРЫТИЕ" | G158: 3180 | H158: 3180
B159: ГК "АЛОР" | C159: ГК "АЛОР" | D159: ГК "АЛОР" | E159: ГК "АЛОР" | F159: ГК "АЛОР" | G159: 2696 | H159: 2696
B160: ООО "НЭТТРЭЙДЕР" | C160: ООО "НЭТТРЭЙДЕР" | D160: ООО "НЭТТРЭЙДЕР" | E160: ООО "НЭТТРЭЙДЕР" | F160: ООО "НЭТТРЭЙДЕР" | G160: 1671 | H160: 1671
B163: Ведущие операторы рынка – объем клиентских операций | H163: Таблица 3
B164: Наименование Участника торгов | G164: Торговый оборот, руб.
B165: ЗАО ИК "Тройка Диалог" | C165: ЗАО ИК "Тройка Диалог" | D165: ЗАО ИК "Тройка Диалог" | E165: ЗАО ИК "Тройка Диалог" | F165: ЗАО ИК "Тройка Диалог" | G165: 5.585503829e+11 | H165: 5.585503829e+11
B166: ООО "Компания БКС" | C166: ООО "Компания БКС" | D166: ООО "Компания БКС" | E166: ООО "Компания БКС" | F166: ООО "Компания БКС" | G166: 3.920988208e+11 | H166: 3.920988208e+11
B167: ЗАО "ФИНАМ" | C167: ЗАО "ФИНАМ" | D167: ЗАО "ФИНАМ" | E167: ЗАО "ФИНАМ" | F167: ЗАО "ФИНАМ" | G167: 3.83136019e+11 | H167: 3.83136019e+11
B168: ФК "ОТКРЫТИЕ" | C168: ФК "ОТКРЫТИЕ" | D168: ФК "ОТКРЫТИЕ" | E168: ФК "ОТКРЫТИЕ" | F168: ФК "ОТКРЫТИЕ" | G168: 3.587712008e+11 | H168: 3.587712008e+11
B169: ГК "АЛОР" | C169: ГК "АЛОР" | D169: ГК "АЛОР" | E169: ГК "АЛОР" | F169: ГК "АЛОР" | G169: 2.010279709e+11 | H169: 2.010279709e+11
B170: ООО "АТОН" | C170: ООО "АТОН" | D170: ООО "АТОН" | E170: ООО "АТОН" | F170: ООО "АТОН" | G170: 1.553662818e+11 | H170: 1.553662818e+11
B171: ООО "РОНИН" | C171: ООО "РОНИН" | D171: ООО "РОНИН" | E171: ООО "РОНИН" | F171: ООО "РОНИН" | G171: 1.529207807e+11 | H171: 1.529207807e+11
B172: ООО "ИК ВЕЛЕС Капитал" | C172: ООО "ИК ВЕЛЕС Капитал" | D172: ООО "ИК ВЕЛЕС Капитал" | E172: ООО "ИК ВЕЛЕС Капитал" | F172: ООО "ИК ВЕЛЕС Капитал" | G172: 1.242791048e+11 | H172: 1.242791048e+11
B173: ВТБ 24 (ЗАО) | C173: ВТБ 24 (ЗАО) | D173: ВТБ 24 (ЗАО) | E173: ВТБ 24 (ЗАО) | F173: ВТБ 24 (ЗАО) | G173: 1.142377937e+11 | H173: 1.142377937e+11
B174: ОАО ИК "ЦЕРИХ Кэпитал Менеджмент" | C174: ОАО ИК "ЦЕРИХ Кэпитал Менеджмент" | D174: ОАО ИК "ЦЕРИХ Кэпитал Менеджмент" | E174: ОАО ИК "ЦЕРИХ Кэпитал Менеджмент" | F174: ОАО ИК "ЦЕРИХ Кэпитал Менеджмент" | G174: 1.084955083e+11 | H174: 1.084955083e+11

Sheet Октябрь2010
B2: Клиенты Участников торгов Фондовой биржи ММВБ
B3: Октябрь '10
B6: Динамика количества клиентов за Октябрь 2010 г.
B10: Количество зарегистрированных клиентов в Системе торгов: | H10: Таблица 1
B11: Группы клиентов | E11: 2010-10-01 | F11: 2010-11-01 | G11: Изменение (ед.) | H11: Изменение (%)
B12: Физические лица | E12: 851230 | F12: 861212 | G12: =F12-E12 -> 9982 | H12: =F12/E12-1 -> 0.01172656039
B13: Юридические лица | E13: 35108 | F13: 35328 | G13: =F13-E13 -> 220 | H13: =F13/E13-1 -> 0.006266378033
B14: Нерезиденты | E14: 7890 | F14: 8012 | G14: =F14-E14 -> 122 | H14: =F14/E14-1 -> 0.0154626109
B15: Клиенты, передавшие свои средства в ДУ | E15: 15074 | F15: 15214 | G15: =F15-E15 -> 140 | H15: =F15/E15-1 -> 0.009287514926
B16: Всего | E16: 909302 | F16: 919766 | G16: =F16-E16 -> 10464 | H16: =F16/E16-1 -> 0.01150772791
B19: Количество уникальных клиентов в Системе торгов: | H19: Таблица 2
B20: Группы клиентов | E20: 2010-10-01 | F20: 2010-11-01 | G20: Изменение (ед.) | H20: Изменение (%)
B21: Физические лица | E21: 689991 | F21: 697047 | G21: =F21-E21 -> 7056 | H21: =F21/E21-1 -> 0.01022622034
B22: Юридические лица | E22: 16760 | F22: 16885 | G22: =F22-E22 -> 125 | H22: =F22/E22-1 -> 0.00745823389
B23: Нерезиденты | E23: 4042 | F23: 4107 | G23: =F23-E23 -> 65 | H23: =F23/E23-1 -> 0.01608114795
B24: Клиенты, передавшие свои средства в ДУ | E24: 5127 | F24: 5189 | G24: =F24-E24 -> 62 | H24: =F24/E24-1 -> 0.01209284182
B25: Всего | E25: 715920 | F25: 723228 | G25: =F25-E25 -> 7308 | H25: =F25/E25-1 -> 0.01020784445
B28: Количество активных клиентов в Системе торгов (совершивших в течение месяца хотя бы одну сделку): | H28: Таблица 3
B29: Группы клиентов | E29: за сентябрь 2010 г. | F29: за октябрь 2010 г. | G29: Изменение (ед.) | H29: Изменение (%)
B30: Физические лица | E30: 98135 | F30: 108225 | G30: =F30-E30 -> 10090 | H30: =F30/E30-1 -> 0.1028175473
B31: Юридические лица | E31: 1934 | F31: 1942 | G31: =F31-E31 -> 8 | H31: =F31/E31-1 -> 0.004136504654
B32: Нерезиденты | E32: 606 | F32: 631 | G32: =F32-E32 -> 25 | H32: =F32/E32-1 -> 0.04125412541
B33: Клиенты, передавшие свои средства в ДУ | E33: 2728 | F33: 2997 | G33: =F33-E33 -> 269 | H33: =F33/E33-1 -> 0.09860703812
B34: Всего | E34: =SUM(E30:E33) -> 103403 | F34: =SUM(F30:F33) -> 113795 | G34: =F34-E34 -> 10392 | H34: =F34/E34-1 -> 0.1004999855
B38: Изменение количества уникальных клиентов - ретроспективные данные
B42: Количество уникальных клиентов в Системе торгов (ежегодная статистика): | H42: Таблица 1
B43: Группы клиентов | E43: 2007-01-01 | F43: 2008-01-01 | G43: 2009-01-01 | H43: 2010-01-01
B44: Физические лица | E44: 198973 | F44: 417403 | G44: 559320 | H44: 671475
B45: Юридические лица | E45: 10665 | F45: 12703 | G45: 14748 | H45: 16364
B46: Нерезиденты | E46: 1140 | F46: 2078 | G46: 3097 | H46: 3851
B47: Клиенты, передавшие свои средства в ДУ | E47: 2839 | F47: 4061 | G47: 4512 | H47: 4717
B48: Всего | E48: =SUM(E44:E47) -> 213617 | F48: =SUM(F44:F47) -> 436245 | G48: =SUM(G44:G47) -> 581677 | H48: =SUM(H44:H47) -> 696407
B76: Количество уникальных клиентов в Системе торгов (за последние 6 месяцев): | H76: Таблица 2
B77: Группы клиентов | C77: 2010-06-01 | D77: 2010-07-01 | E77: 2010-08-01 | F77: 2010-09-01 | G77: 2010-10-01 | H77: 2010-11-01
B78: Физические лица | C78: 711454 | D78: 699870 | E78: 693388 | F78: 683152 | G78: 689991 | H78: 697047
B79: Юридические лица | C79: 16953 | D79: 16990 | E79: 17040 | F79: 16657 | G79: 16760 | H79: 16885
B80: Нерезиденты | C80: 3849 | D80: 3921 | E80: 3954 | F80: 3983 | G80: 4042 | H80: 4107
B81: Клиенты, передавшие свои средства в ДУ | C81: 5006 | D81: 5080 | E81: 5145 | F81: 5084 | G81: 5127 | H81: 5189
B82: Всего | C82: 737262 | D82: 725861 | E82: 719527 | F82: 708876 | G82: 715920 | H82: 723228
B118: Дополнительные показатели по клиентам
B121: на 01.10.2010 г. | H121: Таблица 1
B122: Категории Участников торгов/клиентов | G122: Абсолютные показатели
B123: Количество Участников торгов, имеющих зарегистрированных клиентов | G123: 596
B124: Количество стран мира, представленных клиентами-нерезидентами | G124: 97
B125: Количество Участников торгов, зарегистрировавших клиентов-нерезидентов | G125: 322
B126: Количество клиентов, подписавших Декларацию о рисках с целью совершения сделок с ценными бумагами, включёнными в Котировальный список "И" | G126: 126341
G127: 113664 | H127: уникальных
B128: Количество Участников торгов, зарегистрировавших клиентов, имеющих намерение совершать сделки с ценными бумагами, включёнными в Котировальный список "И" | G128: 433
B132: Списки ведущих операторов фондового рынка - клиенты Участников торгов (за октябрь 2010 г.)
B135: Ведущие операторы рынка – число зарегистрированных уникальных клиентов | H135: Таблица 1
B136: Наименование Участника торгов | G136: Количество клиентов
B137: Сбербанк России ОАО | C137: Сбербанк России ОАО | D137: Сбербанк России ОАО | E137: Сбербанк России ОАО | F137: Сбербанк России ОАО | G137: 174434 | H137: 174434
B138: ВТБ 24 (ЗАО) | C138: ВТБ 24 (ЗАО) | D138: ВТБ 24 (ЗАО) | E138: ВТБ 24 (ЗАО) | F138: ВТБ 24 (ЗАО) | G138: 158185 | H138: 158185
B139: ЗАО "ФИНАМ" | C139: ЗАО "ФИНАМ" | D139: ЗАО "ФИНАМ" | E139: ЗАО "ФИНАМ" | F139: ЗАО "ФИНАМ" | G139: 84637 | H139: 84637
B140: ООО "Компания БКС" | C140: ООО "Компания БКС" | D140: ООО "Компания БКС" | E140: ООО "Компания БКС" | F140: ООО "Компания БКС" | G140: 75376 | H140: 75376
B141: ОАО "АЛЬФА-БАНК" | C141: ОАО "АЛЬФА-БАНК" | D141: ОАО "АЛЬФА-БАНК" | E141: ОАО "АЛЬФА-БАНК" | F141: ОАО "АЛЬФА-БАНК" | G141: 46803 | H141: 46803
B142: ООО "АТОН" | C142: ООО "АТОН" | D142: ООО "АТОН" | E142: ООО "АТОН" | F142: ООО "АТОН" | G142: 35054 | H142: 35054
B143: ГК "АЛОР" | C143: ГК "АЛОР" | D143: ГК "АЛОР" | E143: ГК "АЛОР" | F143: ГК "АЛОР" | G143: 21074 | H143: 21074
B144: ФК "ОТКРЫТИЕ" (ООО) | C144: ФК "ОТКРЫТИЕ" (ООО) | D144: ФК "ОТКРЫТИЕ" (ООО) | E144: ФК "ОТКРЫТИЕ" (ООО) | F144: ФК "ОТКРЫТИЕ" (ООО) | G144: 19362 | H144: 19362
B145: КИТ Финанс (ООО) | C145: КИТ Финанс (ООО) | D145: КИТ Финанс (ООО) | E145: КИТ Финанс (ООО) | F145: КИТ Финанс (ООО) | G145: 15527 | H145: 15527
B146: ООО "Инвестиционная палата" | C146: ООО "Инвестиционная палата" | D146: ООО "Инвестиционная палата" | E146: ООО "Инвестиционная палата" | F146: ООО "Инвестиционная палата" | G146: 14149 | H146: 14149
B149: Ведущие операторы рынка – число активных клиентов | H149: Таблица 2
B150: Наименование Участника торгов | G150: Количество клиентов
B151: ЗАО "ФИНАМ" | C151: ЗАО "ФИНАМ" | D151: ЗАО "ФИНАМ" | E151: ЗАО "ФИНАМ" | F151: ЗАО "ФИНАМ" | G151: 20584 | H151: 20584
B152: Сбербанк России ОАО | C152: Сбербанк России ОАО | D152: Сбербанк России ОАО | E152: Сбербанк России ОАО | F152: Сбербанк России ОАО | G152: 17773 | H152: 17773
B153: ООО "Компания БКС" | C153: ООО "Компания БКС" | D153: ООО "Компания БКС" | E153: ООО "Компания БКС" | F153: ООО "Компания БКС" | G153: 17664 | H153: 17664
B154: ВТБ 24 (ЗАО) | C154: ВТБ 24 (ЗАО) | D154: ВТБ 24 (ЗАО) | E154: ВТБ 24 (ЗАО) | F154: ВТБ 24 (ЗАО) | G154: 10034 | H154: 10034
B155: ООО "АТОН" | C155: ООО "АТОН" | D155: ООО "АТОН" | E155: ООО "АТОН" | F155: ООО "АТОН" | G155: 7307 | H155: 7307
B156: ОАО "АЛЬФА-БАНК" | C156: ОАО "АЛЬФА-БАНК" | D156: ОАО "АЛЬФА-БАНК" | E156: ОАО "АЛЬФА-БАНК" | F156: ОАО "АЛЬФА-БАНК" | G156: 6938 | H156: 6938
B157: КИТ Финанс (ООО) | C157: КИТ Финанс (ООО) | D157: КИТ Финанс (ООО) | E157: КИТ Финанс (ООО) | F157: КИТ Финанс (ООО) | G157: 3443 | H157: 3443
B158: ФК "ОТКРЫТИЕ" (ООО) | C158: ФК "ОТКРЫТИЕ" (ООО) | D158: ФК "ОТКРЫТИЕ" (ООО) | E158: ФК "ОТКРЫТИЕ" (ООО) | F158: ФК "ОТКРЫТИЕ" (ООО) | G158: 3390 | H158: 3390
B159: ГК "АЛОР" | C159: ГК "АЛОР" | D159: ГК "АЛОР" | E159: ГК "АЛОР" | F159: ГК "АЛОР" | G159: 2845 | H159: 2845
B160: ООО "НЭТТРЭЙДЕР" | C160: ООО "НЭТТРЭЙДЕР" | D160: ООО "НЭТТРЭЙДЕР" | E160: ООО "НЭТТРЭЙДЕР" | F160: ООО "НЭТТРЭЙДЕР" | G160: 1757 | H160: 1757
B163: Ведущие операторы рынка – объем клиентских операций | H163: Таблица 3
B164: Наименование Участника торгов | G164: Торговый оборот, руб.
B165: ЗАО ИК "Тройка Диалог" | C165: ЗАО ИК "Тройка Диалог" | D165: ЗАО ИК "Тройка Диалог" | E165: ЗАО ИК "Тройка Диалог" | F165: ЗАО ИК "Тройка Диалог" | G165: 5.518700683e+11 | H165: 5.518700683e+11
B166: ЗАО "ФИНАМ" | C166: ЗАО "ФИНАМ" | D166: ЗАО "ФИНАМ" | E166: ЗАО "ФИНАМ" | F166: ЗАО "ФИНАМ" | G166: 4.549466151e+11 | H166: 4.549466151e+11
B167: ООО "Компания БКС" | C167: ООО "Компания БКС" | D167: ООО "Компания БКС" | E167: ООО "Компания БКС" | F167: ООО "Компания БКС" | G167: 4.128053205e+11 | H167: 4.128053205e+11
B168: ФК "ОТКРЫТИЕ" (ООО) | C168: ФК "ОТКРЫТИЕ" (ООО) | D168: ФК "ОТКРЫТИЕ" (ООО) | E168: ФК "ОТКРЫТИЕ" (ООО) | F168: ФК "ОТКРЫТИЕ" (ООО) | G168: 4.067111943e+11 | H168: 4.067111943e+11
B169: ГК "АЛОР" | C169: ГК "АЛОР" | D169: ГК "АЛОР" | E169: ГК "АЛОР" | F169: ГК "АЛОР" | G169: 2.213941106e+11 | H169: 2.213941106e+11
B170: ООО "АТОН" | C170: ООО "АТОН" | D170: ООО "АТОН" | E170: ООО "АТОН" | F170: ООО "АТОН" | G170: 2.077843594e+11 | H170: 2.077843594e+11
B171: ООО "РОНИН" | C171: ООО "РОНИН" | D171: ООО "РОНИН" | E171: ООО "РОНИН" | F171: ООО "РОНИН" | G171: 1.890439374e+11 | H171: 1.890439374e+11
B172: ООО "ИК ВЕЛЕС Капитал" | C172: ООО "ИК ВЕЛЕС Капитал" | D172: ООО "ИК ВЕЛЕС Капитал" | E172: ООО "ИК ВЕЛЕС Капитал" | F172: ООО "ИК ВЕЛЕС Капитал" | G172: 1.687721311e+11 | H172: 1.687721311e+11
B173: ОАО ИК "ЦЕРИХ Кэпитал Менеджмент" | C173: ОАО ИК "ЦЕРИХ Кэпитал Менеджмент" | D173: ОАО ИК "ЦЕРИХ Кэпитал Менеджмент" | E173: ОАО ИК "ЦЕРИХ Кэпитал Менеджмент" | F173: ОАО ИК "ЦЕРИХ Кэпитал Менеджмент" | G173: 1.380326693e+11 | H173: 1.380326693e+11
B174: ВТБ 24 (ЗАО) | C174: ВТБ 24 (ЗАО) | D174: ВТБ 24 (ЗАО) | E174: ВТБ 24 (ЗАО) | F174: ВТБ 24 (ЗАО) | G174: 1.272023018e+11 | H174: 1.272023018e+11

Sheet Ноябрь2010
B2: Клиенты Участников торгов Фондовой биржи ММВБ
B3: Ноябрь '10
B6: Динамика количества клиентов за Ноябрь 2010 г.
B10: Количество зарегистрированных клиентов в Системе торгов: | H10: Таблица 1
B11: Группы клиентов | E11: 2010-11-01 | F11: 2010-12-01 | G11: Изменение (ед.) | H11: Изменение (%)
B12: Физические лица | E12: 861212 | F12: 873165 | G12: =F12-E12 -> 11953 | H12: =F12/E12-1 -> 0.01387927711
B13: Юридические лица | E13: 35328 | F13: 35554 | G13: =F13-E13 -> 226 | H13: =F13/E13-1 -> 0.006397192029
B14: Нерезиденты | E14: 8012 | F14: 8144 | G14: =F14-E14 -> 132 | H14: =F14/E14-1 -> 0.01647528707
B15: Клиенты, передавшие свои средства в ДУ | E15: 15214 | F15: 15439 | G15: =F15-E15 -> 225 | H15: =F15/E15-1 -> 0.01478901012
B16: Всего | E16: 919766 | F16: 932302 | G16: =F16-E16 -> 12536 | H16: =F16/E16-1 -> 0.0136295536
B19: Количество уникальных клиентов в Системе торгов: | H19: Таблица 2
B20: Группы клиентов | E20: 2010-11-01 | F20: 2010-12-01 | G20: Изменение (ед.) | H20: Изменение (%)
B21: Физические лица | E21: 697047 | F21: 705828 | G21: =F21-E21 -> 8781 | H21: =F21/E21-1 -> 0.01259742887
B22: Юридические лица | E22: 16885 | F22: 17040 | G22: =F22-E22 -> 155 | H22: =F22/E22-1 -> 0.009179745336
B23: Нерезиденты | E23: 4107 | F23: 4196 | G23: =F23-E23 -> 89 | H23: =F23/E23-1 -> 0.02167031897
B24: Клиенты, передавшие свои средства в ДУ | E24: 5189 | F24: 5255 | G24: =F24-E24 -> 66 | H24: =F24/E24-1 -> 0.01271921372
B25: Всего | E25: 723228 | F25: 732319 | G25: =F25-E25 -> 9091 | H25: =F25/E25-1 -> 0.01257003324
B28: Количество активных клиентов в Системе торгов (совершивших в течение месяца хотя бы одну сделку): | H28: Таблица 3
B29: Группы клиентов | E29: за октябрь 2010 г. | F29: за ноябрь 2010 г. | G29: Изменение (ед.) | H29: Изменение (%)
B30: Физические лица | E30: 108225 | F30: 103111 | G30: =F30-E30 -> -5114 | H30: =F30/E30-1 -> -0.04725340725
B31: Юридические лица | E31: 1942 | F31: 1951 | G31: =F31-E31 -> 9 | H31: =F31/E31-1 -> 0.004634397528
B32: Нерезиденты | E32: 631 | F32: 639 | G32: =F32-E32 -> 8 | H32: =F32/E32-1 -> 0.01267828843
B33: Клиенты, передавшие свои средства в ДУ | E33: 2997 | F33: 2830 | G33: =F33-E33 -> -167 | H33: =F33/E33-1 -> -0.05572238906
B34: Всего | E34: =SUM(E30:E33) -> 113795 | F34: =SUM(F30:F33) -> 108531 | G34: =F34-E34 -> -5264 | H34: =F34/E34-1 -> -0.04625862296
B38: Изменение количества уникальных клиентов - ретроспективные данные
B42: Количество уникальных клиентов в Системе торгов (ежегодная статистика): | H42: Таблица 1
B43: Группы клиентов | E43: 2007-01-01 | F43: 2008-01-01 | G43: 2009-01-01 | H43: 2010-01-01
B44: Физические лица | E44: 198973 | F44: 417403 | G44: 559320 | H44: 671475
B45: Юридические лица | E45: 10665 | F45: 12703 | G45: 14748 | H45: 16364
B46: Нерезиденты | E46: 1140 | F46: 2078 | G46: 3097 | H46: 3851
B47: Клиенты, передавшие свои средства в ДУ | E47: 2839 | F47: 4061 | G47: 4512 | H47: 4717
B48: Всего | E48: =SUM(E44:E47) -> 213617 | F48: =SUM(F44:F47) -> 436245 | G48: =SUM(G44:G47) -> 581677 | H48: =SUM(H44:H47) -> 696407
B76: Количество уникальных клиентов в Системе торгов (за последние 6 месяцев): | H76: Таблица 2
B77: Группы клиентов | C77: 2010-07-01 | D77: 2010-08-01 | E77: 2010-09-01 | F77: 2010-10-01 | G77: 2010-11-01 | H77: 2010-12-01
B78: Физические лица | C78: 699870 | D78: 693388 | E78: 683152 | F78: 689991 | G78: 697047 | H78: 705828
B79: Юридические лица | C79: 16990 | D79: 17040 | E79: 16657 | F79: 16760 | G79: 16885 | H79: 17040
B80: Нерезиденты | C80: 3921 | D80: 3954 | E80: 3983 | F80: 4042 | G80: 4107 | H80: 4196
B81: Клиенты, передавшие свои средства в ДУ | C81: 5080 | D81: 5145 | E81: 5084 | F81: 5127 | G81: 5189 | H81: 5255
